Workbook

Sheet Розница
A1: A | E1: Субъект РФ | F1: Центральный Федеральный Округ
A2: B | E2: Территория | F2: Московская область
E3: Категория клиента | F3: A
E4: Базис доставки GW | F4: =VLOOKUP($F$2,Tariffs_!$C$3:$E$89,3,FALSE) -> Авто 92м3 Его/Авто 25 м3 Его с доплатой по сервис чарту
E5: Базис доставки SW | F5: =CONCATENATE("Челябинск: ",VLOOKUP($F$2,Tariffs_!$C$90:$F$176,3,FALSE),"; Тамбов: ",VLOOKUP($F$2,Tariffs_!$C$177:$F$298,3,FALSE)) -> Челябинск: Авто 120 м3 Чел/Авто 92 м3 Чел; Тамбов: Авто 92 м3 Тамбов
G6: * Заказы по категории В оформляются в соответствии с минимальной партией (см. E-shop)
A7: FALSE
A8: FALSE | J8: доп.информация>>
B9: GW/SW | C9: LW/HW | D9: Завод | E9: SAP код | F9: Название Материала | G9: Цена Руб./м3 с НДС 20% | H9: Цена Руб./м3 без НДС | I9: Альтернативный транспорт руб/м3 с НДС 20% | K9: Категория поставки | L9: Количество в упаковке | O9: Количество на паллете | R9: Упаковки | S9: Норма загрузки в фуру 92м3, м3 (упаковок) | T9: Длина | U9: Ширина | V9: Толщина
I10: Вид | J10: Доплата руб/м3 | L10: м2 | M10: м3 | N10: шт. (плит) | O10: м2 | P10: м3 | Q10: транспорт м3 | T10: м | U10: м | V10: м
B11: =IF($E11<>"",VLOOKUP(Розница!$E11,'Pricing (Розница)'!$A$3:$G$130,5,FALSE),"") -> SW | C11: =IF($E11<>"",VLOOKUP(Розница!$E11,'Pricing (Розница)'!$A$3:$G$130,4,FALSE),"") -> LW | D11: =IF($E11<>"",VLOOKUP(Розница!$E11,'Pricing (Розница)'!$A$3:$G$130,3,FALSE),"") -> Chelyabinsk | E11: =IF('Pricing (Розница)'!A3<>"",'Pricing (Розница)'!A3,"") -> 53025 | F11: =IF(E11<>"",VLOOKUP(Розница!E11,'Pricing (Розница)'!$A$3:$B$130,2,FALSE),"") -> ИЗОВЕР МАСТЕР ТЕПЛЫХ КРЫШ-50/600x1000 | G11: =IFERROR(IF($A$7,VLOOKUP($E11,'Pricing (Розница) pick up'!$A:$CK,MATCH($F$2,'Pricing (Розница) pick up'!$A$2:$DA$2,0),0),VLOOKUP($E11,'Pricing (Розница)'!$A:$CO,MATCH(Розница!$F$2,'Pricing (Розница)'!$2:$2,0),0))*IF(AND($B11="GW",$F$3="B"),VLOOKUP($F$1,AB!A:B,2,0),1),"-") -> - | H11: =IFERROR(G11/1.2,"-") -> - | I11: =IFERROR(IF($A$8,VLOOKUP(CONCATENATE($D11,$F$2),Tariffs_!A:H,8,0),VLOOKUP(CONCATENATE($D11,$F$2),Tariffs_!A:G,6,0)),"-") -> 0 | J11: =IFERROR(IF($A$8,VLOOKUP(CONCATENATE($D11,$F$2),Tariffs_!A:I,9,0)*VLOOKUP($E11,ZMM_Plst!$B:$K,8,0)/VLOOKUP($E11,ZMM_Plst!$B:$K,10,0)*1.2,VLOOKUP(CONCATENATE($D11,$F$2),Tariffs_!A:G,7,0)*VLOOKUP($E11,ZMM_Plst!$B:$K,8,0)/VLOOKUP($E11,ZMM_Plst!$B:$K,10,0)*1.2),"-") -> 0 | K11: =VLOOKUP($E11,ZMM_Plst!$B:$AA,26,0) -> A | L11: =O11/R11 -> 4.8 | M11: =P11/R11 -> 0.24 | N11: =VLOOKUP($E11,ZMM_Plst!$B:$AC,17,0) -> 8 | O11: =VLOOKUP($E11,ZMM_Plst!$B:$AC,9,0) -> 4.8 | P11: =VLOOKUP($E11,ZMM_Plst!$B:$AC,10,0) -> 0.24 | Q11: =VLOOKUP($E11,ZMM_Plst!$B:$AC,8,0) -> 0.266 | R11: =VLOOKUP($E11,ZMM_Plst!$B:$AC,16,0) -> 1 | S11: =92/Q11*P11 -> 83.0075188 | T11: =VLOOKUP($E11,ZMM_Plst!$B:$AC,6,0) -> 1 | U11: =VLOOKUP($E11,ZMM_Plst!$B:$AC,7,0) -> 0.6 | V11: =VLOOKUP($E11,ZMM_Plst!$B:$AC,5,0) -> 0.05
B12: =IF($E12<>"",VLOOKUP(Розница!$E12,'Pricing (Розница)'!$A$3:$G$130,5,FALSE),"") -> SW | C12: =IF($E12<>"",VLOOKUP(Розница!$E12,'Pricing (Розница)'!$A$3:$G$130,4,FALSE),"") -> LW | D12: =IF($E12<>"",VLOOKUP(Розница!$E12,'Pricing (Розница)'!$A$3:$G$130,3,FALSE),"") -> Chelyabinsk | E12: =IF('Pricing (Розница)'!A4<>"",'Pricing (Розница)'!A4,"") -> 53026 | F12: =IF(E12<>"",VLOOKUP(Розница!E12,'Pricing (Розница)'!$A$3:$B$130,2,FALSE),"") -> ИЗОВЕР МАСТЕР ТЕПЛЫХ КРЫШ-100/600x1000 | G12: =IFERROR(IF($A$7,VLOOKUP($E12,'Pricing (Розница) pick up'!$A:$CK,MATCH($F$2,'Pricing (Розница) pick up'!$A$2:$DA$2,0),0),VLOOKUP($E12,'Pricing (Розница)'!$A:$CO,MATCH(Розница!$F$2,'Pricing (Розница)'!$2:$2,0),0))*IF(AND($B12="GW",$F$3="B"),VLOOKUP($F$1,AB!A:B,2,0),1),"-") -> - | H12: =IFERROR(G12/1.2,"-") -> - | I12: =IFERROR(IF($A$8,VLOOKUP(CONCATENATE($D12,$F$2),Tariffs_!A:H,8,0),VLOOKUP(CONCATENATE($D12,$F$2),Tariffs_!A:G,6,0)),"-") -> 0 | J12: =IFERROR(IF($A$8,VLOOKUP(CONCATENATE($D12,$F$2),Tariffs_!A:I,9,0)*VLOOKUP($E12,ZMM_Plst!$B:$K,8,0)/VLOOKUP($E12,ZMM_Plst!$B:$K,10,0)*1.2,VLOOKUP(CONCATENATE($D12,$F$2),Tariffs_!A:G,7,0)*VLOOKUP($E12,ZMM_Plst!$B:$K,8,0)/VLOOKUP($E12,ZMM_Plst!$B:$K,10,0)*1.2),"-") -> 0 | K12: =VLOOKUP($E12,ZMM_Plst!$B:$AA,26,0) -> A | L12: =O12/R12 -> 2.4 | M12: =P12/R12 -> 0.24 | N12: =VLOOKUP($E12,ZMM_Plst!$B:$AC,17,0) -> 4 | O12: =VLOOKUP($E12,ZMM_Plst!$B:$AC,9,0) -> 2.4 | P12: =VLOOKUP($E12,ZMM_Plst!$B:$AC,10,0) -> 0.24 | Q12: =VLOOKUP($E12,ZMM_Plst!$B:$AC,8,0) -> 0.266 | R12: =VLOOKUP($E12,ZMM_Plst!$B:$AC,16,0) -> 1 | S12: =92/Q12*P12 -> 83.0075188 | T12: =VLOOKUP($E12,ZMM_Plst!$B:$AC,6,0) -> 1 | U12: =VLOOKUP($E12,ZMM_Plst!$B:$AC,7,0) -> 0.6 | V12: =VLOOKUP($E12,ZMM_Plst!$B:$AC,5,0) -> 0.1
B13: =IF($E13<>"",VLOOKUP(Розница!$E13,'Pricing (Розница)'!$A$3:$G$130,5,FALSE),"") -> SW | C13: =IF($E13<>"",VLOOKUP(Розница!$E13,'Pricing (Розница)'!$A$3:$G$130,4,FALSE),"") -> LW | D13: =IF($E13<>"",VLOOKUP(Розница!$E13,'Pricing (Розница)'!$A$3:$G$130,3,FALSE),"") -> Chelyabinsk | E13: =IF('Pricing (Розница)'!A5<>"",'Pricing (Розница)'!A5,"") -> 53027 | F13: =IF(E13<>"",VLOOKUP(Розница!E13,'Pricing (Розница)'!$A$3:$B$130,2,FALSE),"") -> ИЗОВЕР МАСТЕР ТЕПЛЫХ КРЫШ-50/600x1000/УП | G13: =IFERROR(IF($A$7,VLOOKUP($E13,'Pricing (Розница) pick up'!$A:$CK,MATCH($F$2,'Pricing (Розница) pick up'!$A$2:$DA$2,0),0),VLOOKUP($E13,'Pricing (Розница)'!$A:$CO,MATCH(Розница!$F$2,'Pricing (Розница)'!$2:$2,0),0))*IF(AND($B13="GW",$F$3="B"),VLOOKUP($F$1,AB!A:B,2,0),1),"-") -> - | H13: - | I13: =IFERROR(IF($A$8,VLOOKUP(CONCATENATE($D13,$F$2),Tariffs_!A:H,8,0),VLOOKUP(CONCATENATE($D13,$F$2),Tariffs_!A:G,6,0)),"-") -> 0 | J13: =IFERROR(IF($A$8,VLOOKUP(CONCATENATE($D13,$F$2),Tariffs_!A:I,9,0)*VLOOKUP($E13,ZMM_Plst!$B:$K,8,0)/VLOOKUP($E13,ZMM_Plst!$B:$K,10,0)*1.2,VLOOKUP(CONCATENATE($D13,$F$2),Tariffs_!A:G,7,0)*VLOOKUP($E13,ZMM_Plst!$B:$K,8,0)/VLOOKUP($E13,ZMM_Plst!$B:$K,10,0)*1.2),"-") -> 0 | K13: =VLOOKUP($E13,ZMM_Plst!$B:$AA,26,0) -> B | L13: 4.8 | M13: 0.24 | N13: =VLOOKUP($E13,ZMM_Plst!$B:$AC,17,0) -> 8 | O13: =VLOOKUP($E13,ZMM_Plst!$B:$AC,9,0) -> 115.2 | P13: =VLOOKUP($E13,ZMM_Plst!$B:$AC,10,0) -> 5.76 | Q13: =VLOOKUP($E13,ZMM_Plst!$B:$AC,8,0) -> 7.077 | R13: =VLOOKUP($E13,ZMM_Plst!$B:$AC,16,0) -> 24 | S13: 74.8791861 | T13: =VLOOKUP($E13,ZMM_Plst!$B:$AC,6,0) -> 1 | U13: =VLOOKUP($E13,ZMM_Plst!$B:$AC,7,0) -> 0.6 | V13: =VLOOKUP($E13,ZMM_Plst!$B:$AC,5,0) -> 0.05
B14: =IF($E14<>"",VLOOKUP(Розница!$E14,'Pricing (Розница)'!$A$3:$G$130,5,FALSE),"") -> SW | C14: =IF($E14<>"",VLOOKUP(Розница!$E14,'Pricing (Розница)'!$A$3:$G$130,4,FALSE),"") -> LW | D14: =IF($E14<>"",VLOOKUP(Розница!$E14,'Pricing (Розница)'!$A$3:$G$130,3,FALSE),"") -> Chelyabinsk | E14: =IF('Pricing (Розница)'!A6<>"",'Pricing (Розница)'!A6,"") -> 53028 | F14: =IF(E14<>"",VLOOKUP(Розница!E14,'Pricing (Розница)'!$A$3:$B$130,2,FALSE),"") -> ИЗОВЕР МАСТЕР ТЕПЛЫХ КРЫШ-100/600x1000/У | G14: =IFERROR(IF($A$7,VLOOKUP($E14,'Pricing (Розница) pick up'!$A:$CK,MATCH($F$2,'Pricing (Розница) pick up'!$A$2:$DA$2,0),0),VLOOKUP($E14,'Pricing (Розница)'!$A:$CO,MATCH(Розница!$F$2,'Pricing (Розница)'!$2:$2,0),0))*IF(AND($B14="GW",$F$3="B"),VLOOKUP($F$1,AB!A:B,2,0),1),"-") -> - | H14: - | I14: =IFERROR(IF($A$8,VLOOKUP(CONCATENATE($D14,$F$2),Tariffs_!A:H,8,0),VLOOKUP(CONCATENATE($D14,$F$2),Tariffs_!A:G,6,0)),"-") -> 0 | J14: =IFERROR(IF($A$8,VLOOKUP(CONCATENATE($D14,$F$2),Tariffs_!A:I,9,0)*VLOOKUP($E14,ZMM_Plst!$B:$K,8,0)/VLOOKUP($E14,ZMM_Plst!$B:$K,10,0)*1.2,VLOOKUP(CONCATENATE($D14,$F$2),Tariffs_!A:G,7,0)*VLOOKUP($E14,ZMM_Plst!$B:$K,8,0)/VLOOKUP($E14,ZMM_Plst!$B:$K,10,0)*1.2),"-") -> 0 | K14: =VLOOKUP($E14,ZMM_Plst!$B:$AA,26,0) -> B | L14: 2.4 | M14: 0.24 | N14: =VLOOKUP($E14,ZMM_Plst!$B:$AC,17,0) -> 4 | O14: =VLOOKUP($E14,ZMM_Plst!$B:$AC,9,0) -> 57.6 | P14: =VLOOKUP($E14,ZMM_Plst!$B:$AC,10,0) -> 5.76 | Q14: =VLOOKUP($E14,ZMM_Plst!$B:$AC,8,0) -> 7.077 | R14: =VLOOKUP($E14,ZMM_Plst!$B:$AC,16,0) -> 24 | S14: 74.8791861 | T14: =VLOOKUP($E14,ZMM_Plst!$B:$AC,6,0) -> 1 | U14: =VLOOKUP($E14,ZMM_Plst!$B:$AC,7,0) -> 0.6 | V14: =VLOOKUP($E14,ZMM_Plst!$B:$AC,5,0) -> 0.1
B15: =IF($E15<>"",VLOOKUP(Розница!$E15,'Pricing (Розница)'!$A$3:$G$130,5,FALSE),"") -> SW | C15: =IF($E15<>"",VLOOKUP(Розница!$E15,'Pricing (Розница)'!$A$3:$G$130,4,FALSE),"") -> LW | D15: =IF($E15<>"",VLOOKUP(Розница!$E15,'Pricing (Розница)'!$A$3:$G$130,3,FALSE),"") -> Chelyabinsk | E15: =IF('Pricing (Розница)'!A7<>"",'Pricing (Розница)'!A7,"") -> 53030 | F15: =IF(E15<>"",VLOOKUP(Розница!E15,'Pricing (Розница)'!$A$3:$B$130,2,FALSE),"") -> ИЗОВЕР МАСТЕР ТЕПЛЫХ СТЕН-50/600x1000 | G15: =IFERROR(IF($A$7,VLOOKUP($E15,'Pricing (Розница) pick up'!$A:$CK,MATCH($F$2,'Pricing (Розница) pick up'!$A$2:$DA$2,0),0),VLOOKUP($E15,'Pricing (Розница)'!$A:$CO,MATCH(Розница!$F$2,'Pricing (Розница)'!$2:$2,0),0))*IF(AND($B15="GW",$F$3="B"),VLOOKUP($F$1,AB!A:B,2,0),1),"-") -> - | H15: - | I15: =IFERROR(IF($A$8,VLOOKUP(CONCATENATE($D15,$F$2),Tariffs_!A:H,8,0),VLOOKUP(CONCATENATE($D15,$F$2),Tariffs_!A:G,6,0)),"-") -> 0 | J15: =IFERROR(IF($A$8,VLOOKUP(CONCATENATE($D15,$F$2),Tariffs_!A:I,9,0)*VLOOKUP($E15,ZMM_Plst!$B:$K,8,0)/VLOOKUP($E15,ZMM_Plst!$B:$K,10,0)*1.2,VLOOKUP(CONCATENATE($D15,$F$2),Tariffs_!A:G,7,0)*VLOOKUP($E15,ZMM_Plst!$B:$K,8,0)/VLOOKUP($E15,ZMM_Plst!$B:$K,10,0)*1.2),"-") -> 0 | K15: =VLOOKUP($E15,ZMM_Plst!$B:$AA,26,0) -> A | L15: 4.8 | M15: 0.24 | N15: =VLOOKUP($E15,ZMM_Plst!$B:$AC,17,0) -> 8 | O15: =VLOOKUP($E15,ZMM_Plst!$B:$AC,9,0) -> 4.8 | P15: =VLOOKUP($E15,ZMM_Plst!$B:$AC,10,0) -> 0.24 | Q15: =VLOOKUP($E15,ZMM_Plst!$B:$AC,8,0) -> 0.266 | R15: =VLOOKUP($E15,ZMM_Plst!$B:$AC,16,0) -> 1 | S15: 83.0075188 | T15: =VLOOKUP($E15,ZMM_Plst!$B:$AC,6,0) -> 1 | U15: =VLOOKUP($E15,ZMM_Plst!$B:$AC,7,0) -> 0.6 | V15: =VLOOKUP($E15,ZMM_Plst!$B:$AC,5,0) -> 0.05
B16: =IF($E16<>"",VLOOKUP(Розница!$E16,'Pricing (Розница)'!$A$3:$G$130,5,FALSE),"") -> SW | C16: =IF($E16<>"",VLOOKUP(Розница!$E16,'Pricing (Розница)'!$A$3:$G$130,4,FALSE),"") -> LW | D16: =IF($E16<>"",VLOOKUP(Розница!$E16,'Pricing (Розница)'!$A$3:$G$130,3,FALSE),"") -> Chelyabinsk | E16: =IF('Pricing (Розница)'!A8<>"",'Pricing (Розница)'!A8,"") -> 53031 | F16: =IF(E16<>"",VLOOKUP(Розница!E16,'Pricing (Розница)'!$A$3:$B$130,2,FALSE),"") -> ИЗОВЕР МАСТЕР ТЕПЛЫХ СТЕН-100/600x1000 | G16: =IFERROR(IF($A$7,VLOOKUP($E16,'Pricing (Розница) pick up'!$A:$CK,MATCH($F$2,'Pricing (Розница) pick up'!$A$2:$DA$2,0),0),VLOOKUP($E16,'Pricing (Розница)'!$A:$CO,MATCH(Розница!$F$2,'Pricing (Розница)'!$2:$2,0),0))*IF(AND($B16="GW",$F$3="B"),VLOOKUP($F$1,AB!A:B,2,0),1),"-") -> - | H16: - | I16: =IFERROR(IF($A$8,VLOOKUP(CONCATENATE($D16,$F$2),Tariffs_!A:H,8,0),VLOOKUP(CONCATENATE($D16,$F$2),Tariffs_!A:G,6,0)),"-") -> 0 | J16: =IFERROR(IF($A$8,VLOOKUP(CONCATENATE($D16,$F$2),Tariffs_!A:I,9,0)*VLOOKUP($E16,ZMM_Plst!$B:$K,8,0)/VLOOKUP($E16,ZMM_Plst!$B:$K,10,0)*1.2,VLOOKUP(CONCATENATE($D16,$F$2),Tariffs_!A:G,7,0)*VLOOKUP($E16,ZMM_Plst!$B:$K,8,0)/VLOOKUP($E16,ZMM_Plst!$B:$K,10,0)*1.2),"-") -> 0 | K16: =VLOOKUP($E16,ZMM_Plst!$B:$AA,26,0) -> A | L16: 2.4 | M16: 0.24 | N16: =VLOOKUP($E16,ZMM_Plst!$B:$AC,17,0) -> 4 | O16: =VLOOKUP($E16,ZMM_Plst!$B:$AC,9,0) -> 2.4 | P16: =VLOOKUP($E16,ZMM_Plst!$B:$AC,10,0) -> 0.24 | Q16: =VLOOKUP($E16,ZMM_Plst!$B:$AC,8,0) -> 0.266 | R16: =VLOOKUP($E16,ZMM_Plst!$B:$AC,16,0) -> 1 | S16: 83.0075188 | T16: =VLOOKUP($E16,ZMM_Plst!$B:$AC,6,0) -> 1 | U16: =VLOOKUP($E16,ZMM_Plst!$B:$AC,7,0) -> 0.6 | V16: =VLOOKUP($E16,ZMM_Plst!$B:$AC,5,0) -> 0.1
B17: =IF($E17<>"",VLOOKUP(Розница!$E17,'Pricing (Розница)'!$A$3:$G$130,5,FALSE),"") -> SW | C17: =IF($E17<>"",VLOOKUP(Розница!$E17,'Pricing (Розница)'!$A$3:$G$130,4,FALSE),"") -> LW | D17: =IF($E17<>"",VLOOKUP(Розница!$E17,'Pricing (Розница)'!$A$3:$G$130,3,FALSE),"") -> Chelyabinsk | E17: =IF('Pricing (Розница)'!A9<>"",'Pricing (Розница)'!A9,"") -> 53032 | F17: =IF(E17<>"",VLOOKUP(Розница!E17,'Pricing (Розница)'!$A$3:$B$130,2,FALSE),"") -> ИЗОВЕР МАСТЕР ТЕПЛЫХ СТЕН-50/600x1000/УП | G17: =IFERROR(IF($A$7,VLOOKUP($E17,'Pricing (Розница) pick up'!$A:$CK,MATCH($F$2,'Pricing (Розница) pick up'!$A$2:$DA$2,0),0),VLOOKUP($E17,'Pricing (Розница)'!$A:$CO,MATCH(Розница!$F$2,'Pricing (Розница)'!$2:$2,0),0))*IF(AND($B17="GW",$F$3="B"),VLOOKUP($F$1,AB!A:B,2,0),1),"-") -> - | H17: - | I17: =IFERROR(IF($A$8,VLOOKUP(CONCATENATE($D17,$F$2),Tariffs_!A:H,8,0),VLOOKUP(CONCATENATE($D17,$F$2),Tariffs_!A:G,6,0)),"-") -> 0 | J17: =IFERROR(IF($A$8,VLOOKUP(CONCATENATE($D17,$F$2),Tariffs_!A:I,9,0)*VLOOKUP($E17,ZMM_Plst!$B:$K,8,0)/VLOOKUP($E17,ZMM_Plst!$B:$K,10,0)*1.2,VLOOKUP(CONCATENATE($D17,$F$2),Tariffs_!A:G,7,0)*VLOOKUP($E17,ZMM_Plst!$B:$K,8,0)/VLOOKUP($E17,ZMM_Plst!$B:$K,10,0)*1.2),"-") -> 0 | K17: =VLOOKUP($E17,ZMM_Plst!$B:$AA,26,0) -> B | L17: 4.8 | M17: 0.24 | N17: =VLOOKUP($E17,ZMM_Plst!$B:$AC,17,0) -> 8 | O17: =VLOOKUP($E17,ZMM_Plst!$B:$AC,9,0) -> 115.2 | P17: =VLOOKUP($E17,ZMM_Plst!$B:$AC,10,0) -> 5.76 | Q17: =VLOOKUP($E17,ZMM_Plst!$B:$AC,8,0) -> 7.077 | R17: =VLOOKUP($E17,ZMM_Plst!$B:$AC,16,0) -> 24 | S17: 74.8791861 | T17: =VLOOKUP($E17,ZMM_Plst!$B:$AC,6,0) -> 1 | U17: =VLOOKUP($E17,ZMM_Plst!$B:$AC,7,0) -> 0.6 | V17: =VLOOKUP($E17,ZMM_Plst!$B:$AC,5,0) -> 0.05
B18: =IF($E18<>"",VLOOKUP(Розница!$E18,'Pricing (Розница)'!$A$3:$G$130,5,FALSE),"") -> SW | C18: =IF($E18<>"",VLOOKUP(Розница!$E18,'Pricing (Розница)'!$A$3:$G$130,4,FALSE),"") -> LW | D18: =IF($E18<>"",VLOOKUP(Розница!$E18,'Pricing (Розница)'!$A$3:$G$130,3,FALSE),"") -> Chelyabinsk | E18: =IF('Pricing (Розница)'!A10<>"",'Pricing (Розница)'!A10,"") -> 53033 | F18: =IF(E18<>"",VLOOKUP(Розница!E18,'Pricing (Розница)'!$A$3:$B$130,2,FALSE),"") -> ИЗОВЕР МАСТЕР ТЕПЛЫХ СТЕН-100/600x1000/У | G18: =IFERROR(IF($A$7,VLOOKUP($E18,'Pricing (Розница) pick up'!$A:$CK,MATCH($F$2,'Pricing (Розница) pick up'!$A$2:$DA$2,0),0),VLOOKUP($E18,'Pricing (Розница)'!$A:$CO,MATCH(Розница!$F$2,'Pricing (Розница)'!$2:$2,0),0))*IF(AND($B18="GW",$F$3="B"),VLOOKUP($F$1,AB!A:B,2,0),1),"-") -> - | H18: - | I18: =IFERROR(IF($A$8,VLOOKUP(CONCATENATE($D18,$F$2),Tariffs_!A:H,8,0),VLOOKUP(CONCATENATE($D18,$F$2),Tariffs_!A:G,6,0)),"-") -> 0 | J18: =IFERROR(IF($A$8,VLOOKUP(CONCATENATE($D18,$F$2),Tariffs_!A:I,9,0)*VLOOKUP($E18,ZMM_Plst!$B:$K,8,0)/VLOOKUP($E18,ZMM_Plst!$B:$K,10,0)*1.2,VLOOKUP(CONCATENATE($D18,$F$2),Tariffs_!A:G,7,0)*VLOOKUP($E18,ZMM_Plst!$B:$K,8,0)/VLOOKUP($E18,ZMM_Plst!$B:$K,10,0)*1.2),"-") -> 0 | K18: =VLOOKUP($E18,ZMM_Plst!$B:$AA,26,0) -> B | L18: 2.4 | M18: 0.24 | N18: =VLOOKUP($E18,ZMM_Plst!$B:$AC,17,0) -> 4 | O18: =VLOOKUP($E18,ZMM_Plst!$B:$AC,9,0) -> 57.6 | P18: =VLOOKUP($E18,ZMM_Plst!$B:$AC,10,0) -> 5.76 | Q18: =VLOOKUP($E18,ZMM_Plst!$B:$AC,8,0) -> 7.077 | R18: =VLOOKUP($E18,ZMM_Plst!$B:$AC,16,0) -> 24 | S18: 74.8791861 | T18: =VLOOKUP($E18,ZMM_Plst!$B:$AC,6,0) -> 1 | U18: =VLOOKUP($E18,ZMM_Plst!$B:$AC,7,0) -> 0.6 | V18: =VLOOKUP($E18,ZMM_Plst!$B:$AC,5,0) -> 0.1
B19: =IF($E19<>"",VLOOKUP(Розница!$E19,'Pricing (Розница)'!$A$3:$G$130,5,FALSE),"") -> SW | C19: =IF($E19<>"",VLOOKUP(Розница!$E19,'Pricing (Розница)'!$A$3:$G$130,4,FALSE),"") -> LW | D19: =IF($E19<>"",VLOOKUP(Розница!$E19,'Pricing (Розница)'!$A$3:$G$130,3,FALSE),"") -> Chelyabinsk | E19: =IF('Pricing (Розница)'!A11<>"",'Pricing (Розница)'!A11,"") -> 53040 | F19: =IF(E19<>"",VLOOKUP(Розница!E19,'Pricing (Розница)'!$A$3:$B$130,2,FALSE),"") -> КАРКАСНЫЙ ДОМ-50/600х1000 | G19: =IFERROR(IF($A$7,VLOOKUP($E19,'Pricing (Розница) pick up'!$A:$CK,MATCH($F$2,'Pricing (Розница) pick up'!$A$2:$DA$2,0),0),VLOOKUP($E19,'Pricing (Розница)'!$A:$CO,MATCH(Розница!$F$2,'Pricing (Розница)'!$2:$2,0),0))*IF(AND($B19="GW",$F$3="B"),VLOOKUP($F$1,AB!A:B,2,0),1),"-") -> - | H19: - | I19: =IFERROR(IF($A$8,VLOOKUP(CONCATENATE($D19,$F$2),Tariffs_!A:H,8,0),VLOOKUP(CONCATENATE($D19,$F$2),Tariffs_!A:G,6,0)),"-") -> 0 | J19: =IFERROR(IF($A$8,VLOOKUP(CONCATENATE($D19,$F$2),Tariffs_!A:I,9,0)*VLOOKUP($E19,ZMM_Plst!$B:$K,8,0)/VLOOKUP($E19,ZMM_Plst!$B:$K,10,0)*1.2,VLOOKUP(CONCATENATE($D19,$F$2),Tariffs_!A:G,7,0)*VLOOKUP($E19,ZMM_Plst!$B:$K,8,0)/VLOOKUP($E19,ZMM_Plst!$B:$K,10,0)*1.2),"-") -> 0 | K19: =VLOOKUP($E19,ZMM_Plst!$B:$AA,26,0) -> A | L19: 4.8 | M19: 0.24 | N19: =VLOOKUP($E19,ZMM_Plst!$B:$AC,17,0) -> 8 | O19: =VLOOKUP($E19,ZMM_Plst!$B:$AC,9,0) -> 4.8 | P19: =VLOOKUP($E19,ZMM_Plst!$B:$AC,10,0) -> 0.24 | Q19: =VLOOKUP($E19,ZMM_Plst!$B:$AC,8,0) -> 0.266 | R19: =VLOOKUP($E19,ZMM_Plst!$B:$AC,16,0) -> 1 | S19: 83.0075188 | T19: =VLOOKUP($E19,ZMM_Plst!$B:$AC,6,0) -> 1 | U19: =VLOOKUP($E19,ZMM_Plst!$B:$AC,7,0) -> 0.6 | V19: =VLOOKUP($E19,ZMM_Plst!$B:$AC,5,0) -> 0.05
B20: =IF($E20<>"",VLOOKUP(Розница!$E20,'Pricing (Розница)'!$A$3:$G$130,5,FALSE),"") -> SW | C20: =IF($E20<>"",VLOOKUP(Розница!$E20,'Pricing (Розница)'!$A$3:$G$130,4,FALSE),"") -> LW | D20: =IF($E20<>"",VLOOKUP(Розница!$E20,'Pricing (Розница)'!$A$3:$G$130,3,FALSE),"") -> Chelyabinsk | E20: =IF('Pricing (Розница)'!A12<>"",'Pricing (Розница)'!A12,"") -> 53041 | F20: =IF(E20<>"",VLOOKUP(Розница!E20,'Pricing (Розница)'!$A$3:$B$130,2,FALSE),"") -> КАРКАСНЫЙ ДОМ-100/600х1000 | G20: =IFERROR(IF($A$7,VLOOKUP($E20,'Pricing (Розница) pick up'!$A:$CK,MATCH($F$2,'Pricing (Розница) pick up'!$A$2:$DA$2,0),0),VLOOKUP($E20,'Pricing (Розница)'!$A:$CO,MATCH(Розница!$F$2,'Pricing (Розница)'!$2:$2,0),0))*IF(AND($B20="GW",$F$3="B"),VLOOKUP($F$1,AB!A:B,2,0),1),"-") -> - | H20: - | I20: =IFERROR(IF($A$8,VLOOKUP(CONCATENATE($D20,$F$2),Tariffs_!A:H,8,0),VLOOKUP(CONCATENATE($D20,$F$2),Tariffs_!A:G,6,0)),"-") -> 0 | J20: =IFERROR(IF($A$8,VLOOKUP(CONCATENATE($D20,$F$2),Tariffs_!A:I,9,0)*VLOOKUP($E20,ZMM_Plst!$B:$K,8,0)/VLOOKUP($E20,ZMM_Plst!$B:$K,10,0)*1.2,VLOOKUP(CONCATENATE($D20,$F$2),Tariffs_!A:G,7,0)*VLOOKUP($E20,ZMM_Plst!$B:$K,8,0)/VLOOKUP($E20,ZMM_Plst!$B:$K,10,0)*1.2),"-") -> 0 | K20: =VLOOKUP($E20,ZMM_Plst!$B:$AA,26,0) -> A | L20: 2.4 | M20: 0.24 | N20: =VLOOKUP($E20,ZMM_Plst!$B:$AC,17,0) -> 4 | O20: =VLOOKUP($E20,ZMM_Plst!$B:$AC,9,0) -> 2.4 | P20: =VLOOKUP($E20,ZMM_Plst!$B:$AC,10,0) -> 0.24 | Q20: =VLOOKUP($E20,ZMM_Plst!$B:$AC,8,0) -> 0.266 | R20: =VLOOKUP($E20,ZMM_Plst!$B:$AC,16,0) -> 1 | S20: 83.0075188 | T20: =VLOOKUP($E20,ZMM_Plst!$B:$AC,6,0) -> 1 | U20: =VLOOKUP($E20,ZMM_Plst!$B:$AC,7,0) -> 0.6 | V20: =VLOOKUP($E20,ZMM_Plst!$B:$AC,5,0) -> 0.1
B21: =IF($E21<>"",VLOOKUP(Розница!$E21,'Pricing (Розница)'!$A$3:$G$130,5,FALSE),"") -> SW | C21: =IF($E21<>"",VLOOKUP(Розница!$E21,'Pricing (Розница)'!$A$3:$G$130,4,FALSE),"") -> LW | D21: =IF($E21<>"",VLOOKUP(Розница!$E21,'Pricing (Розница)'!$A$3:$G$130,3,FALSE),"") -> Chelyabinsk | E21: =IF('Pricing (Розница)'!A13<>"",'Pricing (Розница)'!A13,"") -> 53042 | F21: =IF(E21<>"",VLOOKUP(Розница!E21,'Pricing (Розница)'!$A$3:$B$130,2,FALSE),"") -> КАРКАСНЫЙ ДОМ-50/600x1000/УПК+ПАЛ | G21: =IFERROR(IF($A$7,VLOOKUP($E21,'Pricing (Розница) pick up'!$A:$CK,MATCH($F$2,'Pricing (Розница) pick up'!$A$2:$DA$2,0),0),VLOOKUP($E21,'Pricing (Розница)'!$A:$CO,MATCH(Розница!$F$2,'Pricing (Розница)'!$2:$2,0),0))*IF(AND($B21="GW",$F$3="B"),VLOOKUP($F$1,AB!A:B,2,0),1),"-") -> - | H21: - | I21: =IFERROR(IF($A$8,VLOOKUP(CONCATENATE($D21,$F$2),Tariffs_!A:H,8,0),VLOOKUP(CONCATENATE($D21,$F$2),Tariffs_!A:G,6,0)),"-") -> 0 | J21: =IFERROR(IF($A$8,VLOOKUP(CONCATENATE($D21,$F$2),Tariffs_!A:I,9,0)*VLOOKUP($E21,ZMM_Plst!$B:$K,8,0)/VLOOKUP($E21,ZMM_Plst!$B:$K,10,0)*1.2,VLOOKUP(CONCATENATE($D21,$F$2),Tariffs_!A:G,7,0)*VLOOKUP($E21,ZMM_Plst!$B:$K,8,0)/VLOOKUP($E21,ZMM_Plst!$B:$K,10,0)*1.2),"-") -> 0 | K21: =VLOOKUP($E21,ZMM_Plst!$B:$AA,26,0) -> B | L21: 4.8 | M21: 0.24 | N21: =VLOOKUP($E21,ZMM_Plst!$B:$AC,17,0) -> 8 | O21: =VLOOKUP($E21,ZMM_Plst!$B:$AC,9,0) -> 115.2 | P21: =VLOOKUP($E21,ZMM_Plst!$B:$AC,10,0) -> 5.76 | Q21: =VLOOKUP($E21,ZMM_Plst!$B:$AC,8,0) -> 7.077 | R21: =VLOOKUP($E21,ZMM_Plst!$B:$AC,16,0) -> 24 | S21: 74.8791861 | T21: =VLOOKUP($E21,ZMM_Plst!$B:$AC,6,0) -> 1 | U21: =VLOOKUP($E21,ZMM_Plst!$B:$AC,7,0) -> 0.6 | V21: =VLOOKUP($E21,ZMM_Plst!$B:$AC,5,0) -> 0.05
B22: =IF($E22<>"",VLOOKUP(Розница!$E22,'Pricing (Розница)'!$A$3:$G$130,5,FALSE),"") -> SW | C22: =IF($E22<>"",VLOOKUP(Розница!$E22,'Pricing (Розница)'!$A$3:$G$130,4,FALSE),"") -> LW | D22: =IF($E22<>"",VLOOKUP(Розница!$E22,'Pricing (Розница)'!$A$3:$G$130,3,FALSE),"") -> Chelyabinsk | E22: =IF('Pricing (Розница)'!A14<>"",'Pricing (Розница)'!A14,"") -> 53043 | F22: =IF(E22<>"",VLOOKUP(Розница!E22,'Pricing (Розница)'!$A$3:$B$130,2,FALSE),"") -> КАРКАСНЫЙ ДОМ-100/600x1000/УПК+ПАЛ | G22: =IFERROR(IF($A$7,VLOOKUP($E22,'Pricing (Розница) pick up'!$A:$CK,MATCH($F$2,'Pricing (Розница) pick up'!$A$2:$DA$2,0),0),VLOOKUP($E22,'Pricing (Розница)'!$A:$CO,MATCH(Розница!$F$2,'Pricing (Розница)'!$2:$2,0),0))*IF(AND($B22="GW",$F$3="B"),VLOOKUP($F$1,AB!A:B,2,0),1),"-") -> - | H22: - | I22: =IFERROR(IF($A$8,VLOOKUP(CONCATENATE($D22,$F$2),Tariffs_!A:H,8,0),VLOOKUP(CONCATENATE($D22,$F$2),Tariffs_!A:G,6,0)),"-") -> 0 | J22: =IFERROR(IF($A$8,VLOOKUP(CONCATENATE($D22,$F$2),Tariffs_!A:I,9,0)*VLOOKUP($E22,ZMM_Plst!$B:$K,8,0)/VLOOKUP($E22,ZMM_Plst!$B:$K,10,0)*1.2,VLOOKUP(CONCATENATE($D22,$F$2),Tariffs_!A:G,7,0)*VLOOKUP($E22,ZMM_Plst!$B:$K,8,0)/VLOOKUP($E22,ZMM_Plst!$B:$K,10,0)*1.2),"-") -> 0 | K22: =VLOOKUP($E22,ZMM_Plst!$B:$AA,26,0) -> B | L22: 2.4 | M22: 0.24 | N22: =VLOOKUP($E22,ZMM_Plst!$B:$AC,17,0) -> 4 | O22: =VLOOKUP($E22,ZMM_Plst!$B:$AC,9,0) -> 57.6 | P22: =VLOOKUP($E22,ZMM_Plst!$B:$AC,10,0) -> 5.76 | Q22: =VLOOKUP($E22,ZMM_Plst!$B:$AC,8,0) -> 7.077 | R22: =VLOOKUP($E22,ZMM_Plst!$B:$AC,16,0) -> 24 | S22: 74.8791861 | T22: =VLOOKUP($E22,ZMM_Plst!$B:$AC,6,0) -> 1 | U22: =VLOOKUP($E22,ZMM_Plst!$B:$AC,7,0) -> 0.6 | V22: =VLOOKUP($E22,ZMM_Plst!$B:$AC,5,0) -> 0.1
B23: =IF($E23<>"",VLOOKUP(Розница!$E23,'Pricing (Розница)'!$A$3:$G$130,5,FALSE),"") -> SW | C23: =IF($E23<>"",VLOOKUP(Розница!$E23,'Pricing (Розница)'!$A$3:$G$130,4,FALSE),"") -> LW | D23: =IF($E23<>"",VLOOKUP(Розница!$E23,'Pricing (Розница)'!$A$3:$G$130,3,FALSE),"") -> Tambov | E23: =IF('Pricing (Розница)'!A16<>"",'Pricing (Розница)'!A16,"") -> 1017133 | F23: =IF(E23<>"",VLOOKUP(Розница!E23,'Pricing (Розница)'!$A$3:$B$130,2,FALSE),"") -> ИЗОВЕР МАСТЕР ТЕПЛЫХ КРЫШ-50/600x1000 | G23: =IFERROR(IF($A$7,VLOOKUP($E23,'Pricing (Розница) pick up'!$A:$CK,MATCH($F$2,'Pricing (Розница) pick up'!$A$2:$DA$2,0),0),VLOOKUP($E23,'Pricing (Розница)'!$A:$CO,MATCH(Розница!$F$2,'Pricing (Розница)'!$2:$2,0),0))*IF(AND($B23="GW",$F$3="B"),VLOOKUP($F$1,AB!A:B,2,0),1),"-") -> 1401.483051 | H23: 1167.902542 | I23: =IFERROR(IF($A$8,VLOOKUP(CONCATENATE($D23,$F$2),Tariffs_!A:H,8,0),VLOOKUP(CONCATENATE($D23,$F$2),Tariffs_!A:G,6,0)),"-") -> 0 | J23: =IFERROR(IF($A$8,VLOOKUP(CONCATENATE($D23,$F$2),Tariffs_!A:I,9,0)*VLOOKUP($E23,ZMM_Plst!$B:$K,8,0)/VLOOKUP($E23,ZMM_Plst!$B:$K,10,0)*1.2,VLOOKUP(CONCATENATE($D23,$F$2),Tariffs_!A:G,7,0)*VLOOKUP($E23,ZMM_Plst!$B:$K,8,0)/VLOOKUP($E23,ZMM_Plst!$B:$K,10,0)*1.2),"-") -> 0 | K23: =VLOOKUP($E23,ZMM_Plst!$B:$AA,26,0) -> A | L23: 4.8 | M23: 0.24 | N23: =VLOOKUP($E23,ZMM_Plst!$B:$AC,17,0) -> 8 | O23: =VLOOKUP($E23,ZMM_Plst!$B:$AC,9,0) -> 4.8 | P23: =VLOOKUP($E23,ZMM_Plst!$B:$AC,10,0) -> 0.24 | Q23: =VLOOKUP($E23,ZMM_Plst!$B:$AC,8,0) -> 0.266 | R23: =VLOOKUP($E23,ZMM_Plst!$B:$AC,16,0) -> 1 | S23: 83.0075188 | T23: =VLOOKUP($E23,ZMM_Plst!$B:$AC,6,0) -> 1 | U23: =VLOOKUP($E23,ZMM_Plst!$B:$AC,7,0) -> 0.6 | V23: =VLOOKUP($E23,ZMM_Plst!$B:$AC,5,0) -> 0.05
B24: =IF($E24<>"",VLOOKUP(Розница!$E24,'Pricing (Розница)'!$A$3:$G$130,5,FALSE),"") -> SW | C24: =IF($E24<>"",VLOOKUP(Розница!$E24,'Pricing (Розница)'!$A$3:$G$130,4,FALSE),"") -> LW | D24: =IF($E24<>"",VLOOKUP(Розница!$E24,'Pricing (Розница)'!$A$3:$G$130,3,FALSE),"") -> Tambov | E24: =IF('Pricing (Розница)'!A17<>"",'Pricing (Розница)'!A17,"") -> 1017134 | F24: =IF(E24<>"",VLOOKUP(Розница!E24,'Pricing (Розница)'!$A$3:$B$130,2,FALSE),"") -> ИЗОВЕР МАСТЕР ТЕПЛЫХ КРЫШ-100/600x1000 | G24: =IFERROR(IF($A$7,VLOOKUP($E24,'Pricing (Розница) pick up'!$A:$CK,MATCH($F$2,'Pricing (Розница) pick up'!$A$2:$DA$2,0),0),VLOOKUP($E24,'Pricing (Розница)'!$A:$CO,MATCH(Розница!$F$2,'Pricing (Розница)'!$2:$2,0),0))*IF(AND($B24="GW",$F$3="B"),VLOOKUP($F$1,AB!A:B,2,0),1),"-") -> 1401.483051 | H24: 1167.902542 | I24: =IFERROR(IF($A$8,VLOOKUP(CONCATENATE($D24,$F$2),Tariffs_!A:H,8,0),VLOOKUP(CONCATENATE($D24,$F$2),Tariffs_!A:G,6,0)),"-") -> 0 | J24: =IFERROR(IF($A$8,VLOOKUP(CONCATENATE($D24,$F$2),Tariffs_!A:I,9,0)*VLOOKUP($E24,ZMM_Plst!$B:$K,8,0)/VLOOKUP($E24,ZMM_Plst!$B:$K,10,0)*1.2,VLOOKUP(CONCATENATE($D24,$F$2),Tariffs_!A:G,7,0)*VLOOKUP($E24,ZMM_Plst!$B:$K,8,0)/VLOOKUP($E24,ZMM_Plst!$B:$K,10,0)*1.2),"-") -> 0 | K24: =VLOOKUP($E24,ZMM_Plst!$B:$AA,26,0) -> A | L24: 2.4 | M24: 0.24 | N24: =VLOOKUP($E24,ZMM_Plst!$B:$AC,17,0) -> 4 | O24: =VLOOKUP($E24,ZMM_Plst!$B:$AC,9,0) -> 2.4 | P24: =VLOOKUP($E24,ZMM_Plst!$B:$AC,10,0) -> 0.24 | Q24: =VLOOKUP($E24,ZMM_Plst!$B:$AC,8,0) -> 0.266 | R24: =VLOOKUP($E24,ZMM_Plst!$B:$AC,16,0) -> 1 | S24: 83.0075188 | T24: =VLOOKUP($E24,ZMM_Plst!$B:$AC,6,0) -> 1 | U24: =VLOOKUP($E24,ZMM_Plst!$B:$AC,7,0) -> 0.6 | V24: =VLOOKUP($E24,ZMM_Plst!$B:$AC,5,0) -> 0.1
B25: =IF($E25<>"",VLOOKUP(Розница!$E25,'Pricing (Розница)'!$A$3:$G$130,5,FALSE),"") -> SW | C25: =IF($E25<>"",VLOOKUP(Розница!$E25,'Pricing (Розница)'!$A$3:$G$130,4,FALSE),"") -> LW | D25: =IF($E25<>"",VLOOKUP(Розница!$E25,'Pricing (Розница)'!$A$3:$G$130,3,FALSE),"") -> Tambov | E25: =IF('Pricing (Розница)'!A18<>"",'Pricing (Розница)'!A18,"") -> 1017135 | F25: =IF(E25<>"",VLOOKUP(Розница!E25,'Pricing (Розница)'!$A$3:$B$130,2,FALSE),"") -> ИЗОВЕР МАСТЕР ТЕПЛЫХ СТЕН-50/600x1000 | G25: =IFERROR(IF($A$7,VLOOKUP($E25,'Pricing (Розница) pick up'!$A:$CK,MATCH($F$2,'Pricing (Розница) pick up'!$A$2:$DA$2,0),0),VLOOKUP($E25,'Pricing (Розница)'!$A:$CO,MATCH(Розница!$F$2,'Pricing (Розница)'!$2:$2,0),0))*IF(AND($B25="GW",$F$3="B"),VLOOKUP($F$1,AB!A:B,2,0),1),"-") -> 1726.627119 | H25: 1438.855932 | I25: =IFERROR(IF($A$8,VLOOKUP(CONCATENATE($D25,$F$2),Tariffs_!A:H,8,0),VLOOKUP(CONCATENATE($D25,$F$2),Tariffs_!A:G,6,0)),"-") -> 0 | J25: =IFERROR(IF($A$8,VLOOKUP(CONCATENATE($D25,$F$2),Tariffs_!A:I,9,0)*VLOOKUP($E25,ZMM_Plst!$B:$K,8,0)/VLOOKUP($E25,ZMM_Plst!$B:$K,10,0)*1.2,VLOOKUP(CONCATENATE($D25,$F$2),Tariffs_!A:G,7,0)*VLOOKUP($E25,ZMM_Plst!$B:$K,8,0)/VLOOKUP($E25,ZMM_Plst!$B:$K,10,0)*1.2),"-") -> 0 | K25: =VLOOKUP($E25,ZMM_Plst!$B:$AA,26,0) -> A | L25: 4.8 | M25: 0.24 | N25: =VLOOKUP($E25,ZMM_Plst!$B:$AC,17,0) -> 8 | O25: =VLOOKUP($E25,ZMM_Plst!$B:$AC,9,0) -> 4.8 | P25: =VLOOKUP($E25,ZMM_Plst!$B:$AC,10,0) -> 0.24 | Q25: =VLOOKUP($E25,ZMM_Plst!$B:$AC,8,0) -> 0.266 | R25: =VLOOKUP($E25,ZMM_Plst!$B:$AC,16,0) -> 1 | S25: 83.0075188 | T25: =VLOOKUP($E25,ZMM_Plst!$B:$AC,6,0) -> 1 | U25: =VLOOKUP($E25,ZMM_Plst!$B:$AC,7,0) -> 0.6 | V25: =VLOOKUP($E25,ZMM_Plst!$B:$AC,5,0) -> 0.05
B26: =IF($E26<>"",VLOOKUP(Розница!$E26,'Pricing (Розница)'!$A$3:$G$130,5,FALSE),"") -> SW | C26: =IF($E26<>"",VLOOKUP(Розница!$E26,'Pricing (Розница)'!$A$3:$G$130,4,FALSE),"") -> LW | D26: =IF($E26<>"",VLOOKUP(Розница!$E26,'Pricing (Розница)'!$A$3:$G$130,3,FALSE),"") -> Tambov | E26: =IF('Pricing (Розница)'!A19<>"",'Pricing (Розница)'!A19,"") -> 1017136 | F26: =IF(E26<>"",VLOOKUP(Розница!E26,'Pricing (Розница)'!$A$3:$B$130,2,FALSE),"") -> ИЗОВЕР МАСТЕР ТЕПЛЫХ СТЕН-100/600x1000 | G26: =IFERROR(IF($A$7,VLOOKUP($E26,'Pricing (Розница) pick up'!$A:$CK,MATCH($F$2,'Pricing (Розница) pick up'!$A$2:$DA$2,0),0),VLOOKUP($E26,'Pricing (Розница)'!$A:$CO,MATCH(Розница!$F$2,'Pricing (Розница)'!$2:$2,0),0))*IF(AND($B26="GW",$F$3="B"),VLOOKUP($F$1,AB!A:B,2,0),1),"-") -> 1726.627119 | H26: 1438.855932 | I26: =IFERROR(IF($A$8,VLOOKUP(CONCATENATE($D26,$F$2),Tariffs_!A:H,8,0),VLOOKUP(CONCATENATE($D26,$F$2),Tariffs_!A:G,6,0)),"-") -> 0 | J26: =IFERROR(IF($A$8,VLOOKUP(CONCATENATE($D26,$F$2),Tariffs_!A:I,9,0)*VLOOKUP($E26,ZMM_Plst!$B:$K,8,0)/VLOOKUP($E26,ZMM_Plst!$B:$K,10,0)*1.2,VLOOKUP(CONCATENATE($D26,$F$2),Tariffs_!A:G,7,0)*VLOOKUP($E26,ZMM_Plst!$B:$K,8,0)/VLOOKUP($E26,ZMM_Plst!$B:$K,10,0)*1.2),"-") -> 0 | K26: =VLOOKUP($E26,ZMM_Plst!$B:$AA,26,0) -> A | L26: 2.4 | M26: 0.24 | N26: =VLOOKUP($E26,ZMM_Plst!$B:$AC,17,0) -> 4 | O26: =VLOOKUP($E26,ZMM_Plst!$B:$AC,9,0) -> 2.4 | P26: =VLOOKUP($E26,ZMM_Plst!$B:$AC,10,0) -> 0.24 | Q26: =VLOOKUP($E26,ZMM_Plst!$B:$AC,8,0) -> 0.266 | R26: =VLOOKUP($E26,ZMM_Plst!$B:$AC,16,0) -> 1 | S26: 83.0075188 | T26: =VLOOKUP($E26,ZMM_Plst!$B:$AC,6,0) -> 1 | U26: =VLOOKUP($E26,ZMM_Plst!$B:$AC,7,0) -> 0.6 | V26: =VLOOKUP($E26,ZMM_Plst!$B:$AC,5,0) -> 0.1
B27: =IF($E27<>"",VLOOKUP(Розница!$E27,'Pricing (Розница)'!$A$3:$G$130,5,FALSE),"") -> GW | C27: =IF($E27<>"",VLOOKUP(Розница!$E27,'Pricing (Розница)'!$A$3:$G$130,4,FALSE),"") -> LW | D27: =IF($E27<>"",VLOOKUP(Розница!$E27,'Pricing (Розница)'!$A$3:$G$130,3,FALSE),"") -> Yegorevsk | E27: =IF('Pricing (Розница)'!A20<>"",'Pricing (Розница)'!A20,"") -> 67046 | F27: =IF(E27<>"",VLOOKUP(Розница!E27,'Pricing (Розница)'!$A$3:$B$130,2,FALSE),"") -> Скатная Кровля Комфорт 150х1220х4000/Е/К | G27: =IFERROR(IF($A$7,VLOOKUP($E27,'Pricing (Розница) pick up'!$A:$CK,MATCH($F$2,'Pricing (Розница) pick up'!$A$2:$DA$2,0),0),VLOOKUP($E27,'Pricing (Розница)'!$A:$CO,MATCH(Розница!$F$2,'Pricing (Розница)'!$2:$2,0),0))*IF(AND($B27="GW",$F$3="B"),VLOOKUP($F$1,AB!A:B,2,0),1),"-") -> 2927.618917 | H27: 2439.682431 | I27: =IFERROR(IF($A$8,VLOOKUP(CONCATENATE($D27,$F$2),Tariffs_!A:H,8,0),VLOOKUP(CONCATENATE($D27,$F$2),Tariffs_!A:G,6,0)),"-") -> 0 | J27: =IFERROR(IF($A$8,VLOOKUP(CONCATENATE($D27,$F$2),Tariffs_!A:I,9,0)*VLOOKUP($E27,ZMM_Plst!$B:$K,8,0)/VLOOKUP($E27,ZMM_Plst!$B:$K,10,0)*1.2,VLOOKUP(CONCATENATE($D27,$F$2),Tariffs_!A:G,7,0)*VLOOKUP($E27,ZMM_Plst!$B:$K,8,0)/VLOOKUP($E27,ZMM_Plst!$B:$K,10,0)*1.2),"-") -> 0 | K27: =VLOOKUP($E27,ZMM_Plst!$B:$AA,26,0) -> A | L27: 4.88 | M27: 0.732 | N27: =VLOOKUP($E27,ZMM_Plst!$B:$AC,17,0) -> 1 | O27: =VLOOKUP($E27,ZMM_Plst!$B:$AC,9,0) -> 87.84 | P27: =VLOOKUP($E27,ZMM_Plst!$B:$AC,10,0) -> 13.176 | Q27: =VLOOKUP($E27,ZMM_Plst!$B:$AC,8,0) -> 4.18 | R27: =VLOOKUP($E27,ZMM_Plst!$B:$AC,16,0) -> 18 | S27: 289.9980861 | T27: =VLOOKUP($E27,ZMM_Plst!$B:$AC,6,0) -> 4 | U27: =VLOOKUP($E27,ZMM_Plst!$B:$AC,7,0) -> 1.22 | V27: =VLOOKUP($E27,ZMM_Plst!$B:$AC,5,0) -> 0.15
B28: =IF($E28<>"",VLOOKUP(Розница!$E28,'Pricing (Розница)'!$A$3:$G$130,5,FALSE),"") -> GW | C28: =IF($E28<>"",VLOOKUP(Розница!$E28,'Pricing (Розница)'!$A$3:$G$130,4,FALSE),"") -> LW | D28: =IF($E28<>"",VLOOKUP(Розница!$E28,'Pricing (Розница)'!$A$3:$G$130,3,FALSE),"") -> Yegorevsk | E28: =IF('Pricing (Розница)'!A21<>"",'Pricing (Розница)'!A21,"") -> 67047 | F28: =IF(E28<>"",VLOOKUP(Розница!E28,'Pricing (Розница)'!$A$3:$B$130,2,FALSE),"") -> Скатная Кровля Комфорт 100х1220х5000/Е/К | G28: =IFERROR(IF($A$7,VLOOKUP($E28,'Pricing (Розница) pick up'!$A:$CK,MATCH($F$2,'Pricing (Розница) pick up'!$A$2:$DA$2,0),0),VLOOKUP($E28,'Pricing (Розница)'!$A:$CO,MATCH(Розница!$F$2,'Pricing (Розница)'!$2:$2,0),0))*IF(AND($B28="GW",$F$3="B"),VLOOKUP($F$1,AB!A:B,2,0),1),"-") -> 2927.618917 | H28: 2439.682431 | I28: =IFERROR(IF($A$8,VLOOKUP(CONCATENATE($D28,$F$2),Tariffs_!A:H,8,0),VLOOKUP(CONCATENATE($D28,$F$2),Tariffs_!A:G,6,0)),"-") -> 0 | J28: =IFERROR(IF($A$8,VLOOKUP(CONCATENATE($D28,$F$2),Tariffs_!A:I,9,0)*VLOOKUP($E28,ZMM_Plst!$B:$K,8,0)/VLOOKUP($E28,ZMM_Plst!$B:$K,10,0)*1.2,VLOOKUP(CONCATENATE($D28,$F$2),Tariffs_!A:G,7,0)*VLOOKUP($E28,ZMM_Plst!$B:$K,8,0)/VLOOKUP($E28,ZMM_Plst!$B:$K,10,0)*1.2),"-") -> 0 | K28: =VLOOKUP($E28,ZMM_Plst!$B:$AA,26,0) -> A | L28: 6.1 | M28: 0.61 | N28: =VLOOKUP($E28,ZMM_Plst!$B:$AC,17,0) -> 1 | O28: =VLOOKUP($E28,ZMM_Plst!$B:$AC,9,0) -> 109.8 | P28: =VLOOKUP($E28,ZMM_Plst!$B:$AC,10,0) -> 10.98 | Q28: =VLOOKUP($E28,ZMM_Plst!$B:$AC,8,0) -> 4.18 | R28: =VLOOKUP($E28,ZMM_Plst!$B:$AC,16,0) -> 18 | S28: 241.6650718 | T28: =VLOOKUP($E28,ZMM_Plst!$B:$AC,6,0) -> 5 | U28: =VLOOKUP($E28,ZMM_Plst!$B:$AC,7,0) -> 1.22 | V28: =VLOOKUP($E28,ZMM_Plst!$B:$AC,5,0) -> 0.1
B29: =IF($E29<>"",VLOOKUP(Розница!$E29,'Pricing (Розница)'!$A$3:$G$130,5,FALSE),"") -> GW | C29: =IF($E29<>"",VLOOKUP(Розница!$E29,'Pricing (Розница)'!$A$3:$G$130,4,FALSE),"") -> LW | D29: =IF($E29<>"",VLOOKUP(Розница!$E29,'Pricing (Розница)'!$A$3:$G$130,3,FALSE),"") -> Yegorevsk | E29: =IF('Pricing (Розница)'!A22<>"",'Pricing (Розница)'!A22,"") -> 67087 | F29: =IF(E29<>"",VLOOKUP(Розница!E29,'Pricing (Розница)'!$A$3:$B$130,2,FALSE),"") -> ПРОФИ-ТВИН-50х1220х4100/Е/К | G29: =IFERROR(IF($A$7,VLOOKUP($E29,'Pricing (Розница) pick up'!$A:$CK,MATCH($F$2,'Pricing (Розница) pick up'!$A$2:$DA$2,0),0),VLOOKUP($E29,'Pricing (Розница)'!$A:$CO,MATCH(Розница!$F$2,'Pricing (Розница)'!$2:$2,0),0))*IF(AND($B29="GW",$F$3="B"),VLOOKUP($F$1,AB!A:B,2,0),1),"-") -> 2023.809524 | H29: 1686.507937 | I29: =IFERROR(IF($A$8,VLOOKUP(CONCATENATE($D29,$F$2),Tariffs_!A:H,8,0),VLOOKUP(CONCATENATE($D29,$F$2),Tariffs_!A:G,6,0)),"-") -> 0 | J29: =IFERROR(IF($A$8,VLOOKUP(CONCATENATE($D29,$F$2),Tariffs_!A:I,9,0)*VLOOKUP($E29,ZMM_Plst!$B:$K,8,0)/VLOOKUP($E29,ZMM_Plst!$B:$K,10,0)*1.2,VLOOKUP(CONCATENATE($D29,$F$2),Tariffs_!A:G,7,0)*VLOOKUP($E29,ZMM_Plst!$B:$K,8,0)/VLOOKUP($E29,ZMM_Plst!$B:$K,10,0)*1.2),"-") -> 0 | K29: =VLOOKUP($E29,ZMM_Plst!$B:$AA,26,0) -> A | L29: 10.00404762 | M29: 0.5001904762 | N29: =VLOOKUP($E29,ZMM_Plst!$B:$AC,17,0) -> 2 | O29: =VLOOKUP($E29,ZMM_Plst!$B:$AC,9,0) -> 420.17 | P29: =VLOOKUP($E29,ZMM_Plst!$B:$AC,10,0) -> 21.008 | Q29: =VLOOKUP($E29,ZMM_Plst!$B:$AC,8,0) -> 4.6 | R29: =VLOOKUP($E29,ZMM_Plst!$B:$AC,16,0) -> 42 | S29: 420.16 | T29: =VLOOKUP($E29,ZMM_Plst!$B:$AC,6,0) -> 4.1 | U29: =VLOOKUP($E29,ZMM_Plst!$B:$AC,7,0) -> 1.22 | V29: =VLOOKUP($E29,ZMM_Plst!$B:$AC,5,0) -> 0.05
B30: =IF($E30<>"",VLOOKUP(Розница!$E30,'Pricing (Розница)'!$A$3:$G$130,5,FALSE),"") -> GW | C30: =IF($E30<>"",VLOOKUP(Розница!$E30,'Pricing (Розница)'!$A$3:$G$130,4,FALSE),"") -> LW | D30: =IF($E30<>"",VLOOKUP(Розница!$E30,'Pricing (Розница)'!$A$3:$G$130,3,FALSE),"") -> Yegorevsk | E30: =IF('Pricing (Розница)'!A23<>"",'Pricing (Розница)'!A23,"") -> 67088 | F30: =IF(E30<>"",VLOOKUP(Розница!E30,'Pricing (Розница)'!$A$3:$B$130,2,FALSE),"") -> ПРОФИ-100х1220х4100/Е/К | G30: =IFERROR(IF($A$7,VLOOKUP($E30,'Pricing (Розница) pick up'!$A:$CK,MATCH($F$2,'Pricing (Розница) pick up'!$A$2:$DA$2,0),0),VLOOKUP($E30,'Pricing (Розница)'!$A:$CO,MATCH(Розница!$F$2,'Pricing (Розница)'!$2:$2,0),0))*IF(AND($B30="GW",$F$3="B"),VLOOKUP($F$1,AB!A:B,2,0),1),"-") -> 2023.809524 | H30: 1686.507937 | I30: =IFERROR(IF($A$8,VLOOKUP(CONCATENATE($D30,$F$2),Tariffs_!A:H,8,0),VLOOKUP(CONCATENATE($D30,$F$2),Tariffs_!A:G,6,0)),"-") -> 0 | J30: =IFERROR(IF($A$8,VLOOKUP(CONCATENATE($D30,$F$2),Tariffs_!A:I,9,0)*VLOOKUP($E30,ZMM_Plst!$B:$K,8,0)/VLOOKUP($E30,ZMM_Plst!$B:$K,10,0)*1.2,VLOOKUP(CONCATENATE($D30,$F$2),Tariffs_!A:G,7,0)*VLOOKUP($E30,ZMM_Plst!$B:$K,8,0)/VLOOKUP($E30,ZMM_Plst!$B:$K,10,0)*1.2),"-") -> 0 | K30: =VLOOKUP($E30,ZMM_Plst!$B:$AA,26,0) -> B | L30: 5.001904762 | M30: 0.5001904762 | N30: =VLOOKUP($E30,ZMM_Plst!$B:$AC,17,0) -> 1 | O30: =VLOOKUP($E30,ZMM_Plst!$B:$AC,9,0) -> 210.08 | P30: =VLOOKUP($E30,ZMM_Plst!$B:$AC,10,0) -> 21.008 | Q30: =VLOOKUP($E30,ZMM_Plst!$B:$AC,8,0) -> 4.6 | R30: =VLOOKUP($E30,ZMM_Plst!$B:$AC,16,0) -> 42 | S30: 420.16 | T30: =VLOOKUP($E30,ZMM_Plst!$B:$AC,6,0) -> 4.1 | U30: =VLOOKUP($E30,ZMM_Plst!$B:$AC,7,0) -> 1.22 | V30: =VLOOKUP($E30,ZMM_Plst!$B:$AC,5,0) -> 0.1
B31: =IF($E31<>"",VLOOKUP(Розница!$E31,'Pricing (Розница)'!$A$3:$G$130,5,FALSE),"") -> GW | C31: =IF($E31<>"",VLOOKUP(Розница!$E31,'Pricing (Розница)'!$A$3:$G$130,4,FALSE),"") -> LW | D31: =IF($E31<>"",VLOOKUP(Розница!$E31,'Pricing (Розница)'!$A$3:$G$130,3,FALSE),"") -> Yegorevsk | E31: =IF('Pricing (Розница)'!A24<>"",'Pricing (Розница)'!A24,"") -> 67089 | F31: =IF(E31<>"",VLOOKUP(Розница!E31,'Pricing (Розница)'!$A$3:$B$130,2,FALSE),"") -> ПРОФИ-ТВИН-50х(2х610)х4100/Е/К | G31: =IFERROR(IF($A$7,VLOOKUP($E31,'Pricing (Розница) pick up'!$A:$CK,MATCH($F$2,'Pricing (Розница) pick up'!$A$2:$DA$2,0),0),VLOOKUP($E31,'Pricing (Розница)'!$A:$CO,MATCH(Розница!$F$2,'Pricing (Розница)'!$2:$2,0),0))*IF(AND($B31="GW",$F$3="B"),VLOOKUP($F$1,AB!A:B,2,0),1),"-") -> 2023.809524 | H31: 1686.507937 | I31: =IFERROR(IF($A$8,VLOOKUP(CONCATENATE($D31,$F$2),Tariffs_!A:H,8,0),VLOOKUP(CONCATENATE($D31,$F$2),Tariffs_!A:G,6,0)),"-") -> 0 | J31: =IFERROR(IF($A$8,VLOOKUP(CONCATENATE($D31,$F$2),Tariffs_!A:I,9,0)*VLOOKUP($E31,ZMM_Plst!$B:$K,8,0)/VLOOKUP($E31,ZMM_Plst!$B:$K,10,0)*1.2,VLOOKUP(CONCATENATE($D31,$F$2),Tariffs_!A:G,7,0)*VLOOKUP($E31,ZMM_Plst!$B:$K,8,0)/VLOOKUP($E31,ZMM_Plst!$B:$K,10,0)*1.2),"-") -> 0 | K31: =VLOOKUP($E31,ZMM_Plst!$B:$AA,26,0) -> A | L31: 10.00404762 | M31: 0.5001904762 | N31: =VLOOKUP($E31,ZMM_Plst!$B:$AC,17,0) -> 4 | O31: =VLOOKUP($E31,ZMM_Plst!$B:$AC,9,0) -> 420.17 | P31: =VLOOKUP($E31,ZMM_Plst!$B:$AC,10,0) -> 21.008 | Q31: =VLOOKUP($E31,ZMM_Plst!$B:$AC,8,0) -> 4.6 | R31: =VLOOKUP($E31,ZMM_Plst!$B:$AC,16,0) -> 42 | S31: 420.16 | T31: =VLOOKUP($E31,ZMM_Plst!$B:$AC,6,0) -> 4.1 | U31: =VLOOKUP($E31,ZMM_Plst!$B:$AC,7,0) -> 0.61 | V31: =VLOOKUP($E31,ZMM_Plst!$B:$AC,5,0) -> 0.05
B32: =IF($E32<>"",VLOOKUP(Розница!$E32,'Pricing (Розница)'!$A$3:$G$130,5,FALSE),"") -> GW | C32: =IF($E32<>"",VLOOKUP(Розница!$E32,'Pricing (Розница)'!$A$3:$G$130,4,FALSE),"") -> LW | D32: =IF($E32<>"",VLOOKUP(Розница!$E32,'Pricing (Розница)'!$A$3:$G$130,3,FALSE),"") -> Yegorevsk | E32: =IF('Pricing (Розница)'!A25<>"",'Pricing (Розница)'!A25,"") -> 67090 | F32: =IF(E32<>"",VLOOKUP(Розница!E32,'Pricing (Розница)'!$A$3:$B$130,2,FALSE),"") -> ПРОФИ-100х(2х610)х4100/Е/К | G32: =IFERROR(IF($A$7,VLOOKUP($E32,'Pricing (Розница) pick up'!$A:$CK,MATCH($F$2,'Pricing (Розница) pick up'!$A$2:$DA$2,0),0),VLOOKUP($E32,'Pricing (Розница)'!$A:$CO,MATCH(Розница!$F$2,'Pricing (Розница)'!$2:$2,0),0))*IF(AND($B32="GW",$F$3="B"),VLOOKUP($F$1,AB!A:B,2,0),1),"-") -> 2023.809524 | H32: 1686.507937 | I32: =IFERROR(IF($A$8,VLOOKUP(CONCATENATE($D32,$F$2),Tariffs_!A:H,8,0),VLOOKUP(CONCATENATE($D32,$F$2),Tariffs_!A:G,6,0)),"-") -> 0 | J32: =IFERROR(IF($A$8,VLOOKUP(CONCATENATE($D32,$F$2),Tariffs_!A:I,9,0)*VLOOKUP($E32,ZMM_Plst!$B:$K,8,0)/VLOOKUP($E32,ZMM_Plst!$B:$K,10,0)*1.2,VLOOKUP(CONCATENATE($D32,$F$2),Tariffs_!A:G,7,0)*VLOOKUP($E32,ZMM_Plst!$B:$K,8,0)/VLOOKUP($E32,ZMM_Plst!$B:$K,10,0)*1.2),"-") -> 0 | K32: =VLOOKUP($E32,ZMM_Plst!$B:$AA,26,0) -> A | L32: 5.001904762 | M32: 0.5001904762 | N32: =VLOOKUP($E32,ZMM_Plst!$B:$AC,17,0) -> 2 | O32: =VLOOKUP($E32,ZMM_Plst!$B:$AC,9,0) -> 210.08 | P32: =VLOOKUP($E32,ZMM_Plst!$B:$AC,10,0) -> 21.008 | Q32: =VLOOKUP($E32,ZMM_Plst!$B:$AC,8,0) -> 4.6 | R32: =VLOOKUP($E32,ZMM_Plst!$B:$AC,16,0) -> 42 | S32: 420.16 | T32: =VLOOKUP($E32,ZMM_Plst!$B:$AC,6,0) -> 4.1 | U32: =VLOOKUP($E32,ZMM_Plst!$B:$AC,7,0) -> 0.61 | V32: =VLOOKUP($E32,ZMM_Plst!$B:$AC,5,0) -> 0.1
B33: =IF($E33<>"",VLOOKUP(Розница!$E33,'Pricing (Розница)'!$A$3:$G$130,5,FALSE),"") -> GW | C33: =IF($E33<>"",VLOOKUP(Розница!$E33,'Pricing (Розница)'!$A$3:$G$130,4,FALSE),"") -> LW | D33: =IF($E33<>"",VLOOKUP(Розница!$E33,'Pricing (Розница)'!$A$3:$G$130,3,FALSE),"") -> Yegorevsk | E33: =IF('Pricing (Розница)'!A26<>"",'Pricing (Розница)'!A26,"") -> 67105 | F33: =IF(E33<>"",VLOOKUP(Розница!E33,'Pricing (Розница)'!$A$3:$B$130,2,FALSE),"") -> Теплые Стены Стронг-50/ 610х1000/Е/К | G33: =IFERROR(IF($A$7,VLOOKUP($E33,'Pricing (Розница) pick up'!$A:$CK,MATCH($F$2,'Pricing (Розница) pick up'!$A$2:$DA$2,0),0),VLOOKUP($E33,'Pricing (Розница)'!$A:$CO,MATCH(Розница!$F$2,'Pricing (Розница)'!$2:$2,0),0))*IF(AND($B33="GW",$F$3="B"),VLOOKUP($F$1,AB!A:B,2,0),1),"-") -> 2248.677249 | H33: 1873.897707 | I33: =IFERROR(IF($A$8,VLOOKUP(CONCATENATE($D33,$F$2),Tariffs_!A:H,8,0),VLOOKUP(CONCATENATE($D33,$F$2),Tariffs_!A:G,6,0)),"-") -> 0 | J33: =IFERROR(IF($A$8,VLOOKUP(CONCATENATE($D33,$F$2),Tariffs_!A:I,9,0)*VLOOKUP($E33,ZMM_Plst!$B:$K,8,0)/VLOOKUP($E33,ZMM_Plst!$B:$K,10,0)*1.2,VLOOKUP(CONCATENATE($D33,$F$2),Tariffs_!A:G,7,0)*VLOOKUP($E33,ZMM_Plst!$B:$K,8,0)/VLOOKUP($E33,ZMM_Plst!$B:$K,10,0)*1.2),"-") -> 0 | K33: =VLOOKUP($E33,ZMM_Plst!$B:$AA,26,0) -> A | L33: 6.1 | M33: 0.305 | N33: =VLOOKUP($E33,ZMM_Plst!$B:$AC,17,0) -> 10 | O33: =VLOOKUP($E33,ZMM_Plst!$B:$AC,9,0) -> 244 | P33: =VLOOKUP($E33,ZMM_Plst!$B:$AC,10,0) -> 12.2 | Q33: =VLOOKUP($E33,ZMM_Plst!$B:$AC,8,0) -> 4.18 | R33: =VLOOKUP($E33,ZMM_Plst!$B:$AC,16,0) -> 40 | S33: 268.5167464 | T33: =VLOOKUP($E33,ZMM_Plst!$B:$AC,6,0) -> 1 | U33: =VLOOKUP($E33,ZMM_Plst!$B:$AC,7,0) -> 0.61 | V33: =VLOOKUP($E33,ZMM_Plst!$B:$AC,5,0) -> 0.05
B34: =IF($E34<>"",VLOOKUP(Розница!$E34,'Pricing (Розница)'!$A$3:$G$130,5,FALSE),"") -> GW | C34: =IF($E34<>"",VLOOKUP(Розница!$E34,'Pricing (Розница)'!$A$3:$G$130,4,FALSE),"") -> LW | D34: =IF($E34<>"",VLOOKUP(Розница!$E34,'Pricing (Розница)'!$A$3:$G$130,3,FALSE),"") -> Yegorevsk | E34: =IF('Pricing (Розница)'!A27<>"",'Pricing (Розница)'!A27,"") -> 67106 | F34: =IF(E34<>"",VLOOKUP(Розница!E34,'Pricing (Розница)'!$A$3:$B$130,2,FALSE),"") -> Теплые Стены Стронг-100/ 610х1000/Е/К | G34: =IFERROR(IF($A$7,VLOOKUP($E34,'Pricing (Розница) pick up'!$A:$CK,MATCH($F$2,'Pricing (Розница) pick up'!$A$2:$DA$2,0),0),VLOOKUP($E34,'Pricing (Розница)'!$A:$CO,MATCH(Розница!$F$2,'Pricing (Розница)'!$2:$2,0),0))*IF(AND($B34="GW",$F$3="B"),VLOOKUP($F$1,AB!A:B,2,0),1),"-") -> 2248.677249 | H34: 1873.897707 | I34: =IFERROR(IF($A$8,VLOOKUP(CONCATENATE($D34,$F$2),Tariffs_!A:H,8,0),VLOOKUP(CONCATENATE($D34,$F$2),Tariffs_!A:G,6,0)),"-") -> 0 | J34: =IFERROR(IF($A$8,VLOOKUP(CONCATENATE($D34,$F$2),Tariffs_!A:I,9,0)*VLOOKUP($E34,ZMM_Plst!$B:$K,8,0)/VLOOKUP($E34,ZMM_Plst!$B:$K,10,0)*1.2,VLOOKUP(CONCATENATE($D34,$F$2),Tariffs_!A:G,7,0)*VLOOKUP($E34,ZMM_Plst!$B:$K,8,0)/VLOOKUP($E34,ZMM_Plst!$B:$K,10,0)*1.2),"-") -> 0 | K34: =VLOOKUP($E34,ZMM_Plst!$B:$AA,26,0) -> A | L34: 3.05 | M34: 0.305 | N34: =VLOOKUP($E34,ZMM_Plst!$B:$AC,17,0) -> 5 | O34: =VLOOKUP($E34,ZMM_Plst!$B:$AC,9,0) -> 122 | P34: =VLOOKUP($E34,ZMM_Plst!$B:$AC,10,0) -> 12.2 | Q34: =VLOOKUP($E34,ZMM_Plst!$B:$AC,8,0) -> 4.18 | R34: =VLOOKUP($E34,ZMM_Plst!$B:$AC,16,0) -> 40 | S34: 268.5167464 | T34: =VLOOKUP($E34,ZMM_Plst!$B:$AC,6,0) -> 1 | U34: =VLOOKUP($E34,ZMM_Plst!$B:$AC,7,0) -> 0.61 | V34: =VLOOKUP($E34,ZMM_Plst!$B:$AC,5,0) -> 0.1
B35: =IF($E35<>"",VLOOKUP(Розница!$E35,'Pricing (Розница)'!$A$3:$G$130,5,FALSE),"") -> GW | C35: =IF($E35<>"",VLOOKUP(Розница!$E35,'Pricing (Розница)'!$A$3:$G$130,4,FALSE),"") -> LW | D35: =IF($E35<>"",VLOOKUP(Розница!$E35,'Pricing (Розница)'!$A$3:$G$130,3,FALSE),"") -> Yegorevsk | E35: =IF('Pricing (Розница)'!A28<>"",'Pricing (Розница)'!A28,"") -> 67129 | F35: =IF(E35<>"",VLOOKUP(Розница!E35,'Pricing (Розница)'!$A$3:$B$130,2,FALSE),"") -> ISOVER Шумка-50x610x1000/Е | G35: =IFERROR(IF($A$7,VLOOKUP($E35,'Pricing (Розница) pick up'!$A:$CK,MATCH($F$2,'Pricing (Розница) pick up'!$A$2:$DA$2,0),0),VLOOKUP($E35,'Pricing (Розница)'!$A:$CO,MATCH(Розница!$F$2,'Pricing (Розница)'!$2:$2,0),0))*IF(AND($B35="GW",$F$3="B"),VLOOKUP($F$1,AB!A:B,2,0),1),"-") -> 2473.544974 | H35: 2061.287478 | I35: =IFERROR(IF($A$8,VLOOKUP(CONCATENATE($D35,$F$2),Tariffs_!A:H,8,0),VLOOKUP(CONCATENATE($D35,$F$2),Tariffs_!A:G,6,0)),"-") -> 0 | J35: =IFERROR(IF($A$8,VLOOKUP(CONCATENATE($D35,$F$2),Tariffs_!A:I,9,0)*VLOOKUP($E35,ZMM_Plst!$B:$K,8,0)/VLOOKUP($E35,ZMM_Plst!$B:$K,10,0)*1.2,VLOOKUP(CONCATENATE($D35,$F$2),Tariffs_!A:G,7,0)*VLOOKUP($E35,ZMM_Plst!$B:$K,8,0)/VLOOKUP($E35,ZMM_Plst!$B:$K,10,0)*1.2),"-") -> 0 | K35: =VLOOKUP($E35,ZMM_Plst!$B:$AA,26,0) -> A | L35: 6.1 | M35: 0.305 | N35: =VLOOKUP($E35,ZMM_Plst!$B:$AC,17,0) -> 10 | O35: =VLOOKUP($E35,ZMM_Plst!$B:$AC,9,0) -> 292.8 | P35: =VLOOKUP($E35,ZMM_Plst!$B:$AC,10,0) -> 14.64 | Q35: =VLOOKUP($E35,ZMM_Plst!$B:$AC,8,0) -> 4.182 | R35: =VLOOKUP($E35,ZMM_Plst!$B:$AC,16,0) -> 48 | S35: 322.0659971 | T35: =VLOOKUP($E35,ZMM_Plst!$B:$AC,6,0) -> 1 | U35: =VLOOKUP($E35,ZMM_Plst!$B:$AC,7,0) -> 0.61 | V35: =VLOOKUP($E35,ZMM_Plst!$B:$AC,5,0) -> 0.05
B36: =IF($E36<>"",VLOOKUP(Розница!$E36,'Pricing (Розница)'!$A$3:$G$130,5,FALSE),"") -> GW | C36: =IF($E36<>"",VLOOKUP(Розница!$E36,'Pricing (Розница)'!$A$3:$G$130,4,FALSE),"") -> LW | D36: =IF($E36<>"",VLOOKUP(Розница!$E36,'Pricing (Розница)'!$A$3:$G$130,3,FALSE),"") -> Yegorevsk | E36: =IF('Pricing (Розница)'!A29<>"",'Pricing (Розница)'!A29,"") -> 67134 | F36: =IF(E36<>"",VLOOKUP(Розница!E36,'Pricing (Розница)'!$A$3:$B$130,2,FALSE),"") -> Сауна-50/E/К-1200х12500 | G36: =IFERROR(IF($A$7,VLOOKUP($E36,'Pricing (Розница) pick up'!$A:$CK,MATCH($F$2,'Pricing (Розница) pick up'!$A$2:$DA$2,0),0),VLOOKUP($E36,'Pricing (Розница)'!$A:$CO,MATCH(Розница!$F$2,'Pricing (Розница)'!$2:$2,0),0))*IF(AND($B36="GW",$F$3="B"),VLOOKUP($F$1,AB!A:B,2,0),1),"-") -> 3485.449735 | H36: 2904.541446 | I36: =IFERROR(IF($A$8,VLOOKUP(CONCATENATE($D36,$F$2),Tariffs_!A:H,8,0),VLOOKUP(CONCATENATE($D36,$F$2),Tariffs_!A:G,6,0)),"-") -> 0 | J36: =IFERROR(IF($A$8,VLOOKUP(CONCATENATE($D36,$F$2),Tariffs_!A:I,9,0)*VLOOKUP($E36,ZMM_Plst!$B:$K,8,0)/VLOOKUP($E36,ZMM_Plst!$B:$K,10,0)*1.2,VLOOKUP(CONCATENATE($D36,$F$2),Tariffs_!A:G,7,0)*VLOOKUP($E36,ZMM_Plst!$B:$K,8,0)/VLOOKUP($E36,ZMM_Plst!$B:$K,10,0)*1.2),"-") -> 0 | K36: =VLOOKUP($E36,ZMM_Plst!$B:$AA,26,0) -> A | L36: 15 | M36: 0.75 | N36: =VLOOKUP($E36,ZMM_Plst!$B:$AC,17,0) -> 1 | O36: =VLOOKUP($E36,ZMM_Plst!$B:$AC,9,0) -> 450 | P36: =VLOOKUP($E36,ZMM_Plst!$B:$AC,10,0) -> 22.5 | Q36: =VLOOKUP($E36,ZMM_Plst!$B:$AC,8,0) -> 4.6 | R36: =VLOOKUP($E36,ZMM_Plst!$B:$AC,16,0) -> 30 | S36: 450 | T36: =VLOOKUP($E36,ZMM_Plst!$B:$AC,6,0) -> 12.5 | U36: =VLOOKUP($E36,ZMM_Plst!$B:$AC,7,0) -> 1.2 | V36: =VLOOKUP($E36,ZMM_Plst!$B:$AC,5,0) -> 0.05
B37: =IF($E37<>"",VLOOKUP(Розница!$E37,'Pricing (Розница)'!$A$3:$G$130,5,FALSE),"") -> GW | C37: =IF($E37<>"",VLOOKUP(Розница!$E37,'Pricing (Розница)'!$A$3:$G$130,4,FALSE),"") -> LW | D37: =IF($E37<>"",VLOOKUP(Розница!$E37,'Pricing (Розница)'!$A$3:$G$130,3,FALSE),"") -> Yegorevsk | E37: =IF('Pricing (Розница)'!A30<>"",'Pricing (Розница)'!A30,"") -> 67138 | F37: =IF(E37<>"",VLOOKUP(Розница!E37,'Pricing (Розница)'!$A$3:$B$130,2,FALSE),"") -> Теплый Дом-ТВИН-50х610х8200/Е/К | G37: =IFERROR(IF($A$7,VLOOKUP($E37,'Pricing (Розница) pick up'!$A:$CK,MATCH($F$2,'Pricing (Розница) pick up'!$A$2:$DA$2,0),0),VLOOKUP($E37,'Pricing (Розница)'!$A:$CO,MATCH(Розница!$F$2,'Pricing (Розница)'!$2:$2,0),0))*IF(AND($B37="GW",$F$3="B"),VLOOKUP($F$1,AB!A:B,2,0),1),"-") -> 1844.261036 | H37: 1536.884197 | I37: =IFERROR(IF($A$8,VLOOKUP(CONCATENATE($D37,$F$2),Tariffs_!A:H,8,0),VLOOKUP(CONCATENATE($D37,$F$2),Tariffs_!A:G,6,0)),"-") -> 0 | J37: =IFERROR(IF($A$8,VLOOKUP(CONCATENATE($D37,$F$2),Tariffs_!A:I,9,0)*VLOOKUP($E37,ZMM_Plst!$B:$K,8,0)/VLOOKUP($E37,ZMM_Plst!$B:$K,10,0)*1.2,VLOOKUP(CONCATENATE($D37,$F$2),Tariffs_!A:G,7,0)*VLOOKUP($E37,ZMM_Plst!$B:$K,8,0)/VLOOKUP($E37,ZMM_Plst!$B:$K,10,0)*1.2),"-") -> 0 | K37: =VLOOKUP($E37,ZMM_Plst!$B:$AA,26,0) -> A | L37: 10.004 | M37: 0.5002 | N37: =VLOOKUP($E37,ZMM_Plst!$B:$AC,17,0) -> 2 | O37: =VLOOKUP($E37,ZMM_Plst!$B:$AC,9,0) -> 500.2 | P37: =VLOOKUP($E37,ZMM_Plst!$B:$AC,10,0) -> 25.01 | Q37: =VLOOKUP($E37,ZMM_Plst!$B:$AC,8,0) -> 4.18 | R37: =VLOOKUP($E37,ZMM_Plst!$B:$AC,16,0) -> 50 | S37: 550.4593301 | T37: =VLOOKUP($E37,ZMM_Plst!$B:$AC,6,0) -> 8.2 | U37: =VLOOKUP($E37,ZMM_Plst!$B:$AC,7,0) -> 0.61 | V37: =VLOOKUP($E37,ZMM_Plst!$B:$AC,5,0) -> 0.05
B38: =IF($E38<>"",VLOOKUP(Розница!$E38,'Pricing (Розница)'!$A$3:$G$130,5,FALSE),"") -> GW | C38: =IF($E38<>"",VLOOKUP(Розница!$E38,'Pricing (Розница)'!$A$3:$G$130,4,FALSE),"") -> LW | D38: =IF($E38<>"",VLOOKUP(Розница!$E38,'Pricing (Розница)'!$A$3:$G$130,3,FALSE),"") -> Yegorevsk | E38: =IF('Pricing (Розница)'!A31<>"",'Pricing (Розница)'!A31,"") -> 67139 | F38: =IF(E38<>"",VLOOKUP(Розница!E38,'Pricing (Розница)'!$A$3:$B$130,2,FALSE),"") -> Теплый Дом-ТВИН-50х1220х8200/Е/К | G38: =IFERROR(IF($A$7,VLOOKUP($E38,'Pricing (Розница) pick up'!$A:$CK,MATCH($F$2,'Pricing (Розница) pick up'!$A$2:$DA$2,0),0),VLOOKUP($E38,'Pricing (Розница)'!$A:$CO,MATCH(Розница!$F$2,'Pricing (Розница)'!$2:$2,0),0))*IF(AND($B38="GW",$F$3="B"),VLOOKUP($F$1,AB!A:B,2,0),1),"-") -> 1911.375661 | H38: 1592.813051 | I38: =IFERROR(IF($A$8,VLOOKUP(CONCATENATE($D38,$F$2),Tariffs_!A:H,8,0),VLOOKUP(CONCATENATE($D38,$F$2),Tariffs_!A:G,6,0)),"-") -> 0 | J38: =IFERROR(IF($A$8,VLOOKUP(CONCATENATE($D38,$F$2),Tariffs_!A:I,9,0)*VLOOKUP($E38,ZMM_Plst!$B:$K,8,0)/VLOOKUP($E38,ZMM_Plst!$B:$K,10,0)*1.2,VLOOKUP(CONCATENATE($D38,$F$2),Tariffs_!A:G,7,0)*VLOOKUP($E38,ZMM_Plst!$B:$K,8,0)/VLOOKUP($E38,ZMM_Plst!$B:$K,10,0)*1.2),"-") -> 0 | K38: =VLOOKUP($E38,ZMM_Plst!$B:$AA,26,0) -> A | L38: 20.008 | M38: 1.0004 | N38: =VLOOKUP($E38,ZMM_Plst!$B:$AC,17,0) -> 2 | O38: =VLOOKUP($E38,ZMM_Plst!$B:$AC,9,0) -> 600.24 | P38: =VLOOKUP($E38,ZMM_Plst!$B:$AC,10,0) -> 30.012 | Q38: =VLOOKUP($E38,ZMM_Plst!$B:$AC,8,0) -> 4.18 | R38: =VLOOKUP($E38,ZMM_Plst!$B:$AC,16,0) -> 30 | S38: 660.5511962 | T38: =VLOOKUP($E38,ZMM_Plst!$B:$AC,6,0) -> 8.2 | U38: =VLOOKUP($E38,ZMM_Plst!$B:$AC,7,0) -> 1.22 | V38: =VLOOKUP($E38,ZMM_Plst!$B:$AC,5,0) -> 0.05
B39: =IF($E39<>"",VLOOKUP(Розница!$E39,'Pricing (Розница)'!$A$3:$G$130,5,FALSE),"") -> GW | C39: =IF($E39<>"",VLOOKUP(Розница!$E39,'Pricing (Розница)'!$A$3:$G$130,4,FALSE),"") -> LW | D39: =IF($E39<>"",VLOOKUP(Розница!$E39,'Pricing (Розница)'!$A$3:$G$130,3,FALSE),"") -> Yegorevsk | E39: =IF('Pricing (Розница)'!A32<>"",'Pricing (Розница)'!A32,"") -> 67140 | F39: =IF(E39<>"",VLOOKUP(Розница!E39,'Pricing (Розница)'!$A$3:$B$130,2,FALSE),"") -> Теплый Дом-ТВИН-50х1220х5490/Е/К | G39: =IFERROR(IF($A$7,VLOOKUP($E39,'Pricing (Розница) pick up'!$A:$CK,MATCH($F$2,'Pricing (Розница) pick up'!$A$2:$DA$2,0),0),VLOOKUP($E39,'Pricing (Розница)'!$A:$CO,MATCH(Розница!$F$2,'Pricing (Розница)'!$2:$2,0),0))*IF(AND($B39="GW",$F$3="B"),VLOOKUP($F$1,AB!A:B,2,0),1),"-") -> 1911.375661 | H39: 1592.813051 | I39: =IFERROR(IF($A$8,VLOOKUP(CONCATENATE($D39,$F$2),Tariffs_!A:H,8,0),VLOOKUP(CONCATENATE($D39,$F$2),Tariffs_!A:G,6,0)),"-") -> 0 | J39: =IFERROR(IF($A$8,VLOOKUP(CONCATENATE($D39,$F$2),Tariffs_!A:I,9,0)*VLOOKUP($E39,ZMM_Plst!$B:$K,8,0)/VLOOKUP($E39,ZMM_Plst!$B:$K,10,0)*1.2,VLOOKUP(CONCATENATE($D39,$F$2),Tariffs_!A:G,7,0)*VLOOKUP($E39,ZMM_Plst!$B:$K,8,0)/VLOOKUP($E39,ZMM_Plst!$B:$K,10,0)*1.2),"-") -> 0 | K39: =VLOOKUP($E39,ZMM_Plst!$B:$AA,26,0) -> A | L39: 13.39571429 | M39: 0.6697857143 | N39: =VLOOKUP($E39,ZMM_Plst!$B:$AC,17,0) -> 2 | O39: =VLOOKUP($E39,ZMM_Plst!$B:$AC,9,0) -> 562.62 | P39: =VLOOKUP($E39,ZMM_Plst!$B:$AC,10,0) -> 28.131 | Q39: =VLOOKUP($E39,ZMM_Plst!$B:$AC,8,0) -> 4.18 | R39: =VLOOKUP($E39,ZMM_Plst!$B:$AC,16,0) -> 42 | S39: 619.1511962 | T39: =VLOOKUP($E39,ZMM_Plst!$B:$AC,6,0) -> 5.49 | U39: =VLOOKUP($E39,ZMM_Plst!$B:$AC,7,0) -> 1.22 | V39: =VLOOKUP($E39,ZMM_Plst!$B:$AC,5,0) -> 0.05
B40: =IF($E40<>"",VLOOKUP(Розница!$E40,'Pricing (Розница)'!$A$3:$G$130,5,FALSE),"") -> GW | C40: =IF($E40<>"",VLOOKUP(Розница!$E40,'Pricing (Розница)'!$A$3:$G$130,4,FALSE),"") -> LW | D40: =IF($E40<>"",VLOOKUP(Розница!$E40,'Pricing (Розница)'!$A$3:$G$130,3,FALSE),"") -> Yegorevsk | E40: =IF('Pricing (Розница)'!A33<>"",'Pricing (Розница)'!A33,"") -> 67141 | F40: =IF(E40<>"",VLOOKUP(Розница!E40,'Pricing (Розница)'!$A$3:$B$130,2,FALSE),"") -> Теплый Дом-ТВИН-50х1220х7000/Е/К | G40: =IFERROR(IF($A$7,VLOOKUP($E40,'Pricing (Розница) pick up'!$A:$CK,MATCH($F$2,'Pricing (Розница) pick up'!$A$2:$DA$2,0),0),VLOOKUP($E40,'Pricing (Розница)'!$A:$CO,MATCH(Розница!$F$2,'Pricing (Розница)'!$2:$2,0),0))*IF(AND($B40="GW",$F$3="B"),VLOOKUP($F$1,AB!A:B,2,0),1),"-") -> 1911.375661 | H40: 1592.813051 | I40: =IFERROR(IF($A$8,VLOOKUP(CONCATENATE($D40,$F$2),Tariffs_!A:H,8,0),VLOOKUP(CONCATENATE($D40,$F$2),Tariffs_!A:G,6,0)),"-") -> 0 | J40: =IFERROR(IF($A$8,VLOOKUP(CONCATENATE($D40,$F$2),Tariffs_!A:I,9,0)*VLOOKUP($E40,ZMM_Plst!$B:$K,8,0)/VLOOKUP($E40,ZMM_Plst!$B:$K,10,0)*1.2,VLOOKUP(CONCATENATE($D40,$F$2),Tariffs_!A:G,7,0)*VLOOKUP($E40,ZMM_Plst!$B:$K,8,0)/VLOOKUP($E40,ZMM_Plst!$B:$K,10,0)*1.2),"-") -> 0 | K40: =VLOOKUP($E40,ZMM_Plst!$B:$AA,26,0) -> A | L40: 17.08 | M40: 0.854 | N40: =VLOOKUP($E40,ZMM_Plst!$B:$AC,17,0) -> 2 | O40: =VLOOKUP($E40,ZMM_Plst!$B:$AC,9,0) -> 614.88 | P40: =VLOOKUP($E40,ZMM_Plst!$B:$AC,10,0) -> 30.744 | Q40: =VLOOKUP($E40,ZMM_Plst!$B:$AC,8,0) -> 4.18 | R40: =VLOOKUP($E40,ZMM_Plst!$B:$AC,16,0) -> 36 | S40: 676.662201 | T40: =VLOOKUP($E40,ZMM_Plst!$B:$AC,6,0) -> 7 | U40: =VLOOKUP($E40,ZMM_Plst!$B:$AC,7,0) -> 1.22 | V40: =VLOOKUP($E40,ZMM_Plst!$B:$AC,5,0) -> 0.05
B41: =IF($E41<>"",VLOOKUP(Розница!$E41,'Pricing (Розница)'!$A$3:$G$130,5,FALSE),"") -> GW | C41: =IF($E41<>"",VLOOKUP(Розница!$E41,'Pricing (Розница)'!$A$3:$G$130,4,FALSE),"") -> LW | D41: =IF($E41<>"",VLOOKUP(Розница!$E41,'Pricing (Розница)'!$A$3:$G$130,3,FALSE),"") -> Yegorevsk | E41: =IF('Pricing (Розница)'!A34<>"",'Pricing (Розница)'!A34,"") -> 67143 | F41: =IF(E41<>"",VLOOKUP(Розница!E41,'Pricing (Розница)'!$A$3:$B$130,2,FALSE),"") -> Теплый Дом Плита-50x610х1170/Е | G41: =IFERROR(IF($A$7,VLOOKUP($E41,'Pricing (Розница) pick up'!$A:$CK,MATCH($F$2,'Pricing (Розница) pick up'!$A$2:$DA$2,0),0),VLOOKUP($E41,'Pricing (Розница)'!$A:$CO,MATCH(Розница!$F$2,'Pricing (Розница)'!$2:$2,0),0))*IF(AND($B41="GW",$F$3="B"),VLOOKUP($F$1,AB!A:B,2,0),1),"-") -> 2023.809524 | H41: 1686.507937 | I41: =IFERROR(IF($A$8,VLOOKUP(CONCATENATE($D41,$F$2),Tariffs_!A:H,8,0),VLOOKUP(CONCATENATE($D41,$F$2),Tariffs_!A:G,6,0)),"-") -> 0 | J41: =IFERROR(IF($A$8,VLOOKUP(CONCATENATE($D41,$F$2),Tariffs_!A:I,9,0)*VLOOKUP($E41,ZMM_Plst!$B:$K,8,0)/VLOOKUP($E41,ZMM_Plst!$B:$K,10,0)*1.2,VLOOKUP(CONCATENATE($D41,$F$2),Tariffs_!A:G,7,0)*VLOOKUP($E41,ZMM_Plst!$B:$K,8,0)/VLOOKUP($E41,ZMM_Plst!$B:$K,10,0)*1.2),"-") -> 0 | K41: =VLOOKUP($E41,ZMM_Plst!$B:$AA,26,0) -> A | L41: 9.992 | M41: 0.4996 | N41: =VLOOKUP($E41,ZMM_Plst!$B:$AC,17,0) -> 14 | O41: =VLOOKUP($E41,ZMM_Plst!$B:$AC,9,0) -> 399.68 | P41: =VLOOKUP($E41,ZMM_Plst!$B:$AC,10,0) -> 19.984 | Q41: =VLOOKUP($E41,ZMM_Plst!$B:$AC,8,0) -> 4.18 | R41: =VLOOKUP($E41,ZMM_Plst!$B:$AC,16,0) -> 40 | S41: 439.8392344 | T41: =VLOOKUP($E41,ZMM_Plst!$B:$AC,6,0) -> 1.17 | U41: =VLOOKUP($E41,ZMM_Plst!$B:$AC,7,0) -> 0.61 | V41: =VLOOKUP($E41,ZMM_Plst!$B:$AC,5,0) -> 0.05
B42: =IF($E42<>"",VLOOKUP(Розница!$E42,'Pricing (Розница)'!$A$3:$G$130,5,FALSE),"") -> GW | C42: =IF($E42<>"",VLOOKUP(Розница!$E42,'Pricing (Розница)'!$A$3:$G$130,4,FALSE),"") -> LW | D42: =IF($E42<>"",VLOOKUP(Розница!$E42,'Pricing (Розница)'!$A$3:$G$130,3,FALSE),"") -> Yegorevsk | E42: =IF('Pricing (Розница)'!A35<>"",'Pricing (Розница)'!A35,"") -> 67144 | F42: =IF(E42<>"",VLOOKUP(Розница!E42,'Pricing (Розница)'!$A$3:$B$130,2,FALSE),"") -> Теплый Дом Плита-100x610х1170/Е | G42: =IFERROR(IF($A$7,VLOOKUP($E42,'Pricing (Розница) pick up'!$A:$CK,MATCH($F$2,'Pricing (Розница) pick up'!$A$2:$DA$2,0),0),VLOOKUP($E42,'Pricing (Розница)'!$A:$CO,MATCH(Розница!$F$2,'Pricing (Розница)'!$2:$2,0),0))*IF(AND($B42="GW",$F$3="B"),VLOOKUP($F$1,AB!A:B,2,0),1),"-") -> 2023.809524 | H42: 1686.507937 | I42: =IFERROR(IF($A$8,VLOOKUP(CONCATENATE($D42,$F$2),Tariffs_!A:H,8,0),VLOOKUP(CONCATENATE($D42,$F$2),Tariffs_!A:G,6,0)),"-") -> 0 | J42: =IFERROR(IF($A$8,VLOOKUP(CONCATENATE($D42,$F$2),Tariffs_!A:I,9,0)*VLOOKUP($E42,ZMM_Plst!$B:$K,8,0)/VLOOKUP($E42,ZMM_Plst!$B:$K,10,0)*1.2,VLOOKUP(CONCATENATE($D42,$F$2),Tariffs_!A:G,7,0)*VLOOKUP($E42,ZMM_Plst!$B:$K,8,0)/VLOOKUP($E42,ZMM_Plst!$B:$K,10,0)*1.2),"-") -> 0 | K42: =VLOOKUP($E42,ZMM_Plst!$B:$AA,26,0) -> A | L42: 4.996 | M42: 0.4996 | N42: =VLOOKUP($E42,ZMM_Plst!$B:$AC,17,0) -> 7 | O42: =VLOOKUP($E42,ZMM_Plst!$B:$AC,9,0) -> 199.84 | P42: =VLOOKUP($E42,ZMM_Plst!$B:$AC,10,0) -> 19.984 | Q42: =VLOOKUP($E42,ZMM_Plst!$B:$AC,8,0) -> 4.18 | R42: =VLOOKUP($E42,ZMM_Plst!$B:$AC,16,0) -> 40 | S42: 439.8392344 | T42: =VLOOKUP($E42,ZMM_Plst!$B:$AC,6,0) -> 1.17 | U42: =VLOOKUP($E42,ZMM_Plst!$B:$AC,7,0) -> 0.61 | V42: =VLOOKUP($E42,ZMM_Plst!$B:$AC,5,0) -> 0.1
B43: =IF($E43<>"",VLOOKUP(Розница!$E43,'Pricing (Розница)'!$A$3:$G$130,5,FALSE),"") -> GW | C43: =IF($E43<>"",VLOOKUP(Розница!$E43,'Pricing (Розница)'!$A$3:$G$130,4,FALSE),"") -> LW | D43: =IF($E43<>"",VLOOKUP(Розница!$E43,'Pricing (Розница)'!$A$3:$G$130,3,FALSE),"") -> Yegorevsk | E43: =IF('Pricing (Розница)'!A36<>"",'Pricing (Розница)'!A36,"") -> 67162 | F43: =IF(E43<>"",VLOOKUP(Розница!E43,'Pricing (Розница)'!$A$3:$B$130,2,FALSE),"") -> Теплая Крыша Стронг-ТВИН-50х1220х4100/Е | G43: =IFERROR(IF($A$7,VLOOKUP($E43,'Pricing (Розница) pick up'!$A:$CK,MATCH($F$2,'Pricing (Розница) pick up'!$A$2:$DA$2,0),0),VLOOKUP($E43,'Pricing (Розница)'!$A:$CO,MATCH(Розница!$F$2,'Pricing (Розница)'!$2:$2,0),0))*IF(AND($B43="GW",$F$3="B"),VLOOKUP($F$1,AB!A:B,2,0),1),"-") -> 2136.243386 | H43: 1780.202822 | I43: =IFERROR(IF($A$8,VLOOKUP(CONCATENATE($D43,$F$2),Tariffs_!A:H,8,0),VLOOKUP(CONCATENATE($D43,$F$2),Tariffs_!A:G,6,0)),"-") -> 0 | J43: =IFERROR(IF($A$8,VLOOKUP(CONCATENATE($D43,$F$2),Tariffs_!A:I,9,0)*VLOOKUP($E43,ZMM_Plst!$B:$K,8,0)/VLOOKUP($E43,ZMM_Plst!$B:$K,10,0)*1.2,VLOOKUP(CONCATENATE($D43,$F$2),Tariffs_!A:G,7,0)*VLOOKUP($E43,ZMM_Plst!$B:$K,8,0)/VLOOKUP($E43,ZMM_Plst!$B:$K,10,0)*1.2),"-") -> 0 | K43: =VLOOKUP($E43,ZMM_Plst!$B:$AA,26,0) -> A | L43: 10.00388889 | M43: 0.5001944444 | N43: =VLOOKUP($E43,ZMM_Plst!$B:$AC,17,0) -> 2 | O43: =VLOOKUP($E43,ZMM_Plst!$B:$AC,9,0) -> 360.14 | P43: =VLOOKUP($E43,ZMM_Plst!$B:$AC,10,0) -> 18.007 | Q43: =VLOOKUP($E43,ZMM_Plst!$B:$AC,8,0) -> 4.6 | R43: =VLOOKUP($E43,ZMM_Plst!$B:$AC,16,0) -> 36 | S43: 360.14 | T43: =VLOOKUP($E43,ZMM_Plst!$B:$AC,6,0) -> 4.1 | U43: =VLOOKUP($E43,ZMM_Plst!$B:$AC,7,0) -> 1.22 | V43: =VLOOKUP($E43,ZMM_Plst!$B:$AC,5,0) -> 0.05
B44: =IF($E44<>"",VLOOKUP(Розница!$E44,'Pricing (Розница)'!$A$3:$G$130,5,FALSE),"") -> GW | C44: =IF($E44<>"",VLOOKUP(Розница!$E44,'Pricing (Розница)'!$A$3:$G$130,4,FALSE),"") -> LW | D44: =IF($E44<>"",VLOOKUP(Розница!$E44,'Pricing (Розница)'!$A$3:$G$130,3,FALSE),"") -> Yegorevsk | E44: =IF('Pricing (Розница)'!A37<>"",'Pricing (Розница)'!A37,"") -> 67163 | F44: =IF(E44<>"",VLOOKUP(Розница!E44,'Pricing (Розница)'!$A$3:$B$130,2,FALSE),"") -> Теплая Крыша Стронг-150х1220х4000/Е/К | G44: =IFERROR(IF($A$7,VLOOKUP($E44,'Pricing (Розница) pick up'!$A:$CK,MATCH($F$2,'Pricing (Розница) pick up'!$A$2:$DA$2,0),0),VLOOKUP($E44,'Pricing (Розница)'!$A:$CO,MATCH(Розница!$F$2,'Pricing (Розница)'!$2:$2,0),0))*IF(AND($B44="GW",$F$3="B"),VLOOKUP($F$1,AB!A:B,2,0),1),"-") -> 2136.243386 | H44: 1780.202822 | I44: =IFERROR(IF($A$8,VLOOKUP(CONCATENATE($D44,$F$2),Tariffs_!A:H,8,0),VLOOKUP(CONCATENATE($D44,$F$2),Tariffs_!A:G,6,0)),"-") -> 0 | J44: =IFERROR(IF($A$8,VLOOKUP(CONCATENATE($D44,$F$2),Tariffs_!A:I,9,0)*VLOOKUP($E44,ZMM_Plst!$B:$K,8,0)/VLOOKUP($E44,ZMM_Plst!$B:$K,10,0)*1.2,VLOOKUP(CONCATENATE($D44,$F$2),Tariffs_!A:G,7,0)*VLOOKUP($E44,ZMM_Plst!$B:$K,8,0)/VLOOKUP($E44,ZMM_Plst!$B:$K,10,0)*1.2),"-") -> 0 | K44: =VLOOKUP($E44,ZMM_Plst!$B:$AA,26,0) -> A | L44: 4.88 | M44: 0.732 | N44: =VLOOKUP($E44,ZMM_Plst!$B:$AC,17,0) -> 1 | O44: =VLOOKUP($E44,ZMM_Plst!$B:$AC,9,0) -> 117.12 | P44: =VLOOKUP($E44,ZMM_Plst!$B:$AC,10,0) -> 17.568 | Q44: =VLOOKUP($E44,ZMM_Plst!$B:$AC,8,0) -> 4.18 | R44: =VLOOKUP($E44,ZMM_Plst!$B:$AC,16,0) -> 24 | S44: 386.6641148 | T44: =VLOOKUP($E44,ZMM_Plst!$B:$AC,6,0) -> 4 | U44: =VLOOKUP($E44,ZMM_Plst!$B:$AC,7,0) -> 1.22 | V44: =VLOOKUP($E44,ZMM_Plst!$B:$AC,5,0) -> 0.15
B45: =IF($E45<>"",VLOOKUP(Розница!$E45,'Pricing (Розница)'!$A$3:$G$130,5,FALSE),"") -> GW | C45: =IF($E45<>"",VLOOKUP(Розница!$E45,'Pricing (Розница)'!$A$3:$G$130,4,FALSE),"") -> LW | D45: =IF($E45<>"",VLOOKUP(Розница!$E45,'Pricing (Розница)'!$A$3:$G$130,3,FALSE),"") -> Yegorevsk | E45: =IF('Pricing (Розница)'!A38<>"",'Pricing (Розница)'!A38,"") -> 67164 | F45: =IF(E45<>"",VLOOKUP(Розница!E45,'Pricing (Розница)'!$A$3:$B$130,2,FALSE),"") -> Теплая Крыша Стронг-100х1220х4100/Е/К | G45: =IFERROR(IF($A$7,VLOOKUP($E45,'Pricing (Розница) pick up'!$A:$CK,MATCH($F$2,'Pricing (Розница) pick up'!$A$2:$DA$2,0),0),VLOOKUP($E45,'Pricing (Розница)'!$A:$CO,MATCH(Розница!$F$2,'Pricing (Розница)'!$2:$2,0),0))*IF(AND($B45="GW",$F$3="B"),VLOOKUP($F$1,AB!A:B,2,0),1),"-") -> 2136.243386 | H45: 1780.202822 | I45: =IFERROR(IF($A$8,VLOOKUP(CONCATENATE($D45,$F$2),Tariffs_!A:H,8,0),VLOOKUP(CONCATENATE($D45,$F$2),Tariffs_!A:G,6,0)),"-") -> 0 | J45: =IFERROR(IF($A$8,VLOOKUP(CONCATENATE($D45,$F$2),Tariffs_!A:I,9,0)*VLOOKUP($E45,ZMM_Plst!$B:$K,8,0)/VLOOKUP($E45,ZMM_Plst!$B:$K,10,0)*1.2,VLOOKUP(CONCATENATE($D45,$F$2),Tariffs_!A:G,7,0)*VLOOKUP($E45,ZMM_Plst!$B:$K,8,0)/VLOOKUP($E45,ZMM_Plst!$B:$K,10,0)*1.2),"-") -> 0 | K45: =VLOOKUP($E45,ZMM_Plst!$B:$AA,26,0) -> A | L45: 5.001944444 | M45: 0.5001944444 | N45: =VLOOKUP($E45,ZMM_Plst!$B:$AC,17,0) -> 1 | O45: =VLOOKUP($E45,ZMM_Plst!$B:$AC,9,0) -> 180.07 | P45: =VLOOKUP($E45,ZMM_Plst!$B:$AC,10,0) -> 18.007 | Q45: =VLOOKUP($E45,ZMM_Plst!$B:$AC,8,0) -> 4.6 | R45: =VLOOKUP($E45,ZMM_Plst!$B:$AC,16,0) -> 36 | S45: 360.14 | T45: =VLOOKUP($E45,ZMM_Plst!$B:$AC,6,0) -> 4.1 | U45: =VLOOKUP($E45,ZMM_Plst!$B:$AC,7,0) -> 1.22 | V45: =VLOOKUP($E45,ZMM_Plst!$B:$AC,5,0) -> 0.1
B46: =IF($E46<>"",VLOOKUP(Розница!$E46,'Pricing (Розница)'!$A$3:$G$130,5,FALSE),"") -> GW | C46: =IF($E46<>"",VLOOKUP(Розница!$E46,'Pricing (Розница)'!$A$3:$G$130,4,FALSE),"") -> LW | D46: =IF($E46<>"",VLOOKUP(Розница!$E46,'Pricing (Розница)'!$A$3:$G$130,3,FALSE),"") -> Yegorevsk | E46: =IF('Pricing (Розница)'!A39<>"",'Pricing (Розница)'!A39,"") -> 67554 | F46: =IF(E46<>"",VLOOKUP(Розница!E46,'Pricing (Розница)'!$A$3:$B$130,2,FALSE),"") -> ISOROC Cупер Плита-27/610x1170/Е/К | G46: =IFERROR(IF($A$7,VLOOKUP($E46,'Pricing (Розница) pick up'!$A:$CK,MATCH($F$2,'Pricing (Розница) pick up'!$A$2:$DA$2,0),0),VLOOKUP($E46,'Pricing (Розница)'!$A:$CO,MATCH(Розница!$F$2,'Pricing (Розница)'!$2:$2,0),0))*IF(AND($B46="GW",$F$3="B"),VLOOKUP($F$1,AB!A:B,2,0),1),"-") -> 3400.043403 | H46: 2833.369502 | I46: =IFERROR(IF($A$8,VLOOKUP(CONCATENATE($D46,$F$2),Tariffs_!A:H,8,0),VLOOKUP(CONCATENATE($D46,$F$2),Tariffs_!A:G,6,0)),"-") -> 0 | J46: =IFERROR(IF($A$8,VLOOKUP(CONCATENATE($D46,$F$2),Tariffs_!A:I,9,0)*VLOOKUP($E46,ZMM_Plst!$B:$K,8,0)/VLOOKUP($E46,ZMM_Plst!$B:$K,10,0)*1.2,VLOOKUP(CONCATENATE($D46,$F$2),Tariffs_!A:G,7,0)*VLOOKUP($E46,ZMM_Plst!$B:$K,8,0)/VLOOKUP($E46,ZMM_Plst!$B:$K,10,0)*1.2),"-") -> 0 | K46: =VLOOKUP($E46,ZMM_Plst!$B:$AA,26,0) -> A | L46: 9.992 | M46: 0.2698 | N46: =VLOOKUP($E46,ZMM_Plst!$B:$AC,17,0) -> 14 | O46: =VLOOKUP($E46,ZMM_Plst!$B:$AC,9,0) -> 199.84 | P46: =VLOOKUP($E46,ZMM_Plst!$B:$AC,10,0) -> 5.396 | Q46: =VLOOKUP($E46,ZMM_Plst!$B:$AC,8,0) -> 4.182 | R46: =VLOOKUP($E46,ZMM_Plst!$B:$AC,16,0) -> 20 | S46: 118.7068388 | T46: =VLOOKUP($E46,ZMM_Plst!$B:$AC,6,0) -> 1.17 | U46: =VLOOKUP($E46,ZMM_Plst!$B:$AC,7,0) -> 0.61 | V46: =VLOOKUP($E46,ZMM_Plst!$B:$AC,5,0) -> 0.027
B47: =IF($E47<>"",VLOOKUP(Розница!$E47,'Pricing (Розница)'!$A$3:$G$130,5,FALSE),"") -> GW | C47: =IF($E47<>"",VLOOKUP(Розница!$E47,'Pricing (Розница)'!$A$3:$G$130,4,FALSE),"") -> LW | D47: =IF($E47<>"",VLOOKUP(Розница!$E47,'Pricing (Розница)'!$A$3:$G$130,3,FALSE),"") -> Yegorevsk | E47: =IF('Pricing (Розница)'!A40<>"",'Pricing (Розница)'!A40,"") -> 67555 | F47: =IF(E47<>"",VLOOKUP(Розница!E47,'Pricing (Розница)'!$A$3:$B$130,2,FALSE),"") -> ISOROC Супер Теплый 50/610x1000/Е/К | G47: =IFERROR(IF($A$7,VLOOKUP($E47,'Pricing (Розница) pick up'!$A:$CK,MATCH($F$2,'Pricing (Розница) pick up'!$A$2:$DA$2,0),0),VLOOKUP($E47,'Pricing (Розница)'!$A:$CO,MATCH(Розница!$F$2,'Pricing (Розница)'!$2:$2,0),0))*IF(AND($B47="GW",$F$3="B"),VLOOKUP($F$1,AB!A:B,2,0),1),"-") -> 2193.576389 | H47: =IFERROR(G47/1.2,"-") -> 1827.980324 | I47: =IFERROR(IF($A$8,VLOOKUP(CONCATENATE($D47,$F$2),Tariffs_!A:H,8,0),VLOOKUP(CONCATENATE($D47,$F$2),Tariffs_!A:G,6,0)),"-") -> 0 | J47: =IFERROR(IF($A$8,VLOOKUP(CONCATENATE($D47,$F$2),Tariffs_!A:I,9,0)*VLOOKUP($E47,ZMM_Plst!$B:$K,8,0)/VLOOKUP($E47,ZMM_Plst!$B:$K,10,0)*1.2,VLOOKUP(CONCATENATE($D47,$F$2),Tariffs_!A:G,7,0)*VLOOKUP($E47,ZMM_Plst!$B:$K,8,0)/VLOOKUP($E47,ZMM_Plst!$B:$K,10,0)*1.2),"-") -> 0 | K47: =VLOOKUP($E47,ZMM_Plst!$B:$AA,26,0) -> A | L47: 6.1 | M47: 0.305 | N47: =VLOOKUP($E47,ZMM_Plst!$B:$AC,17,0) -> 10 | O47: =VLOOKUP($E47,ZMM_Plst!$B:$AC,9,0) -> 146.4 | P47: =VLOOKUP($E47,ZMM_Plst!$B:$AC,10,0) -> 7.32 | Q47: =VLOOKUP($E47,ZMM_Plst!$B:$AC,8,0) -> 4.18 | R47: =VLOOKUP($E47,ZMM_Plst!$B:$AC,16,0) -> 24 | S47: 161.1100478 | T47: =VLOOKUP($E47,ZMM_Plst!$B:$AC,6,0) -> 1 | U47: =VLOOKUP($E47,ZMM_Plst!$B:$AC,7,0) -> 0.61 | V47: =VLOOKUP($E47,ZMM_Plst!$B:$AC,5,0) -> 0.05
B48: =IF($E48<>"",VLOOKUP(Розница!$E48,'Pricing (Розница)'!$A$3:$G$130,5,FALSE),"") -> GW | C48: =IF($E48<>"",VLOOKUP(Розница!$E48,'Pricing (Розница)'!$A$3:$G$130,4,FALSE),"") -> LW | D48: =IF($E48<>"",VLOOKUP(Розница!$E48,'Pricing (Розница)'!$A$3:$G$130,3,FALSE),"") -> Yegorevsk | E48: =IF('Pricing (Розница)'!A41<>"",'Pricing (Розница)'!A41,"") -> 67556 | F48: =IF(E48<>"",VLOOKUP(Розница!E48,'Pricing (Розница)'!$A$3:$B$130,2,FALSE),"") -> ISOROC Супер Теплый 100/610x1000/Е/К | G48: =IFERROR(IF($A$7,VLOOKUP($E48,'Pricing (Розница) pick up'!$A:$CK,MATCH($F$2,'Pricing (Розница) pick up'!$A$2:$DA$2,0),0),VLOOKUP($E48,'Pricing (Розница)'!$A:$CO,MATCH(Розница!$F$2,'Pricing (Розница)'!$2:$2,0),0))*IF(AND($B48="GW",$F$3="B"),VLOOKUP($F$1,AB!A:B,2,0),1),"-") -> 2193.576389 | H48: 1827.980324 | I48: =IFERROR(IF($A$8,VLOOKUP(CONCATENATE($D48,$F$2),Tariffs_!A:H,8,0),VLOOKUP(CONCATENATE($D48,$F$2),Tariffs_!A:G,6,0)),"-") -> 0 | J48: =IFERROR(IF($A$8,VLOOKUP(CONCATENATE($D48,$F$2),Tariffs_!A:I,9,0)*VLOOKUP($E48,ZMM_Plst!$B:$K,8,0)/VLOOKUP($E48,ZMM_Plst!$B:$K,10,0)*1.2,VLOOKUP(CONCATENATE($D48,$F$2),Tariffs_!A:G,7,0)*VLOOKUP($E48,ZMM_Plst!$B:$K,8,0)/VLOOKUP($E48,ZMM_Plst!$B:$K,10,0)*1.2),"-") -> 0 | K48: =VLOOKUP($E48,ZMM_Plst!$B:$AA,26,0) -> A | L48: 3.05 | M48: 0.305 | N48: =VLOOKUP($E48,ZMM_Plst!$B:$AC,17,0) -> 5 | O48: =VLOOKUP($E48,ZMM_Plst!$B:$AC,9,0) -> 73.2 | P48: =VLOOKUP($E48,ZMM_Plst!$B:$AC,10,0) -> 7.32 | Q48: =VLOOKUP($E48,ZMM_Plst!$B:$AC,8,0) -> 4.18 | R48: =VLOOKUP($E48,ZMM_Plst!$B:$AC,16,0) -> 24 | S48: 161.1100478 | T48: =VLOOKUP($E48,ZMM_Plst!$B:$AC,6,0) -> 1 | U48: =VLOOKUP($E48,ZMM_Plst!$B:$AC,7,0) -> 0.61 | V48: =VLOOKUP($E48,ZMM_Plst!$B:$AC,5,0) -> 0.1
B49: =IF($E49<>"",VLOOKUP(Розница!$E49,'Pricing (Розница)'!$A$3:$G$130,5,FALSE),"") -> SW | C49: =IF($E49<>"",VLOOKUP(Розница!$E49,'Pricing (Розница)'!$A$3:$G$130,4,FALSE),"") -> LW | D49: =IF($E49<>"",VLOOKUP(Розница!$E49,'Pricing (Розница)'!$A$3:$G$130,3,FALSE),"") -> Chelyabinsk | E49: =IF('Pricing (Розница)'!A15<>"",'Pricing (Розница)'!A15,"") -> 89149 | F49: =IF(E49<>"",VLOOKUP(Розница!E49,'Pricing (Розница)'!$A$3:$B$130,2,FALSE),"") -> ISOROC Термозащита600-СМ-50/Ч-1000x2000 | G49: =IFERROR(IF($A$7,VLOOKUP($E49,'Pricing (Розница) pick up'!$A:$CK,MATCH($F$2,'Pricing (Розница) pick up'!$A$2:$DA$2,0),0),VLOOKUP($E49,'Pricing (Розница)'!$A:$CO,MATCH(Розница!$F$2,'Pricing (Розница)'!$2:$2,0),0))*IF(AND($B49="GW",$F$3="B"),VLOOKUP($F$1,AB!A:B,2,0),1),"-") -> 6182.64 | H49: =IFERROR(G49/1.2,"-") -> 5152.2 | I49: =IFERROR(IF($A$8,VLOOKUP(CONCATENATE($D49,$F$2),Tariffs_!A:H,8,0),VLOOKUP(CONCATENATE($D49,$F$2),Tariffs_!A:G,6,0)),"-") -> 0 | J49: =IFERROR(IF($A$8,VLOOKUP(CONCATENATE($D49,$F$2),Tariffs_!A:I,9,0)*VLOOKUP($E49,ZMM_Plst!$B:$K,8,0)/VLOOKUP($E49,ZMM_Plst!$B:$K,10,0)*1.2,VLOOKUP(CONCATENATE($D49,$F$2),Tariffs_!A:G,7,0)*VLOOKUP($E49,ZMM_Plst!$B:$K,8,0)/VLOOKUP($E49,ZMM_Plst!$B:$K,10,0)*1.2),"-") -> 0 | K49: =VLOOKUP($E49,ZMM_Plst!$B:$AA,26,0) -> A | L49: =O49/R49 -> 2 | M49: =P49/R49 -> 0.1 | N49: =VLOOKUP($E49,ZMM_Plst!$B:$AC,17,0) -> 1 | O49: =VLOOKUP($E49,ZMM_Plst!$B:$AC,9,0) -> 70 | P49: =VLOOKUP($E49,ZMM_Plst!$B:$AC,10,0) -> 3.5 | Q49: =VLOOKUP($E49,ZMM_Plst!$B:$AC,8,0) -> 4.182 | R49: =VLOOKUP($E49,ZMM_Plst!$B:$AC,16,0) -> 35 | S49: =92/Q49*P49 -> 76.99665232 | T49: =VLOOKUP($E49,ZMM_Plst!$B:$AC,6,0) -> 2 | U49: =VLOOKUP($E49,ZMM_Plst!$B:$AC,7,0) -> 1 | V49: =VLOOKUP($E49,ZMM_Plst!$B:$AC,5,0) -> 0.05
B50: =IF($E50<>"",VLOOKUP(Розница!$E50,'Pricing (Розница)'!$A$3:$G$130,5,FALSE),"") -> GW | C50: =IF($E50<>"",VLOOKUP(Розница!$E50,'Pricing (Розница)'!$A$3:$G$130,4,FALSE),"") -> LW | D50: =IF($E50<>"",VLOOKUP(Розница!$E50,'Pricing (Розница)'!$A$3:$G$130,3,FALSE),"") -> Yegorevsk | E50: =IF('Pricing (Розница)'!A42<>"",'Pricing (Розница)'!A42,"") -> 67156 | F50: =IF(E50<>"",VLOOKUP(Розница!E50,'Pricing (Розница)'!$A$3:$B$130,2,FALSE),"") -> Теплая Крыша180x1220х3500/Е/К | G50: =IFERROR(IF($A$7,VLOOKUP($E50,'Pricing (Розница) pick up'!$A:$CK,MATCH($F$2,'Pricing (Розница) pick up'!$A$2:$DA$2,0),0),VLOOKUP($E50,'Pricing (Розница)'!$A:$CO,MATCH(Розница!$F$2,'Pricing (Розница)'!$2:$2,0),0))*IF(AND($B50="GW",$F$3="B"),VLOOKUP($F$1,AB!A:B,2,0),1),"-") -> - | H50: =IFERROR(G50/1.2,"-") -> - | I50: =IFERROR(IF($A$8,VLOOKUP(CONCATENATE($D50,$F$2),Tariffs_!A:H,8,0),VLOOKUP(CONCATENATE($D50,$F$2),Tariffs_!A:G,6,0)),"-") -> 0 | J50: =IFERROR(IF($A$8,VLOOKUP(CONCATENATE($D50,$F$2),Tariffs_!A:I,9,0)*VLOOKUP($E50,ZMM_Plst!$B:$K,8,0)/VLOOKUP($E50,ZMM_Plst!$B:$K,10,0)*1.2,VLOOKUP(CONCATENATE($D50,$F$2),Tariffs_!A:G,7,0)*VLOOKUP($E50,ZMM_Plst!$B:$K,8,0)/VLOOKUP($E50,ZMM_Plst!$B:$K,10,0)*1.2),"-") -> 0 | K50: =VLOOKUP($E50,ZMM_Plst!$B:$AA,26,0) -> B | L50: =O50/R50 -> 4.27 | M50: =P50/R50 -> 0.7685833333 | N50: =VLOOKUP($E50,ZMM_Plst!$B:$AC,17,0) -> 1 | O50: =VLOOKUP($E50,ZMM_Plst!$B:$AC,9,0) -> 102.48 | P50: =VLOOKUP($E50,ZMM_Plst!$B:$AC,10,0) -> 18.446 | Q50: =VLOOKUP($E50,ZMM_Plst!$B:$AC,8,0) -> 4.6 | R50: =VLOOKUP($E50,ZMM_Plst!$B:$AC,16,0) -> 24 | S50: =92/Q50*P50 -> 368.92 | T50: =VLOOKUP($E50,ZMM_Plst!$B:$AC,6,0) -> 3.5 | U50: =VLOOKUP($E50,ZMM_Plst!$B:$AC,7,0) -> 1.22 | V50: =VLOOKUP($E50,ZMM_Plst!$B:$AC,5,0) -> 0.18

Sheet Проектные
A1: FALSE | B1: FALSE
F2: Субъект РФ | G2: Центральный Федеральный Округ
F3: Территория | G3: г.Москва
F4: Базис доставки GW | G4: =VLOOKUP($G$3,Tariffs_!$C$3:$E$89,3,FALSE) -> Авто 92м3 Его/Авто 25 м3 Его с доплатой по сервис чарту
F5: Базис доставки SW | G5: =CONCATENATE("Челябинск: ",VLOOKUP($G$3,Tariffs_!$C$90:$F$176,3,FALSE),"; Тамбов: ",VLOOKUP($G$3,Tariffs_!$C$177:$F$298,3,FALSE)) -> Челябинск: Авто 120 м3 Чел/Авто 92 м3 Чел; Тамбов: Авто 92 м3 Тамбов | H5: * Заказы по категории В оформляются в соответствии с минимальной партией (см. E-shop)
J7: цены без НДС>> | L7: доп.информация>>
H8: Цена Руб./м3 с НДС 20% | I8: Альтернативный транспорт руб/м3 с НДС 20% | K8: Цена Руб./м3 без НДС | L8: Категория поставки | M8: Количество в упаковке | P8: Количество на паллете | S8: Упаковки | T8: Норма загрузки в фуру 92м3, м3 (упаковок) | U8: Длина | V8: Ширина | W8: Толщина
A9: GW/SW | B9: LW/HW | C9: Товарная Группа | D9: Конструктив | E9: Завод | F9: SAP код | G9: Название Материала | I9: Вид | J9: Доплата руб/м3 | M9: м2 | N9: м3 | O9: шт. (плит) | P9: м2 | Q9: м3 | R9: транспорт м3 | U9: м | V9: м | W9: м
A10: =IF($F10<>"",VLOOKUP(F10,Pricing!$A:$F,6,FALSE),"") -> GW | B10: =IF($F10<>"",VLOOKUP(F10,Pricing!$A:$F,5,FALSE),"") -> LW | C10: =IF($F10<>"",VLOOKUP(Проектные!$F10,Pricing!$A:$F,3,FALSE),"") -> Sound Protect | D10: =VLOOKUP(C10,конструктив!A:B,2,0) -> Звукозащита | E10: =IF($F10<>"",VLOOKUP(F10,Pricing!$A:$F,4,FALSE),"") -> Yegorevsk | F10: =IF(Pricing!A3<>"",Pricing!A3,"") -> 67173 | G10: =IF(F10<>"",VLOOKUP(F10,Pricing!$A:$B,2,FALSE),"") -> ЗвукоЗащита-75х610х1170/Е/К | H10: =IFERROR(IF($A$1,VLOOKUP(F10,'Pricing pick up'!$A:$CM,MATCH(Проектные!$G$3,'Pricing pick up'!$2:$2,0),0),VLOOKUP(F10,Pricing!$A:$CL,MATCH(Проектные!$G$3,Pricing!$2:$2,0),0)),"не возим") -> 2985.384105 | I10: =IFERROR(IF($B$1,VLOOKUP(CONCATENATE($E10,$G$3),Tariffs_!A:H,8,0),VLOOKUP(CONCATENATE($E10,$G$3),Tariffs_!A:G,6,0)),"-") -> 0 | J10: =IFERROR(IF($B$1,VLOOKUP(CONCATENATE($E10,$G$3),Tariffs_!A:I,9,0)*VLOOKUP($F10,ZMM_Plst!$B:$K,8,0)/VLOOKUP($F10,ZMM_Plst!$B:$K,10,0)*1.2,VLOOKUP(CONCATENATE($E10,$G$3),Tariffs_!A:G,7,0)*VLOOKUP($F10,ZMM_Plst!$B:$K,8,0)/VLOOKUP($F10,ZMM_Plst!$B:$K,10,0)*1.2),"-") -> 0 | K10: =IFERROR(H10/1.2,"-") -> 2487.820088 | L10: =VLOOKUP($F10,ZMM_Plst!$B:$AA,26,0) -> A | M10: =P10/S10 -> 11.419 | N10: =Q10/S10 -> 0.85645 | O10: =VLOOKUP($F10,ZMM_Plst!$B:$AC,17,0) -> 16 | P10: =VLOOKUP($F10,ZMM_Plst!$B:$AC,9,0) -> 228.38 | Q10: =VLOOKUP($F10,ZMM_Plst!$B:$AC,10,0) -> 17.129 | R10: =VLOOKUP($F10,ZMM_Plst!$B:$AC,8,0) -> 4.18 | S10: =VLOOKUP($F10,ZMM_Plst!$B:$AC,16,0) -> 20 | T10: =92/R10*Q10 -> 377.0019139 | U10: =VLOOKUP($F10,ZMM_Plst!$B:$AC,6,0) -> 1.17 | V10: =VLOOKUP($F10,ZMM_Plst!$B:$AC,7,0) -> 0.61 | W10: =VLOOKUP($F10,ZMM_Plst!$B:$AC,5,0) -> 0.075
A11: =IF($F11<>"",VLOOKUP(F11,Pricing!$A:$F,6,FALSE),"") -> GW | B11: =IF($F11<>"",VLOOKUP(F11,Pricing!$A:$F,5,FALSE),"") -> LW | C11: =IF($F11<>"",VLOOKUP(Проектные!$F11,Pricing!$A:$F,3,FALSE),"") -> Sound Protect | D11: =VLOOKUP(C11,конструктив!A:B,2,0) -> Звукозащита | E11: =IF($F11<>"",VLOOKUP(F11,Pricing!$A:$F,4,FALSE),"") -> Yegorevsk | F11: =IF(Pricing!A4<>"",Pricing!A4,"") -> 67177 | G11: =IF(F11<>"",VLOOKUP(F11,Pricing!$A:$B,2,FALSE),"") -> ЗвукоЗащита-40х610х1170/Е/К | H11: =IFERROR(IF($A$1,VLOOKUP(F11,'Pricing pick up'!$A:$CM,MATCH(Проектные!$G$3,'Pricing pick up'!$2:$2,0),0),VLOOKUP(F11,Pricing!$A:$CL,MATCH(Проектные!$G$3,Pricing!$2:$2,0),0)),"не возим") -> 2985.384105 | I11: =IFERROR(IF($B$1,VLOOKUP(CONCATENATE($E11,$G$3),Tariffs_!A:H,8,0),VLOOKUP(CONCATENATE($E11,$G$3),Tariffs_!A:G,6,0)),"-") -> 0 | J11: =IFERROR(IF($B$1,VLOOKUP(CONCATENATE($E11,$G$3),Tariffs_!A:I,9,0)*VLOOKUP($F11,ZMM_Plst!$B:$K,8,0)/VLOOKUP($F11,ZMM_Plst!$B:$K,10,0)*1.2,VLOOKUP(CONCATENATE($E11,$G$3),Tariffs_!A:G,7,0)*VLOOKUP($F11,ZMM_Plst!$B:$K,8,0)/VLOOKUP($F11,ZMM_Plst!$B:$K,10,0)*1.2),"-") -> 0 | K11: 2487.820088 | L11: =VLOOKUP($F11,ZMM_Plst!$B:$AA,26,0) -> B | M11: =P11/S11 -> 17.129 | N11: =Q11/S11 -> 0.68515 | O11: =VLOOKUP($F11,ZMM_Plst!$B:$AC,17,0) -> 24 | P11: =VLOOKUP($F11,ZMM_Plst!$B:$AC,9,0) -> 342.58 | Q11: =VLOOKUP($F11,ZMM_Plst!$B:$AC,10,0) -> 13.703 | R11: =VLOOKUP($F11,ZMM_Plst!$B:$AC,8,0) -> 4.18 | S11: =VLOOKUP($F11,ZMM_Plst!$B:$AC,16,0) -> 20 | T11: =92/R11*Q11 -> 301.5971292 | U11: =VLOOKUP($F11,ZMM_Plst!$B:$AC,6,0) -> 1.17 | V11: =VLOOKUP($F11,ZMM_Plst!$B:$AC,7,0) -> 0.61 | W11: =VLOOKUP($F11,ZMM_Plst!$B:$AC,5,0) -> 0.04
A12: =IF($F12<>"",VLOOKUP(F12,Pricing!$A:$F,6,FALSE),"") -> GW | B12: =IF($F12<>"",VLOOKUP(F12,Pricing!$A:$F,5,FALSE),"") -> LW | C12: =IF($F12<>"",VLOOKUP(Проектные!$F12,Pricing!$A:$F,3,FALSE),"") -> Sound Protect | D12: =VLOOKUP(C12,конструктив!A:B,2,0) -> Звукозащита | E12: =IF($F12<>"",VLOOKUP(F12,Pricing!$A:$F,4,FALSE),"") -> Yegorevsk | F12: =IF(Pricing!A5<>"",Pricing!A5,"") -> 67180 | G12: =IF(F12<>"",VLOOKUP(F12,Pricing!$A:$B,2,FALSE),"") -> ЗвукоЗащита-ТВИН-50/610x6400/Е/К | H12: =IFERROR(IF($A$1,VLOOKUP(F12,'Pricing pick up'!$A:$CM,MATCH(Проектные!$G$3,'Pricing pick up'!$2:$2,0),0),VLOOKUP(F12,Pricing!$A:$CL,MATCH(Проектные!$G$3,Pricing!$2:$2,0),0)),"не возим") -> 2985.384105 | I12: =IFERROR(IF($B$1,VLOOKUP(CONCATENATE($E12,$G$3),Tariffs_!A:H,8,0),VLOOKUP(CONCATENATE($E12,$G$3),Tariffs_!A:G,6,0)),"-") -> 0 | J12: =IFERROR(IF($B$1,VLOOKUP(CONCATENATE($E12,$G$3),Tariffs_!A:I,9,0)*VLOOKUP($F12,ZMM_Plst!$B:$K,8,0)/VLOOKUP($F12,ZMM_Plst!$B:$K,10,0)*1.2,VLOOKUP(CONCATENATE($E12,$G$3),Tariffs_!A:G,7,0)*VLOOKUP($F12,ZMM_Plst!$B:$K,8,0)/VLOOKUP($F12,ZMM_Plst!$B:$K,10,0)*1.2),"-") -> 0 | K12: 2487.820088 | L12: =VLOOKUP($F12,ZMM_Plst!$B:$AA,26,0) -> B | M12: 15.616 | N12: 0.7808 | O12: =VLOOKUP($F12,ZMM_Plst!$B:$AC,17,0) -> 4 | P12: =VLOOKUP($F12,ZMM_Plst!$B:$AC,9,0) -> 390.4 | Q12: =VLOOKUP($F12,ZMM_Plst!$B:$AC,10,0) -> 19.52 | R12: =VLOOKUP($F12,ZMM_Plst!$B:$AC,8,0) -> 4.181 | S12: =VLOOKUP($F12,ZMM_Plst!$B:$AC,16,0) -> 25 | T12: 429.5240373 | U12: =VLOOKUP($F12,ZMM_Plst!$B:$AC,6,0) -> 6.4 | V12: =VLOOKUP($F12,ZMM_Plst!$B:$AC,7,0) -> 0.61 | W12: =VLOOKUP($F12,ZMM_Plst!$B:$AC,5,0) -> 0.05
A13: =IF($F13<>"",VLOOKUP(F13,Pricing!$A:$F,6,FALSE),"") -> GW | B13: =IF($F13<>"",VLOOKUP(F13,Pricing!$A:$F,5,FALSE),"") -> LW | C13: =IF($F13<>"",VLOOKUP(Проектные!$F13,Pricing!$A:$F,3,FALSE),"") -> Sound Protect | D13: =VLOOKUP(C13,конструктив!A:B,2,0) -> Звукозащита | E13: =IF($F13<>"",VLOOKUP(F13,Pricing!$A:$F,4,FALSE),"") -> Yegorevsk | F13: =IF(Pricing!A6<>"",Pricing!A6,"") -> 67190 | G13: =IF(F13<>"",VLOOKUP(F13,Pricing!$A:$B,2,FALSE),"") -> ЗвукоЗащита-50х610х1170/Е/К | H13: =IFERROR(IF($A$1,VLOOKUP(F13,'Pricing pick up'!$A:$CM,MATCH(Проектные!$G$3,'Pricing pick up'!$2:$2,0),0),VLOOKUP(F13,Pricing!$A:$CL,MATCH(Проектные!$G$3,Pricing!$2:$2,0),0)),"не возим") -> 2985.384105 | I13: =IFERROR(IF($B$1,VLOOKUP(CONCATENATE($E13,$G$3),Tariffs_!A:H,8,0),VLOOKUP(CONCATENATE($E13,$G$3),Tariffs_!A:G,6,0)),"-") -> 0 | J13: =IFERROR(IF($B$1,VLOOKUP(CONCATENATE($E13,$G$3),Tariffs_!A:I,9,0)*VLOOKUP($F13,ZMM_Plst!$B:$K,8,0)/VLOOKUP($F13,ZMM_Plst!$B:$K,10,0)*1.2,VLOOKUP(CONCATENATE($E13,$G$3),Tariffs_!A:G,7,0)*VLOOKUP($F13,ZMM_Plst!$B:$K,8,0)/VLOOKUP($F13,ZMM_Plst!$B:$K,10,0)*1.2),"-") -> 0 | K13: 2487.820088 | L13: =VLOOKUP($F13,ZMM_Plst!$B:$AA,26,0) -> A | M13: 14.27416667 | N13: 0.7137083333 | O13: =VLOOKUP($F13,ZMM_Plst!$B:$AC,17,0) -> 20 | P13: =VLOOKUP($F13,ZMM_Plst!$B:$AC,9,0) -> 342.58 | Q13: =VLOOKUP($F13,ZMM_Plst!$B:$AC,10,0) -> 17.129 | R13: =VLOOKUP($F13,ZMM_Plst!$B:$AC,8,0) -> 4.18 | S13: =VLOOKUP($F13,ZMM_Plst!$B:$AC,16,0) -> 24 | T13: 377.0019139 | U13: =VLOOKUP($F13,ZMM_Plst!$B:$AC,6,0) -> 1.17 | V13: =VLOOKUP($F13,ZMM_Plst!$B:$AC,7,0) -> 0.61 | W13: =VLOOKUP($F13,ZMM_Plst!$B:$AC,5,0) -> 0.05
A14: =IF($F14<>"",VLOOKUP(F14,Pricing!$A:$F,6,FALSE),"") -> GW | B14: =IF($F14<>"",VLOOKUP(F14,Pricing!$A:$F,5,FALSE),"") -> LW | C14: =IF($F14<>"",VLOOKUP(Проектные!$F14,Pricing!$A:$F,3,FALSE),"") -> Sound Protect | D14: =VLOOKUP(C14,конструктив!A:B,2,0) -> Звукозащита | E14: =IF($F14<>"",VLOOKUP(F14,Pricing!$A:$F,4,FALSE),"") -> Yegorevsk | F14: =IF(Pricing!A7<>"",Pricing!A7,"") -> 67191 | G14: =IF(F14<>"",VLOOKUP(F14,Pricing!$A:$B,2,FALSE),"") -> ЗвукоЗащита-100х610х1170/Е/К | H14: =IFERROR(IF($A$1,VLOOKUP(F14,'Pricing pick up'!$A:$CM,MATCH(Проектные!$G$3,'Pricing pick up'!$2:$2,0),0),VLOOKUP(F14,Pricing!$A:$CL,MATCH(Проектные!$G$3,Pricing!$2:$2,0),0)),"не возим") -> 2985.384105 | I14: =IFERROR(IF($B$1,VLOOKUP(CONCATENATE($E14,$G$3),Tariffs_!A:H,8,0),VLOOKUP(CONCATENATE($E14,$G$3),Tariffs_!A:G,6,0)),"-") -> 0 | J14: =IFERROR(IF($B$1,VLOOKUP(CONCATENATE($E14,$G$3),Tariffs_!A:I,9,0)*VLOOKUP($F14,ZMM_Plst!$B:$K,8,0)/VLOOKUP($F14,ZMM_Plst!$B:$K,10,0)*1.2,VLOOKUP(CONCATENATE($E14,$G$3),Tariffs_!A:G,7,0)*VLOOKUP($F14,ZMM_Plst!$B:$K,8,0)/VLOOKUP($F14,ZMM_Plst!$B:$K,10,0)*1.2),"-") -> 0 | K14: 2487.820088 | L14: =VLOOKUP($F14,ZMM_Plst!$B:$AA,26,0) -> A | M14: 7.137083333 | N14: 0.7137083333 | O14: =VLOOKUP($F14,ZMM_Plst!$B:$AC,17,0) -> 10 | P14: =VLOOKUP($F14,ZMM_Plst!$B:$AC,9,0) -> 171.29 | Q14: =VLOOKUP($F14,ZMM_Plst!$B:$AC,10,0) -> 17.129 | R14: =VLOOKUP($F14,ZMM_Plst!$B:$AC,8,0) -> 4.18 | S14: =VLOOKUP($F14,ZMM_Plst!$B:$AC,16,0) -> 24 | T14: 377.0019139 | U14: =VLOOKUP($F14,ZMM_Plst!$B:$AC,6,0) -> 1.17 | V14: =VLOOKUP($F14,ZMM_Plst!$B:$AC,7,0) -> 0.61 | W14: =VLOOKUP($F14,ZMM_Plst!$B:$AC,5,0) -> 0.1
A15: =IF($F15<>"",VLOOKUP(F15,Pricing!$A:$F,6,FALSE),"") -> GW | B15: =IF($F15<>"",VLOOKUP(F15,Pricing!$A:$F,5,FALSE),"") -> LW | C15: =IF($F15<>"",VLOOKUP(Проектные!$F15,Pricing!$A:$F,3,FALSE),"") -> Sound Protect | D15: =VLOOKUP(C15,конструктив!A:B,2,0) -> Звукозащита | E15: =IF($F15<>"",VLOOKUP(F15,Pricing!$A:$F,4,FALSE),"") -> Yegorevsk | F15: =IF(Pricing!A8<>"",Pricing!A8,"") -> 67193 | G15: =IF(F15<>"",VLOOKUP(F15,Pricing!$A:$B,2,FALSE),"") -> ЗвукоЗащита-70х610х1170/Е/К | H15: =IFERROR(IF($A$1,VLOOKUP(F15,'Pricing pick up'!$A:$CM,MATCH(Проектные!$G$3,'Pricing pick up'!$2:$2,0),0),VLOOKUP(F15,Pricing!$A:$CL,MATCH(Проектные!$G$3,Pricing!$2:$2,0),0)),"не возим") -> 2985.384105 | I15: =IFERROR(IF($B$1,VLOOKUP(CONCATENATE($E15,$G$3),Tariffs_!A:H,8,0),VLOOKUP(CONCATENATE($E15,$G$3),Tariffs_!A:G,6,0)),"-") -> 0 | J15: =IFERROR(IF($B$1,VLOOKUP(CONCATENATE($E15,$G$3),Tariffs_!A:I,9,0)*VLOOKUP($F15,ZMM_Plst!$B:$K,8,0)/VLOOKUP($F15,ZMM_Plst!$B:$K,10,0)*1.2,VLOOKUP(CONCATENATE($E15,$G$3),Tariffs_!A:G,7,0)*VLOOKUP($F15,ZMM_Plst!$B:$K,8,0)/VLOOKUP($F15,ZMM_Plst!$B:$K,10,0)*1.2),"-") -> 0 | K15: 2487.820088 | L15: =VLOOKUP($F15,ZMM_Plst!$B:$AA,26,0) -> B | M15: 11.41916667 | N15: 0.7993333333 | O15: =VLOOKUP($F15,ZMM_Plst!$B:$AC,17,0) -> 16 | P15: =VLOOKUP($F15,ZMM_Plst!$B:$AC,9,0) -> 274.06 | Q15: =VLOOKUP($F15,ZMM_Plst!$B:$AC,10,0) -> 19.184 | R15: =VLOOKUP($F15,ZMM_Plst!$B:$AC,8,0) -> 4.6 | S15: =VLOOKUP($F15,ZMM_Plst!$B:$AC,16,0) -> 24 | T15: 383.68 | U15: =VLOOKUP($F15,ZMM_Plst!$B:$AC,6,0) -> 1.17 | V15: =VLOOKUP($F15,ZMM_Plst!$B:$AC,7,0) -> 0.61 | W15: =VLOOKUP($F15,ZMM_Plst!$B:$AC,5,0) -> 0.07
A16: =IF($F16<>"",VLOOKUP(F16,Pricing!$A:$F,6,FALSE),"") -> GW | B16: =IF($F16<>"",VLOOKUP(F16,Pricing!$A:$F,5,FALSE),"") -> LW | C16: =IF($F16<>"",VLOOKUP(Проектные!$F16,Pricing!$A:$F,3,FALSE),"") -> Sound Protect | D16: =VLOOKUP(C16,конструктив!A:B,2,0) -> Звукозащита | E16: =IF($F16<>"",VLOOKUP(F16,Pricing!$A:$F,4,FALSE),"") -> Yegorevsk | F16: =IF(Pricing!A9<>"",Pricing!A9,"") -> 67194 | G16: =IF(F16<>"",VLOOKUP(F16,Pricing!$A:$B,2,FALSE),"") -> ЗвукоЗащита-60х610х1170/Е/К | H16: =IFERROR(IF($A$1,VLOOKUP(F16,'Pricing pick up'!$A:$CM,MATCH(Проектные!$G$3,'Pricing pick up'!$2:$2,0),0),VLOOKUP(F16,Pricing!$A:$CL,MATCH(Проектные!$G$3,Pricing!$2:$2,0),0)),"не возим") -> 2985.384105 | I16: =IFERROR(IF($B$1,VLOOKUP(CONCATENATE($E16,$G$3),Tariffs_!A:H,8,0),VLOOKUP(CONCATENATE($E16,$G$3),Tariffs_!A:G,6,0)),"-") -> 0 | J16: =IFERROR(IF($B$1,VLOOKUP(CONCATENATE($E16,$G$3),Tariffs_!A:I,9,0)*VLOOKUP($F16,ZMM_Plst!$B:$K,8,0)/VLOOKUP($F16,ZMM_Plst!$B:$K,10,0)*1.2,VLOOKUP(CONCATENATE($E16,$G$3),Tariffs_!A:G,7,0)*VLOOKUP($F16,ZMM_Plst!$B:$K,8,0)/VLOOKUP($F16,ZMM_Plst!$B:$K,10,0)*1.2),"-") -> 0 | K16: 2487.820088 | L16: =VLOOKUP($F16,ZMM_Plst!$B:$AA,26,0) -> B | M16: 11.41916667 | N16: 0.6851666667 | O16: =VLOOKUP($F16,ZMM_Plst!$B:$AC,17,0) -> 16 | P16: =VLOOKUP($F16,ZMM_Plst!$B:$AC,9,0) -> 274.06 | Q16: =VLOOKUP($F16,ZMM_Plst!$B:$AC,10,0) -> 16.444 | R16: =VLOOKUP($F16,ZMM_Plst!$B:$AC,8,0) -> 4.6 | S16: =VLOOKUP($F16,ZMM_Plst!$B:$AC,16,0) -> 24 | T16: 328.88 | U16: =VLOOKUP($F16,ZMM_Plst!$B:$AC,6,0) -> 1.17 | V16: =VLOOKUP($F16,ZMM_Plst!$B:$AC,7,0) -> 0.61 | W16: =VLOOKUP($F16,ZMM_Plst!$B:$AC,5,0) -> 0.06
A17: =IF($F17<>"",VLOOKUP(F17,Pricing!$A:$F,6,FALSE),"") -> SW | B17: =IF($F17<>"",VLOOKUP(F17,Pricing!$A:$F,5,FALSE),"") -> LW | C17: =IF($F17<>"",VLOOKUP(Проектные!$F17,Pricing!$A:$F,3,FALSE),"") -> SoundProtect | D17: =VLOOKUP(C17,конструктив!A:B,2,0) -> Звукозащита | E17: =IF($F17<>"",VLOOKUP(F17,Pricing!$A:$F,4,FALSE),"") -> Chelyabinsk | F17: =IF(Pricing!A10<>"",Pricing!A10,"") -> 53740 | G17: =IF(F17<>"",VLOOKUP(F17,Pricing!$A:$B,2,FALSE),"") -> ИЗОВЕР АКУСТИК-50/600x1000 | H17: =IFERROR(IF($A$1,VLOOKUP(F17,'Pricing pick up'!$A:$CM,MATCH(Проектные!$G$3,'Pricing pick up'!$2:$2,0),0),VLOOKUP(F17,Pricing!$A:$CL,MATCH(Проектные!$G$3,Pricing!$2:$2,0),0)),"не возим") -> не возим | I17: =IFERROR(IF($B$1,VLOOKUP(CONCATENATE($E17,$G$3),Tariffs_!A:H,8,0),VLOOKUP(CONCATENATE($E17,$G$3),Tariffs_!A:G,6,0)),"-") -> 0 | J17: =IFERROR(IF($B$1,VLOOKUP(CONCATENATE($E17,$G$3),Tariffs_!A:I,9,0)*VLOOKUP($F17,ZMM_Plst!$B:$K,8,0)/VLOOKUP($F17,ZMM_Plst!$B:$K,10,0)*1.2,VLOOKUP(CONCATENATE($E17,$G$3),Tariffs_!A:G,7,0)*VLOOKUP($F17,ZMM_Plst!$B:$K,8,0)/VLOOKUP($F17,ZMM_Plst!$B:$K,10,0)*1.2),"-") -> 0 | K17: - | L17: =VLOOKUP($F17,ZMM_Plst!$B:$AA,26,0) -> B | M17: 4.8 | N17: 0.24 | O17: =VLOOKUP($F17,ZMM_Plst!$B:$AC,17,0) -> 8 | P17: =VLOOKUP($F17,ZMM_Plst!$B:$AC,9,0) -> 4.8 | Q17: =VLOOKUP($F17,ZMM_Plst!$B:$AC,10,0) -> 0.24 | R17: =VLOOKUP($F17,ZMM_Plst!$B:$AC,8,0) -> 0.266 | S17: =VLOOKUP($F17,ZMM_Plst!$B:$AC,16,0) -> 1 | T17: 83.0075188 | U17: =VLOOKUP($F17,ZMM_Plst!$B:$AC,6,0) -> 1 | V17: =VLOOKUP($F17,ZMM_Plst!$B:$AC,7,0) -> 0.6 | W17: =VLOOKUP($F17,ZMM_Plst!$B:$AC,5,0) -> 0.05
A18: =IF($F18<>"",VLOOKUP(F18,Pricing!$A:$F,6,FALSE),"") -> SW | B18: =IF($F18<>"",VLOOKUP(F18,Pricing!$A:$F,5,FALSE),"") -> LW | C18: =IF($F18<>"",VLOOKUP(Проектные!$F18,Pricing!$A:$F,3,FALSE),"") -> SoundProtect | D18: =VLOOKUP(C18,конструктив!A:B,2,0) -> Звукозащита | E18: =IF($F18<>"",VLOOKUP(F18,Pricing!$A:$F,4,FALSE),"") -> Chelyabinsk | F18: =IF(Pricing!A11<>"",Pricing!A11,"") -> 53741 | G18: =IF(F18<>"",VLOOKUP(F18,Pricing!$A:$B,2,FALSE),"") -> ИЗОВЕР АКУСТИК-70/500x1000 | H18: =IFERROR(IF($A$1,VLOOKUP(F18,'Pricing pick up'!$A:$CM,MATCH(Проектные!$G$3,'Pricing pick up'!$2:$2,0),0),VLOOKUP(F18,Pricing!$A:$CL,MATCH(Проектные!$G$3,Pricing!$2:$2,0),0)),"не возим") -> не возим | I18: =IFERROR(IF($B$1,VLOOKUP(CONCATENATE($E18,$G$3),Tariffs_!A:H,8,0),VLOOKUP(CONCATENATE($E18,$G$3),Tariffs_!A:G,6,0)),"-") -> 0 | J18: =IFERROR(IF($B$1,VLOOKUP(CONCATENATE($E18,$G$3),Tariffs_!A:I,9,0)*VLOOKUP($F18,ZMM_Plst!$B:$K,8,0)/VLOOKUP($F18,ZMM_Plst!$B:$K,10,0)*1.2,VLOOKUP(CONCATENATE($E18,$G$3),Tariffs_!A:G,7,0)*VLOOKUP($F18,ZMM_Plst!$B:$K,8,0)/VLOOKUP($F18,ZMM_Plst!$B:$K,10,0)*1.2),"-") -> 0 | K18: - | L18: =VLOOKUP($F18,ZMM_Plst!$B:$AA,26,0) -> B | M18: 3 | N18: 0.21 | O18: =VLOOKUP($F18,ZMM_Plst!$B:$AC,17,0) -> 6 | P18: =VLOOKUP($F18,ZMM_Plst!$B:$AC,9,0) -> 3 | Q18: =VLOOKUP($F18,ZMM_Plst!$B:$AC,10,0) -> 0.21 | R18: =VLOOKUP($F18,ZMM_Plst!$B:$AC,8,0) -> 0.222 | S18: =VLOOKUP($F18,ZMM_Plst!$B:$AC,16,0) -> 1 | T18: 87.02702703 | U18: =VLOOKUP($F18,ZMM_Plst!$B:$AC,6,0) -> 1 | V18: =VLOOKUP($F18,ZMM_Plst!$B:$AC,7,0) -> 0.5 | W18: =VLOOKUP($F18,ZMM_Plst!$B:$AC,5,0) -> 0.07
A19: =IF($F19<>"",VLOOKUP(F19,Pricing!$A:$F,6,FALSE),"") -> SW | B19: =IF($F19<>"",VLOOKUP(F19,Pricing!$A:$F,5,FALSE),"") -> LW | C19: =IF($F19<>"",VLOOKUP(Проектные!$F19,Pricing!$A:$F,3,FALSE),"") -> SoundProtect | D19: =VLOOKUP(C19,конструктив!A:B,2,0) -> Звукозащита | E19: =IF($F19<>"",VLOOKUP(F19,Pricing!$A:$F,4,FALSE),"") -> Chelyabinsk | F19: =IF(Pricing!A12<>"",Pricing!A12,"") -> 53745 | G19: =IF(F19<>"",VLOOKUP(F19,Pricing!$A:$B,2,FALSE),"") -> ИЗОВЕР АКУСТИК-100/600x1000 | H19: =IFERROR(IF($A$1,VLOOKUP(F19,'Pricing pick up'!$A:$CM,MATCH(Проектные!$G$3,'Pricing pick up'!$2:$2,0),0),VLOOKUP(F19,Pricing!$A:$CL,MATCH(Проектные!$G$3,Pricing!$2:$2,0),0)),"не возим") -> не возим | I19: =IFERROR(IF($B$1,VLOOKUP(CONCATENATE($E19,$G$3),Tariffs_!A:H,8,0),VLOOKUP(CONCATENATE($E19,$G$3),Tariffs_!A:G,6,0)),"-") -> 0 | J19: =IFERROR(IF($B$1,VLOOKUP(CONCATENATE($E19,$G$3),Tariffs_!A:I,9,0)*VLOOKUP($F19,ZMM_Plst!$B:$K,8,0)/VLOOKUP($F19,ZMM_Plst!$B:$K,10,0)*1.2,VLOOKUP(CONCATENATE($E19,$G$3),Tariffs_!A:G,7,0)*VLOOKUP($F19,ZMM_Plst!$B:$K,8,0)/VLOOKUP($F19,ZMM_Plst!$B:$K,10,0)*1.2),"-") -> 0 | K19: - | L19: =VLOOKUP($F19,ZMM_Plst!$B:$AA,26,0) -> B | M19: 2.4 | N19: 0.24 | O19: =VLOOKUP($F19,ZMM_Plst!$B:$AC,17,0) -> 4 | P19: =VLOOKUP($F19,ZMM_Plst!$B:$AC,9,0) -> 2.4 | Q19: =VLOOKUP($F19,ZMM_Plst!$B:$AC,10,0) -> 0.24 | R19: =VLOOKUP($F19,ZMM_Plst!$B:$AC,8,0) -> 0.266 | S19: =VLOOKUP($F19,ZMM_Plst!$B:$AC,16,0) -> 1 | T19: 83.0075188 | U19: =VLOOKUP($F19,ZMM_Plst!$B:$AC,6,0) -> 1 | V19: =VLOOKUP($F19,ZMM_Plst!$B:$AC,7,0) -> 0.6 | W19: =VLOOKUP($F19,ZMM_Plst!$B:$AC,5,0) -> 0.1
A20: =IF($F20<>"",VLOOKUP(F20,Pricing!$A:$F,6,FALSE),"") -> SW | B20: =IF($F20<>"",VLOOKUP(F20,Pricing!$A:$F,5,FALSE),"") -> LW | C20: =IF($F20<>"",VLOOKUP(Проектные!$F20,Pricing!$A:$F,3,FALSE),"") -> SoundProtect | D20: =VLOOKUP(C20,конструктив!A:B,2,0) -> Звукозащита | E20: =IF($F20<>"",VLOOKUP(F20,Pricing!$A:$F,4,FALSE),"") -> Chelyabinsk | F20: =IF(Pricing!A13<>"",Pricing!A13,"") -> 53746 | G20: =IF(F20<>"",VLOOKUP(F20,Pricing!$A:$B,2,FALSE),"") -> ИЗОВЕР АКУСТИК-70/500x980 | H20: =IFERROR(IF($A$1,VLOOKUP(F20,'Pricing pick up'!$A:$CM,MATCH(Проектные!$G$3,'Pricing pick up'!$2:$2,0),0),VLOOKUP(F20,Pricing!$A:$CL,MATCH(Проектные!$G$3,Pricing!$2:$2,0),0)),"не возим") -> не возим | I20: =IFERROR(IF($B$1,VLOOKUP(CONCATENATE($E20,$G$3),Tariffs_!A:H,8,0),VLOOKUP(CONCATENATE($E20,$G$3),Tariffs_!A:G,6,0)),"-") -> 0 | J20: =IFERROR(IF($B$1,VLOOKUP(CONCATENATE($E20,$G$3),Tariffs_!A:I,9,0)*VLOOKUP($F20,ZMM_Plst!$B:$K,8,0)/VLOOKUP($F20,ZMM_Plst!$B:$K,10,0)*1.2,VLOOKUP(CONCATENATE($E20,$G$3),Tariffs_!A:G,7,0)*VLOOKUP($F20,ZMM_Plst!$B:$K,8,0)/VLOOKUP($F20,ZMM_Plst!$B:$K,10,0)*1.2),"-") -> 0 | K20: - | L20: =VLOOKUP($F20,ZMM_Plst!$B:$AA,26,0) -> B | M20: 2.94 | N20: 0.206 | O20: =VLOOKUP($F20,ZMM_Plst!$B:$AC,17,0) -> 6 | P20: =VLOOKUP($F20,ZMM_Plst!$B:$AC,9,0) -> 2.94 | Q20: =VLOOKUP($F20,ZMM_Plst!$B:$AC,10,0) -> 0.206 | R20: =VLOOKUP($F20,ZMM_Plst!$B:$AC,8,0) -> 0.216 | S20: =VLOOKUP($F20,ZMM_Plst!$B:$AC,16,0) -> 1 | T20: 87.74074074 | U20: =VLOOKUP($F20,ZMM_Plst!$B:$AC,6,0) -> 0.98 | V20: =VLOOKUP($F20,ZMM_Plst!$B:$AC,7,0) -> 0.5 | W20: =VLOOKUP($F20,ZMM_Plst!$B:$AC,5,0) -> 0.07
A21: =IF($F21<>"",VLOOKUP(F21,Pricing!$A:$F,6,FALSE),"") -> GW | B21: =IF($F21<>"",VLOOKUP(F21,Pricing!$A:$F,5,FALSE),"") -> LW | C21: =IF($F21<>"",VLOOKUP(Проектные!$F21,Pricing!$A:$F,3,FALSE),"") -> Frame R34 | D21: =VLOOKUP(C21,конструктив!A:B,2,0) -> Каркасы | E21: =IF($F21<>"",VLOOKUP(F21,Pricing!$A:$F,4,FALSE),"") -> Yegorevsk | F21: =IF(Pricing!A14<>"",Pricing!A14,"") -> 67252 | G21: =IF(F21<>"",VLOOKUP(F21,Pricing!$A:$B,2,FALSE),"") -> Каркас-М34-90/1220х5000/Е/К | H21: =IFERROR(IF($A$1,VLOOKUP(F21,'Pricing pick up'!$A:$CM,MATCH(Проектные!$G$3,'Pricing pick up'!$2:$2,0),0),VLOOKUP(F21,Pricing!$A:$CL,MATCH(Проектные!$G$3,Pricing!$2:$2,0),0)),"не возим") -> 2647.092467 | I21: =IFERROR(IF($B$1,VLOOKUP(CONCATENATE($E21,$G$3),Tariffs_!A:H,8,0),VLOOKUP(CONCATENATE($E21,$G$3),Tariffs_!A:G,6,0)),"-") -> 0 | J21: =IFERROR(IF($B$1,VLOOKUP(CONCATENATE($E21,$G$3),Tariffs_!A:I,9,0)*VLOOKUP($F21,ZMM_Plst!$B:$K,8,0)/VLOOKUP($F21,ZMM_Plst!$B:$K,10,0)*1.2,VLOOKUP(CONCATENATE($E21,$G$3),Tariffs_!A:G,7,0)*VLOOKUP($F21,ZMM_Plst!$B:$K,8,0)/VLOOKUP($F21,ZMM_Plst!$B:$K,10,0)*1.2),"-") -> 0 | K21: 2205.910389 | L21: =VLOOKUP($F21,ZMM_Plst!$B:$AA,26,0) -> B | M21: 6.1 | N21: 0.549 | O21: =VLOOKUP($F21,ZMM_Plst!$B:$AC,17,0) -> 1 | P21: =VLOOKUP($F21,ZMM_Plst!$B:$AC,9,0) -> 183 | Q21: =VLOOKUP($F21,ZMM_Plst!$B:$AC,10,0) -> 16.47 | R21: =VLOOKUP($F21,ZMM_Plst!$B:$AC,8,0) -> 4.6 | S21: =VLOOKUP($F21,ZMM_Plst!$B:$AC,16,0) -> 30 | T21: 329.4 | U21: =VLOOKUP($F21,ZMM_Plst!$B:$AC,6,0) -> 5 | V21: =VLOOKUP($F21,ZMM_Plst!$B:$AC,7,0) -> 1.22 | W21: =VLOOKUP($F21,ZMM_Plst!$B:$AC,5,0) -> 0.09
A22: =IF($F22<>"",VLOOKUP(F22,Pricing!$A:$F,6,FALSE),"") -> GW | B22: =IF($F22<>"",VLOOKUP(F22,Pricing!$A:$F,5,FALSE),"") -> LW | C22: =IF($F22<>"",VLOOKUP(Проектные!$F22,Pricing!$A:$F,3,FALSE),"") -> Frame R34 | D22: =VLOOKUP(C22,конструктив!A:B,2,0) -> Каркасы | E22: =IF($F22<>"",VLOOKUP(F22,Pricing!$A:$F,4,FALSE),"") -> Yegorevsk | F22: =IF(Pricing!A15<>"",Pricing!A15,"") -> 67253 | G22: =IF(F22<>"",VLOOKUP(F22,Pricing!$A:$B,2,FALSE),"") -> Каркас-М34-110/1220х4500/Е/К | H22: =IFERROR(IF($A$1,VLOOKUP(F22,'Pricing pick up'!$A:$CM,MATCH(Проектные!$G$3,'Pricing pick up'!$2:$2,0),0),VLOOKUP(F22,Pricing!$A:$CL,MATCH(Проектные!$G$3,Pricing!$2:$2,0),0)),"не возим") -> 2647.092467 | I22: =IFERROR(IF($B$1,VLOOKUP(CONCATENATE($E22,$G$3),Tariffs_!A:H,8,0),VLOOKUP(CONCATENATE($E22,$G$3),Tariffs_!A:G,6,0)),"-") -> 0 | J22: =IFERROR(IF($B$1,VLOOKUP(CONCATENATE($E22,$G$3),Tariffs_!A:I,9,0)*VLOOKUP($F22,ZMM_Plst!$B:$K,8,0)/VLOOKUP($F22,ZMM_Plst!$B:$K,10,0)*1.2,VLOOKUP(CONCATENATE($E22,$G$3),Tariffs_!A:G,7,0)*VLOOKUP($F22,ZMM_Plst!$B:$K,8,0)/VLOOKUP($F22,ZMM_Plst!$B:$K,10,0)*1.2),"-") -> 0 | K22: 2205.910389 | L22: =VLOOKUP($F22,ZMM_Plst!$B:$AA,26,0) -> B | M22: 5.49 | N22: 0.60392 | O22: =VLOOKUP($F22,ZMM_Plst!$B:$AC,17,0) -> 1 | P22: =VLOOKUP($F22,ZMM_Plst!$B:$AC,9,0) -> 137.25 | Q22: =VLOOKUP($F22,ZMM_Plst!$B:$AC,10,0) -> 15.098 | R22: =VLOOKUP($F22,ZMM_Plst!$B:$AC,8,0) -> 4.6 | S22: =VLOOKUP($F22,ZMM_Plst!$B:$AC,16,0) -> 25 | T22: 301.96 | U22: =VLOOKUP($F22,ZMM_Plst!$B:$AC,6,0) -> 4.5 | V22: =VLOOKUP($F22,ZMM_Plst!$B:$AC,7,0) -> 1.22 | W22: =VLOOKUP($F22,ZMM_Plst!$B:$AC,5,0) -> 0.11
A23: =IF($F23<>"",VLOOKUP(F23,Pricing!$A:$F,6,FALSE),"") -> GW | B23: =IF($F23<>"",VLOOKUP(F23,Pricing!$A:$F,5,FALSE),"") -> LW | C23: =IF($F23<>"",VLOOKUP(Проектные!$F23,Pricing!$A:$F,3,FALSE),"") -> Frame R34 | D23: =VLOOKUP(C23,конструктив!A:B,2,0) -> Каркасы | E23: =IF($F23<>"",VLOOKUP(F23,Pricing!$A:$F,4,FALSE),"") -> Yegorevsk | F23: =IF(Pricing!A16<>"",Pricing!A16,"") -> 67254 | G23: =IF(F23<>"",VLOOKUP(F23,Pricing!$A:$B,2,FALSE),"") -> Каркас-М34-ТВИН-60/1220х4500/Е/К | H23: =IFERROR(IF($A$1,VLOOKUP(F23,'Pricing pick up'!$A:$CM,MATCH(Проектные!$G$3,'Pricing pick up'!$2:$2,0),0),VLOOKUP(F23,Pricing!$A:$CL,MATCH(Проектные!$G$3,Pricing!$2:$2,0),0)),"не возим") -> 2647.092467 | I23: =IFERROR(IF($B$1,VLOOKUP(CONCATENATE($E23,$G$3),Tariffs_!A:H,8,0),VLOOKUP(CONCATENATE($E23,$G$3),Tariffs_!A:G,6,0)),"-") -> 0 | J23: =IFERROR(IF($B$1,VLOOKUP(CONCATENATE($E23,$G$3),Tariffs_!A:I,9,0)*VLOOKUP($F23,ZMM_Plst!$B:$K,8,0)/VLOOKUP($F23,ZMM_Plst!$B:$K,10,0)*1.2,VLOOKUP(CONCATENATE($E23,$G$3),Tariffs_!A:G,7,0)*VLOOKUP($F23,ZMM_Plst!$B:$K,8,0)/VLOOKUP($F23,ZMM_Plst!$B:$K,10,0)*1.2),"-") -> 0 | K23: 2205.910389 | L23: =VLOOKUP($F23,ZMM_Plst!$B:$AA,26,0) -> B | M23: 10.98 | N23: 0.6587916667 | O23: =VLOOKUP($F23,ZMM_Plst!$B:$AC,17,0) -> 2 | P23: =VLOOKUP($F23,ZMM_Plst!$B:$AC,9,0) -> 263.52 | Q23: =VLOOKUP($F23,ZMM_Plst!$B:$AC,10,0) -> 15.811 | R23: =VLOOKUP($F23,ZMM_Plst!$B:$AC,8,0) -> 4.6 | S23: =VLOOKUP($F23,ZMM_Plst!$B:$AC,16,0) -> 24 | T23: 316.22 | U23: =VLOOKUP($F23,ZMM_Plst!$B:$AC,6,0) -> 4.5 | V23: =VLOOKUP($F23,ZMM_Plst!$B:$AC,7,0) -> 1.22 | W23: =VLOOKUP($F23,ZMM_Plst!$B:$AC,5,0) -> 0.06
A24: =IF($F24<>"",VLOOKUP(F24,Pricing!$A:$F,6,FALSE),"") -> GW | B24: =IF($F24<>"",VLOOKUP(F24,Pricing!$A:$F,5,FALSE),"") -> LW | C24: =IF($F24<>"",VLOOKUP(Проектные!$F24,Pricing!$A:$F,3,FALSE),"") -> Frame R34 | D24: =VLOOKUP(C24,конструктив!A:B,2,0) -> Каркасы | E24: =IF($F24<>"",VLOOKUP(F24,Pricing!$A:$F,4,FALSE),"") -> Yegorevsk | F24: =IF(Pricing!A17<>"",Pricing!A17,"") -> 67255 | G24: =IF(F24<>"",VLOOKUP(F24,Pricing!$A:$B,2,FALSE),"") -> Каркас-М34-ТВИН-50/1000х4500/Е/К | H24: =IFERROR(IF($A$1,VLOOKUP(F24,'Pricing pick up'!$A:$CM,MATCH(Проектные!$G$3,'Pricing pick up'!$2:$2,0),0),VLOOKUP(F24,Pricing!$A:$CL,MATCH(Проектные!$G$3,Pricing!$2:$2,0),0)),"не возим") -> 2647.092467 | I24: =IFERROR(IF($B$1,VLOOKUP(CONCATENATE($E24,$G$3),Tariffs_!A:H,8,0),VLOOKUP(CONCATENATE($E24,$G$3),Tariffs_!A:G,6,0)),"-") -> 0 | J24: =IFERROR(IF($B$1,VLOOKUP(CONCATENATE($E24,$G$3),Tariffs_!A:I,9,0)*VLOOKUP($F24,ZMM_Plst!$B:$K,8,0)/VLOOKUP($F24,ZMM_Plst!$B:$K,10,0)*1.2,VLOOKUP(CONCATENATE($E24,$G$3),Tariffs_!A:G,7,0)*VLOOKUP($F24,ZMM_Plst!$B:$K,8,0)/VLOOKUP($F24,ZMM_Plst!$B:$K,10,0)*1.2),"-") -> 0 | K24: 2205.910389 | L24: =VLOOKUP($F24,ZMM_Plst!$B:$AA,26,0) -> B | M24: 9 | N24: 0.45 | O24: =VLOOKUP($F24,ZMM_Plst!$B:$AC,17,0) -> 2 | P24: =VLOOKUP($F24,ZMM_Plst!$B:$AC,9,0) -> 225 | Q24: =VLOOKUP($F24,ZMM_Plst!$B:$AC,10,0) -> 11.25 | R24: =VLOOKUP($F24,ZMM_Plst!$B:$AC,8,0) -> 4.181 | S24: =VLOOKUP($F24,ZMM_Plst!$B:$AC,16,0) -> 25 | T24: 247.5484334 | U24: =VLOOKUP($F24,ZMM_Plst!$B:$AC,6,0) -> 4.5 | V24: =VLOOKUP($F24,ZMM_Plst!$B:$AC,7,0) -> 1 | W24: =VLOOKUP($F24,ZMM_Plst!$B:$AC,5,0) -> 0.05
A25: =IF($F25<>"",VLOOKUP(F25,Pricing!$A:$F,6,FALSE),"") -> GW | B25: =IF($F25<>"",VLOOKUP(F25,Pricing!$A:$F,5,FALSE),"") -> LW | C25: =IF($F25<>"",VLOOKUP(Проектные!$F25,Pricing!$A:$F,3,FALSE),"") -> Frame R34 | D25: =VLOOKUP(C25,конструктив!A:B,2,0) -> Каркасы | E25: =IF($F25<>"",VLOOKUP(F25,Pricing!$A:$F,4,FALSE),"") -> Yegorevsk | F25: =IF(Pricing!A18<>"",Pricing!A18,"") -> 67256 | G25: =IF(F25<>"",VLOOKUP(F25,Pricing!$A:$B,2,FALSE),"") -> Каркас-М34-80/1000х4500/Е/К | H25: =IFERROR(IF($A$1,VLOOKUP(F25,'Pricing pick up'!$A:$CM,MATCH(Проектные!$G$3,'Pricing pick up'!$2:$2,0),0),VLOOKUP(F25,Pricing!$A:$CL,MATCH(Проектные!$G$3,Pricing!$2:$2,0),0)),"не возим") -> 2647.092467 | I25: =IFERROR(IF($B$1,VLOOKUP(CONCATENATE($E25,$G$3),Tariffs_!A:H,8,0),VLOOKUP(CONCATENATE($E25,$G$3),Tariffs_!A:G,6,0)),"-") -> 0 | J25: =IFERROR(IF($B$1,VLOOKUP(CONCATENATE($E25,$G$3),Tariffs_!A:I,9,0)*VLOOKUP($F25,ZMM_Plst!$B:$K,8,0)/VLOOKUP($F25,ZMM_Plst!$B:$K,10,0)*1.2,VLOOKUP(CONCATENATE($E25,$G$3),Tariffs_!A:G,7,0)*VLOOKUP($F25,ZMM_Plst!$B:$K,8,0)/VLOOKUP($F25,ZMM_Plst!$B:$K,10,0)*1.2),"-") -> 0 | K25: 2205.910389 | L25: =VLOOKUP($F25,ZMM_Plst!$B:$AA,26,0) -> B | M25: 4.5 | N25: 0.36 | O25: =VLOOKUP($F25,ZMM_Plst!$B:$AC,17,0) -> 1 | P25: =VLOOKUP($F25,ZMM_Plst!$B:$AC,9,0) -> 112.5 | Q25: =VLOOKUP($F25,ZMM_Plst!$B:$AC,10,0) -> 9 | R25: =VLOOKUP($F25,ZMM_Plst!$B:$AC,8,0) -> 4.18 | S25: =VLOOKUP($F25,ZMM_Plst!$B:$AC,16,0) -> 25 | T25: 198.0861244 | U25: =VLOOKUP($F25,ZMM_Plst!$B:$AC,6,0) -> 4.5 | V25: =VLOOKUP($F25,ZMM_Plst!$B:$AC,7,0) -> 1 | W25: =VLOOKUP($F25,ZMM_Plst!$B:$AC,5,0) -> 0.08
A26: =IF($F26<>"",VLOOKUP(F26,Pricing!$A:$F,6,FALSE),"") -> GW | B26: =IF($F26<>"",VLOOKUP(F26,Pricing!$A:$F,5,FALSE),"") -> LW | C26: =IF($F26<>"",VLOOKUP(Проектные!$F26,Pricing!$A:$F,3,FALSE),"") -> Frame R34 | D26: =VLOOKUP(C26,конструктив!A:B,2,0) -> Каркасы | E26: =IF($F26<>"",VLOOKUP(F26,Pricing!$A:$F,4,FALSE),"") -> Yegorevsk | F26: =IF(Pricing!A19<>"",Pricing!A19,"") -> 67257 | G26: =IF(F26<>"",VLOOKUP(F26,Pricing!$A:$B,2,FALSE),"") -> Каркас-М34-100/1000х4500/Е/К | H26: =IFERROR(IF($A$1,VLOOKUP(F26,'Pricing pick up'!$A:$CM,MATCH(Проектные!$G$3,'Pricing pick up'!$2:$2,0),0),VLOOKUP(F26,Pricing!$A:$CL,MATCH(Проектные!$G$3,Pricing!$2:$2,0),0)),"не возим") -> 2647.092467 | I26: =IFERROR(IF($B$1,VLOOKUP(CONCATENATE($E26,$G$3),Tariffs_!A:H,8,0),VLOOKUP(CONCATENATE($E26,$G$3),Tariffs_!A:G,6,0)),"-") -> 0 | J26: =IFERROR(IF($B$1,VLOOKUP(CONCATENATE($E26,$G$3),Tariffs_!A:I,9,0)*VLOOKUP($F26,ZMM_Plst!$B:$K,8,0)/VLOOKUP($F26,ZMM_Plst!$B:$K,10,0)*1.2,VLOOKUP(CONCATENATE($E26,$G$3),Tariffs_!A:G,7,0)*VLOOKUP($F26,ZMM_Plst!$B:$K,8,0)/VLOOKUP($F26,ZMM_Plst!$B:$K,10,0)*1.2),"-") -> 0 | K26: 2205.910389 | L26: =VLOOKUP($F26,ZMM_Plst!$B:$AA,26,0) -> B | M26: 4.5 | N26: 0.45 | O26: =VLOOKUP($F26,ZMM_Plst!$B:$AC,17,0) -> 1 | P26: =VLOOKUP($F26,ZMM_Plst!$B:$AC,9,0) -> 112.5 | Q26: =VLOOKUP($F26,ZMM_Plst!$B:$AC,10,0) -> 11.25 | R26: =VLOOKUP($F26,ZMM_Plst!$B:$AC,8,0) -> 4.18 | S26: =VLOOKUP($F26,ZMM_Plst!$B:$AC,16,0) -> 25 | T26: 247.6076555 | U26: =VLOOKUP($F26,ZMM_Plst!$B:$AC,6,0) -> 4.5 | V26: =VLOOKUP($F26,ZMM_Plst!$B:$AC,7,0) -> 1 | W26: =VLOOKUP($F26,ZMM_Plst!$B:$AC,5,0) -> 0.1
A27: =IF($F27<>"",VLOOKUP(F27,Pricing!$A:$F,6,FALSE),"") -> GW | B27: =IF($F27<>"",VLOOKUP(F27,Pricing!$A:$F,5,FALSE),"") -> LW | C27: =IF($F27<>"",VLOOKUP(Проектные!$F27,Pricing!$A:$F,3,FALSE),"") -> Frame R34 | D27: =VLOOKUP(C27,конструктив!A:B,2,0) -> Каркасы | E27: =IF($F27<>"",VLOOKUP(F27,Pricing!$A:$F,4,FALSE),"") -> Yegorevsk | F27: =IF(Pricing!A20<>"",Pricing!A20,"") -> 67258 | G27: =IF(F27<>"",VLOOKUP(F27,Pricing!$A:$B,2,FALSE),"") -> Каркас-М34-120/1220х4500/Е/К | H27: =IFERROR(IF($A$1,VLOOKUP(F27,'Pricing pick up'!$A:$CM,MATCH(Проектные!$G$3,'Pricing pick up'!$2:$2,0),0),VLOOKUP(F27,Pricing!$A:$CL,MATCH(Проектные!$G$3,Pricing!$2:$2,0),0)),"не возим") -> 2647.092467 | I27: =IFERROR(IF($B$1,VLOOKUP(CONCATENATE($E27,$G$3),Tariffs_!A:H,8,0),VLOOKUP(CONCATENATE($E27,$G$3),Tariffs_!A:G,6,0)),"-") -> 0 | J27: =IFERROR(IF($B$1,VLOOKUP(CONCATENATE($E27,$G$3),Tariffs_!A:I,9,0)*VLOOKUP($F27,ZMM_Plst!$B:$K,8,0)/VLOOKUP($F27,ZMM_Plst!$B:$K,10,0)*1.2,VLOOKUP(CONCATENATE($E27,$G$3),Tariffs_!A:G,7,0)*VLOOKUP($F27,ZMM_Plst!$B:$K,8,0)/VLOOKUP($F27,ZMM_Plst!$B:$K,10,0)*1.2),"-") -> 0 | K27: 2205.910389 | L27: =VLOOKUP($F27,ZMM_Plst!$B:$AA,26,0) -> B | M27: 5.49 | N27: 0.6587916667 | O27: =VLOOKUP($F27,ZMM_Plst!$B:$AC,17,0) -> 1 | P27: =VLOOKUP($F27,ZMM_Plst!$B:$AC,9,0) -> 131.76 | Q27: =VLOOKUP($F27,ZMM_Plst!$B:$AC,10,0) -> 15.811 | R27: =VLOOKUP($F27,ZMM_Plst!$B:$AC,8,0) -> 4.6 | S27: =VLOOKUP($F27,ZMM_Plst!$B:$AC,16,0) -> 24 | T27: 316.22 | U27: =VLOOKUP($F27,ZMM_Plst!$B:$AC,6,0) -> 4.5 | V27: =VLOOKUP($F27,ZMM_Plst!$B:$AC,7,0) -> 1.22 | W27: =VLOOKUP($F27,ZMM_Plst!$B:$AC,5,0) -> 0.12
A28: =IF($F28<>"",VLOOKUP(F28,Pricing!$A:$F,6,FALSE),"") -> GW | B28: =IF($F28<>"",VLOOKUP(F28,Pricing!$A:$F,5,FALSE),"") -> LW | C28: =IF($F28<>"",VLOOKUP(Проектные!$F28,Pricing!$A:$F,3,FALSE),"") -> Frame R34 | D28: =VLOOKUP(C28,конструктив!A:B,2,0) -> Каркасы | E28: =IF($F28<>"",VLOOKUP(F28,Pricing!$A:$F,4,FALSE),"") -> Yegorevsk | F28: =IF(Pricing!A21<>"",Pricing!A21,"") -> 67259 | G28: =IF(F28<>"",VLOOKUP(F28,Pricing!$A:$B,2,FALSE),"") -> Каркас-М34-80/1220х4500/Е/К | H28: =IFERROR(IF($A$1,VLOOKUP(F28,'Pricing pick up'!$A:$CM,MATCH(Проектные!$G$3,'Pricing pick up'!$2:$2,0),0),VLOOKUP(F28,Pricing!$A:$CL,MATCH(Проектные!$G$3,Pricing!$2:$2,0),0)),"не возим") -> 2647.092467 | I28: =IFERROR(IF($B$1,VLOOKUP(CONCATENATE($E28,$G$3),Tariffs_!A:H,8,0),VLOOKUP(CONCATENATE($E28,$G$3),Tariffs_!A:G,6,0)),"-") -> 0 | J28: =IFERROR(IF($B$1,VLOOKUP(CONCATENATE($E28,$G$3),Tariffs_!A:I,9,0)*VLOOKUP($F28,ZMM_Plst!$B:$K,8,0)/VLOOKUP($F28,ZMM_Plst!$B:$K,10,0)*1.2,VLOOKUP(CONCATENATE($E28,$G$3),Tariffs_!A:G,7,0)*VLOOKUP($F28,ZMM_Plst!$B:$K,8,0)/VLOOKUP($F28,ZMM_Plst!$B:$K,10,0)*1.2),"-") -> 0 | K28: 2205.910389 | L28: =VLOOKUP($F28,ZMM_Plst!$B:$AA,26,0) -> B | M28: 5.49 | N28: 0.4392 | O28: =VLOOKUP($F28,ZMM_Plst!$B:$AC,17,0) -> 1 | P28: =VLOOKUP($F28,ZMM_Plst!$B:$AC,9,0) -> 164.7 | Q28: =VLOOKUP($F28,ZMM_Plst!$B:$AC,10,0) -> 13.176 | R28: =VLOOKUP($F28,ZMM_Plst!$B:$AC,8,0) -> 4.6 | S28: =VLOOKUP($F28,ZMM_Plst!$B:$AC,16,0) -> 30 | T28: 263.52 | U28: =VLOOKUP($F28,ZMM_Plst!$B:$AC,6,0) -> 4.5 | V28: =VLOOKUP($F28,ZMM_Plst!$B:$AC,7,0) -> 1.22 | W28: =VLOOKUP($F28,ZMM_Plst!$B:$AC,5,0) -> 0.08
A29: =IF($F29<>"",VLOOKUP(F29,Pricing!$A:$F,6,FALSE),"") -> GW | B29: =IF($F29<>"",VLOOKUP(F29,Pricing!$A:$F,5,FALSE),"") -> LW | C29: =IF($F29<>"",VLOOKUP(Проектные!$F29,Pricing!$A:$F,3,FALSE),"") -> Frame R34 | D29: =VLOOKUP(C29,конструктив!A:B,2,0) -> Каркасы | E29: =IF($F29<>"",VLOOKUP(F29,Pricing!$A:$F,4,FALSE),"") -> Yegorevsk | F29: =IF(Pricing!A22<>"",Pricing!A22,"") -> 67260 | G29: =IF(F29<>"",VLOOKUP(F29,Pricing!$A:$B,2,FALSE),"") -> Каркас-М34-ТВИН-50/1220х4500/Е/К | H29: =IFERROR(IF($A$1,VLOOKUP(F29,'Pricing pick up'!$A:$CM,MATCH(Проектные!$G$3,'Pricing pick up'!$2:$2,0),0),VLOOKUP(F29,Pricing!$A:$CL,MATCH(Проектные!$G$3,Pricing!$2:$2,0),0)),"не возим") -> 2647.092467 | I29: =IFERROR(IF($B$1,VLOOKUP(CONCATENATE($E29,$G$3),Tariffs_!A:H,8,0),VLOOKUP(CONCATENATE($E29,$G$3),Tariffs_!A:G,6,0)),"-") -> 0 | J29: =IFERROR(IF($B$1,VLOOKUP(CONCATENATE($E29,$G$3),Tariffs_!A:I,9,0)*VLOOKUP($F29,ZMM_Plst!$B:$K,8,0)/VLOOKUP($F29,ZMM_Plst!$B:$K,10,0)*1.2,VLOOKUP(CONCATENATE($E29,$G$3),Tariffs_!A:G,7,0)*VLOOKUP($F29,ZMM_Plst!$B:$K,8,0)/VLOOKUP($F29,ZMM_Plst!$B:$K,10,0)*1.2),"-") -> 0 | K29: 2205.910389 | L29: =VLOOKUP($F29,ZMM_Plst!$B:$AA,26,0) -> B | M29: 10.98 | N29: 0.549 | O29: =VLOOKUP($F29,ZMM_Plst!$B:$AC,17,0) -> 2 | P29: =VLOOKUP($F29,ZMM_Plst!$B:$AC,9,0) -> 274.5 | Q29: =VLOOKUP($F29,ZMM_Plst!$B:$AC,10,0) -> 13.725 | R29: =VLOOKUP($F29,ZMM_Plst!$B:$AC,8,0) -> 4.18 | S29: =VLOOKUP($F29,ZMM_Plst!$B:$AC,16,0) -> 25 | T29: 302.0813397 | U29: =VLOOKUP($F29,ZMM_Plst!$B:$AC,6,0) -> 4.5 | V29: =VLOOKUP($F29,ZMM_Plst!$B:$AC,7,0) -> 1.22 | W29: =VLOOKUP($F29,ZMM_Plst!$B:$AC,5,0) -> 0.05
A30: =IF($F30<>"",VLOOKUP(F30,Pricing!$A:$F,6,FALSE),"") -> GW | B30: =IF($F30<>"",VLOOKUP(F30,Pricing!$A:$F,5,FALSE),"") -> LW | C30: =IF($F30<>"",VLOOKUP(Проектные!$F30,Pricing!$A:$F,3,FALSE),"") -> Frame R34 | D30: =VLOOKUP(C30,конструктив!A:B,2,0) -> Каркасы | E30: =IF($F30<>"",VLOOKUP(F30,Pricing!$A:$F,4,FALSE),"") -> Yegorevsk | F30: =IF(Pricing!A23<>"",Pricing!A23,"") -> 67262 | G30: =IF(F30<>"",VLOOKUP(F30,Pricing!$A:$B,2,FALSE),"") -> Каркас-М34-150/565х6000/Е/К | H30: =IFERROR(IF($A$1,VLOOKUP(F30,'Pricing pick up'!$A:$CM,MATCH(Проектные!$G$3,'Pricing pick up'!$2:$2,0),0),VLOOKUP(F30,Pricing!$A:$CL,MATCH(Проектные!$G$3,Pricing!$2:$2,0),0)),"не возим") -> 2647.092467 | I30: =IFERROR(IF($B$1,VLOOKUP(CONCATENATE($E30,$G$3),Tariffs_!A:H,8,0),VLOOKUP(CONCATENATE($E30,$G$3),Tariffs_!A:G,6,0)),"-") -> 0 | J30: =IFERROR(IF($B$1,VLOOKUP(CONCATENATE($E30,$G$3),Tariffs_!A:I,9,0)*VLOOKUP($F30,ZMM_Plst!$B:$K,8,0)/VLOOKUP($F30,ZMM_Plst!$B:$K,10,0)*1.2,VLOOKUP(CONCATENATE($E30,$G$3),Tariffs_!A:G,7,0)*VLOOKUP($F30,ZMM_Plst!$B:$K,8,0)/VLOOKUP($F30,ZMM_Plst!$B:$K,10,0)*1.2),"-") -> 0 | K30: 2205.910389 | L30: =VLOOKUP($F30,ZMM_Plst!$B:$AA,26,0) -> B | M30: 6.78 | N30: 1.017 | O30: =VLOOKUP($F30,ZMM_Plst!$B:$AC,17,0) -> 2 | P30: =VLOOKUP($F30,ZMM_Plst!$B:$AC,9,0) -> 81.36 | Q30: =VLOOKUP($F30,ZMM_Plst!$B:$AC,10,0) -> 12.204 | R30: =VLOOKUP($F30,ZMM_Plst!$B:$AC,8,0) -> 4.181 | S30: =VLOOKUP($F30,ZMM_Plst!$B:$AC,16,0) -> 12 | T30: 268.5405405 | U30: =VLOOKUP($F30,ZMM_Plst!$B:$AC,6,0) -> 6 | V30: =VLOOKUP($F30,ZMM_Plst!$B:$AC,7,0) -> 0.565 | W30: =VLOOKUP($F30,ZMM_Plst!$B:$AC,5,0) -> 0.15
A31: =IF($F31<>"",VLOOKUP(F31,Pricing!$A:$F,6,FALSE),"") -> GW | B31: =IF($F31<>"",VLOOKUP(F31,Pricing!$A:$F,5,FALSE),"") -> LW | C31: =IF($F31<>"",VLOOKUP(Проектные!$F31,Pricing!$A:$F,3,FALSE),"") -> Frame R34 | D31: =VLOOKUP(C31,конструктив!A:B,2,0) -> Каркасы | E31: =IF($F31<>"",VLOOKUP(F31,Pricing!$A:$F,4,FALSE),"") -> Yegorevsk | F31: =IF(Pricing!A24<>"",Pricing!A24,"") -> 67264 | G31: =IF(F31<>"",VLOOKUP(F31,Pricing!$A:$B,2,FALSE),"") -> Каркас-М34-50/610х9000/Е/К | H31: =IFERROR(IF($A$1,VLOOKUP(F31,'Pricing pick up'!$A:$CM,MATCH(Проектные!$G$3,'Pricing pick up'!$2:$2,0),0),VLOOKUP(F31,Pricing!$A:$CL,MATCH(Проектные!$G$3,Pricing!$2:$2,0),0)),"не возим") -> 2647.092467 | I31: =IFERROR(IF($B$1,VLOOKUP(CONCATENATE($E31,$G$3),Tariffs_!A:H,8,0),VLOOKUP(CONCATENATE($E31,$G$3),Tariffs_!A:G,6,0)),"-") -> 0 | J31: =IFERROR(IF($B$1,VLOOKUP(CONCATENATE($E31,$G$3),Tariffs_!A:I,9,0)*VLOOKUP($F31,ZMM_Plst!$B:$K,8,0)/VLOOKUP($F31,ZMM_Plst!$B:$K,10,0)*1.2,VLOOKUP(CONCATENATE($E31,$G$3),Tariffs_!A:G,7,0)*VLOOKUP($F31,ZMM_Plst!$B:$K,8,0)/VLOOKUP($F31,ZMM_Plst!$B:$K,10,0)*1.2),"-") -> 0 | K31: 2205.910389 | L31: =VLOOKUP($F31,ZMM_Plst!$B:$AA,26,0) -> B | M31: 274.5 | N31: 13.73 | O31: =VLOOKUP($F31,ZMM_Plst!$B:$AC,17,0) -> 50 | P31: =VLOOKUP($F31,ZMM_Plst!$B:$AC,9,0) -> 274.5 | Q31: =VLOOKUP($F31,ZMM_Plst!$B:$AC,10,0) -> 13.73 | R31: =VLOOKUP($F31,ZMM_Plst!$B:$AC,8,0) -> 4.6 | S31: =VLOOKUP($F31,ZMM_Plst!$B:$AC,16,0) -> 1 | T31: 274.6 | U31: =VLOOKUP($F31,ZMM_Plst!$B:$AC,6,0) -> 9 | V31: =VLOOKUP($F31,ZMM_Plst!$B:$AC,7,0) -> 0.61 | W31: =VLOOKUP($F31,ZMM_Plst!$B:$AC,5,0) -> 0.05
A32: =IF($F32<>"",VLOOKUP(F32,Pricing!$A:$F,6,FALSE),"") -> GW | B32: =IF($F32<>"",VLOOKUP(F32,Pricing!$A:$F,5,FALSE),"") -> LW | C32: =IF($F32<>"",VLOOKUP(Проектные!$F32,Pricing!$A:$F,3,FALSE),"") -> Frame R34 | D32: =VLOOKUP(C32,конструктив!A:B,2,0) -> Каркасы | E32: =IF($F32<>"",VLOOKUP(F32,Pricing!$A:$F,4,FALSE),"") -> Yegorevsk | F32: =IF(Pricing!A25<>"",Pricing!A25,"") -> 67265 | G32: =IF(F32<>"",VLOOKUP(F32,Pricing!$A:$B,2,FALSE),"") -> Каркас-М34-50/1220х9000/Е/К | H32: =IFERROR(IF($A$1,VLOOKUP(F32,'Pricing pick up'!$A:$CM,MATCH(Проектные!$G$3,'Pricing pick up'!$2:$2,0),0),VLOOKUP(F32,Pricing!$A:$CL,MATCH(Проектные!$G$3,Pricing!$2:$2,0),0)),"не возим") -> 2647.092467 | I32: =IFERROR(IF($B$1,VLOOKUP(CONCATENATE($E32,$G$3),Tariffs_!A:H,8,0),VLOOKUP(CONCATENATE($E32,$G$3),Tariffs_!A:G,6,0)),"-") -> 0 | J32: =IFERROR(IF($B$1,VLOOKUP(CONCATENATE($E32,$G$3),Tariffs_!A:I,9,0)*VLOOKUP($F32,ZMM_Plst!$B:$K,8,0)/VLOOKUP($F32,ZMM_Plst!$B:$K,10,0)*1.2,VLOOKUP(CONCATENATE($E32,$G$3),Tariffs_!A:G,7,0)*VLOOKUP($F32,ZMM_Plst!$B:$K,8,0)/VLOOKUP($F32,ZMM_Plst!$B:$K,10,0)*1.2),"-") -> 0 | K32: 2205.910389 | L32: =VLOOKUP($F32,ZMM_Plst!$B:$AA,26,0) -> B | M32: 10.98 | N32: 0.549 | O32: =VLOOKUP($F32,ZMM_Plst!$B:$AC,17,0) -> 1 | P32: =VLOOKUP($F32,ZMM_Plst!$B:$AC,9,0) -> 329.4 | Q32: =VLOOKUP($F32,ZMM_Plst!$B:$AC,10,0) -> 16.47 | R32: =VLOOKUP($F32,ZMM_Plst!$B:$AC,8,0) -> 4.6 | S32: =VLOOKUP($F32,ZMM_Plst!$B:$AC,16,0) -> 30 | T32: 329.4 | U32: =VLOOKUP($F32,ZMM_Plst!$B:$AC,6,0) -> 9 | V32: =VLOOKUP($F32,ZMM_Plst!$B:$AC,7,0) -> 1.22 | W32: =VLOOKUP($F32,ZMM_Plst!$B:$AC,5,0) -> 0.05
A33: =IF($F33<>"",VLOOKUP(F33,Pricing!$A:$F,6,FALSE),"") -> GW | B33: =IF($F33<>"",VLOOKUP(F33,Pricing!$A:$F,5,FALSE),"") -> LW | C33: =IF($F33<>"",VLOOKUP(Проектные!$F33,Pricing!$A:$F,3,FALSE),"") -> Frame R34 | D33: =VLOOKUP(C33,конструктив!A:B,2,0) -> Каркасы | E33: =IF($F33<>"",VLOOKUP(F33,Pricing!$A:$F,4,FALSE),"") -> Yegorevsk | F33: =IF(Pricing!A26<>"",Pricing!A26,"") -> 67266 | G33: =IF(F33<>"",VLOOKUP(F33,Pricing!$A:$B,2,FALSE),"") -> Каркас-М34-150/570х6000/Е/К | H33: =IFERROR(IF($A$1,VLOOKUP(F33,'Pricing pick up'!$A:$CM,MATCH(Проектные!$G$3,'Pricing pick up'!$2:$2,0),0),VLOOKUP(F33,Pricing!$A:$CL,MATCH(Проектные!$G$3,Pricing!$2:$2,0),0)),"не возим") -> 2647.092467 | I33: =IFERROR(IF($B$1,VLOOKUP(CONCATENATE($E33,$G$3),Tariffs_!A:H,8,0),VLOOKUP(CONCATENATE($E33,$G$3),Tariffs_!A:G,6,0)),"-") -> 0 | J33: =IFERROR(IF($B$1,VLOOKUP(CONCATENATE($E33,$G$3),Tariffs_!A:I,9,0)*VLOOKUP($F33,ZMM_Plst!$B:$K,8,0)/VLOOKUP($F33,ZMM_Plst!$B:$K,10,0)*1.2,VLOOKUP(CONCATENATE($E33,$G$3),Tariffs_!A:G,7,0)*VLOOKUP($F33,ZMM_Plst!$B:$K,8,0)/VLOOKUP($F33,ZMM_Plst!$B:$K,10,0)*1.2),"-") -> 0 | K33: 2205.910389 | L33: =VLOOKUP($F33,ZMM_Plst!$B:$AA,26,0) -> B | M33: 6.84 | N33: 1.026 | O33: =VLOOKUP($F33,ZMM_Plst!$B:$AC,17,0) -> 2 | P33: =VLOOKUP($F33,ZMM_Plst!$B:$AC,9,0) -> 82.08 | Q33: =VLOOKUP($F33,ZMM_Plst!$B:$AC,10,0) -> 12.312 | R33: =VLOOKUP($F33,ZMM_Plst!$B:$AC,8,0) -> 4.181 | S33: =VLOOKUP($F33,ZMM_Plst!$B:$AC,16,0) -> 12 | T33: 270.9170055 | U33: =VLOOKUP($F33,ZMM_Plst!$B:$AC,6,0) -> 6 | V33: =VLOOKUP($F33,ZMM_Plst!$B:$AC,7,0) -> 0.57 | W33: =VLOOKUP($F33,ZMM_Plst!$B:$AC,5,0) -> 0.15
A34: =IF($F34<>"",VLOOKUP(F34,Pricing!$A:$F,6,FALSE),"") -> GW | B34: =IF($F34<>"",VLOOKUP(F34,Pricing!$A:$F,5,FALSE),"") -> LW | C34: =IF($F34<>"",VLOOKUP(Проектные!$F34,Pricing!$A:$F,3,FALSE),"") -> Frame R34 | D34: =VLOOKUP(C34,конструктив!A:B,2,0) -> Каркасы | E34: =IF($F34<>"",VLOOKUP(F34,Pricing!$A:$F,4,FALSE),"") -> Yegorevsk | F34: =IF(Pricing!A27<>"",Pricing!A27,"") -> 67267 | G34: =IF(F34<>"",VLOOKUP(F34,Pricing!$A:$B,2,FALSE),"") -> Каркас-М34-50/610х9000/Е/К | H34: =IFERROR(IF($A$1,VLOOKUP(F34,'Pricing pick up'!$A:$CM,MATCH(Проектные!$G$3,'Pricing pick up'!$2:$2,0),0),VLOOKUP(F34,Pricing!$A:$CL,MATCH(Проектные!$G$3,Pricing!$2:$2,0),0)),"не возим") -> 2647.092467 | I34: =IFERROR(IF($B$1,VLOOKUP(CONCATENATE($E34,$G$3),Tariffs_!A:H,8,0),VLOOKUP(CONCATENATE($E34,$G$3),Tariffs_!A:G,6,0)),"-") -> 0 | J34: =IFERROR(IF($B$1,VLOOKUP(CONCATENATE($E34,$G$3),Tariffs_!A:I,9,0)*VLOOKUP($F34,ZMM_Plst!$B:$K,8,0)/VLOOKUP($F34,ZMM_Plst!$B:$K,10,0)*1.2,VLOOKUP(CONCATENATE($E34,$G$3),Tariffs_!A:G,7,0)*VLOOKUP($F34,ZMM_Plst!$B:$K,8,0)/VLOOKUP($F34,ZMM_Plst!$B:$K,10,0)*1.2),"-") -> 0 | K34: 2205.910389 | L34: =VLOOKUP($F34,ZMM_Plst!$B:$AA,26,0) -> B | M34: 329.4 | N34: 16.47 | O34: =VLOOKUP($F34,ZMM_Plst!$B:$AC,17,0) -> 60 | P34: =VLOOKUP($F34,ZMM_Plst!$B:$AC,9,0) -> 329.4 | Q34: =VLOOKUP($F34,ZMM_Plst!$B:$AC,10,0) -> 16.47 | R34: =VLOOKUP($F34,ZMM_Plst!$B:$AC,8,0) -> 4.6 | S34: =VLOOKUP($F34,ZMM_Plst!$B:$AC,16,0) -> 1 | T34: 329.4 | U34: =VLOOKUP($F34,ZMM_Plst!$B:$AC,6,0) -> 9 | V34: =VLOOKUP($F34,ZMM_Plst!$B:$AC,7,0) -> 0.61 | W34: =VLOOKUP($F34,ZMM_Plst!$B:$AC,5,0) -> 0.05
A35: =IF($F35<>"",VLOOKUP(F35,Pricing!$A:$F,6,FALSE),"") -> GW | B35: =IF($F35<>"",VLOOKUP(F35,Pricing!$A:$F,5,FALSE),"") -> LW | C35: =IF($F35<>"",VLOOKUP(Проектные!$F35,Pricing!$A:$F,3,FALSE),"") -> Frame R37 | D35: =VLOOKUP(C35,конструктив!A:B,2,0) -> Каркасы | E35: =IF($F35<>"",VLOOKUP(F35,Pricing!$A:$F,4,FALSE),"") -> Yegorevsk | F35: =IF(Pricing!A28<>"",Pricing!A28,"") -> 67219 | G35: =IF(F35<>"",VLOOKUP(F35,Pricing!$A:$B,2,FALSE),"") -> Каркас-М37-40/1200х22000/Е/К | H35: =IFERROR(IF($A$1,VLOOKUP(F35,'Pricing pick up'!$A:$CM,MATCH(Проектные!$G$3,'Pricing pick up'!$2:$2,0),0),VLOOKUP(F35,Pricing!$A:$CL,MATCH(Проектные!$G$3,Pricing!$2:$2,0),0)),"не возим") -> 2190.723353 | I35: =IFERROR(IF($B$1,VLOOKUP(CONCATENATE($E35,$G$3),Tariffs_!A:H,8,0),VLOOKUP(CONCATENATE($E35,$G$3),Tariffs_!A:G,6,0)),"-") -> 0 | J35: =IFERROR(IF($B$1,VLOOKUP(CONCATENATE($E35,$G$3),Tariffs_!A:I,9,0)*VLOOKUP($F35,ZMM_Plst!$B:$K,8,0)/VLOOKUP($F35,ZMM_Plst!$B:$K,10,0)*1.2,VLOOKUP(CONCATENATE($E35,$G$3),Tariffs_!A:G,7,0)*VLOOKUP($F35,ZMM_Plst!$B:$K,8,0)/VLOOKUP($F35,ZMM_Plst!$B:$K,10,0)*1.2),"-") -> 0 | K35: 1825.602794 | L35: =VLOOKUP($F35,ZMM_Plst!$B:$AA,26,0) -> B | M35: 26.41666667 | N35: 1.056 | O35: =VLOOKUP($F35,ZMM_Plst!$B:$AC,17,0) -> 1 | P35: =VLOOKUP($F35,ZMM_Plst!$B:$AC,9,0) -> 317 | Q35: =VLOOKUP($F35,ZMM_Plst!$B:$AC,10,0) -> 12.672 | R35: =VLOOKUP($F35,ZMM_Plst!$B:$AC,8,0) -> 4.181 | S35: =VLOOKUP($F35,ZMM_Plst!$B:$AC,16,0) -> 12 | T35: 278.8385554 | U35: =VLOOKUP($F35,ZMM_Plst!$B:$AC,6,0) -> 22 | V35: =VLOOKUP($F35,ZMM_Plst!$B:$AC,7,0) -> 1.2 | W35: =VLOOKUP($F35,ZMM_Plst!$B:$AC,5,0) -> 0.04
A36: =IF($F36<>"",VLOOKUP(F36,Pricing!$A:$F,6,FALSE),"") -> GW | B36: =IF($F36<>"",VLOOKUP(F36,Pricing!$A:$F,5,FALSE),"") -> LW | C36: =IF($F36<>"",VLOOKUP(Проектные!$F36,Pricing!$A:$F,3,FALSE),"") -> Frame R37 | D36: =VLOOKUP(C36,конструктив!A:B,2,0) -> Каркасы | E36: =IF($F36<>"",VLOOKUP(F36,Pricing!$A:$F,4,FALSE),"") -> Yegorevsk | F36: =IF(Pricing!A29<>"",Pricing!A29,"") -> 67221 | G36: =IF(F36<>"",VLOOKUP(F36,Pricing!$A:$B,2,FALSE),"") -> Каркас-М37-ТВИН-50/1220х6000/Е/К | H36: =IFERROR(IF($A$1,VLOOKUP(F36,'Pricing pick up'!$A:$CM,MATCH(Проектные!$G$3,'Pricing pick up'!$2:$2,0),0),VLOOKUP(F36,Pricing!$A:$CL,MATCH(Проектные!$G$3,Pricing!$2:$2,0),0)),"не возим") -> 2403.646245 | I36: =IFERROR(IF($B$1,VLOOKUP(CONCATENATE($E36,$G$3),Tariffs_!A:H,8,0),VLOOKUP(CONCATENATE($E36,$G$3),Tariffs_!A:G,6,0)),"-") -> 0 | J36: =IFERROR(IF($B$1,VLOOKUP(CONCATENATE($E36,$G$3),Tariffs_!A:I,9,0)*VLOOKUP($F36,ZMM_Plst!$B:$K,8,0)/VLOOKUP($F36,ZMM_Plst!$B:$K,10,0)*1.2,VLOOKUP(CONCATENATE($E36,$G$3),Tariffs_!A:G,7,0)*VLOOKUP($F36,ZMM_Plst!$B:$K,8,0)/VLOOKUP($F36,ZMM_Plst!$B:$K,10,0)*1.2),"-") -> 0 | K36: 2003.038538 | L36: =VLOOKUP($F36,ZMM_Plst!$B:$AA,26,0) -> A | M36: 14.64 | N36: 0.732 | O36: =VLOOKUP($F36,ZMM_Plst!$B:$AC,17,0) -> 2 | P36: =VLOOKUP($F36,ZMM_Plst!$B:$AC,9,0) -> 366 | Q36: =VLOOKUP($F36,ZMM_Plst!$B:$AC,10,0) -> 18.3 | R36: =VLOOKUP($F36,ZMM_Plst!$B:$AC,8,0) -> 4.181 | S36: =VLOOKUP($F36,ZMM_Plst!$B:$AC,16,0) -> 25 | T36: 402.678785 | U36: =VLOOKUP($F36,ZMM_Plst!$B:$AC,6,0) -> 6 | V36: =VLOOKUP($F36,ZMM_Plst!$B:$AC,7,0) -> 1.22 | W36: =VLOOKUP($F36,ZMM_Plst!$B:$AC,5,0) -> 0.05
A37: =IF($F37<>"",VLOOKUP(F37,Pricing!$A:$F,6,FALSE),"") -> GW | B37: =IF($F37<>"",VLOOKUP(F37,Pricing!$A:$F,5,FALSE),"") -> LW | C37: =IF($F37<>"",VLOOKUP(Проектные!$F37,Pricing!$A:$F,3,FALSE),"") -> Frame R37 | D37: =VLOOKUP(C37,конструктив!A:B,2,0) -> Каркасы | E37: =IF($F37<>"",VLOOKUP(F37,Pricing!$A:$F,4,FALSE),"") -> Yegorevsk | F37: =IF(Pricing!A30<>"",Pricing!A30,"") -> 67222 | G37: =IF(F37<>"",VLOOKUP(F37,Pricing!$A:$B,2,FALSE),"") -> Каркас-М37-ТВИН-50/1220х9000/Е/К | H37: =IFERROR(IF($A$1,VLOOKUP(F37,'Pricing pick up'!$A:$CM,MATCH(Проектные!$G$3,'Pricing pick up'!$2:$2,0),0),VLOOKUP(F37,Pricing!$A:$CL,MATCH(Проектные!$G$3,Pricing!$2:$2,0),0)),"не возим") -> 2403.646245 | I37: =IFERROR(IF($B$1,VLOOKUP(CONCATENATE($E37,$G$3),Tariffs_!A:H,8,0),VLOOKUP(CONCATENATE($E37,$G$3),Tariffs_!A:G,6,0)),"-") -> 0 | J37: =IFERROR(IF($B$1,VLOOKUP(CONCATENATE($E37,$G$3),Tariffs_!A:I,9,0)*VLOOKUP($F37,ZMM_Plst!$B:$K,8,0)/VLOOKUP($F37,ZMM_Plst!$B:$K,10,0)*1.2,VLOOKUP(CONCATENATE($E37,$G$3),Tariffs_!A:G,7,0)*VLOOKUP($F37,ZMM_Plst!$B:$K,8,0)/VLOOKUP($F37,ZMM_Plst!$B:$K,10,0)*1.2),"-") -> 0 | K37: 2003.038538 | L37: =VLOOKUP($F37,ZMM_Plst!$B:$AA,26,0) -> B | M37: 263.52 | N37: 13.176 | O37: =VLOOKUP($F37,ZMM_Plst!$B:$AC,17,0) -> 24 | P37: =VLOOKUP($F37,ZMM_Plst!$B:$AC,9,0) -> 263.52 | Q37: =VLOOKUP($F37,ZMM_Plst!$B:$AC,10,0) -> 13.176 | R37: =VLOOKUP($F37,ZMM_Plst!$B:$AC,8,0) -> 4.181 | S37: =VLOOKUP($F37,ZMM_Plst!$B:$AC,16,0) -> 1 | T37: 289.9287252 | U37: =VLOOKUP($F37,ZMM_Plst!$B:$AC,6,0) -> 9 | V37: =VLOOKUP($F37,ZMM_Plst!$B:$AC,7,0) -> 1.22 | W37: =VLOOKUP($F37,ZMM_Plst!$B:$AC,5,0) -> 0.05
A38: =IF($F38<>"",VLOOKUP(F38,Pricing!$A:$F,6,FALSE),"") -> GW | B38: =IF($F38<>"",VLOOKUP(F38,Pricing!$A:$F,5,FALSE),"") -> LW | C38: =IF($F38<>"",VLOOKUP(Проектные!$F38,Pricing!$A:$F,3,FALSE),"") -> Frame R37 | D38: =VLOOKUP(C38,конструктив!A:B,2,0) -> Каркасы | E38: =IF($F38<>"",VLOOKUP(F38,Pricing!$A:$F,4,FALSE),"") -> Yegorevsk | F38: =IF(Pricing!A31<>"",Pricing!A31,"") -> 67224 | G38: =IF(F38<>"",VLOOKUP(F38,Pricing!$A:$B,2,FALSE),"") -> Каркас-М37-60/1200х16500/Е/К | H38: =IFERROR(IF($A$1,VLOOKUP(F38,'Pricing pick up'!$A:$CM,MATCH(Проектные!$G$3,'Pricing pick up'!$2:$2,0),0),VLOOKUP(F38,Pricing!$A:$CL,MATCH(Проектные!$G$3,Pricing!$2:$2,0),0)),"не возим") -> 2403.646245 | I38: =IFERROR(IF($B$1,VLOOKUP(CONCATENATE($E38,$G$3),Tariffs_!A:H,8,0),VLOOKUP(CONCATENATE($E38,$G$3),Tariffs_!A:G,6,0)),"-") -> 0 | J38: =IFERROR(IF($B$1,VLOOKUP(CONCATENATE($E38,$G$3),Tariffs_!A:I,9,0)*VLOOKUP($F38,ZMM_Plst!$B:$K,8,0)/VLOOKUP($F38,ZMM_Plst!$B:$K,10,0)*1.2,VLOOKUP(CONCATENATE($E38,$G$3),Tariffs_!A:G,7,0)*VLOOKUP($F38,ZMM_Plst!$B:$K,8,0)/VLOOKUP($F38,ZMM_Plst!$B:$K,10,0)*1.2),"-") -> 0 | K38: 2003.038538 | L38: =VLOOKUP($F38,ZMM_Plst!$B:$AA,26,0) -> B | M38: 19.8 | N38: 1.188333333 | O38: =VLOOKUP($F38,ZMM_Plst!$B:$AC,17,0) ->  | P38: =VLOOKUP($F38,ZMM_Plst!$B:$AC,9,0) -> 237.6 | Q38: =VLOOKUP($F38,ZMM_Plst!$B:$AC,10,0) -> 14.26 | R38: =VLOOKUP($F38,ZMM_Plst!$B:$AC,8,0) -> 4.181 | S38: =VLOOKUP($F38,ZMM_Plst!$B:$AC,16,0) -> 12 | T38: 313.781392 | U38: =VLOOKUP($F38,ZMM_Plst!$B:$AC,6,0) -> 16.5 | V38: =VLOOKUP($F38,ZMM_Plst!$B:$AC,7,0) -> 1.2 | W38: =VLOOKUP($F38,ZMM_Plst!$B:$AC,5,0) -> 0.06
A39: =IF($F39<>"",VLOOKUP(F39,Pricing!$A:$F,6,FALSE),"") -> GW | B39: =IF($F39<>"",VLOOKUP(F39,Pricing!$A:$F,5,FALSE),"") -> LW | C39: =IF($F39<>"",VLOOKUP(Проектные!$F39,Pricing!$A:$F,3,FALSE),"") -> Frame R37 | D39: =VLOOKUP(C39,конструктив!A:B,2,0) -> Каркасы | E39: =IF($F39<>"",VLOOKUP(F39,Pricing!$A:$F,4,FALSE),"") -> Yegorevsk | F39: =IF(Pricing!A32<>"",Pricing!A32,"") -> 67226 | G39: =IF(F39<>"",VLOOKUP(F39,Pricing!$A:$B,2,FALSE),"") -> Каркас-М37-ТВИН-70/1220х4200/Е/К | H39: =IFERROR(IF($A$1,VLOOKUP(F39,'Pricing pick up'!$A:$CM,MATCH(Проектные!$G$3,'Pricing pick up'!$2:$2,0),0),VLOOKUP(F39,Pricing!$A:$CL,MATCH(Проектные!$G$3,Pricing!$2:$2,0),0)),"не возим") -> 2403.646245 | I39: =IFERROR(IF($B$1,VLOOKUP(CONCATENATE($E39,$G$3),Tariffs_!A:H,8,0),VLOOKUP(CONCATENATE($E39,$G$3),Tariffs_!A:G,6,0)),"-") -> 0 | J39: =IFERROR(IF($B$1,VLOOKUP(CONCATENATE($E39,$G$3),Tariffs_!A:I,9,0)*VLOOKUP($F39,ZMM_Plst!$B:$K,8,0)/VLOOKUP($F39,ZMM_Plst!$B:$K,10,0)*1.2,VLOOKUP(CONCATENATE($E39,$G$3),Tariffs_!A:G,7,0)*VLOOKUP($F39,ZMM_Plst!$B:$K,8,0)/VLOOKUP($F39,ZMM_Plst!$B:$K,10,0)*1.2),"-") -> 0 | K39: 2003.038538 | L39: =VLOOKUP($F39,ZMM_Plst!$B:$AA,26,0) -> B | M39: 10.248 | N39: 0.71736 | O39: =VLOOKUP($F39,ZMM_Plst!$B:$AC,17,0) -> 2 | P39: =VLOOKUP($F39,ZMM_Plst!$B:$AC,9,0) -> 256.2 | Q39: =VLOOKUP($F39,ZMM_Plst!$B:$AC,10,0) -> 17.934 | R39: =VLOOKUP($F39,ZMM_Plst!$B:$AC,8,0) -> 4.181 | S39: =VLOOKUP($F39,ZMM_Plst!$B:$AC,16,0) -> 25 | T39: 394.6252093 | U39: =VLOOKUP($F39,ZMM_Plst!$B:$AC,6,0) -> 4.2 | V39: =VLOOKUP($F39,ZMM_Plst!$B:$AC,7,0) -> 1.22 | W39: =VLOOKUP($F39,ZMM_Plst!$B:$AC,5,0) -> 0.07
A40: =IF($F40<>"",VLOOKUP(F40,Pricing!$A:$F,6,FALSE),"") -> GW | B40: =IF($F40<>"",VLOOKUP(F40,Pricing!$A:$F,5,FALSE),"") -> LW | C40: =IF($F40<>"",VLOOKUP(Проектные!$F40,Pricing!$A:$F,3,FALSE),"") -> Frame R37 | D40: =VLOOKUP(C40,конструктив!A:B,2,0) -> Каркасы | E40: =IF($F40<>"",VLOOKUP(F40,Pricing!$A:$F,4,FALSE),"") -> Yegorevsk | F40: =IF(Pricing!A33<>"",Pricing!A33,"") -> 67227 | G40: =IF(F40<>"",VLOOKUP(F40,Pricing!$A:$B,2,FALSE),"") -> Каркас-М37-80/1200х12500/Е/К | H40: =IFERROR(IF($A$1,VLOOKUP(F40,'Pricing pick up'!$A:$CM,MATCH(Проектные!$G$3,'Pricing pick up'!$2:$2,0),0),VLOOKUP(F40,Pricing!$A:$CL,MATCH(Проектные!$G$3,Pricing!$2:$2,0),0)),"не возим") -> 2403.646245 | I40: =IFERROR(IF($B$1,VLOOKUP(CONCATENATE($E40,$G$3),Tariffs_!A:H,8,0),VLOOKUP(CONCATENATE($E40,$G$3),Tariffs_!A:G,6,0)),"-") -> 0 | J40: =IFERROR(IF($B$1,VLOOKUP(CONCATENATE($E40,$G$3),Tariffs_!A:I,9,0)*VLOOKUP($F40,ZMM_Plst!$B:$K,8,0)/VLOOKUP($F40,ZMM_Plst!$B:$K,10,0)*1.2,VLOOKUP(CONCATENATE($E40,$G$3),Tariffs_!A:G,7,0)*VLOOKUP($F40,ZMM_Plst!$B:$K,8,0)/VLOOKUP($F40,ZMM_Plst!$B:$K,10,0)*1.2),"-") -> 0 | K40: 2003.038538 | L40: =VLOOKUP($F40,ZMM_Plst!$B:$AA,26,0) -> B | M40: 15 | N40: 1.2 | O40: =VLOOKUP($F40,ZMM_Plst!$B:$AC,17,0) ->  | P40: =VLOOKUP($F40,ZMM_Plst!$B:$AC,9,0) -> 180 | Q40: =VLOOKUP($F40,ZMM_Plst!$B:$AC,10,0) -> 14.4 | R40: =VLOOKUP($F40,ZMM_Plst!$B:$AC,8,0) -> 4.181 | S40: =VLOOKUP($F40,ZMM_Plst!$B:$AC,16,0) -> 12 | T40: 316.8619947 | U40: =VLOOKUP($F40,ZMM_Plst!$B:$AC,6,0) -> 12.5 | V40: =VLOOKUP($F40,ZMM_Plst!$B:$AC,7,0) -> 1.2 | W40: =VLOOKUP($F40,ZMM_Plst!$B:$AC,5,0) -> 0.08
A41: =IF($F41<>"",VLOOKUP(F41,Pricing!$A:$F,6,FALSE),"") -> GW | B41: =IF($F41<>"",VLOOKUP(F41,Pricing!$A:$F,5,FALSE),"") -> LW | C41: =IF($F41<>"",VLOOKUP(Проектные!$F41,Pricing!$A:$F,3,FALSE),"") -> Frame R37 | D41: =VLOOKUP(C41,конструктив!A:B,2,0) -> Каркасы | E41: =IF($F41<>"",VLOOKUP(F41,Pricing!$A:$F,4,FALSE),"") -> Yegorevsk | F41: =IF(Pricing!A34<>"",Pricing!A34,"") -> 67229 | G41: =IF(F41<>"",VLOOKUP(F41,Pricing!$A:$B,2,FALSE),"") -> Каркас-М37 50/1220х12000/Е/К | H41: =IFERROR(IF($A$1,VLOOKUP(F41,'Pricing pick up'!$A:$CM,MATCH(Проектные!$G$3,'Pricing pick up'!$2:$2,0),0),VLOOKUP(F41,Pricing!$A:$CL,MATCH(Проектные!$G$3,Pricing!$2:$2,0),0)),"не возим") -> 2403.646245 | I41: =IFERROR(IF($B$1,VLOOKUP(CONCATENATE($E41,$G$3),Tariffs_!A:H,8,0),VLOOKUP(CONCATENATE($E41,$G$3),Tariffs_!A:G,6,0)),"-") -> 0 | J41: =IFERROR(IF($B$1,VLOOKUP(CONCATENATE($E41,$G$3),Tariffs_!A:I,9,0)*VLOOKUP($F41,ZMM_Plst!$B:$K,8,0)/VLOOKUP($F41,ZMM_Plst!$B:$K,10,0)*1.2,VLOOKUP(CONCATENATE($E41,$G$3),Tariffs_!A:G,7,0)*VLOOKUP($F41,ZMM_Plst!$B:$K,8,0)/VLOOKUP($F41,ZMM_Plst!$B:$K,10,0)*1.2),"-") -> 0 | K41: 2003.038538 | L41: =VLOOKUP($F41,ZMM_Plst!$B:$AA,26,0) -> B | M41: 14.64 | N41: 0.732 | O41: =VLOOKUP($F41,ZMM_Plst!$B:$AC,17,0) -> 1 | P41: =VLOOKUP($F41,ZMM_Plst!$B:$AC,9,0) -> 234.24 | Q41: =VLOOKUP($F41,ZMM_Plst!$B:$AC,10,0) -> 11.712 | R41: =VLOOKUP($F41,ZMM_Plst!$B:$AC,8,0) -> 4.181 | S41: =VLOOKUP($F41,ZMM_Plst!$B:$AC,16,0) -> 16 | T41: 257.7144224 | U41: =VLOOKUP($F41,ZMM_Plst!$B:$AC,6,0) -> 12 | V41: =VLOOKUP($F41,ZMM_Plst!$B:$AC,7,0) -> 1.22 | W41: =VLOOKUP($F41,ZMM_Plst!$B:$AC,5,0) -> 0.05
A42: =IF($F42<>"",VLOOKUP(F42,Pricing!$A:$F,6,FALSE),"") -> GW | B42: =IF($F42<>"",VLOOKUP(F42,Pricing!$A:$F,5,FALSE),"") -> LW | C42: =IF($F42<>"",VLOOKUP(Проектные!$F42,Pricing!$A:$F,3,FALSE),"") -> Frame R37 | D42: =VLOOKUP(C42,конструктив!A:B,2,0) -> Каркасы | E42: =IF($F42<>"",VLOOKUP(F42,Pricing!$A:$F,4,FALSE),"") -> Yegorevsk | F42: =IF(Pricing!A35<>"",Pricing!A35,"") -> 67234 | G42: =IF(F42<>"",VLOOKUP(F42,Pricing!$A:$B,2,FALSE),"") -> Каркас-М37-100/1200х10000/Е/К | H42: =IFERROR(IF($A$1,VLOOKUP(F42,'Pricing pick up'!$A:$CM,MATCH(Проектные!$G$3,'Pricing pick up'!$2:$2,0),0),VLOOKUP(F42,Pricing!$A:$CL,MATCH(Проектные!$G$3,Pricing!$2:$2,0),0)),"не возим") -> 2403.646245 | I42: =IFERROR(IF($B$1,VLOOKUP(CONCATENATE($E42,$G$3),Tariffs_!A:H,8,0),VLOOKUP(CONCATENATE($E42,$G$3),Tariffs_!A:G,6,0)),"-") -> 0 | J42: =IFERROR(IF($B$1,VLOOKUP(CONCATENATE($E42,$G$3),Tariffs_!A:I,9,0)*VLOOKUP($F42,ZMM_Plst!$B:$K,8,0)/VLOOKUP($F42,ZMM_Plst!$B:$K,10,0)*1.2,VLOOKUP(CONCATENATE($E42,$G$3),Tariffs_!A:G,7,0)*VLOOKUP($F42,ZMM_Plst!$B:$K,8,0)/VLOOKUP($F42,ZMM_Plst!$B:$K,10,0)*1.2),"-") -> 0 | K42: 2003.038538 | L42: =VLOOKUP($F42,ZMM_Plst!$B:$AA,26,0) -> A | M42: 12 | N42: 1.2 | O42: =VLOOKUP($F42,ZMM_Plst!$B:$AC,17,0) -> 1 | P42: =VLOOKUP($F42,ZMM_Plst!$B:$AC,9,0) -> 144 | Q42: =VLOOKUP($F42,ZMM_Plst!$B:$AC,10,0) -> 14.4 | R42: =VLOOKUP($F42,ZMM_Plst!$B:$AC,8,0) -> 4.181 | S42: =VLOOKUP($F42,ZMM_Plst!$B:$AC,16,0) -> 12 | T42: 316.8619947 | U42: =VLOOKUP($F42,ZMM_Plst!$B:$AC,6,0) -> 10 | V42: =VLOOKUP($F42,ZMM_Plst!$B:$AC,7,0) -> 1.2 | W42: =VLOOKUP($F42,ZMM_Plst!$B:$AC,5,0) -> 0.1
A43: =IF($F43<>"",VLOOKUP(F43,Pricing!$A:$F,6,FALSE),"") -> GW | B43: =IF($F43<>"",VLOOKUP(F43,Pricing!$A:$F,5,FALSE),"") -> LW | C43: =IF($F43<>"",VLOOKUP(Проектные!$F43,Pricing!$A:$F,3,FALSE),"") -> Frame R37 | D43: =VLOOKUP(C43,конструктив!A:B,2,0) -> Каркасы | E43: =IF($F43<>"",VLOOKUP(F43,Pricing!$A:$F,4,FALSE),"") -> Yegorevsk | F43: =IF(Pricing!A36<>"",Pricing!A36,"") -> 67239 | G43: =IF(F43<>"",VLOOKUP(F43,Pricing!$A:$B,2,FALSE),"") -> Каркас-М37-100/1200х6000/Е/К | H43: =IFERROR(IF($A$1,VLOOKUP(F43,'Pricing pick up'!$A:$CM,MATCH(Проектные!$G$3,'Pricing pick up'!$2:$2,0),0),VLOOKUP(F43,Pricing!$A:$CL,MATCH(Проектные!$G$3,Pricing!$2:$2,0),0)),"не возим") -> 2403.646245 | I43: =IFERROR(IF($B$1,VLOOKUP(CONCATENATE($E43,$G$3),Tariffs_!A:H,8,0),VLOOKUP(CONCATENATE($E43,$G$3),Tariffs_!A:G,6,0)),"-") -> 0 | J43: =IFERROR(IF($B$1,VLOOKUP(CONCATENATE($E43,$G$3),Tariffs_!A:I,9,0)*VLOOKUP($F43,ZMM_Plst!$B:$K,8,0)/VLOOKUP($F43,ZMM_Plst!$B:$K,10,0)*1.2,VLOOKUP(CONCATENATE($E43,$G$3),Tariffs_!A:G,7,0)*VLOOKUP($F43,ZMM_Plst!$B:$K,8,0)/VLOOKUP($F43,ZMM_Plst!$B:$K,10,0)*1.2),"-") -> 0 | K43: 2003.038538 | L43: =VLOOKUP($F43,ZMM_Plst!$B:$AA,26,0) -> B | M43: 7.2 | N43: 0.72 | O43: =VLOOKUP($F43,ZMM_Plst!$B:$AC,17,0) -> 1 | P43: =VLOOKUP($F43,ZMM_Plst!$B:$AC,9,0) -> 216 | Q43: =VLOOKUP($F43,ZMM_Plst!$B:$AC,10,0) -> 21.6 | R43: =VLOOKUP($F43,ZMM_Plst!$B:$AC,8,0) -> 4.181 | S43: =VLOOKUP($F43,ZMM_Plst!$B:$AC,16,0) -> 30 | T43: 475.2929921 | U43: =VLOOKUP($F43,ZMM_Plst!$B:$AC,6,0) -> 6 | V43: =VLOOKUP($F43,ZMM_Plst!$B:$AC,7,0) -> 1.2 | W43: =VLOOKUP($F43,ZMM_Plst!$B:$AC,5,0) -> 0.1
A44: =IF($F44<>"",VLOOKUP(F44,Pricing!$A:$F,6,FALSE),"") -> GW | B44: =IF($F44<>"",VLOOKUP(F44,Pricing!$A:$F,5,FALSE),"") -> LW | C44: =IF($F44<>"",VLOOKUP(Проектные!$F44,Pricing!$A:$F,3,FALSE),"") -> Frame R37 | D44: =VLOOKUP(C44,конструктив!A:B,2,0) -> Каркасы | E44: =IF($F44<>"",VLOOKUP(F44,Pricing!$A:$F,4,FALSE),"") -> Yegorevsk | F44: =IF(Pricing!A37<>"",Pricing!A37,"") -> 67242 | G44: =IF(F44<>"",VLOOKUP(F44,Pricing!$A:$B,2,FALSE),"") -> Каркас-М37-140/1220х4200/Е/К | H44: =IFERROR(IF($A$1,VLOOKUP(F44,'Pricing pick up'!$A:$CM,MATCH(Проектные!$G$3,'Pricing pick up'!$2:$2,0),0),VLOOKUP(F44,Pricing!$A:$CL,MATCH(Проектные!$G$3,Pricing!$2:$2,0),0)),"не возим") -> 2403.646245 | I44: =IFERROR(IF($B$1,VLOOKUP(CONCATENATE($E44,$G$3),Tariffs_!A:H,8,0),VLOOKUP(CONCATENATE($E44,$G$3),Tariffs_!A:G,6,0)),"-") -> 0 | J44: =IFERROR(IF($B$1,VLOOKUP(CONCATENATE($E44,$G$3),Tariffs_!A:I,9,0)*VLOOKUP($F44,ZMM_Plst!$B:$K,8,0)/VLOOKUP($F44,ZMM_Plst!$B:$K,10,0)*1.2,VLOOKUP(CONCATENATE($E44,$G$3),Tariffs_!A:G,7,0)*VLOOKUP($F44,ZMM_Plst!$B:$K,8,0)/VLOOKUP($F44,ZMM_Plst!$B:$K,10,0)*1.2),"-") -> 0 | K44: 2003.038538 | L44: =VLOOKUP($F44,ZMM_Plst!$B:$AA,26,0) -> B | M44: 5.124 | N44: 0.71736 | O44: =VLOOKUP($F44,ZMM_Plst!$B:$AC,17,0) -> 1 | P44: =VLOOKUP($F44,ZMM_Plst!$B:$AC,9,0) -> 128.1 | Q44: =VLOOKUP($F44,ZMM_Plst!$B:$AC,10,0) -> 17.934 | R44: =VLOOKUP($F44,ZMM_Plst!$B:$AC,8,0) -> 4.181 | S44: =VLOOKUP($F44,ZMM_Plst!$B:$AC,16,0) -> 25 | T44: 394.6252093 | U44: =VLOOKUP($F44,ZMM_Plst!$B:$AC,6,0) -> 4.2 | V44: =VLOOKUP($F44,ZMM_Plst!$B:$AC,7,0) -> 1.22 | W44: =VLOOKUP($F44,ZMM_Plst!$B:$AC,5,0) -> 0.14
A45: =IF($F45<>"",VLOOKUP(F45,Pricing!$A:$F,6,FALSE),"") -> GW | B45: =IF($F45<>"",VLOOKUP(F45,Pricing!$A:$F,5,FALSE),"") -> LW | C45: =IF($F45<>"",VLOOKUP(Проектные!$F45,Pricing!$A:$F,3,FALSE),"") -> Frame R37 | D45: =VLOOKUP(C45,конструктив!A:B,2,0) -> Каркасы | E45: =IF($F45<>"",VLOOKUP(F45,Pricing!$A:$F,4,FALSE),"") -> Yegorevsk | F45: =IF(Pricing!A38<>"",Pricing!A38,"") -> 67244 | G45: =IF(F45<>"",VLOOKUP(F45,Pricing!$A:$B,2,FALSE),"") -> Каркас-М37-180/1220х3500/Е/К | H45: =IFERROR(IF($A$1,VLOOKUP(F45,'Pricing pick up'!$A:$CM,MATCH(Проектные!$G$3,'Pricing pick up'!$2:$2,0),0),VLOOKUP(F45,Pricing!$A:$CL,MATCH(Проектные!$G$3,Pricing!$2:$2,0),0)),"не возим") -> 2403.646245 | I45: =IFERROR(IF($B$1,VLOOKUP(CONCATENATE($E45,$G$3),Tariffs_!A:H,8,0),VLOOKUP(CONCATENATE($E45,$G$3),Tariffs_!A:G,6,0)),"-") -> 0 | J45: =IFERROR(IF($B$1,VLOOKUP(CONCATENATE($E45,$G$3),Tariffs_!A:I,9,0)*VLOOKUP($F45,ZMM_Plst!$B:$K,8,0)/VLOOKUP($F45,ZMM_Plst!$B:$K,10,0)*1.2,VLOOKUP(CONCATENATE($E45,$G$3),Tariffs_!A:G,7,0)*VLOOKUP($F45,ZMM_Plst!$B:$K,8,0)/VLOOKUP($F45,ZMM_Plst!$B:$K,10,0)*1.2),"-") -> 0 | K45: 2003.038538 | L45: =VLOOKUP($F45,ZMM_Plst!$B:$AA,26,0) -> B | M45: 4.27 | N45: 0.7685833333 | O45: =VLOOKUP($F45,ZMM_Plst!$B:$AC,17,0) -> 1 | P45: =VLOOKUP($F45,ZMM_Plst!$B:$AC,9,0) -> 102.48 | Q45: =VLOOKUP($F45,ZMM_Plst!$B:$AC,10,0) -> 18.446 | R45: =VLOOKUP($F45,ZMM_Plst!$B:$AC,8,0) -> 4.6 | S45: =VLOOKUP($F45,ZMM_Plst!$B:$AC,16,0) -> 24 | T45: 368.92 | U45: =VLOOKUP($F45,ZMM_Plst!$B:$AC,6,0) -> 3.5 | V45: =VLOOKUP($F45,ZMM_Plst!$B:$AC,7,0) -> 1.22 | W45: =VLOOKUP($F45,ZMM_Plst!$B:$AC,5,0) -> 0.18
A46: =IF($F46<>"",VLOOKUP(F46,Pricing!$A:$F,6,FALSE),"") -> GW | B46: =IF($F46<>"",VLOOKUP(F46,Pricing!$A:$F,5,FALSE),"") -> LW | C46: =IF($F46<>"",VLOOKUP(Проектные!$F46,Pricing!$A:$F,3,FALSE),"") -> Frame R37 | D46: =VLOOKUP(C46,конструктив!A:B,2,0) -> Каркасы | E46: =IF($F46<>"",VLOOKUP(F46,Pricing!$A:$F,4,FALSE),"") -> Yegorevsk | F46: =IF(Pricing!A39<>"",Pricing!A39,"") -> 67245 | G46: =IF(F46<>"",VLOOKUP(F46,Pricing!$A:$B,2,FALSE),"") -> Каркас-М37-130/1220х4600/Е/К | H46: =IFERROR(IF($A$1,VLOOKUP(F46,'Pricing pick up'!$A:$CM,MATCH(Проектные!$G$3,'Pricing pick up'!$2:$2,0),0),VLOOKUP(F46,Pricing!$A:$CL,MATCH(Проектные!$G$3,Pricing!$2:$2,0),0)),"не возим") -> 2403.646245 | I46: =IFERROR(IF($B$1,VLOOKUP(CONCATENATE($E46,$G$3),Tariffs_!A:H,8,0),VLOOKUP(CONCATENATE($E46,$G$3),Tariffs_!A:G,6,0)),"-") -> 0 | J46: =IFERROR(IF($B$1,VLOOKUP(CONCATENATE($E46,$G$3),Tariffs_!A:I,9,0)*VLOOKUP($F46,ZMM_Plst!$B:$K,8,0)/VLOOKUP($F46,ZMM_Plst!$B:$K,10,0)*1.2,VLOOKUP(CONCATENATE($E46,$G$3),Tariffs_!A:G,7,0)*VLOOKUP($F46,ZMM_Plst!$B:$K,8,0)/VLOOKUP($F46,ZMM_Plst!$B:$K,10,0)*1.2),"-") -> 0 | K46: 2003.038538 | L46: =VLOOKUP($F46,ZMM_Plst!$B:$AA,26,0) -> B | M46: 5.612 | N46: 0.72956 | O46: =VLOOKUP($F46,ZMM_Plst!$B:$AC,17,0) -> 1 | P46: =VLOOKUP($F46,ZMM_Plst!$B:$AC,9,0) -> 140.3 | Q46: =VLOOKUP($F46,ZMM_Plst!$B:$AC,10,0) -> 18.239 | R46: =VLOOKUP($F46,ZMM_Plst!$B:$AC,8,0) -> 4.18 | S46: =VLOOKUP($F46,ZMM_Plst!$B:$AC,16,0) -> 25 | T46: 401.4325359 | U46: =VLOOKUP($F46,ZMM_Plst!$B:$AC,6,0) -> 4.6 | V46: =VLOOKUP($F46,ZMM_Plst!$B:$AC,7,0) -> 1.22 | W46: =VLOOKUP($F46,ZMM_Plst!$B:$AC,5,0) -> 0.13
A47: =IF($F47<>"",VLOOKUP(F47,Pricing!$A:$F,6,FALSE),"") -> GW | B47: =IF($F47<>"",VLOOKUP(F47,Pricing!$A:$F,5,FALSE),"") -> LW | C47: =IF($F47<>"",VLOOKUP(Проектные!$F47,Pricing!$A:$F,3,FALSE),"") -> Frame R37 | D47: =VLOOKUP(C47,конструктив!A:B,2,0) -> Каркасы | E47: =IF($F47<>"",VLOOKUP(F47,Pricing!$A:$F,4,FALSE),"") -> Yegorevsk | F47: =IF(Pricing!A40<>"",Pricing!A40,"") -> 67246 | G47: =IF(F47<>"",VLOOKUP(F47,Pricing!$A:$B,2,FALSE),"") -> Каркас-М37-150/1220х5000/E/К | H47: =IFERROR(IF($A$1,VLOOKUP(F47,'Pricing pick up'!$A:$CM,MATCH(Проектные!$G$3,'Pricing pick up'!$2:$2,0),0),VLOOKUP(F47,Pricing!$A:$CL,MATCH(Проектные!$G$3,Pricing!$2:$2,0),0)),"не возим") -> 2403.646245 | I47: =IFERROR(IF($B$1,VLOOKUP(CONCATENATE($E47,$G$3),Tariffs_!A:H,8,0),VLOOKUP(CONCATENATE($E47,$G$3),Tariffs_!A:G,6,0)),"-") -> 0 | J47: =IFERROR(IF($B$1,VLOOKUP(CONCATENATE($E47,$G$3),Tariffs_!A:I,9,0)*VLOOKUP($F47,ZMM_Plst!$B:$K,8,0)/VLOOKUP($F47,ZMM_Plst!$B:$K,10,0)*1.2,VLOOKUP(CONCATENATE($E47,$G$3),Tariffs_!A:G,7,0)*VLOOKUP($F47,ZMM_Plst!$B:$K,8,0)/VLOOKUP($F47,ZMM_Plst!$B:$K,10,0)*1.2),"-") -> 0 | K47: 2003.038538 | L47: =VLOOKUP($F47,ZMM_Plst!$B:$AA,26,0) -> B | M47: 6.1 | N47: 0.915 | O47: =VLOOKUP($F47,ZMM_Plst!$B:$AC,17,0) -> 1 | P47: =VLOOKUP($F47,ZMM_Plst!$B:$AC,9,0) -> 122 | Q47: =VLOOKUP($F47,ZMM_Plst!$B:$AC,10,0) -> 18.3 | R47: =VLOOKUP($F47,ZMM_Plst!$B:$AC,8,0) -> 4.181 | S47: =VLOOKUP($F47,ZMM_Plst!$B:$AC,16,0) -> 20 | T47: 402.678785 | U47: =VLOOKUP($F47,ZMM_Plst!$B:$AC,6,0) -> 5 | V47: =VLOOKUP($F47,ZMM_Plst!$B:$AC,7,0) -> 1.22 | W47: =VLOOKUP($F47,ZMM_Plst!$B:$AC,5,0) -> 0.15
A48: =IF($F48<>"",VLOOKUP(F48,Pricing!$A:$F,6,FALSE),"") -> GW | B48: =IF($F48<>"",VLOOKUP(F48,Pricing!$A:$F,5,FALSE),"") -> LW | C48: =IF($F48<>"",VLOOKUP(Проектные!$F48,Pricing!$A:$F,3,FALSE),"") -> Frame R37 | D48: =VLOOKUP(C48,конструктив!A:B,2,0) -> Каркасы | E48: =IF($F48<>"",VLOOKUP(F48,Pricing!$A:$F,4,FALSE),"") -> Yegorevsk | F48: =IF(Pricing!A41<>"",Pricing!A41,"") -> 67250 | G48: =IF(F48<>"",VLOOKUP(F48,Pricing!$A:$B,2,FALSE),"") -> Каркас-М37-ТВИН-50/1200х9000/Е/К | H48: =IFERROR(IF($A$1,VLOOKUP(F48,'Pricing pick up'!$A:$CM,MATCH(Проектные!$G$3,'Pricing pick up'!$2:$2,0),0),VLOOKUP(F48,Pricing!$A:$CL,MATCH(Проектные!$G$3,Pricing!$2:$2,0),0)),"не возим") -> 2403.646245 | I48: =IFERROR(IF($B$1,VLOOKUP(CONCATENATE($E48,$G$3),Tariffs_!A:H,8,0),VLOOKUP(CONCATENATE($E48,$G$3),Tariffs_!A:G,6,0)),"-") -> 0 | J48: =IFERROR(IF($B$1,VLOOKUP(CONCATENATE($E48,$G$3),Tariffs_!A:I,9,0)*VLOOKUP($F48,ZMM_Plst!$B:$K,8,0)/VLOOKUP($F48,ZMM_Plst!$B:$K,10,0)*1.2,VLOOKUP(CONCATENATE($E48,$G$3),Tariffs_!A:G,7,0)*VLOOKUP($F48,ZMM_Plst!$B:$K,8,0)/VLOOKUP($F48,ZMM_Plst!$B:$K,10,0)*1.2),"-") -> 0 | K48: 2003.038538 | L48: =VLOOKUP($F48,ZMM_Plst!$B:$AA,26,0) -> B | M48: 21.6 | N48: 1.08 | O48: =VLOOKUP($F48,ZMM_Plst!$B:$AC,17,0) -> 2 | P48: =VLOOKUP($F48,ZMM_Plst!$B:$AC,9,0) -> 388.8 | Q48: =VLOOKUP($F48,ZMM_Plst!$B:$AC,10,0) -> 19.44 | R48: =VLOOKUP($F48,ZMM_Plst!$B:$AC,8,0) -> 4.18 | S48: =VLOOKUP($F48,ZMM_Plst!$B:$AC,16,0) -> 18 | T48: 427.8660287 | U48: =VLOOKUP($F48,ZMM_Plst!$B:$AC,6,0) -> 9 | V48: =VLOOKUP($F48,ZMM_Plst!$B:$AC,7,0) -> 1.2 | W48: =VLOOKUP($F48,ZMM_Plst!$B:$AC,5,0) -> 0.05
A49: =IF($F49<>"",VLOOKUP(F49,Pricing!$A:$F,6,FALSE),"") -> GW | B49: =IF($F49<>"",VLOOKUP(F49,Pricing!$A:$F,5,FALSE),"") -> LW | C49: =IF($F49<>"",VLOOKUP(Проектные!$F49,Pricing!$A:$F,3,FALSE),"") -> Frame R37 | D49: =VLOOKUP(C49,конструктив!A:B,2,0) -> Каркасы | E49: =IF($F49<>"",VLOOKUP(F49,Pricing!$A:$F,4,FALSE),"") -> Yegorevsk | F49: =IF(Pricing!A42<>"",Pricing!A42,"") -> 67334 | G49: =IF(F49<>"",VLOOKUP(F49,Pricing!$A:$B,2,FALSE),"") -> Каркас-М37-AЛ-50/1200х16000/Е/К | H49: =IFERROR(IF($A$1,VLOOKUP(F49,'Pricing pick up'!$A:$CM,MATCH(Проектные!$G$3,'Pricing pick up'!$2:$2,0),0),VLOOKUP(F49,Pricing!$A:$CL,MATCH(Проектные!$G$3,Pricing!$2:$2,0),0)),"не возим") -> 3839.537485 | I49: =IFERROR(IF($B$1,VLOOKUP(CONCATENATE($E49,$G$3),Tariffs_!A:H,8,0),VLOOKUP(CONCATENATE($E49,$G$3),Tariffs_!A:G,6,0)),"-") -> 0 | J49: =IFERROR(IF($B$1,VLOOKUP(CONCATENATE($E49,$G$3),Tariffs_!A:I,9,0)*VLOOKUP($F49,ZMM_Plst!$B:$K,8,0)/VLOOKUP($F49,ZMM_Plst!$B:$K,10,0)*1.2,VLOOKUP(CONCATENATE($E49,$G$3),Tariffs_!A:G,7,0)*VLOOKUP($F49,ZMM_Plst!$B:$K,8,0)/VLOOKUP($F49,ZMM_Plst!$B:$K,10,0)*1.2),"-") -> 0 | K49: 3199.614571 | L49: =VLOOKUP($F49,ZMM_Plst!$B:$AA,26,0) -> A | M49: 19.2 | N49: 0.96 | O49: =VLOOKUP($F49,ZMM_Plst!$B:$AC,17,0) -> 1 | P49: =VLOOKUP($F49,ZMM_Plst!$B:$AC,9,0) -> 230.4 | Q49: =VLOOKUP($F49,ZMM_Plst!$B:$AC,10,0) -> 11.52 | R49: =VLOOKUP($F49,ZMM_Plst!$B:$AC,8,0) -> 4.6 | S49: =VLOOKUP($F49,ZMM_Plst!$B:$AC,16,0) -> 12 | T49: 230.4 | U49: =VLOOKUP($F49,ZMM_Plst!$B:$AC,6,0) -> 16 | V49: =VLOOKUP($F49,ZMM_Plst!$B:$AC,7,0) -> 1.2 | W49: =VLOOKUP($F49,ZMM_Plst!$B:$AC,5,0) -> 0.05
A50: =IF($F50<>"",VLOOKUP(F50,Pricing!$A:$F,6,FALSE),"") -> GW | B50: =IF($F50<>"",VLOOKUP(F50,Pricing!$A:$F,5,FALSE),"") -> LW | C50: =IF($F50<>"",VLOOKUP(Проектные!$F50,Pricing!$A:$F,3,FALSE),"") -> Frame R40 | D50: =VLOOKUP(C50,конструктив!A:B,2,0) -> Каркасы | E50: =IF($F50<>"",VLOOKUP(F50,Pricing!$A:$F,4,FALSE),"") -> Yegorevsk | F50: =IF(Pricing!A43<>"",Pricing!A43,"") -> 67198 | G50: =IF(F50<>"",VLOOKUP(F50,Pricing!$A:$B,2,FALSE),"") -> Каркас М40-ТВИН-50/1200х10000/Е/К | H50: =IFERROR(IF($A$1,VLOOKUP(F50,'Pricing pick up'!$A:$CM,MATCH(Проектные!$G$3,'Pricing pick up'!$2:$2,0),0),VLOOKUP(F50,Pricing!$A:$CL,MATCH(Проектные!$G$3,Pricing!$2:$2,0),0)),"не возим") -> 1972.270874 | I50: =IFERROR(IF($B$1,VLOOKUP(CONCATENATE($E50,$G$3),Tariffs_!A:H,8,0),VLOOKUP(CONCATENATE($E50,$G$3),Tariffs_!A:G,6,0)),"-") -> 0 | J50: =IFERROR(IF($B$1,VLOOKUP(CONCATENATE($E50,$G$3),Tariffs_!A:I,9,0)*VLOOKUP($F50,ZMM_Plst!$B:$K,8,0)/VLOOKUP($F50,ZMM_Plst!$B:$K,10,0)*1.2,VLOOKUP(CONCATENATE($E50,$G$3),Tariffs_!A:G,7,0)*VLOOKUP($F50,ZMM_Plst!$B:$K,8,0)/VLOOKUP($F50,ZMM_Plst!$B:$K,10,0)*1.2),"-") -> 0 | K50: 1643.559062 | L50: =VLOOKUP($F50,ZMM_Plst!$B:$AA,26,0) -> B | M50: 24 | N50: 1.2 | O50: =VLOOKUP($F50,ZMM_Plst!$B:$AC,17,0) -> 2 | P50: =VLOOKUP($F50,ZMM_Plst!$B:$AC,9,0) -> 576 | Q50: =VLOOKUP($F50,ZMM_Plst!$B:$AC,10,0) -> 28.8 | R50: =VLOOKUP($F50,ZMM_Plst!$B:$AC,8,0) -> 4.6 | S50: =VLOOKUP($F50,ZMM_Plst!$B:$AC,16,0) -> 24 | T50: 576 | U50: =VLOOKUP($F50,ZMM_Plst!$B:$AC,6,0) -> 10 | V50: =VLOOKUP($F50,ZMM_Plst!$B:$AC,7,0) -> 1.2 | W50: =VLOOKUP($F50,ZMM_Plst!$B:$AC,5,0) -> 0.05
A51: =IF($F51<>"",VLOOKUP(F51,Pricing!$A:$F,6,FALSE),"") -> GW | B51: =IF($F51<>"",VLOOKUP(F51,Pricing!$A:$F,5,FALSE),"") -> LW | C51: =IF($F51<>"",VLOOKUP(Проектные!$F51,Pricing!$A:$F,3,FALSE),"") -> Frame R40 | D51: =VLOOKUP(C51,конструктив!A:B,2,0) -> Каркасы | E51: =IF($F51<>"",VLOOKUP(F51,Pricing!$A:$F,4,FALSE),"") -> Yegorevsk | F51: =IF(Pricing!A44<>"",Pricing!A44,"") -> 67199 | G51: =IF(F51<>"",VLOOKUP(F51,Pricing!$A:$B,2,FALSE),"") -> Каркас-М40-ТВИН-25/1200х12500/Е/К | H51: =IFERROR(IF($A$1,VLOOKUP(F51,'Pricing pick up'!$A:$CM,MATCH(Проектные!$G$3,'Pricing pick up'!$2:$2,0),0),VLOOKUP(F51,Pricing!$A:$CL,MATCH(Проектные!$G$3,Pricing!$2:$2,0),0)),"не возим") -> 1972.270874 | I51: =IFERROR(IF($B$1,VLOOKUP(CONCATENATE($E51,$G$3),Tariffs_!A:H,8,0),VLOOKUP(CONCATENATE($E51,$G$3),Tariffs_!A:G,6,0)),"-") -> 0 | J51: =IFERROR(IF($B$1,VLOOKUP(CONCATENATE($E51,$G$3),Tariffs_!A:I,9,0)*VLOOKUP($F51,ZMM_Plst!$B:$K,8,0)/VLOOKUP($F51,ZMM_Plst!$B:$K,10,0)*1.2,VLOOKUP(CONCATENATE($E51,$G$3),Tariffs_!A:G,7,0)*VLOOKUP($F51,ZMM_Plst!$B:$K,8,0)/VLOOKUP($F51,ZMM_Plst!$B:$K,10,0)*1.2),"-") -> 0 | K51: 1643.559062 | L51: =VLOOKUP($F51,ZMM_Plst!$B:$AA,26,0) -> B | M51: 30 | N51: 0.75 | O51: =VLOOKUP($F51,ZMM_Plst!$B:$AC,17,0) -> 2 | P51: =VLOOKUP($F51,ZMM_Plst!$B:$AC,9,0) -> 900 | Q51: =VLOOKUP($F51,ZMM_Plst!$B:$AC,10,0) -> 22.5 | R51: =VLOOKUP($F51,ZMM_Plst!$B:$AC,8,0) -> 4.6 | S51: =VLOOKUP($F51,ZMM_Plst!$B:$AC,16,0) -> 30 | T51: 450 | U51: =VLOOKUP($F51,ZMM_Plst!$B:$AC,6,0) -> 12.5 | V51: =VLOOKUP($F51,ZMM_Plst!$B:$AC,7,0) -> 1.2 | W51: =VLOOKUP($F51,ZMM_Plst!$B:$AC,5,0) -> 0.025
A52: =IF($F52<>"",VLOOKUP(F52,Pricing!$A:$F,6,FALSE),"") -> GW | B52: =IF($F52<>"",VLOOKUP(F52,Pricing!$A:$F,5,FALSE),"") -> LW | C52: =IF($F52<>"",VLOOKUP(Проектные!$F52,Pricing!$A:$F,3,FALSE),"") -> Frame R40 | D52: =VLOOKUP(C52,конструктив!A:B,2,0) -> Каркасы | E52: =IF($F52<>"",VLOOKUP(F52,Pricing!$A:$F,4,FALSE),"") -> Yegorevsk | F52: =IF(Pricing!A45<>"",Pricing!A45,"") -> 67204 | G52: =IF(F52<>"",VLOOKUP(F52,Pricing!$A:$B,2,FALSE),"") -> Каркас-М40-ТВИН-70/1220х5200/Е/К | H52: =IFERROR(IF($A$1,VLOOKUP(F52,'Pricing pick up'!$A:$CM,MATCH(Проектные!$G$3,'Pricing pick up'!$2:$2,0),0),VLOOKUP(F52,Pricing!$A:$CL,MATCH(Проектные!$G$3,Pricing!$2:$2,0),0)),"не возим") -> 1972.270874 | I52: =IFERROR(IF($B$1,VLOOKUP(CONCATENATE($E52,$G$3),Tariffs_!A:H,8,0),VLOOKUP(CONCATENATE($E52,$G$3),Tariffs_!A:G,6,0)),"-") -> 0 | J52: =IFERROR(IF($B$1,VLOOKUP(CONCATENATE($E52,$G$3),Tariffs_!A:I,9,0)*VLOOKUP($F52,ZMM_Plst!$B:$K,8,0)/VLOOKUP($F52,ZMM_Plst!$B:$K,10,0)*1.2,VLOOKUP(CONCATENATE($E52,$G$3),Tariffs_!A:G,7,0)*VLOOKUP($F52,ZMM_Plst!$B:$K,8,0)/VLOOKUP($F52,ZMM_Plst!$B:$K,10,0)*1.2),"-") -> 0 | K52: 1643.559062 | L52: =VLOOKUP($F52,ZMM_Plst!$B:$AA,26,0) -> B | M52: 12.688 | N52: 0.8881666667 | O52: =VLOOKUP($F52,ZMM_Plst!$B:$AC,17,0) -> 2 | P52: =VLOOKUP($F52,ZMM_Plst!$B:$AC,9,0) -> 380.64 | Q52: =VLOOKUP($F52,ZMM_Plst!$B:$AC,10,0) -> 26.645 | R52: =VLOOKUP($F52,ZMM_Plst!$B:$AC,8,0) -> 4.18 | S52: =VLOOKUP($F52,ZMM_Plst!$B:$AC,16,0) -> 30 | T52: 586.4449761 | U52: =VLOOKUP($F52,ZMM_Plst!$B:$AC,6,0) -> 5.2 | V52: =VLOOKUP($F52,ZMM_Plst!$B:$AC,7,0) -> 1.22 | W52: =VLOOKUP($F52,ZMM_Plst!$B:$AC,5,0) -> 0.07
A53: =IF($F53<>"",VLOOKUP(F53,Pricing!$A:$F,6,FALSE),"") -> GW | B53: =IF($F53<>"",VLOOKUP(F53,Pricing!$A:$F,5,FALSE),"") -> LW | C53: =IF($F53<>"",VLOOKUP(Проектные!$F53,Pricing!$A:$F,3,FALSE),"") -> Frame R40 | D53: =VLOOKUP(C53,конструктив!A:B,2,0) -> Каркасы | E53: =IF($F53<>"",VLOOKUP(F53,Pricing!$A:$F,4,FALSE),"") -> Yegorevsk | F53: =IF(Pricing!A46<>"",Pricing!A46,"") -> 67205 | G53: =IF(F53<>"",VLOOKUP(F53,Pricing!$A:$B,2,FALSE),"") -> Каркас-М40-ТВИН-75/1220х5500/Е/К | H53: =IFERROR(IF($A$1,VLOOKUP(F53,'Pricing pick up'!$A:$CM,MATCH(Проектные!$G$3,'Pricing pick up'!$2:$2,0),0),VLOOKUP(F53,Pricing!$A:$CL,MATCH(Проектные!$G$3,Pricing!$2:$2,0),0)),"не возим") -> 1972.270874 | I53: =IFERROR(IF($B$1,VLOOKUP(CONCATENATE($E53,$G$3),Tariffs_!A:H,8,0),VLOOKUP(CONCATENATE($E53,$G$3),Tariffs_!A:G,6,0)),"-") -> 0 | J53: =IFERROR(IF($B$1,VLOOKUP(CONCATENATE($E53,$G$3),Tariffs_!A:I,9,0)*VLOOKUP($F53,ZMM_Plst!$B:$K,8,0)/VLOOKUP($F53,ZMM_Plst!$B:$K,10,0)*1.2,VLOOKUP(CONCATENATE($E53,$G$3),Tariffs_!A:G,7,0)*VLOOKUP($F53,ZMM_Plst!$B:$K,8,0)/VLOOKUP($F53,ZMM_Plst!$B:$K,10,0)*1.2),"-") -> 0 | K53: 1643.559062 | L53: =VLOOKUP($F53,ZMM_Plst!$B:$AA,26,0) -> B | M53: 13.42 | N53: 1.0065 | O53: =VLOOKUP($F53,ZMM_Plst!$B:$AC,17,0) -> 2 | P53: =VLOOKUP($F53,ZMM_Plst!$B:$AC,9,0) -> 268.4 | Q53: =VLOOKUP($F53,ZMM_Plst!$B:$AC,10,0) -> 20.13 | R53: =VLOOKUP($F53,ZMM_Plst!$B:$AC,8,0) -> 4.18 | S53: =VLOOKUP($F53,ZMM_Plst!$B:$AC,16,0) -> 20 | T53: 443.0526316 | U53: =VLOOKUP($F53,ZMM_Plst!$B:$AC,6,0) -> 5.5 | V53: =VLOOKUP($F53,ZMM_Plst!$B:$AC,7,0) -> 1.22 | W53: =VLOOKUP($F53,ZMM_Plst!$B:$AC,5,0) -> 0.075
A54: =IF($F54<>"",VLOOKUP(F54,Pricing!$A:$F,6,FALSE),"") -> GW | B54: =IF($F54<>"",VLOOKUP(F54,Pricing!$A:$F,5,FALSE),"") -> LW | C54: =IF($F54<>"",VLOOKUP(Проектные!$F54,Pricing!$A:$F,3,FALSE),"") -> Frame R40 | D54: =VLOOKUP(C54,конструктив!A:B,2,0) -> Каркасы | E54: =IF($F54<>"",VLOOKUP(F54,Pricing!$A:$F,4,FALSE),"") -> Yegorevsk | F54: =IF(Pricing!A47<>"",Pricing!A47,"") -> 67206 | G54: =IF(F54<>"",VLOOKUP(F54,Pricing!$A:$B,2,FALSE),"") -> Каркас-М40-ТВИН-50/1200х9000/Е/К | H54: =IFERROR(IF($A$1,VLOOKUP(F54,'Pricing pick up'!$A:$CM,MATCH(Проектные!$G$3,'Pricing pick up'!$2:$2,0),0),VLOOKUP(F54,Pricing!$A:$CL,MATCH(Проектные!$G$3,Pricing!$2:$2,0),0)),"не возим") -> 1972.270874 | I54: =IFERROR(IF($B$1,VLOOKUP(CONCATENATE($E54,$G$3),Tariffs_!A:H,8,0),VLOOKUP(CONCATENATE($E54,$G$3),Tariffs_!A:G,6,0)),"-") -> 0 | J54: =IFERROR(IF($B$1,VLOOKUP(CONCATENATE($E54,$G$3),Tariffs_!A:I,9,0)*VLOOKUP($F54,ZMM_Plst!$B:$K,8,0)/VLOOKUP($F54,ZMM_Plst!$B:$K,10,0)*1.2,VLOOKUP(CONCATENATE($E54,$G$3),Tariffs_!A:G,7,0)*VLOOKUP($F54,ZMM_Plst!$B:$K,8,0)/VLOOKUP($F54,ZMM_Plst!$B:$K,10,0)*1.2),"-") -> 0 | K54: 1643.559062 | L54: =VLOOKUP($F54,ZMM_Plst!$B:$AA,26,0) -> B | M54: 21.6 | N54: 1.08 | O54: =VLOOKUP($F54,ZMM_Plst!$B:$AC,17,0) -> 2 | P54: =VLOOKUP($F54,ZMM_Plst!$B:$AC,9,0) -> 518.4 | Q54: =VLOOKUP($F54,ZMM_Plst!$B:$AC,10,0) -> 25.92 | R54: =VLOOKUP($F54,ZMM_Plst!$B:$AC,8,0) -> 4.18 | S54: =VLOOKUP($F54,ZMM_Plst!$B:$AC,16,0) -> 24 | T54: 570.4880383 | U54: =VLOOKUP($F54,ZMM_Plst!$B:$AC,6,0) -> 9 | V54: =VLOOKUP($F54,ZMM_Plst!$B:$AC,7,0) -> 1.2 | W54: =VLOOKUP($F54,ZMM_Plst!$B:$AC,5,0) -> 0.05
A55: =IF($F55<>"",VLOOKUP(F55,Pricing!$A:$F,6,FALSE),"") -> GW | B55: =IF($F55<>"",VLOOKUP(F55,Pricing!$A:$F,5,FALSE),"") -> LW | C55: =IF($F55<>"",VLOOKUP(Проектные!$F55,Pricing!$A:$F,3,FALSE),"") -> Frame R40 | D55: =VLOOKUP(C55,конструктив!A:B,2,0) -> Каркасы | E55: =IF($F55<>"",VLOOKUP(F55,Pricing!$A:$F,4,FALSE),"") -> Yegorevsk | F55: =IF(Pricing!A48<>"",Pricing!A48,"") -> 67207 | G55: =IF(F55<>"",VLOOKUP(F55,Pricing!$A:$B,2,FALSE),"") -> Каркас-М40-ТВИН-50/1220х9000/Е/К | H55: =IFERROR(IF($A$1,VLOOKUP(F55,'Pricing pick up'!$A:$CM,MATCH(Проектные!$G$3,'Pricing pick up'!$2:$2,0),0),VLOOKUP(F55,Pricing!$A:$CL,MATCH(Проектные!$G$3,Pricing!$2:$2,0),0)),"не возим") -> 1972.270874 | I55: =IFERROR(IF($B$1,VLOOKUP(CONCATENATE($E55,$G$3),Tariffs_!A:H,8,0),VLOOKUP(CONCATENATE($E55,$G$3),Tariffs_!A:G,6,0)),"-") -> 0 | J55: =IFERROR(IF($B$1,VLOOKUP(CONCATENATE($E55,$G$3),Tariffs_!A:I,9,0)*VLOOKUP($F55,ZMM_Plst!$B:$K,8,0)/VLOOKUP($F55,ZMM_Plst!$B:$K,10,0)*1.2,VLOOKUP(CONCATENATE($E55,$G$3),Tariffs_!A:G,7,0)*VLOOKUP($F55,ZMM_Plst!$B:$K,8,0)/VLOOKUP($F55,ZMM_Plst!$B:$K,10,0)*1.2),"-") -> 0 | K55: 1643.559062 | L55: =VLOOKUP($F55,ZMM_Plst!$B:$AA,26,0) -> A | M55: 21.96 | N55: 1.098 | O55: =VLOOKUP($F55,ZMM_Plst!$B:$AC,17,0) -> 2 | P55: =VLOOKUP($F55,ZMM_Plst!$B:$AC,9,0) -> 527.04 | Q55: =VLOOKUP($F55,ZMM_Plst!$B:$AC,10,0) -> 26.352 | R55: =VLOOKUP($F55,ZMM_Plst!$B:$AC,8,0) -> 4.18 | S55: =VLOOKUP($F55,ZMM_Plst!$B:$AC,16,0) -> 24 | T55: 579.9961722 | U55: =VLOOKUP($F55,ZMM_Plst!$B:$AC,6,0) -> 9 | V55: =VLOOKUP($F55,ZMM_Plst!$B:$AC,7,0) -> 1.22 | W55: =VLOOKUP($F55,ZMM_Plst!$B:$AC,5,0) -> 0.05
A56: =IF($F56<>"",VLOOKUP(F56,Pricing!$A:$F,6,FALSE),"") -> GW | B56: =IF($F56<>"",VLOOKUP(F56,Pricing!$A:$F,5,FALSE),"") -> LW | C56: =IF($F56<>"",VLOOKUP(Проектные!$F56,Pricing!$A:$F,3,FALSE),"") -> Frame R40 | D56: =VLOOKUP(C56,конструктив!A:B,2,0) -> Каркасы | E56: =IF($F56<>"",VLOOKUP(F56,Pricing!$A:$F,4,FALSE),"") -> Yegorevsk | F56: =IF(Pricing!A49<>"",Pricing!A49,"") -> 67208 | G56: =IF(F56<>"",VLOOKUP(F56,Pricing!$A:$B,2,FALSE),"") -> Каркас-М40-ТВИН-50/1220х12000/Е/К | H56: =IFERROR(IF($A$1,VLOOKUP(F56,'Pricing pick up'!$A:$CM,MATCH(Проектные!$G$3,'Pricing pick up'!$2:$2,0),0),VLOOKUP(F56,Pricing!$A:$CL,MATCH(Проектные!$G$3,Pricing!$2:$2,0),0)),"не возим") -> 1972.270874 | I56: =IFERROR(IF($B$1,VLOOKUP(CONCATENATE($E56,$G$3),Tariffs_!A:H,8,0),VLOOKUP(CONCATENATE($E56,$G$3),Tariffs_!A:G,6,0)),"-") -> 0 | J56: =IFERROR(IF($B$1,VLOOKUP(CONCATENATE($E56,$G$3),Tariffs_!A:I,9,0)*VLOOKUP($F56,ZMM_Plst!$B:$K,8,0)/VLOOKUP($F56,ZMM_Plst!$B:$K,10,0)*1.2,VLOOKUP(CONCATENATE($E56,$G$3),Tariffs_!A:G,7,0)*VLOOKUP($F56,ZMM_Plst!$B:$K,8,0)/VLOOKUP($F56,ZMM_Plst!$B:$K,10,0)*1.2),"-") -> 0 | K56: 1643.559062 | L56: =VLOOKUP($F56,ZMM_Plst!$B:$AA,26,0) -> B | M56: 29.28 | N56: 1.464166667 | O56: =VLOOKUP($F56,ZMM_Plst!$B:$AC,17,0) -> 2 | P56: =VLOOKUP($F56,ZMM_Plst!$B:$AC,9,0) -> 351.36 | Q56: =VLOOKUP($F56,ZMM_Plst!$B:$AC,10,0) -> 17.57 | R56: =VLOOKUP($F56,ZMM_Plst!$B:$AC,8,0) -> 4.181 | S56: =VLOOKUP($F56,ZMM_Plst!$B:$AC,16,0) -> 12 | T56: 386.6156422 | U56: =VLOOKUP($F56,ZMM_Plst!$B:$AC,6,0) -> 12 | V56: =VLOOKUP($F56,ZMM_Plst!$B:$AC,7,0) -> 1.22 | W56: =VLOOKUP($F56,ZMM_Plst!$B:$AC,5,0) -> 0.05
A57: =IF($F57<>"",VLOOKUP(F57,Pricing!$A:$F,6,FALSE),"") -> GW | B57: =IF($F57<>"",VLOOKUP(F57,Pricing!$A:$F,5,FALSE),"") -> LW | C57: =IF($F57<>"",VLOOKUP(Проектные!$F57,Pricing!$A:$F,3,FALSE),"") -> Frame R40 | D57: =VLOOKUP(C57,конструктив!A:B,2,0) -> Каркасы | E57: =IF($F57<>"",VLOOKUP(F57,Pricing!$A:$F,4,FALSE),"") -> Yegorevsk | F57: =IF(Pricing!A50<>"",Pricing!A50,"") -> 67209 | G57: =IF(F57<>"",VLOOKUP(F57,Pricing!$A:$B,2,FALSE),"") -> Каркас-М40-ТВИН-50/610х7000/Е/К | H57: =IFERROR(IF($A$1,VLOOKUP(F57,'Pricing pick up'!$A:$CM,MATCH(Проектные!$G$3,'Pricing pick up'!$2:$2,0),0),VLOOKUP(F57,Pricing!$A:$CL,MATCH(Проектные!$G$3,Pricing!$2:$2,0),0)),"не возим") -> 1972.270874 | I57: =IFERROR(IF($B$1,VLOOKUP(CONCATENATE($E57,$G$3),Tariffs_!A:H,8,0),VLOOKUP(CONCATENATE($E57,$G$3),Tariffs_!A:G,6,0)),"-") -> 0 | J57: =IFERROR(IF($B$1,VLOOKUP(CONCATENATE($E57,$G$3),Tariffs_!A:I,9,0)*VLOOKUP($F57,ZMM_Plst!$B:$K,8,0)/VLOOKUP($F57,ZMM_Plst!$B:$K,10,0)*1.2,VLOOKUP(CONCATENATE($E57,$G$3),Tariffs_!A:G,7,0)*VLOOKUP($F57,ZMM_Plst!$B:$K,8,0)/VLOOKUP($F57,ZMM_Plst!$B:$K,10,0)*1.2),"-") -> 0 | K57: 1643.559062 | L57: =VLOOKUP($F57,ZMM_Plst!$B:$AA,26,0) -> B | M57: 17.08 | N57: 0.854 | O57: =VLOOKUP($F57,ZMM_Plst!$B:$AC,17,0) -> 4 | P57: =VLOOKUP($F57,ZMM_Plst!$B:$AC,9,0) -> 512.4 | Q57: =VLOOKUP($F57,ZMM_Plst!$B:$AC,10,0) -> 25.62 | R57: =VLOOKUP($F57,ZMM_Plst!$B:$AC,8,0) -> 4.6 | S57: =VLOOKUP($F57,ZMM_Plst!$B:$AC,16,0) -> 30 | T57: 512.4 | U57: =VLOOKUP($F57,ZMM_Plst!$B:$AC,6,0) -> 7 | V57: =VLOOKUP($F57,ZMM_Plst!$B:$AC,7,0) -> 0.61 | W57: =VLOOKUP($F57,ZMM_Plst!$B:$AC,5,0) -> 0.05
A58: =IF($F58<>"",VLOOKUP(F58,Pricing!$A:$F,6,FALSE),"") -> GW | B58: =IF($F58<>"",VLOOKUP(F58,Pricing!$A:$F,5,FALSE),"") -> LW | C58: =IF($F58<>"",VLOOKUP(Проектные!$F58,Pricing!$A:$F,3,FALSE),"") -> Frame R40 | D58: =VLOOKUP(C58,конструктив!A:B,2,0) -> Каркасы | E58: =IF($F58<>"",VLOOKUP(F58,Pricing!$A:$F,4,FALSE),"") -> Yegorevsk | F58: =IF(Pricing!A51<>"",Pricing!A51,"") -> 67210 | G58: =IF(F58<>"",VLOOKUP(F58,Pricing!$A:$B,2,FALSE),"") -> Каркас-М40-100/1220х9000/Е/К | H58: =IFERROR(IF($A$1,VLOOKUP(F58,'Pricing pick up'!$A:$CM,MATCH(Проектные!$G$3,'Pricing pick up'!$2:$2,0),0),VLOOKUP(F58,Pricing!$A:$CL,MATCH(Проектные!$G$3,Pricing!$2:$2,0),0)),"не возим") -> 1972.270874 | I58: =IFERROR(IF($B$1,VLOOKUP(CONCATENATE($E58,$G$3),Tariffs_!A:H,8,0),VLOOKUP(CONCATENATE($E58,$G$3),Tariffs_!A:G,6,0)),"-") -> 0 | J58: =IFERROR(IF($B$1,VLOOKUP(CONCATENATE($E58,$G$3),Tariffs_!A:I,9,0)*VLOOKUP($F58,ZMM_Plst!$B:$K,8,0)/VLOOKUP($F58,ZMM_Plst!$B:$K,10,0)*1.2,VLOOKUP(CONCATENATE($E58,$G$3),Tariffs_!A:G,7,0)*VLOOKUP($F58,ZMM_Plst!$B:$K,8,0)/VLOOKUP($F58,ZMM_Plst!$B:$K,10,0)*1.2),"-") -> 0 | K58: 1643.559062 | L58: =VLOOKUP($F58,ZMM_Plst!$B:$AA,26,0) -> B | M58: 10.98 | N58: 1.098 | O58: =VLOOKUP($F58,ZMM_Plst!$B:$AC,17,0) -> 1 | P58: =VLOOKUP($F58,ZMM_Plst!$B:$AC,9,0) -> 219.6 | Q58: =VLOOKUP($F58,ZMM_Plst!$B:$AC,10,0) -> 21.96 | R58: =VLOOKUP($F58,ZMM_Plst!$B:$AC,8,0) -> 4.18 | S58: =VLOOKUP($F58,ZMM_Plst!$B:$AC,16,0) -> 20 | T58: 483.3301435 | U58: =VLOOKUP($F58,ZMM_Plst!$B:$AC,6,0) -> 9 | V58: =VLOOKUP($F58,ZMM_Plst!$B:$AC,7,0) -> 1.22 | W58: =VLOOKUP($F58,ZMM_Plst!$B:$AC,5,0) -> 0.1
A59: =IF($F59<>"",VLOOKUP(F59,Pricing!$A:$F,6,FALSE),"") -> GW | B59: =IF($F59<>"",VLOOKUP(F59,Pricing!$A:$F,5,FALSE),"") -> LW | C59: =IF($F59<>"",VLOOKUP(Проектные!$F59,Pricing!$A:$F,3,FALSE),"") -> Frame R40 | D59: =VLOOKUP(C59,конструктив!A:B,2,0) -> Каркасы | E59: =IF($F59<>"",VLOOKUP(F59,Pricing!$A:$F,4,FALSE),"") -> Yegorevsk | F59: =IF(Pricing!A52<>"",Pricing!A52,"") -> 67211 | G59: =IF(F59<>"",VLOOKUP(F59,Pricing!$A:$B,2,FALSE),"") -> Каркас-М40-ТВИН-50/1220х10000/Е/К | H59: =IFERROR(IF($A$1,VLOOKUP(F59,'Pricing pick up'!$A:$CM,MATCH(Проектные!$G$3,'Pricing pick up'!$2:$2,0),0),VLOOKUP(F59,Pricing!$A:$CL,MATCH(Проектные!$G$3,Pricing!$2:$2,0),0)),"не возим") -> 1972.270874 | I59: =IFERROR(IF($B$1,VLOOKUP(CONCATENATE($E59,$G$3),Tariffs_!A:H,8,0),VLOOKUP(CONCATENATE($E59,$G$3),Tariffs_!A:G,6,0)),"-") -> 0 | J59: =IFERROR(IF($B$1,VLOOKUP(CONCATENATE($E59,$G$3),Tariffs_!A:I,9,0)*VLOOKUP($F59,ZMM_Plst!$B:$K,8,0)/VLOOKUP($F59,ZMM_Plst!$B:$K,10,0)*1.2,VLOOKUP(CONCATENATE($E59,$G$3),Tariffs_!A:G,7,0)*VLOOKUP($F59,ZMM_Plst!$B:$K,8,0)/VLOOKUP($F59,ZMM_Plst!$B:$K,10,0)*1.2),"-") -> 0 | K59: 1643.559062 | L59: =VLOOKUP($F59,ZMM_Plst!$B:$AA,26,0) -> B | M59: 24.4 | N59: 1.22 | O59: =VLOOKUP($F59,ZMM_Plst!$B:$AC,17,0) -> 2 | P59: =VLOOKUP($F59,ZMM_Plst!$B:$AC,9,0) -> 585.6 | Q59: =VLOOKUP($F59,ZMM_Plst!$B:$AC,10,0) -> 29.28 | R59: =VLOOKUP($F59,ZMM_Plst!$B:$AC,8,0) -> 4.6 | S59: =VLOOKUP($F59,ZMM_Plst!$B:$AC,16,0) -> 24 | T59: 585.6 | U59: =VLOOKUP($F59,ZMM_Plst!$B:$AC,6,0) -> 10 | V59: =VLOOKUP($F59,ZMM_Plst!$B:$AC,7,0) -> 1.22 | W59: =VLOOKUP($F59,ZMM_Plst!$B:$AC,5,0) -> 0.05
A60: =IF($F60<>"",VLOOKUP(F60,Pricing!$A:$F,6,FALSE),"") -> GW | B60: =IF($F60<>"",VLOOKUP(F60,Pricing!$A:$F,5,FALSE),"") -> LW | C60: =IF($F60<>"",VLOOKUP(Проектные!$F60,Pricing!$A:$F,3,FALSE),"") -> Frame R40 | D60: =VLOOKUP(C60,конструктив!A:B,2,0) -> Каркасы | E60: =IF($F60<>"",VLOOKUP(F60,Pricing!$A:$F,4,FALSE),"") -> Yegorevsk | F60: =IF(Pricing!A53<>"",Pricing!A53,"") -> 67212 | G60: =IF(F60<>"",VLOOKUP(F60,Pricing!$A:$B,2,FALSE),"") -> Каркас-М40-150/1220х5500/Е/К | H60: =IFERROR(IF($A$1,VLOOKUP(F60,'Pricing pick up'!$A:$CM,MATCH(Проектные!$G$3,'Pricing pick up'!$2:$2,0),0),VLOOKUP(F60,Pricing!$A:$CL,MATCH(Проектные!$G$3,Pricing!$2:$2,0),0)),"не возим") -> 1972.270874 | I60: =IFERROR(IF($B$1,VLOOKUP(CONCATENATE($E60,$G$3),Tariffs_!A:H,8,0),VLOOKUP(CONCATENATE($E60,$G$3),Tariffs_!A:G,6,0)),"-") -> 0 | J60: =IFERROR(IF($B$1,VLOOKUP(CONCATENATE($E60,$G$3),Tariffs_!A:I,9,0)*VLOOKUP($F60,ZMM_Plst!$B:$K,8,0)/VLOOKUP($F60,ZMM_Plst!$B:$K,10,0)*1.2,VLOOKUP(CONCATENATE($E60,$G$3),Tariffs_!A:G,7,0)*VLOOKUP($F60,ZMM_Plst!$B:$K,8,0)/VLOOKUP($F60,ZMM_Plst!$B:$K,10,0)*1.2),"-") -> 0 | K60: 1643.559062 | L60: =VLOOKUP($F60,ZMM_Plst!$B:$AA,26,0) -> B | M60: 6.71 | N60: 1.0065 | O60: =VLOOKUP($F60,ZMM_Plst!$B:$AC,17,0) -> 1 | P60: =VLOOKUP($F60,ZMM_Plst!$B:$AC,9,0) -> 134.2 | Q60: =VLOOKUP($F60,ZMM_Plst!$B:$AC,10,0) -> 20.13 | R60: =VLOOKUP($F60,ZMM_Plst!$B:$AC,8,0) -> 4.6 | S60: =VLOOKUP($F60,ZMM_Plst!$B:$AC,16,0) -> 20 | T60: 402.6 | U60: =VLOOKUP($F60,ZMM_Plst!$B:$AC,6,0) -> 5.5 | V60: =VLOOKUP($F60,ZMM_Plst!$B:$AC,7,0) -> 1.22 | W60: =VLOOKUP($F60,ZMM_Plst!$B:$AC,5,0) -> 0.15
A61: =IF($F61<>"",VLOOKUP(F61,Pricing!$A:$F,6,FALSE),"") -> GW | B61: =IF($F61<>"",VLOOKUP(F61,Pricing!$A:$F,5,FALSE),"") -> LW | C61: =IF($F61<>"",VLOOKUP(Проектные!$F61,Pricing!$A:$F,3,FALSE),"") -> Frame R40 | D61: =VLOOKUP(C61,конструктив!A:B,2,0) -> Каркасы | E61: =IF($F61<>"",VLOOKUP(F61,Pricing!$A:$F,4,FALSE),"") -> Yegorevsk | F61: =IF(Pricing!A54<>"",Pricing!A54,"") -> 67215 | G61: =IF(F61<>"",VLOOKUP(F61,Pricing!$A:$B,2,FALSE),"") -> Каркас-М40-ТВИН-75/1020х5000/Е/К | H61: =IFERROR(IF($A$1,VLOOKUP(F61,'Pricing pick up'!$A:$CM,MATCH(Проектные!$G$3,'Pricing pick up'!$2:$2,0),0),VLOOKUP(F61,Pricing!$A:$CL,MATCH(Проектные!$G$3,Pricing!$2:$2,0),0)),"не возим") -> 1972.270874 | I61: =IFERROR(IF($B$1,VLOOKUP(CONCATENATE($E61,$G$3),Tariffs_!A:H,8,0),VLOOKUP(CONCATENATE($E61,$G$3),Tariffs_!A:G,6,0)),"-") -> 0 | J61: =IFERROR(IF($B$1,VLOOKUP(CONCATENATE($E61,$G$3),Tariffs_!A:I,9,0)*VLOOKUP($F61,ZMM_Plst!$B:$K,8,0)/VLOOKUP($F61,ZMM_Plst!$B:$K,10,0)*1.2,VLOOKUP(CONCATENATE($E61,$G$3),Tariffs_!A:G,7,0)*VLOOKUP($F61,ZMM_Plst!$B:$K,8,0)/VLOOKUP($F61,ZMM_Plst!$B:$K,10,0)*1.2),"-") -> 0 | K61: 1643.559062 | L61: =VLOOKUP($F61,ZMM_Plst!$B:$AA,26,0) -> B | M61: 10.2 | N61: 0.765 | O61: =VLOOKUP($F61,ZMM_Plst!$B:$AC,17,0) -> 2 | P61: =VLOOKUP($F61,ZMM_Plst!$B:$AC,9,0) -> 255 | Q61: =VLOOKUP($F61,ZMM_Plst!$B:$AC,10,0) -> 19.125 | R61: =VLOOKUP($F61,ZMM_Plst!$B:$AC,8,0) -> 4.181 | S61: =VLOOKUP($F61,ZMM_Plst!$B:$AC,16,0) -> 25 | T61: 420.8323368 | U61: =VLOOKUP($F61,ZMM_Plst!$B:$AC,6,0) -> 5 | V61: =VLOOKUP($F61,ZMM_Plst!$B:$AC,7,0) -> 1.02 | W61: =VLOOKUP($F61,ZMM_Plst!$B:$AC,5,0) -> 0.075
A62: =IF($F62<>"",VLOOKUP(F62,Pricing!$A:$F,6,FALSE),"") -> GW | B62: =IF($F62<>"",VLOOKUP(F62,Pricing!$A:$F,5,FALSE),"") -> LW | C62: =IF($F62<>"",VLOOKUP(Проектные!$F62,Pricing!$A:$F,3,FALSE),"") -> Frame R40 | D62: =VLOOKUP(C62,конструктив!A:B,2,0) -> Каркасы | E62: =IF($F62<>"",VLOOKUP(F62,Pricing!$A:$F,4,FALSE),"") -> Yegorevsk | F62: =IF(Pricing!A55<>"",Pricing!A55,"") -> 67216 | G62: =IF(F62<>"",VLOOKUP(F62,Pricing!$A:$B,2,FALSE),"") -> Каркас-М40-100/1020х7000/Е/К | H62: =IFERROR(IF($A$1,VLOOKUP(F62,'Pricing pick up'!$A:$CM,MATCH(Проектные!$G$3,'Pricing pick up'!$2:$2,0),0),VLOOKUP(F62,Pricing!$A:$CL,MATCH(Проектные!$G$3,Pricing!$2:$2,0),0)),"не возим") -> 1972.270874 | I62: =IFERROR(IF($B$1,VLOOKUP(CONCATENATE($E62,$G$3),Tariffs_!A:H,8,0),VLOOKUP(CONCATENATE($E62,$G$3),Tariffs_!A:G,6,0)),"-") -> 0 | J62: =IFERROR(IF($B$1,VLOOKUP(CONCATENATE($E62,$G$3),Tariffs_!A:I,9,0)*VLOOKUP($F62,ZMM_Plst!$B:$K,8,0)/VLOOKUP($F62,ZMM_Plst!$B:$K,10,0)*1.2,VLOOKUP(CONCATENATE($E62,$G$3),Tariffs_!A:G,7,0)*VLOOKUP($F62,ZMM_Plst!$B:$K,8,0)/VLOOKUP($F62,ZMM_Plst!$B:$K,10,0)*1.2),"-") -> 0 | K62: 1643.559062 | L62: =VLOOKUP($F62,ZMM_Plst!$B:$AA,26,0) -> B | M62: 7.14 | N62: 0.714 | O62: =VLOOKUP($F62,ZMM_Plst!$B:$AC,17,0) -> 1 | P62: =VLOOKUP($F62,ZMM_Plst!$B:$AC,9,0) -> 178.5 | Q62: =VLOOKUP($F62,ZMM_Plst!$B:$AC,10,0) -> 17.85 | R62: =VLOOKUP($F62,ZMM_Plst!$B:$AC,8,0) -> 4.6 | S62: =VLOOKUP($F62,ZMM_Plst!$B:$AC,16,0) -> 25 | T62: 357 | U62: =VLOOKUP($F62,ZMM_Plst!$B:$AC,6,0) -> 7 | V62: =VLOOKUP($F62,ZMM_Plst!$B:$AC,7,0) -> 1.02 | W62: =VLOOKUP($F62,ZMM_Plst!$B:$AC,5,0) -> 0.1
A63: =IF($F63<>"",VLOOKUP(F63,Pricing!$A:$F,6,FALSE),"") -> GW | B63: =IF($F63<>"",VLOOKUP(F63,Pricing!$A:$F,5,FALSE),"") -> LW | C63: =IF($F63<>"",VLOOKUP(Проектные!$F63,Pricing!$A:$F,3,FALSE),"") -> Frame R40 | D63: =VLOOKUP(C63,конструктив!A:B,2,0) -> Каркасы | E63: =IF($F63<>"",VLOOKUP(F63,Pricing!$A:$F,4,FALSE),"") -> Yegorevsk | F63: =IF(Pricing!A56<>"",Pricing!A56,"") -> 67353 | G63: =IF(F63<>"",VLOOKUP(F63,Pricing!$A:$B,2,FALSE),"") -> Каркас-М40-ТВИН-50/1220х9000/Е/К | H63: =IFERROR(IF($A$1,VLOOKUP(F63,'Pricing pick up'!$A:$CM,MATCH(Проектные!$G$3,'Pricing pick up'!$2:$2,0),0),VLOOKUP(F63,Pricing!$A:$CL,MATCH(Проектные!$G$3,Pricing!$2:$2,0),0)),"не возим") -> 1972.270874 | I63: =IFERROR(IF($B$1,VLOOKUP(CONCATENATE($E63,$G$3),Tariffs_!A:H,8,0),VLOOKUP(CONCATENATE($E63,$G$3),Tariffs_!A:G,6,0)),"-") -> 0 | J63: =IFERROR(IF($B$1,VLOOKUP(CONCATENATE($E63,$G$3),Tariffs_!A:I,9,0)*VLOOKUP($F63,ZMM_Plst!$B:$K,8,0)/VLOOKUP($F63,ZMM_Plst!$B:$K,10,0)*1.2,VLOOKUP(CONCATENATE($E63,$G$3),Tariffs_!A:G,7,0)*VLOOKUP($F63,ZMM_Plst!$B:$K,8,0)/VLOOKUP($F63,ZMM_Plst!$B:$K,10,0)*1.2),"-") -> 0 | K63: 1643.559062 | L63: =VLOOKUP($F63,ZMM_Plst!$B:$AA,26,0) -> B | M63: 16.2 | N63: 1.098 | O63: =VLOOKUP($F63,ZMM_Plst!$B:$AC,17,0) -> 2 | P63: =VLOOKUP($F63,ZMM_Plst!$B:$AC,9,0) -> 388.8 | Q63: =VLOOKUP($F63,ZMM_Plst!$B:$AC,10,0) -> 26.352 | R63: =VLOOKUP($F63,ZMM_Plst!$B:$AC,8,0) -> 4.6 | S63: =VLOOKUP($F63,ZMM_Plst!$B:$AC,16,0) -> 24 | T63: 527.04 | U63: =VLOOKUP($F63,ZMM_Plst!$B:$AC,6,0) -> 9 | V63: =VLOOKUP($F63,ZMM_Plst!$B:$AC,7,0) -> 1.22 | W63: =VLOOKUP($F63,ZMM_Plst!$B:$AC,5,0) -> 0.05
A64: =IF($F64<>"",VLOOKUP(F64,Pricing!$A:$F,6,FALSE),"") -> GW | B64: =IF($F64<>"",VLOOKUP(F64,Pricing!$A:$F,5,FALSE),"") -> LW | C64: =IF($F64<>"",VLOOKUP(Проектные!$F64,Pricing!$A:$F,3,FALSE),"") -> Frame R40AL | D64: =VLOOKUP(C64,конструктив!A:B,2,0) -> Каркасы | E64: =IF($F64<>"",VLOOKUP(F64,Pricing!$A:$F,4,FALSE),"") -> Yegorevsk | F64: =IF(Pricing!A57<>"",Pricing!A57,"") -> 67326 | G64: =IF(F64<>"",VLOOKUP(F64,Pricing!$A:$B,2,FALSE),"") -> Каркас-М40-АЛ-100/1200х9600/Е/К | H64: =IFERROR(IF($A$1,VLOOKUP(F64,'Pricing pick up'!$A:$CM,MATCH(Проектные!$G$3,'Pricing pick up'!$2:$2,0),0),VLOOKUP(F64,Pricing!$A:$CL,MATCH(Проектные!$G$3,Pricing!$2:$2,0),0)),"не возим") -> 3839.537485 | I64: =IFERROR(IF($B$1,VLOOKUP(CONCATENATE($E64,$G$3),Tariffs_!A:H,8,0),VLOOKUP(CONCATENATE($E64,$G$3),Tariffs_!A:G,6,0)),"-") -> 0 | J64: =IFERROR(IF($B$1,VLOOKUP(CONCATENATE($E64,$G$3),Tariffs_!A:I,9,0)*VLOOKUP($F64,ZMM_Plst!$B:$K,8,0)/VLOOKUP($F64,ZMM_Plst!$B:$K,10,0)*1.2,VLOOKUP(CONCATENATE($E64,$G$3),Tariffs_!A:G,7,0)*VLOOKUP($F64,ZMM_Plst!$B:$K,8,0)/VLOOKUP($F64,ZMM_Plst!$B:$K,10,0)*1.2),"-") -> 0 | K64: 3199.614571 | L64: =VLOOKUP($F64,ZMM_Plst!$B:$AA,26,0) -> B | M64: 11.52 | N64: 1.152 | O64: =VLOOKUP($F64,ZMM_Plst!$B:$AC,17,0) -> 1 | P64: =VLOOKUP($F64,ZMM_Plst!$B:$AC,9,0) -> 138.24 | Q64: =VLOOKUP($F64,ZMM_Plst!$B:$AC,10,0) -> 13.824 | R64: =VLOOKUP($F64,ZMM_Plst!$B:$AC,8,0) -> 4.181 | S64: =VLOOKUP($F64,ZMM_Plst!$B:$AC,16,0) -> 12 | T64: 304.1875149 | U64: =VLOOKUP($F64,ZMM_Plst!$B:$AC,6,0) -> 9.6 | V64: =VLOOKUP($F64,ZMM_Plst!$B:$AC,7,0) -> 1.2 | W64: =VLOOKUP($F64,ZMM_Plst!$B:$AC,5,0) -> 0.1
A65: =IF($F65<>"",VLOOKUP(F65,Pricing!$A:$F,6,FALSE),"") -> GW | B65: =IF($F65<>"",VLOOKUP(F65,Pricing!$A:$F,5,FALSE),"") -> LW | C65: =IF($F65<>"",VLOOKUP(Проектные!$F65,Pricing!$A:$F,3,FALSE),"") -> Frame R40AL | D65: =VLOOKUP(C65,конструктив!A:B,2,0) -> Каркасы | E65: =IF($F65<>"",VLOOKUP(F65,Pricing!$A:$F,4,FALSE),"") -> Yegorevsk | F65: =IF(Pricing!A58<>"",Pricing!A58,"") -> 67327 | G65: =IF(F65<>"",VLOOKUP(F65,Pricing!$A:$B,2,FALSE),"") -> Каркас-М40-АЛ-100/1200х11000/Е/К | H65: =IFERROR(IF($A$1,VLOOKUP(F65,'Pricing pick up'!$A:$CM,MATCH(Проектные!$G$3,'Pricing pick up'!$2:$2,0),0),VLOOKUP(F65,Pricing!$A:$CL,MATCH(Проектные!$G$3,Pricing!$2:$2,0),0)),"не возим") -> 3839.537485 | I65: =IFERROR(IF($B$1,VLOOKUP(CONCATENATE($E65,$G$3),Tariffs_!A:H,8,0),VLOOKUP(CONCATENATE($E65,$G$3),Tariffs_!A:G,6,0)),"-") -> 0 | J65: =IFERROR(IF($B$1,VLOOKUP(CONCATENATE($E65,$G$3),Tariffs_!A:I,9,0)*VLOOKUP($F65,ZMM_Plst!$B:$K,8,0)/VLOOKUP($F65,ZMM_Plst!$B:$K,10,0)*1.2,VLOOKUP(CONCATENATE($E65,$G$3),Tariffs_!A:G,7,0)*VLOOKUP($F65,ZMM_Plst!$B:$K,8,0)/VLOOKUP($F65,ZMM_Plst!$B:$K,10,0)*1.2),"-") -> 0 | K65: 3199.614571 | L65: =VLOOKUP($F65,ZMM_Plst!$B:$AA,26,0) -> B | M65: 13.2 | N65: 1.32 | O65: =VLOOKUP($F65,ZMM_Plst!$B:$AC,17,0) -> 1 | P65: =VLOOKUP($F65,ZMM_Plst!$B:$AC,9,0) -> 13.2 | Q65: =VLOOKUP($F65,ZMM_Plst!$B:$AC,10,0) -> 1.32 | R65: =VLOOKUP($F65,ZMM_Plst!$B:$AC,8,0) -> 0.479 | S65: =VLOOKUP($F65,ZMM_Plst!$B:$AC,16,0) -> 1 | T65: 253.5281837 | U65: =VLOOKUP($F65,ZMM_Plst!$B:$AC,6,0) -> 11 | V65: =VLOOKUP($F65,ZMM_Plst!$B:$AC,7,0) -> 1.2 | W65: =VLOOKUP($F65,ZMM_Plst!$B:$AC,5,0) -> 0.1
A66: =IF($F66<>"",VLOOKUP(F66,Pricing!$A:$F,6,FALSE),"") -> GW | B66: =IF($F66<>"",VLOOKUP(F66,Pricing!$A:$F,5,FALSE),"") -> LW | C66: =IF($F66<>"",VLOOKUP(Проектные!$F66,Pricing!$A:$F,3,FALSE),"") -> Frame R40AL | D66: =VLOOKUP(C66,конструктив!A:B,2,0) -> Каркасы | E66: =IF($F66<>"",VLOOKUP(F66,Pricing!$A:$F,4,FALSE),"") -> Yegorevsk | F66: =IF(Pricing!A59<>"",Pricing!A59,"") -> 67328 | G66: =IF(F66<>"",VLOOKUP(F66,Pricing!$A:$B,2,FALSE),"") -> Каркас-М40-АЛ-100/1200х9000/Е/К | H66: =IFERROR(IF($A$1,VLOOKUP(F66,'Pricing pick up'!$A:$CM,MATCH(Проектные!$G$3,'Pricing pick up'!$2:$2,0),0),VLOOKUP(F66,Pricing!$A:$CL,MATCH(Проектные!$G$3,Pricing!$2:$2,0),0)),"не возим") -> 3839.537485 | I66: =IFERROR(IF($B$1,VLOOKUP(CONCATENATE($E66,$G$3),Tariffs_!A:H,8,0),VLOOKUP(CONCATENATE($E66,$G$3),Tariffs_!A:G,6,0)),"-") -> 0 | J66: =IFERROR(IF($B$1,VLOOKUP(CONCATENATE($E66,$G$3),Tariffs_!A:I,9,0)*VLOOKUP($F66,ZMM_Plst!$B:$K,8,0)/VLOOKUP($F66,ZMM_Plst!$B:$K,10,0)*1.2,VLOOKUP(CONCATENATE($E66,$G$3),Tariffs_!A:G,7,0)*VLOOKUP($F66,ZMM_Plst!$B:$K,8,0)/VLOOKUP($F66,ZMM_Plst!$B:$K,10,0)*1.2),"-") -> 0 | K66: 3199.614571 | L66: =VLOOKUP($F66,ZMM_Plst!$B:$AA,26,0) -> B | M66: =P66/S66 -> 10.8 | N66: =Q66/S66 -> 1.08 | O66: =VLOOKUP($F66,ZMM_Plst!$B:$AC,17,0) -> 1 | P66: =VLOOKUP($F66,ZMM_Plst!$B:$AC,9,0) -> 129.6 | Q66: =VLOOKUP($F66,ZMM_Plst!$B:$AC,10,0) -> 12.96 | R66: =VLOOKUP($F66,ZMM_Plst!$B:$AC,8,0) -> 4.18 | S66: =VLOOKUP($F66,ZMM_Plst!$B:$AC,16,0) -> 12 | T66: =92/R66*Q66 -> 285.2440191 | U66: =VLOOKUP($F66,ZMM_Plst!$B:$AC,6,0) -> 9 | V66: =VLOOKUP($F66,ZMM_Plst!$B:$AC,7,0) -> 1.2 | W66: =VLOOKUP($F66,ZMM_Plst!$B:$AC,5,0) -> 0.1
A67: =IF($F67<>"",VLOOKUP(F67,Pricing!$A:$F,6,FALSE),"") -> GW | B67: =IF($F67<>"",VLOOKUP(F67,Pricing!$A:$F,5,FALSE),"") -> LW | C67: =IF($F67<>"",VLOOKUP(Проектные!$F67,Pricing!$A:$F,3,FALSE),"") -> Frame R40AL | D67: =VLOOKUP(C67,конструктив!A:B,2,0) -> Каркасы | E67: =IF($F67<>"",VLOOKUP(F67,Pricing!$A:$F,4,FALSE),"") -> Yegorevsk | F67: =IF(Pricing!A60<>"",Pricing!A60,"") -> 67343 | G67: =IF(F67<>"",VLOOKUP(F67,Pricing!$A:$B,2,FALSE),"") -> Каркас-М40-АЛ-100/1200х7000/Е/К | H67: =IFERROR(IF($A$1,VLOOKUP(F67,'Pricing pick up'!$A:$CM,MATCH(Проектные!$G$3,'Pricing pick up'!$2:$2,0),0),VLOOKUP(F67,Pricing!$A:$CL,MATCH(Проектные!$G$3,Pricing!$2:$2,0),0)),"не возим") -> 3839.537485 | I67: =IFERROR(IF($B$1,VLOOKUP(CONCATENATE($E67,$G$3),Tariffs_!A:H,8,0),VLOOKUP(CONCATENATE($E67,$G$3),Tariffs_!A:G,6,0)),"-") -> 0 | J67: =IFERROR(IF($B$1,VLOOKUP(CONCATENATE($E67,$G$3),Tariffs_!A:I,9,0)*VLOOKUP($F67,ZMM_Plst!$B:$K,8,0)/VLOOKUP($F67,ZMM_Plst!$B:$K,10,0)*1.2,VLOOKUP(CONCATENATE($E67,$G$3),Tariffs_!A:G,7,0)*VLOOKUP($F67,ZMM_Plst!$B:$K,8,0)/VLOOKUP($F67,ZMM_Plst!$B:$K,10,0)*1.2),"-") -> 0 | K67: 3199.614571 | L67: =VLOOKUP($F67,ZMM_Plst!$B:$AA,26,0) -> B | M67: 8.4 | N67: 0.84 | O67: =VLOOKUP($F67,ZMM_Plst!$B:$AC,17,0) -> 1 | P67: =VLOOKUP($F67,ZMM_Plst!$B:$AC,9,0) -> 201.6 | Q67: =VLOOKUP($F67,ZMM_Plst!$B:$AC,10,0) -> 20.16 | R67: =VLOOKUP($F67,ZMM_Plst!$B:$AC,8,0) -> 4.6 | S67: =VLOOKUP($F67,ZMM_Plst!$B:$AC,16,0) -> 24 | T67: 403.2 | U67: =VLOOKUP($F67,ZMM_Plst!$B:$AC,6,0) -> 7 | V67: =VLOOKUP($F67,ZMM_Plst!$B:$AC,7,0) -> 1.2 | W67: =VLOOKUP($F67,ZMM_Plst!$B:$AC,5,0) -> 0.1
A68: =IF($F68<>"",VLOOKUP(F68,Pricing!$A:$F,6,FALSE),"") -> GW | B68: =IF($F68<>"",VLOOKUP(F68,Pricing!$A:$F,5,FALSE),"") -> LW | C68: =IF($F68<>"",VLOOKUP(Проектные!$F68,Pricing!$A:$F,3,FALSE),"") -> Frame R40AL | D68: =VLOOKUP(C68,конструктив!A:B,2,0) -> Каркасы | E68: =IF($F68<>"",VLOOKUP(F68,Pricing!$A:$F,4,FALSE),"") -> Yegorevsk | F68: =IF(Pricing!A61<>"",Pricing!A61,"") -> 67344 | G68: =IF(F68<>"",VLOOKUP(F68,Pricing!$A:$B,2,FALSE),"") -> Каркас-М40-АЛ-150/1200х5000/Е/К | H68: =IFERROR(IF($A$1,VLOOKUP(F68,'Pricing pick up'!$A:$CM,MATCH(Проектные!$G$3,'Pricing pick up'!$2:$2,0),0),VLOOKUP(F68,Pricing!$A:$CL,MATCH(Проектные!$G$3,Pricing!$2:$2,0),0)),"не возим") -> 3839.537485 | I68: =IFERROR(IF($B$1,VLOOKUP(CONCATENATE($E68,$G$3),Tariffs_!A:H,8,0),VLOOKUP(CONCATENATE($E68,$G$3),Tariffs_!A:G,6,0)),"-") -> 0 | J68: =IFERROR(IF($B$1,VLOOKUP(CONCATENATE($E68,$G$3),Tariffs_!A:I,9,0)*VLOOKUP($F68,ZMM_Plst!$B:$K,8,0)/VLOOKUP($F68,ZMM_Plst!$B:$K,10,0)*1.2,VLOOKUP(CONCATENATE($E68,$G$3),Tariffs_!A:G,7,0)*VLOOKUP($F68,ZMM_Plst!$B:$K,8,0)/VLOOKUP($F68,ZMM_Plst!$B:$K,10,0)*1.2),"-") -> 0 | K68: 3199.614571 | L68: =VLOOKUP($F68,ZMM_Plst!$B:$AA,26,0) -> B | M68: 6 | N68: 0.9 | O68: =VLOOKUP($F68,ZMM_Plst!$B:$AC,17,0) -> 1 | P68: =VLOOKUP($F68,ZMM_Plst!$B:$AC,9,0) -> 144 | Q68: =VLOOKUP($F68,ZMM_Plst!$B:$AC,10,0) -> 21.6 | R68: =VLOOKUP($F68,ZMM_Plst!$B:$AC,8,0) -> 4.6 | S68: =VLOOKUP($F68,ZMM_Plst!$B:$AC,16,0) -> 24 | T68: 432 | U68: =VLOOKUP($F68,ZMM_Plst!$B:$AC,6,0) -> 5 | V68: =VLOOKUP($F68,ZMM_Plst!$B:$AC,7,0) -> 1.2 | W68: =VLOOKUP($F68,ZMM_Plst!$B:$AC,5,0) -> 0.15
A69: =IF($F69<>"",VLOOKUP(F69,Pricing!$A:$F,6,FALSE),"") -> GW | B69: =IF($F69<>"",VLOOKUP(F69,Pricing!$A:$F,5,FALSE),"") -> LW | C69: =IF($F69<>"",VLOOKUP(Проектные!$F69,Pricing!$A:$F,3,FALSE),"") -> Frame R40AL 50 | D69: =VLOOKUP(C69,конструктив!A:B,2,0) -> Каркасы | E69: =IF($F69<>"",VLOOKUP(F69,Pricing!$A:$F,4,FALSE),"") -> Yegorevsk | F69: =IF(Pricing!A62<>"",Pricing!A62,"") -> 67342 | G69: =IF(F69<>"",VLOOKUP(F69,Pricing!$A:$B,2,FALSE),"") -> Каркас-М40-АЛ-50/1200х14000/Е/К | H69: =IFERROR(IF($A$1,VLOOKUP(F69,'Pricing pick up'!$A:$CM,MATCH(Проектные!$G$3,'Pricing pick up'!$2:$2,0),0),VLOOKUP(F69,Pricing!$A:$CL,MATCH(Проектные!$G$3,Pricing!$2:$2,0),0)),"не возим") -> 3839.537485 | I69: =IFERROR(IF($B$1,VLOOKUP(CONCATENATE($E69,$G$3),Tariffs_!A:H,8,0),VLOOKUP(CONCATENATE($E69,$G$3),Tariffs_!A:G,6,0)),"-") -> 0 | J69: =IFERROR(IF($B$1,VLOOKUP(CONCATENATE($E69,$G$3),Tariffs_!A:I,9,0)*VLOOKUP($F69,ZMM_Plst!$B:$K,8,0)/VLOOKUP($F69,ZMM_Plst!$B:$K,10,0)*1.2,VLOOKUP(CONCATENATE($E69,$G$3),Tariffs_!A:G,7,0)*VLOOKUP($F69,ZMM_Plst!$B:$K,8,0)/VLOOKUP($F69,ZMM_Plst!$B:$K,10,0)*1.2),"-") -> 0 | K69: 3199.614571 | L69: =VLOOKUP($F69,ZMM_Plst!$B:$AA,26,0) -> A | M69: 16.8 | N69: 0.84 | O69: =VLOOKUP($F69,ZMM_Plst!$B:$AC,17,0) -> 1 | P69: =VLOOKUP($F69,ZMM_Plst!$B:$AC,9,0) -> 403.2 | Q69: =VLOOKUP($F69,ZMM_Plst!$B:$AC,10,0) -> 20.16 | R69: =VLOOKUP($F69,ZMM_Plst!$B:$AC,8,0) -> 4.6 | S69: =VLOOKUP($F69,ZMM_Plst!$B:$AC,16,0) -> 24 | T69: 403.2 | U69: =VLOOKUP($F69,ZMM_Plst!$B:$AC,6,0) -> 14 | V69: =VLOOKUP($F69,ZMM_Plst!$B:$AC,7,0) -> 1.2 | W69: =VLOOKUP($F69,ZMM_Plst!$B:$AC,5,0) -> 0.05
A70: =IF($F70<>"",VLOOKUP(F70,Pricing!$A:$F,6,FALSE),"") -> GW | B70: =IF($F70<>"",VLOOKUP(F70,Pricing!$A:$F,5,FALSE),"") -> LW | C70: =IF($F70<>"",VLOOKUP(Проектные!$F70,Pricing!$A:$F,3,FALSE),"") -> Frame S32 | D70: =VLOOKUP(C70,конструктив!A:B,2,0) -> Каркасы | E70: =IF($F70<>"",VLOOKUP(F70,Pricing!$A:$F,4,FALSE),"") -> Yegorevsk | F70: =IF(Pricing!A63<>"",Pricing!A63,"") -> 67310 | G70: =IF(F70<>"",VLOOKUP(F70,Pricing!$A:$B,2,FALSE),"") -> Каркас-П32-50/610х1170/E/К | H70: =IFERROR(IF($A$1,VLOOKUP(F70,'Pricing pick up'!$A:$CM,MATCH(Проектные!$G$3,'Pricing pick up'!$2:$2,0),0),VLOOKUP(F70,Pricing!$A:$CL,MATCH(Проектные!$G$3,Pricing!$2:$2,0),0)),"не возим") -> 3136.29611 | I70: =IFERROR(IF($B$1,VLOOKUP(CONCATENATE($E70,$G$3),Tariffs_!A:H,8,0),VLOOKUP(CONCATENATE($E70,$G$3),Tariffs_!A:G,6,0)),"-") -> 0 | J70: =IFERROR(IF($B$1,VLOOKUP(CONCATENATE($E70,$G$3),Tariffs_!A:I,9,0)*VLOOKUP($F70,ZMM_Plst!$B:$K,8,0)/VLOOKUP($F70,ZMM_Plst!$B:$K,10,0)*1.2,VLOOKUP(CONCATENATE($E70,$G$3),Tariffs_!A:G,7,0)*VLOOKUP($F70,ZMM_Plst!$B:$K,8,0)/VLOOKUP($F70,ZMM_Plst!$B:$K,10,0)*1.2),"-") -> 0 | K70: 2613.580092 | L70: =VLOOKUP($F70,ZMM_Plst!$B:$AA,26,0) -> B | M70: 8.5645 | N70: 0.4282 | O70: =VLOOKUP($F70,ZMM_Plst!$B:$AC,17,0) -> 12 | P70: =VLOOKUP($F70,ZMM_Plst!$B:$AC,9,0) -> 171.29 | Q70: =VLOOKUP($F70,ZMM_Plst!$B:$AC,10,0) -> 8.564 | R70: =VLOOKUP($F70,ZMM_Plst!$B:$AC,8,0) -> 4.18 | S70: =VLOOKUP($F70,ZMM_Plst!$B:$AC,16,0) -> 20 | T70: 188.4899522 | U70: =VLOOKUP($F70,ZMM_Plst!$B:$AC,6,0) -> 1.17 | V70: =VLOOKUP($F70,ZMM_Plst!$B:$AC,7,0) -> 0.61 | W70: =VLOOKUP($F70,ZMM_Plst!$B:$AC,5,0) -> 0.05
A71: =IF($F71<>"",VLOOKUP(F71,Pricing!$A:$F,6,FALSE),"") -> GW | B71: =IF($F71<>"",VLOOKUP(F71,Pricing!$A:$F,5,FALSE),"") -> LW | C71: =IF($F71<>"",VLOOKUP(Проектные!$F71,Pricing!$A:$F,3,FALSE),"") -> Frame S32 | D71: =VLOOKUP(C71,конструктив!A:B,2,0) -> Каркасы | E71: =IF($F71<>"",VLOOKUP(F71,Pricing!$A:$F,4,FALSE),"") -> Yegorevsk | F71: =IF(Pricing!A64<>"",Pricing!A64,"") -> 67316 | G71: =IF(F71<>"",VLOOKUP(F71,Pricing!$A:$B,2,FALSE),"") -> Каркас-П32-100/610х1170/E/К | H71: =IFERROR(IF($A$1,VLOOKUP(F71,'Pricing pick up'!$A:$CM,MATCH(Проектные!$G$3,'Pricing pick up'!$2:$2,0),0),VLOOKUP(F71,Pricing!$A:$CL,MATCH(Проектные!$G$3,Pricing!$2:$2,0),0)),"не возим") -> 3136.29611 | I71: =IFERROR(IF($B$1,VLOOKUP(CONCATENATE($E71,$G$3),Tariffs_!A:H,8,0),VLOOKUP(CONCATENATE($E71,$G$3),Tariffs_!A:G,6,0)),"-") -> 0 | J71: =IFERROR(IF($B$1,VLOOKUP(CONCATENATE($E71,$G$3),Tariffs_!A:I,9,0)*VLOOKUP($F71,ZMM_Plst!$B:$K,8,0)/VLOOKUP($F71,ZMM_Plst!$B:$K,10,0)*1.2,VLOOKUP(CONCATENATE($E71,$G$3),Tariffs_!A:G,7,0)*VLOOKUP($F71,ZMM_Plst!$B:$K,8,0)/VLOOKUP($F71,ZMM_Plst!$B:$K,10,0)*1.2),"-") -> 0 | K71: 2613.580092 | L71: =VLOOKUP($F71,ZMM_Plst!$B:$AA,26,0) -> B | M71: 4.2822 | N71: 0.4282 | O71: =VLOOKUP($F71,ZMM_Plst!$B:$AC,17,0) -> 6 | P71: =VLOOKUP($F71,ZMM_Plst!$B:$AC,9,0) -> 85.644 | Q71: =VLOOKUP($F71,ZMM_Plst!$B:$AC,10,0) -> 8.564 | R71: =VLOOKUP($F71,ZMM_Plst!$B:$AC,8,0) -> 4.18 | S71: =VLOOKUP($F71,ZMM_Plst!$B:$AC,16,0) -> 20 | T71: 188.4899522 | U71: =VLOOKUP($F71,ZMM_Plst!$B:$AC,6,0) -> 1.17 | V71: =VLOOKUP($F71,ZMM_Plst!$B:$AC,7,0) -> 0.61 | W71: =VLOOKUP($F71,ZMM_Plst!$B:$AC,5,0) -> 0.1
A72: =IF($F72<>"",VLOOKUP(F72,Pricing!$A:$F,6,FALSE),"") -> GW | B72: =IF($F72<>"",VLOOKUP(F72,Pricing!$A:$F,5,FALSE),"") -> LW | C72: =IF($F72<>"",VLOOKUP(Проектные!$F72,Pricing!$A:$F,3,FALSE),"") -> Frame S34 | D72: =VLOOKUP(C72,конструктив!A:B,2,0) -> Каркасы | E72: =IF($F72<>"",VLOOKUP(F72,Pricing!$A:$F,4,FALSE),"") -> Yegorevsk | F72: =IF(Pricing!A65<>"",Pricing!A65,"") -> 67290 | G72: =IF(F72<>"",VLOOKUP(F72,Pricing!$A:$B,2,FALSE),"") -> Каркас-П34- 50/610x1170/Е/К | H72: =IFERROR(IF($A$1,VLOOKUP(F72,'Pricing pick up'!$A:$CM,MATCH(Проектные!$G$3,'Pricing pick up'!$2:$2,0),0),VLOOKUP(F72,Pricing!$A:$CL,MATCH(Проектные!$G$3,Pricing!$2:$2,0),0)),"не возим") -> 2647.092467 | I72: =IFERROR(IF($B$1,VLOOKUP(CONCATENATE($E72,$G$3),Tariffs_!A:H,8,0),VLOOKUP(CONCATENATE($E72,$G$3),Tariffs_!A:G,6,0)),"-") -> 0 | J72: =IFERROR(IF($B$1,VLOOKUP(CONCATENATE($E72,$G$3),Tariffs_!A:I,9,0)*VLOOKUP($F72,ZMM_Plst!$B:$K,8,0)/VLOOKUP($F72,ZMM_Plst!$B:$K,10,0)*1.2,VLOOKUP(CONCATENATE($E72,$G$3),Tariffs_!A:G,7,0)*VLOOKUP($F72,ZMM_Plst!$B:$K,8,0)/VLOOKUP($F72,ZMM_Plst!$B:$K,10,0)*1.2),"-") -> 0 | K72: 2205.910389 | L72: =VLOOKUP($F72,ZMM_Plst!$B:$AA,26,0) -> A | M72: 14.274 | N72: 0.7137 | O72: =VLOOKUP($F72,ZMM_Plst!$B:$AC,17,0) -> 20 | P72: =VLOOKUP($F72,ZMM_Plst!$B:$AC,9,0) -> 285.48 | Q72: =VLOOKUP($F72,ZMM_Plst!$B:$AC,10,0) -> 14.274 | R72: =VLOOKUP($F72,ZMM_Plst!$B:$AC,8,0) -> 4.18 | S72: =VLOOKUP($F72,ZMM_Plst!$B:$AC,16,0) -> 20 | T72: 314.1645933 | U72: =VLOOKUP($F72,ZMM_Plst!$B:$AC,6,0) -> 1.17 | V72: =VLOOKUP($F72,ZMM_Plst!$B:$AC,7,0) -> 0.61 | W72: =VLOOKUP($F72,ZMM_Plst!$B:$AC,5,0) -> 0.05
A73: =IF($F73<>"",VLOOKUP(F73,Pricing!$A:$F,6,FALSE),"") -> GW | B73: =IF($F73<>"",VLOOKUP(F73,Pricing!$A:$F,5,FALSE),"") -> LW | C73: =IF($F73<>"",VLOOKUP(Проектные!$F73,Pricing!$A:$F,3,FALSE),"") -> Frame S34 | D73: =VLOOKUP(C73,конструктив!A:B,2,0) -> Каркасы | E73: =IF($F73<>"",VLOOKUP(F73,Pricing!$A:$F,4,FALSE),"") -> Yegorevsk | F73: =IF(Pricing!A66<>"",Pricing!A66,"") -> 67292 | G73: =IF(F73<>"",VLOOKUP(F73,Pricing!$A:$B,2,FALSE),"") -> Каркас-П34-50/610х1250/Е/К | H73: =IFERROR(IF($A$1,VLOOKUP(F73,'Pricing pick up'!$A:$CM,MATCH(Проектные!$G$3,'Pricing pick up'!$2:$2,0),0),VLOOKUP(F73,Pricing!$A:$CL,MATCH(Проектные!$G$3,Pricing!$2:$2,0),0)),"не возим") -> 2647.092467 | I73: =IFERROR(IF($B$1,VLOOKUP(CONCATENATE($E73,$G$3),Tariffs_!A:H,8,0),VLOOKUP(CONCATENATE($E73,$G$3),Tariffs_!A:G,6,0)),"-") -> 0 | J73: =IFERROR(IF($B$1,VLOOKUP(CONCATENATE($E73,$G$3),Tariffs_!A:I,9,0)*VLOOKUP($F73,ZMM_Plst!$B:$K,8,0)/VLOOKUP($F73,ZMM_Plst!$B:$K,10,0)*1.2,VLOOKUP(CONCATENATE($E73,$G$3),Tariffs_!A:G,7,0)*VLOOKUP($F73,ZMM_Plst!$B:$K,8,0)/VLOOKUP($F73,ZMM_Plst!$B:$K,10,0)*1.2),"-") -> 0 | K73: 2205.910389 | L73: =VLOOKUP($F73,ZMM_Plst!$B:$AA,26,0) -> B | M73: 12.2 | N73: 0.61 | O73: =VLOOKUP($F73,ZMM_Plst!$B:$AC,17,0) -> 16 | P73: =VLOOKUP($F73,ZMM_Plst!$B:$AC,9,0) -> 244 | Q73: =VLOOKUP($F73,ZMM_Plst!$B:$AC,10,0) -> 12.2 | R73: =VLOOKUP($F73,ZMM_Plst!$B:$AC,8,0) -> 4.6 | S73: =VLOOKUP($F73,ZMM_Plst!$B:$AC,16,0) -> 20 | T73: 244 | U73: =VLOOKUP($F73,ZMM_Plst!$B:$AC,6,0) -> 1.25 | V73: =VLOOKUP($F73,ZMM_Plst!$B:$AC,7,0) -> 0.61 | W73: =VLOOKUP($F73,ZMM_Plst!$B:$AC,5,0) -> 0.05
A74: =IF($F74<>"",VLOOKUP(F74,Pricing!$A:$F,6,FALSE),"") -> GW | B74: =IF($F74<>"",VLOOKUP(F74,Pricing!$A:$F,5,FALSE),"") -> LW | C74: =IF($F74<>"",VLOOKUP(Проектные!$F74,Pricing!$A:$F,3,FALSE),"") -> Frame S34 | D74: =VLOOKUP(C74,конструктив!A:B,2,0) -> Каркасы | E74: =IF($F74<>"",VLOOKUP(F74,Pricing!$A:$F,4,FALSE),"") -> Yegorevsk | F74: =IF(Pricing!A67<>"",Pricing!A67,"") -> 67293 | G74: =IF(F74<>"",VLOOKUP(F74,Pricing!$A:$B,2,FALSE),"") -> Каркас-П34-60/610х1170/Е/К | H74: =IFERROR(IF($A$1,VLOOKUP(F74,'Pricing pick up'!$A:$CM,MATCH(Проектные!$G$3,'Pricing pick up'!$2:$2,0),0),VLOOKUP(F74,Pricing!$A:$CL,MATCH(Проектные!$G$3,Pricing!$2:$2,0),0)),"не возим") -> 2647.092467 | I74: =IFERROR(IF($B$1,VLOOKUP(CONCATENATE($E74,$G$3),Tariffs_!A:H,8,0),VLOOKUP(CONCATENATE($E74,$G$3),Tariffs_!A:G,6,0)),"-") -> 0 | J74: =IFERROR(IF($B$1,VLOOKUP(CONCATENATE($E74,$G$3),Tariffs_!A:I,9,0)*VLOOKUP($F74,ZMM_Plst!$B:$K,8,0)/VLOOKUP($F74,ZMM_Plst!$B:$K,10,0)*1.2,VLOOKUP(CONCATENATE($E74,$G$3),Tariffs_!A:G,7,0)*VLOOKUP($F74,ZMM_Plst!$B:$K,8,0)/VLOOKUP($F74,ZMM_Plst!$B:$K,10,0)*1.2),"-") -> 0 | K74: =IFERROR(H74/1.2,"-") -> 2205.910389 | L74: =VLOOKUP($F74,ZMM_Plst!$B:$AA,26,0) -> B | M74: 11.419 | N74: 0.685 | O74: =VLOOKUP($F74,ZMM_Plst!$B:$AC,17,0) -> 16 | P74: =VLOOKUP($F74,ZMM_Plst!$B:$AC,9,0) -> 228.38 | Q74: =VLOOKUP($F74,ZMM_Plst!$B:$AC,10,0) -> 13.7 | R74: =VLOOKUP($F74,ZMM_Plst!$B:$AC,8,0) -> 4.6 | S74: =VLOOKUP($F74,ZMM_Plst!$B:$AC,16,0) -> 20 | T74: 274 | U74: =VLOOKUP($F74,ZMM_Plst!$B:$AC,6,0) -> 1.17 | V74: =VLOOKUP($F74,ZMM_Plst!$B:$AC,7,0) -> 0.61 | W74: =VLOOKUP($F74,ZMM_Plst!$B:$AC,5,0) -> 0.06
A75: =IF($F75<>"",VLOOKUP(F75,Pricing!$A:$F,6,FALSE),"") -> GW | B75: =IF($F75<>"",VLOOKUP(F75,Pricing!$A:$F,5,FALSE),"") -> LW | C75: =IF($F75<>"",VLOOKUP(Проектные!$F75,Pricing!$A:$F,3,FALSE),"") -> Frame S34 | D75: =VLOOKUP(C75,конструктив!A:B,2,0) -> Каркасы | E75: =IF($F75<>"",VLOOKUP(F75,Pricing!$A:$F,4,FALSE),"") -> Yegorevsk | F75: =IF(Pricing!A68<>"",Pricing!A68,"") -> 67294 | G75: =IF(F75<>"",VLOOKUP(F75,Pricing!$A:$B,2,FALSE),"") -> Каркас-П34-65/610х1200/Е/К | H75: =IFERROR(IF($A$1,VLOOKUP(F75,'Pricing pick up'!$A:$CM,MATCH(Проектные!$G$3,'Pricing pick up'!$2:$2,0),0),VLOOKUP(F75,Pricing!$A:$CL,MATCH(Проектные!$G$3,Pricing!$2:$2,0),0)),"не возим") -> 2647.092467 | I75: =IFERROR(IF($B$1,VLOOKUP(CONCATENATE($E75,$G$3),Tariffs_!A:H,8,0),VLOOKUP(CONCATENATE($E75,$G$3),Tariffs_!A:G,6,0)),"-") -> 0 | J75: =IFERROR(IF($B$1,VLOOKUP(CONCATENATE($E75,$G$3),Tariffs_!A:I,9,0)*VLOOKUP($F75,ZMM_Plst!$B:$K,8,0)/VLOOKUP($F75,ZMM_Plst!$B:$K,10,0)*1.2,VLOOKUP(CONCATENATE($E75,$G$3),Tariffs_!A:G,7,0)*VLOOKUP($F75,ZMM_Plst!$B:$K,8,0)/VLOOKUP($F75,ZMM_Plst!$B:$K,10,0)*1.2),"-") -> 0 | K75: 2205.910389 | L75: =VLOOKUP($F75,ZMM_Plst!$B:$AA,26,0) -> B | M75: 10.248 | N75: 0.6661 | O75: =VLOOKUP($F75,ZMM_Plst!$B:$AC,17,0) -> 14 | P75: =VLOOKUP($F75,ZMM_Plst!$B:$AC,9,0) -> 204.96 | Q75: =VLOOKUP($F75,ZMM_Plst!$B:$AC,10,0) -> 13.322 | R75: =VLOOKUP($F75,ZMM_Plst!$B:$AC,8,0) -> 4.6 | S75: =VLOOKUP($F75,ZMM_Plst!$B:$AC,16,0) -> 20 | T75: 266.44 | U75: =VLOOKUP($F75,ZMM_Plst!$B:$AC,6,0) -> 1.2 | V75: =VLOOKUP($F75,ZMM_Plst!$B:$AC,7,0) -> 0.61 | W75: =VLOOKUP($F75,ZMM_Plst!$B:$AC,5,0) -> 0.065
A76: =IF($F76<>"",VLOOKUP(F76,Pricing!$A:$F,6,FALSE),"") -> GW | B76: =IF($F76<>"",VLOOKUP(F76,Pricing!$A:$F,5,FALSE),"") -> LW | C76: =IF($F76<>"",VLOOKUP(Проектные!$F76,Pricing!$A:$F,3,FALSE),"") -> Frame S34 | D76: =VLOOKUP(C76,конструктив!A:B,2,0) -> Каркасы | E76: =IF($F76<>"",VLOOKUP(F76,Pricing!$A:$F,4,FALSE),"") -> Yegorevsk | F76: =IF(Pricing!A69<>"",Pricing!A69,"") -> 67299 | G76: =IF(F76<>"",VLOOKUP(F76,Pricing!$A:$B,2,FALSE),"") -> Каркас-П34-80/610х1170/E/К | H76: =IFERROR(IF($A$1,VLOOKUP(F76,'Pricing pick up'!$A:$CM,MATCH(Проектные!$G$3,'Pricing pick up'!$2:$2,0),0),VLOOKUP(F76,Pricing!$A:$CL,MATCH(Проектные!$G$3,Pricing!$2:$2,0),0)),"не возим") -> 2647.092467 | I76: =IFERROR(IF($B$1,VLOOKUP(CONCATENATE($E76,$G$3),Tariffs_!A:H,8,0),VLOOKUP(CONCATENATE($E76,$G$3),Tariffs_!A:G,6,0)),"-") -> 0 | J76: =IFERROR(IF($B$1,VLOOKUP(CONCATENATE($E76,$G$3),Tariffs_!A:I,9,0)*VLOOKUP($F76,ZMM_Plst!$B:$K,8,0)/VLOOKUP($F76,ZMM_Plst!$B:$K,10,0)*1.2,VLOOKUP(CONCATENATE($E76,$G$3),Tariffs_!A:G,7,0)*VLOOKUP($F76,ZMM_Plst!$B:$K,8,0)/VLOOKUP($F76,ZMM_Plst!$B:$K,10,0)*1.2),"-") -> 0 | K76: 2205.910389 | L76: =VLOOKUP($F76,ZMM_Plst!$B:$AA,26,0) -> A | M76: 8.5645 | N76: 0.68515 | O76: =VLOOKUP($F76,ZMM_Plst!$B:$AC,17,0) -> 12 | P76: =VLOOKUP($F76,ZMM_Plst!$B:$AC,9,0) -> 171.29 | Q76: =VLOOKUP($F76,ZMM_Plst!$B:$AC,10,0) -> 13.703 | R76: =VLOOKUP($F76,ZMM_Plst!$B:$AC,8,0) -> 4.18 | S76: =VLOOKUP($F76,ZMM_Plst!$B:$AC,16,0) -> 20 | T76: 301.5971292 | U76: =VLOOKUP($F76,ZMM_Plst!$B:$AC,6,0) -> 1.17 | V76: =VLOOKUP($F76,ZMM_Plst!$B:$AC,7,0) -> 0.61 | W76: =VLOOKUP($F76,ZMM_Plst!$B:$AC,5,0) -> 0.08
A77: =IF($F77<>"",VLOOKUP(F77,Pricing!$A:$F,6,FALSE),"") -> GW | B77: =IF($F77<>"",VLOOKUP(F77,Pricing!$A:$F,5,FALSE),"") -> LW | C77: =IF($F77<>"",VLOOKUP(Проектные!$F77,Pricing!$A:$F,3,FALSE),"") -> Frame S34 | D77: =VLOOKUP(C77,конструктив!A:B,2,0) -> Каркасы | E77: =IF($F77<>"",VLOOKUP(F77,Pricing!$A:$F,4,FALSE),"") -> Yegorevsk | F77: =IF(Pricing!A70<>"",Pricing!A70,"") -> 67300 | G77: =IF(F77<>"",VLOOKUP(F77,Pricing!$A:$B,2,FALSE),"") -> Каркас-П34-100/610х1170/Е/К | H77: =IFERROR(IF($A$1,VLOOKUP(F77,'Pricing pick up'!$A:$CM,MATCH(Проектные!$G$3,'Pricing pick up'!$2:$2,0),0),VLOOKUP(F77,Pricing!$A:$CL,MATCH(Проектные!$G$3,Pricing!$2:$2,0),0)),"не возим") -> 2647.092467 | I77: =IFERROR(IF($B$1,VLOOKUP(CONCATENATE($E77,$G$3),Tariffs_!A:H,8,0),VLOOKUP(CONCATENATE($E77,$G$3),Tariffs_!A:G,6,0)),"-") -> 0 | J77: =IFERROR(IF($B$1,VLOOKUP(CONCATENATE($E77,$G$3),Tariffs_!A:I,9,0)*VLOOKUP($F77,ZMM_Plst!$B:$K,8,0)/VLOOKUP($F77,ZMM_Plst!$B:$K,10,0)*1.2,VLOOKUP(CONCATENATE($E77,$G$3),Tariffs_!A:G,7,0)*VLOOKUP($F77,ZMM_Plst!$B:$K,8,0)/VLOOKUP($F77,ZMM_Plst!$B:$K,10,0)*1.2),"-") -> 0 | K77: 2205.910389 | L77: =VLOOKUP($F77,ZMM_Plst!$B:$AA,26,0) -> A | M77: 7.137 | N77: 0.7137 | O77: =VLOOKUP($F77,ZMM_Plst!$B:$AC,17,0) -> 10 | P77: =VLOOKUP($F77,ZMM_Plst!$B:$AC,9,0) -> 142.74 | Q77: =VLOOKUP($F77,ZMM_Plst!$B:$AC,10,0) -> 14.274 | R77: =VLOOKUP($F77,ZMM_Plst!$B:$AC,8,0) -> 4.18 | S77: =VLOOKUP($F77,ZMM_Plst!$B:$AC,16,0) -> 20 | T77: 314.1645933 | U77: =VLOOKUP($F77,ZMM_Plst!$B:$AC,6,0) -> 1.17 | V77: =VLOOKUP($F77,ZMM_Plst!$B:$AC,7,0) -> 0.61 | W77: =VLOOKUP($F77,ZMM_Plst!$B:$AC,5,0) -> 0.1
A78: =IF($F78<>"",VLOOKUP(F78,Pricing!$A:$F,6,FALSE),"") -> GW | B78: =IF($F78<>"",VLOOKUP(F78,Pricing!$A:$F,5,FALSE),"") -> LW | C78: =IF($F78<>"",VLOOKUP(Проектные!$F78,Pricing!$A:$F,3,FALSE),"") -> Frame S34 | D78: =VLOOKUP(C78,конструктив!A:B,2,0) -> Каркасы | E78: =IF($F78<>"",VLOOKUP(F78,Pricing!$A:$F,4,FALSE),"") -> Yegorevsk | F78: =IF(Pricing!A71<>"",Pricing!A71,"") -> 67301 | G78: =IF(F78<>"",VLOOKUP(F78,Pricing!$A:$B,2,FALSE),"") -> Каркас-П34-50/610х1170/Е/К | H78: =IFERROR(IF($A$1,VLOOKUP(F78,'Pricing pick up'!$A:$CM,MATCH(Проектные!$G$3,'Pricing pick up'!$2:$2,0),0),VLOOKUP(F78,Pricing!$A:$CL,MATCH(Проектные!$G$3,Pricing!$2:$2,0),0)),"не возим") -> 2647.092467 | I78: =IFERROR(IF($B$1,VLOOKUP(CONCATENATE($E78,$G$3),Tariffs_!A:H,8,0),VLOOKUP(CONCATENATE($E78,$G$3),Tariffs_!A:G,6,0)),"-") -> 0 | J78: =IFERROR(IF($B$1,VLOOKUP(CONCATENATE($E78,$G$3),Tariffs_!A:I,9,0)*VLOOKUP($F78,ZMM_Plst!$B:$K,8,0)/VLOOKUP($F78,ZMM_Plst!$B:$K,10,0)*1.2,VLOOKUP(CONCATENATE($E78,$G$3),Tariffs_!A:G,7,0)*VLOOKUP($F78,ZMM_Plst!$B:$K,8,0)/VLOOKUP($F78,ZMM_Plst!$B:$K,10,0)*1.2),"-") -> 0 | K78: 2205.910389 | L78: =VLOOKUP($F78,ZMM_Plst!$B:$AA,26,0) -> B | M78: 14.274 | N78: 0.7137 | O78: =VLOOKUP($F78,ZMM_Plst!$B:$AC,17,0) -> 20 | P78: =VLOOKUP($F78,ZMM_Plst!$B:$AC,9,0) -> 285.48 | Q78: =VLOOKUP($F78,ZMM_Plst!$B:$AC,10,0) -> 14.274 | R78: =VLOOKUP($F78,ZMM_Plst!$B:$AC,8,0) -> 4.18 | S78: =VLOOKUP($F78,ZMM_Plst!$B:$AC,16,0) -> 20 | T78: 314.1645933 | U78: =VLOOKUP($F78,ZMM_Plst!$B:$AC,6,0) -> 1.17 | V78: =VLOOKUP($F78,ZMM_Plst!$B:$AC,7,0) -> 0.61 | W78: =VLOOKUP($F78,ZMM_Plst!$B:$AC,5,0) -> 0.05
A79: =IF($F79<>"",VLOOKUP(F79,Pricing!$A:$F,6,FALSE),"") -> GW | B79: =IF($F79<>"",VLOOKUP(F79,Pricing!$A:$F,5,FALSE),"") -> LW | C79: =IF($F79<>"",VLOOKUP(Проектные!$F79,Pricing!$A:$F,3,FALSE),"") -> Frame S34 | D79: =VLOOKUP(C79,конструктив!A:B,2,0) -> Каркасы | E79: =IF($F79<>"",VLOOKUP(F79,Pricing!$A:$F,4,FALSE),"") -> Yegorevsk | F79: =IF(Pricing!A72<>"",Pricing!A72,"") -> 67302 | G79: =IF(F79<>"",VLOOKUP(F79,Pricing!$A:$B,2,FALSE),"") -> Каркас-П34-100/610х1170/Е/К | H79: =IFERROR(IF($A$1,VLOOKUP(F79,'Pricing pick up'!$A:$CM,MATCH(Проектные!$G$3,'Pricing pick up'!$2:$2,0),0),VLOOKUP(F79,Pricing!$A:$CL,MATCH(Проектные!$G$3,Pricing!$2:$2,0),0)),"не возим") -> 2647.092467 | I79: =IFERROR(IF($B$1,VLOOKUP(CONCATENATE($E79,$G$3),Tariffs_!A:H,8,0),VLOOKUP(CONCATENATE($E79,$G$3),Tariffs_!A:G,6,0)),"-") -> 0 | J79: =IFERROR(IF($B$1,VLOOKUP(CONCATENATE($E79,$G$3),Tariffs_!A:I,9,0)*VLOOKUP($F79,ZMM_Plst!$B:$K,8,0)/VLOOKUP($F79,ZMM_Plst!$B:$K,10,0)*1.2,VLOOKUP(CONCATENATE($E79,$G$3),Tariffs_!A:G,7,0)*VLOOKUP($F79,ZMM_Plst!$B:$K,8,0)/VLOOKUP($F79,ZMM_Plst!$B:$K,10,0)*1.2),"-") -> 0 | K79: 2205.910389 | L79: =VLOOKUP($F79,ZMM_Plst!$B:$AA,26,0) -> B | M79: 7.137 | N79: 0.7137 | O79: =VLOOKUP($F79,ZMM_Plst!$B:$AC,17,0) -> 10 | P79: =VLOOKUP($F79,ZMM_Plst!$B:$AC,9,0) -> 142.74 | Q79: =VLOOKUP($F79,ZMM_Plst!$B:$AC,10,0) -> 14.274 | R79: =VLOOKUP($F79,ZMM_Plst!$B:$AC,8,0) -> 4.18 | S79: =VLOOKUP($F79,ZMM_Plst!$B:$AC,16,0) -> 20 | T79: 314.1645933 | U79: =VLOOKUP($F79,ZMM_Plst!$B:$AC,6,0) -> 1.17 | V79: =VLOOKUP($F79,ZMM_Plst!$B:$AC,7,0) -> 0.61 | W79: =VLOOKUP($F79,ZMM_Plst!$B:$AC,5,0) -> 0.1
A80: =IF($F80<>"",VLOOKUP(F80,Pricing!$A:$F,6,FALSE),"") -> GW | B80: =IF($F80<>"",VLOOKUP(F80,Pricing!$A:$F,5,FALSE),"") -> LW | C80: =IF($F80<>"",VLOOKUP(Проектные!$F80,Pricing!$A:$F,3,FALSE),"") -> Frame S34 | D80: =VLOOKUP(C80,конструктив!A:B,2,0) -> Каркасы | E80: =IF($F80<>"",VLOOKUP(F80,Pricing!$A:$F,4,FALSE),"") -> Yegorevsk | F80: =IF(Pricing!A73<>"",Pricing!A73,"") -> 67303 | G80: =IF(F80<>"",VLOOKUP(F80,Pricing!$A:$B,2,FALSE),"") -> Каркас-П34-100/565х1170/Е/К | H80: =IFERROR(IF($A$1,VLOOKUP(F80,'Pricing pick up'!$A:$CM,MATCH(Проектные!$G$3,'Pricing pick up'!$2:$2,0),0),VLOOKUP(F80,Pricing!$A:$CL,MATCH(Проектные!$G$3,Pricing!$2:$2,0),0)),"не возим") -> 2850.477919 | I80: =IFERROR(IF($B$1,VLOOKUP(CONCATENATE($E80,$G$3),Tariffs_!A:H,8,0),VLOOKUP(CONCATENATE($E80,$G$3),Tariffs_!A:G,6,0)),"-") -> 0 | J80: =IFERROR(IF($B$1,VLOOKUP(CONCATENATE($E80,$G$3),Tariffs_!A:I,9,0)*VLOOKUP($F80,ZMM_Plst!$B:$K,8,0)/VLOOKUP($F80,ZMM_Plst!$B:$K,10,0)*1.2,VLOOKUP(CONCATENATE($E80,$G$3),Tariffs_!A:G,7,0)*VLOOKUP($F80,ZMM_Plst!$B:$K,8,0)/VLOOKUP($F80,ZMM_Plst!$B:$K,10,0)*1.2),"-") -> 0 | K80: 2375.398266 | L80: =VLOOKUP($F80,ZMM_Plst!$B:$AA,26,0) -> B | M80: 6.6105 | N80: 0.66105 | O80: =VLOOKUP($F80,ZMM_Plst!$B:$AC,17,0) -> 10 | P80: =VLOOKUP($F80,ZMM_Plst!$B:$AC,9,0) -> 132.21 | Q80: =VLOOKUP($F80,ZMM_Plst!$B:$AC,10,0) -> 13.221 | R80: =VLOOKUP($F80,ZMM_Plst!$B:$AC,8,0) -> 4.18 | S80: =VLOOKUP($F80,ZMM_Plst!$B:$AC,16,0) -> 20 | T80: 290.9885167 | U80: =VLOOKUP($F80,ZMM_Plst!$B:$AC,6,0) -> 1.17 | V80: =VLOOKUP($F80,ZMM_Plst!$B:$AC,7,0) -> 0.565 | W80: =VLOOKUP($F80,ZMM_Plst!$B:$AC,5,0) -> 0.1
A81: =IF($F81<>"",VLOOKUP(F81,Pricing!$A:$F,6,FALSE),"") -> GW | B81: =IF($F81<>"",VLOOKUP(F81,Pricing!$A:$F,5,FALSE),"") -> LW | C81: =IF($F81<>"",VLOOKUP(Проектные!$F81,Pricing!$A:$F,3,FALSE),"") -> Frame S34 | D81: =VLOOKUP(C81,конструктив!A:B,2,0) -> Каркасы | E81: =IF($F81<>"",VLOOKUP(F81,Pricing!$A:$F,4,FALSE),"") -> Yegorevsk | F81: =IF(Pricing!A74<>"",Pricing!A74,"") -> 67304 | G81: =IF(F81<>"",VLOOKUP(F81,Pricing!$A:$B,2,FALSE),"") -> Каркас-П34-50/610х1025/Е/К | H81: =IFERROR(IF($A$1,VLOOKUP(F81,'Pricing pick up'!$A:$CM,MATCH(Проектные!$G$3,'Pricing pick up'!$2:$2,0),0),VLOOKUP(F81,Pricing!$A:$CL,MATCH(Проектные!$G$3,Pricing!$2:$2,0),0)),"не возим") -> 2647.092467 | I81: =IFERROR(IF($B$1,VLOOKUP(CONCATENATE($E81,$G$3),Tariffs_!A:H,8,0),VLOOKUP(CONCATENATE($E81,$G$3),Tariffs_!A:G,6,0)),"-") -> 0 | J81: =IFERROR(IF($B$1,VLOOKUP(CONCATENATE($E81,$G$3),Tariffs_!A:I,9,0)*VLOOKUP($F81,ZMM_Plst!$B:$K,8,0)/VLOOKUP($F81,ZMM_Plst!$B:$K,10,0)*1.2,VLOOKUP(CONCATENATE($E81,$G$3),Tariffs_!A:G,7,0)*VLOOKUP($F81,ZMM_Plst!$B:$K,8,0)/VLOOKUP($F81,ZMM_Plst!$B:$K,10,0)*1.2),"-") -> 0 | K81: 2205.910389 | L81: =VLOOKUP($F81,ZMM_Plst!$B:$AA,26,0) -> B | M81: 12.505 | N81: 0.62525 | O81: =VLOOKUP($F81,ZMM_Plst!$B:$AC,17,0) -> 20 | P81: =VLOOKUP($F81,ZMM_Plst!$B:$AC,9,0) -> 250.1 | Q81: =VLOOKUP($F81,ZMM_Plst!$B:$AC,10,0) -> 12.505 | R81: =VLOOKUP($F81,ZMM_Plst!$B:$AC,8,0) -> 4.6 | S81: =VLOOKUP($F81,ZMM_Plst!$B:$AC,16,0) -> 20 | T81: 250.1 | U81: =VLOOKUP($F81,ZMM_Plst!$B:$AC,6,0) -> 1.025 | V81: =VLOOKUP($F81,ZMM_Plst!$B:$AC,7,0) -> 0.61 | W81: =VLOOKUP($F81,ZMM_Plst!$B:$AC,5,0) -> 0.52
A82: =IF($F82<>"",VLOOKUP(F82,Pricing!$A:$F,6,FALSE),"") -> GW | B82: =IF($F82<>"",VLOOKUP(F82,Pricing!$A:$F,5,FALSE),"") -> LW | C82: =IF($F82<>"",VLOOKUP(Проектные!$F82,Pricing!$A:$F,3,FALSE),"") -> Frame S37 | D82: =VLOOKUP(C82,конструктив!A:B,2,0) -> Каркасы | E82: =IF($F82<>"",VLOOKUP(F82,Pricing!$A:$F,4,FALSE),"") -> Yegorevsk | F82: =IF(Pricing!A75<>"",Pricing!A75,"") -> 67271 | G82: =IF(F82<>"",VLOOKUP(F82,Pricing!$A:$B,2,FALSE),"") -> Каркас-П37-50/565х1170/Е/К | H82: =IFERROR(IF($A$1,VLOOKUP(F82,'Pricing pick up'!$A:$CM,MATCH(Проектные!$G$3,'Pricing pick up'!$2:$2,0),0),VLOOKUP(F82,Pricing!$A:$CL,MATCH(Проектные!$G$3,Pricing!$2:$2,0),0)),"не возим") -> 2896.701885 | I82: =IFERROR(IF($B$1,VLOOKUP(CONCATENATE($E82,$G$3),Tariffs_!A:H,8,0),VLOOKUP(CONCATENATE($E82,$G$3),Tariffs_!A:G,6,0)),"-") -> 0 | J82: =IFERROR(IF($B$1,VLOOKUP(CONCATENATE($E82,$G$3),Tariffs_!A:I,9,0)*VLOOKUP($F82,ZMM_Plst!$B:$K,8,0)/VLOOKUP($F82,ZMM_Plst!$B:$K,10,0)*1.2,VLOOKUP(CONCATENATE($E82,$G$3),Tariffs_!A:G,7,0)*VLOOKUP($F82,ZMM_Plst!$B:$K,8,0)/VLOOKUP($F82,ZMM_Plst!$B:$K,10,0)*1.2),"-") -> 0 | K82: 2413.918238 | L82: =VLOOKUP($F82,ZMM_Plst!$B:$AA,26,0) -> B | M82: 13.221 | N82: 0.66105 | O82: =VLOOKUP($F82,ZMM_Plst!$B:$AC,17,0) -> 20 | P82: =VLOOKUP($F82,ZMM_Plst!$B:$AC,9,0) -> 264.42 | Q82: =VLOOKUP($F82,ZMM_Plst!$B:$AC,10,0) -> 13.221 | R82: =VLOOKUP($F82,ZMM_Plst!$B:$AC,8,0) -> 4.6 | S82: =VLOOKUP($F82,ZMM_Plst!$B:$AC,16,0) -> 20 | T82: 264.42 | U82: =VLOOKUP($F82,ZMM_Plst!$B:$AC,6,0) -> 1.17 | V82: =VLOOKUP($F82,ZMM_Plst!$B:$AC,7,0) -> 0.565 | W82: =VLOOKUP($F82,ZMM_Plst!$B:$AC,5,0) -> 0.05
A83: =IF($F83<>"",VLOOKUP(F83,Pricing!$A:$F,6,FALSE),"") -> GW | B83: =IF($F83<>"",VLOOKUP(F83,Pricing!$A:$F,5,FALSE),"") -> LW | C83: =IF($F83<>"",VLOOKUP(Проектные!$F83,Pricing!$A:$F,3,FALSE),"") -> Frame S37 | D83: =VLOOKUP(C83,конструктив!A:B,2,0) -> Каркасы | E83: =IF($F83<>"",VLOOKUP(F83,Pricing!$A:$F,4,FALSE),"") -> Yegorevsk | F83: =IF(Pricing!A76<>"",Pricing!A76,"") -> 67273 | G83: =IF(F83<>"",VLOOKUP(F83,Pricing!$A:$B,2,FALSE),"") -> Каркас-П37-60/610х1170/Е/К | H83: =IFERROR(IF($A$1,VLOOKUP(F83,'Pricing pick up'!$A:$CM,MATCH(Проектные!$G$3,'Pricing pick up'!$2:$2,0),0),VLOOKUP(F83,Pricing!$A:$CL,MATCH(Проектные!$G$3,Pricing!$2:$2,0),0)),"не возим") -> 2896.701885 | I83: =IFERROR(IF($B$1,VLOOKUP(CONCATENATE($E83,$G$3),Tariffs_!A:H,8,0),VLOOKUP(CONCATENATE($E83,$G$3),Tariffs_!A:G,6,0)),"-") -> 0 | J83: =IFERROR(IF($B$1,VLOOKUP(CONCATENATE($E83,$G$3),Tariffs_!A:I,9,0)*VLOOKUP($F83,ZMM_Plst!$B:$K,8,0)/VLOOKUP($F83,ZMM_Plst!$B:$K,10,0)*1.2,VLOOKUP(CONCATENATE($E83,$G$3),Tariffs_!A:G,7,0)*VLOOKUP($F83,ZMM_Plst!$B:$K,8,0)/VLOOKUP($F83,ZMM_Plst!$B:$K,10,0)*1.2),"-") -> 0 | K83: 2413.918238 | L83: =VLOOKUP($F83,ZMM_Plst!$B:$AA,26,0) -> B | M83: 11.41916667 | N83: 0.6851666667 | O83: =VLOOKUP($F83,ZMM_Plst!$B:$AC,17,0) -> 16 | P83: =VLOOKUP($F83,ZMM_Plst!$B:$AC,9,0) -> 274.06 | Q83: =VLOOKUP($F83,ZMM_Plst!$B:$AC,10,0) -> 16.444 | R83: =VLOOKUP($F83,ZMM_Plst!$B:$AC,8,0) -> 4.6 | S83: =VLOOKUP($F83,ZMM_Plst!$B:$AC,16,0) -> 24 | T83: 328.88 | U83: =VLOOKUP($F83,ZMM_Plst!$B:$AC,6,0) -> 1.17 | V83: =VLOOKUP($F83,ZMM_Plst!$B:$AC,7,0) -> 0.61 | W83: =VLOOKUP($F83,ZMM_Plst!$B:$AC,5,0) -> 0.06
A84: =IF($F84<>"",VLOOKUP(F84,Pricing!$A:$F,6,FALSE),"") -> GW | B84: =IF($F84<>"",VLOOKUP(F84,Pricing!$A:$F,5,FALSE),"") -> LW | C84: =IF($F84<>"",VLOOKUP(Проектные!$F84,Pricing!$A:$F,3,FALSE),"") -> Frame S37 | D84: =VLOOKUP(C84,конструктив!A:B,2,0) -> Каркасы | E84: =IF($F84<>"",VLOOKUP(F84,Pricing!$A:$F,4,FALSE),"") -> Yegorevsk | F84: =IF(Pricing!A77<>"",Pricing!A77,"") -> 67275 | G84: =IF(F84<>"",VLOOKUP(F84,Pricing!$A:$B,2,FALSE),"") -> Каркас-П37-50/610х1250/Е/К | H84: =IFERROR(IF($A$1,VLOOKUP(F84,'Pricing pick up'!$A:$CM,MATCH(Проектные!$G$3,'Pricing pick up'!$2:$2,0),0),VLOOKUP(F84,Pricing!$A:$CL,MATCH(Проектные!$G$3,Pricing!$2:$2,0),0)),"не возим") -> 2896.701885 | I84: =IFERROR(IF($B$1,VLOOKUP(CONCATENATE($E84,$G$3),Tariffs_!A:H,8,0),VLOOKUP(CONCATENATE($E84,$G$3),Tariffs_!A:G,6,0)),"-") -> 0 | J84: =IFERROR(IF($B$1,VLOOKUP(CONCATENATE($E84,$G$3),Tariffs_!A:I,9,0)*VLOOKUP($F84,ZMM_Plst!$B:$K,8,0)/VLOOKUP($F84,ZMM_Plst!$B:$K,10,0)*1.2,VLOOKUP(CONCATENATE($E84,$G$3),Tariffs_!A:G,7,0)*VLOOKUP($F84,ZMM_Plst!$B:$K,8,0)/VLOOKUP($F84,ZMM_Plst!$B:$K,10,0)*1.2),"-") -> 0 | K84: 2413.918238 | L84: =VLOOKUP($F84,ZMM_Plst!$B:$AA,26,0) -> B | M84: 15.25 | N84: 0.7625 | O84: =VLOOKUP($F84,ZMM_Plst!$B:$AC,17,0) -> 20 | P84: =VLOOKUP($F84,ZMM_Plst!$B:$AC,9,0) -> 305 | Q84: =VLOOKUP($F84,ZMM_Plst!$B:$AC,10,0) -> 15.25 | R84: =VLOOKUP($F84,ZMM_Plst!$B:$AC,8,0) -> 4.6 | S84: =VLOOKUP($F84,ZMM_Plst!$B:$AC,16,0) -> 20 | T84: 305 | U84: =VLOOKUP($F84,ZMM_Plst!$B:$AC,6,0) -> 1.25 | V84: =VLOOKUP($F84,ZMM_Plst!$B:$AC,7,0) -> 0.61 | W84: =VLOOKUP($F84,ZMM_Plst!$B:$AC,5,0) -> 0.05
A85: =IF($F85<>"",VLOOKUP(F85,Pricing!$A:$F,6,FALSE),"") -> GW | B85: =IF($F85<>"",VLOOKUP(F85,Pricing!$A:$F,5,FALSE),"") -> LW | C85: =IF($F85<>"",VLOOKUP(Проектные!$F85,Pricing!$A:$F,3,FALSE),"") -> Frame S37 | D85: =VLOOKUP(C85,конструктив!A:B,2,0) -> Каркасы | E85: =IF($F85<>"",VLOOKUP(F85,Pricing!$A:$F,4,FALSE),"") -> Yegorevsk | F85: =IF(Pricing!A78<>"",Pricing!A78,"") -> 67277 | G85: =IF(F85<>"",VLOOKUP(F85,Pricing!$A:$B,2,FALSE),"") -> Каркас-П37-50/610х1170/Е/К | H85: =IFERROR(IF($A$1,VLOOKUP(F85,'Pricing pick up'!$A:$CM,MATCH(Проектные!$G$3,'Pricing pick up'!$2:$2,0),0),VLOOKUP(F85,Pricing!$A:$CL,MATCH(Проектные!$G$3,Pricing!$2:$2,0),0)),"не возим") -> 2266.515145 | I85: =IFERROR(IF($B$1,VLOOKUP(CONCATENATE($E85,$G$3),Tariffs_!A:H,8,0),VLOOKUP(CONCATENATE($E85,$G$3),Tariffs_!A:G,6,0)),"-") -> 0 | J85: =IFERROR(IF($B$1,VLOOKUP(CONCATENATE($E85,$G$3),Tariffs_!A:I,9,0)*VLOOKUP($F85,ZMM_Plst!$B:$K,8,0)/VLOOKUP($F85,ZMM_Plst!$B:$K,10,0)*1.2,VLOOKUP(CONCATENATE($E85,$G$3),Tariffs_!A:G,7,0)*VLOOKUP($F85,ZMM_Plst!$B:$K,8,0)/VLOOKUP($F85,ZMM_Plst!$B:$K,10,0)*1.2),"-") -> 0 | K85: 1888.762621 | L85: =VLOOKUP($F85,ZMM_Plst!$B:$AA,26,0) -> A | M85: 14.27416667 | N85: 0.7137083333 | O85: =VLOOKUP($F85,ZMM_Plst!$B:$AC,17,0) -> 20 | P85: =VLOOKUP($F85,ZMM_Plst!$B:$AC,9,0) -> 342.58 | Q85: =VLOOKUP($F85,ZMM_Plst!$B:$AC,10,0) -> 17.129 | R85: =VLOOKUP($F85,ZMM_Plst!$B:$AC,8,0) -> 4.18 | S85: =VLOOKUP($F85,ZMM_Plst!$B:$AC,16,0) -> 24 | T85: 377.0019139 | U85: =VLOOKUP($F85,ZMM_Plst!$B:$AC,6,0) -> 1.17 | V85: =VLOOKUP($F85,ZMM_Plst!$B:$AC,7,0) -> 0.61 | W85: =VLOOKUP($F85,ZMM_Plst!$B:$AC,5,0) -> 0.05
A86: =IF($F86<>"",VLOOKUP(F86,Pricing!$A:$F,6,FALSE),"") -> GW | B86: =IF($F86<>"",VLOOKUP(F86,Pricing!$A:$F,5,FALSE),"") -> LW | C86: =IF($F86<>"",VLOOKUP(Проектные!$F86,Pricing!$A:$F,3,FALSE),"") -> Frame S37 | D86: =VLOOKUP(C86,конструктив!A:B,2,0) -> Каркасы | E86: =IF($F86<>"",VLOOKUP(F86,Pricing!$A:$F,4,FALSE),"") -> Yegorevsk | F86: =IF(Pricing!A79<>"",Pricing!A79,"") -> 67278 | G86: =IF(F86<>"",VLOOKUP(F86,Pricing!$A:$B,2,FALSE),"") -> Каркас-П37-100/610x1170/Е/К | H86: =IFERROR(IF($A$1,VLOOKUP(F86,'Pricing pick up'!$A:$CM,MATCH(Проектные!$G$3,'Pricing pick up'!$2:$2,0),0),VLOOKUP(F86,Pricing!$A:$CL,MATCH(Проектные!$G$3,Pricing!$2:$2,0),0)),"не возим") -> 2266.515145 | I86: =IFERROR(IF($B$1,VLOOKUP(CONCATENATE($E86,$G$3),Tariffs_!A:H,8,0),VLOOKUP(CONCATENATE($E86,$G$3),Tariffs_!A:G,6,0)),"-") -> 0 | J86: =IFERROR(IF($B$1,VLOOKUP(CONCATENATE($E86,$G$3),Tariffs_!A:I,9,0)*VLOOKUP($F86,ZMM_Plst!$B:$K,8,0)/VLOOKUP($F86,ZMM_Plst!$B:$K,10,0)*1.2,VLOOKUP(CONCATENATE($E86,$G$3),Tariffs_!A:G,7,0)*VLOOKUP($F86,ZMM_Plst!$B:$K,8,0)/VLOOKUP($F86,ZMM_Plst!$B:$K,10,0)*1.2),"-") -> 0 | K86: 1888.762621 | L86: =VLOOKUP($F86,ZMM_Plst!$B:$AA,26,0) -> A | M86: 7.137083333 | N86: 0.7137083333 | O86: =VLOOKUP($F86,ZMM_Plst!$B:$AC,17,0) -> 10 | P86: =VLOOKUP($F86,ZMM_Plst!$B:$AC,9,0) -> 171.29 | Q86: =VLOOKUP($F86,ZMM_Plst!$B:$AC,10,0) -> 17.129 | R86: =VLOOKUP($F86,ZMM_Plst!$B:$AC,8,0) -> 4.18 | S86: =VLOOKUP($F86,ZMM_Plst!$B:$AC,16,0) -> 24 | T86: 377.0019139 | U86: =VLOOKUP($F86,ZMM_Plst!$B:$AC,6,0) -> 1.17 | V86: =VLOOKUP($F86,ZMM_Plst!$B:$AC,7,0) -> 0.61 | W86: =VLOOKUP($F86,ZMM_Plst!$B:$AC,5,0) -> 0.1
A87: =IF($F87<>"",VLOOKUP(F87,Pricing!$A:$F,6,FALSE),"") -> GW | B87: =IF($F87<>"",VLOOKUP(F87,Pricing!$A:$F,5,FALSE),"") -> LW | C87: =IF($F87<>"",VLOOKUP(Проектные!$F87,Pricing!$A:$F,3,FALSE),"") -> Frame S37 | D87: =VLOOKUP(C87,конструктив!A:B,2,0) -> Каркасы | E87: =IF($F87<>"",VLOOKUP(F87,Pricing!$A:$F,4,FALSE),"") -> Yegorevsk | F87: =IF(Pricing!A80<>"",Pricing!A80,"") -> 67279 | G87: =IF(F87<>"",VLOOKUP(F87,Pricing!$A:$B,2,FALSE),"") -> Каркас-П37-120/610x1170/Е/К | H87: =IFERROR(IF($A$1,VLOOKUP(F87,'Pricing pick up'!$A:$CM,MATCH(Проектные!$G$3,'Pricing pick up'!$2:$2,0),0),VLOOKUP(F87,Pricing!$A:$CL,MATCH(Проектные!$G$3,Pricing!$2:$2,0),0)),"не возим") -> 2266.515145 | I87: =IFERROR(IF($B$1,VLOOKUP(CONCATENATE($E87,$G$3),Tariffs_!A:H,8,0),VLOOKUP(CONCATENATE($E87,$G$3),Tariffs_!A:G,6,0)),"-") -> 0 | J87: =IFERROR(IF($B$1,VLOOKUP(CONCATENATE($E87,$G$3),Tariffs_!A:I,9,0)*VLOOKUP($F87,ZMM_Plst!$B:$K,8,0)/VLOOKUP($F87,ZMM_Plst!$B:$K,10,0)*1.2,VLOOKUP(CONCATENATE($E87,$G$3),Tariffs_!A:G,7,0)*VLOOKUP($F87,ZMM_Plst!$B:$K,8,0)/VLOOKUP($F87,ZMM_Plst!$B:$K,10,0)*1.2),"-") -> 0 | K87: 1888.762621 | L87: =VLOOKUP($F87,ZMM_Plst!$B:$AA,26,0) -> B | M87: 5.709583333 | N87: 0.6851666667 | O87: =VLOOKUP($F87,ZMM_Plst!$B:$AC,17,0) -> 8 | P87: =VLOOKUP($F87,ZMM_Plst!$B:$AC,9,0) -> 137.03 | Q87: =VLOOKUP($F87,ZMM_Plst!$B:$AC,10,0) -> 16.444 | R87: =VLOOKUP($F87,ZMM_Plst!$B:$AC,8,0) -> 4.6 | S87: =VLOOKUP($F87,ZMM_Plst!$B:$AC,16,0) -> 24 | T87: 328.88 | U87: =VLOOKUP($F87,ZMM_Plst!$B:$AC,6,0) -> 1.17 | V87: =VLOOKUP($F87,ZMM_Plst!$B:$AC,7,0) -> 0.61 | W87: =VLOOKUP($F87,ZMM_Plst!$B:$AC,5,0) -> 0.12
A88: =IF($F88<>"",VLOOKUP(F88,Pricing!$A:$F,6,FALSE),"") -> GW | B88: =IF($F88<>"",VLOOKUP(F88,Pricing!$A:$F,5,FALSE),"") -> LW | C88: =IF($F88<>"",VLOOKUP(Проектные!$F88,Pricing!$A:$F,3,FALSE),"") -> Frame S37 | D88: =VLOOKUP(C88,конструктив!A:B,2,0) -> Каркасы | E88: =IF($F88<>"",VLOOKUP(F88,Pricing!$A:$F,4,FALSE),"") -> Yegorevsk | F88: =IF(Pricing!A81<>"",Pricing!A81,"") -> 67281 | G88: =IF(F88<>"",VLOOKUP(F88,Pricing!$A:$B,2,FALSE),"") -> Каркас-П37-100/565х1170/Е/К | H88: =IFERROR(IF($A$1,VLOOKUP(F88,'Pricing pick up'!$A:$CM,MATCH(Проектные!$G$3,'Pricing pick up'!$2:$2,0),0),VLOOKUP(F88,Pricing!$A:$CL,MATCH(Проектные!$G$3,Pricing!$2:$2,0),0)),"не возим") -> 2896.701885 | I88: =IFERROR(IF($B$1,VLOOKUP(CONCATENATE($E88,$G$3),Tariffs_!A:H,8,0),VLOOKUP(CONCATENATE($E88,$G$3),Tariffs_!A:G,6,0)),"-") -> 0 | J88: =IFERROR(IF($B$1,VLOOKUP(CONCATENATE($E88,$G$3),Tariffs_!A:I,9,0)*VLOOKUP($F88,ZMM_Plst!$B:$K,8,0)/VLOOKUP($F88,ZMM_Plst!$B:$K,10,0)*1.2,VLOOKUP(CONCATENATE($E88,$G$3),Tariffs_!A:G,7,0)*VLOOKUP($F88,ZMM_Plst!$B:$K,8,0)/VLOOKUP($F88,ZMM_Plst!$B:$K,10,0)*1.2),"-") -> 0 | K88: 2413.918238 | L88: =VLOOKUP($F88,ZMM_Plst!$B:$AA,26,0) -> B | M88: 6.6105 | N88: 0.66105 | O88: =VLOOKUP($F88,ZMM_Plst!$B:$AC,17,0) -> 10 | P88: =VLOOKUP($F88,ZMM_Plst!$B:$AC,9,0) -> 132.21 | Q88: =VLOOKUP($F88,ZMM_Plst!$B:$AC,10,0) -> 13.221 | R88: =VLOOKUP($F88,ZMM_Plst!$B:$AC,8,0) -> 4.6 | S88: =VLOOKUP($F88,ZMM_Plst!$B:$AC,16,0) -> 20 | T88: 264.42 | U88: =VLOOKUP($F88,ZMM_Plst!$B:$AC,6,0) -> 1.17 | V88: =VLOOKUP($F88,ZMM_Plst!$B:$AC,7,0) -> 0.565 | W88: =VLOOKUP($F88,ZMM_Plst!$B:$AC,5,0) -> 0.1
A89: =IF($F89<>"",VLOOKUP(F89,Pricing!$A:$F,6,FALSE),"") -> GW | B89: =IF($F89<>"",VLOOKUP(F89,Pricing!$A:$F,5,FALSE),"") -> LW | C89: =IF($F89<>"",VLOOKUP(Проектные!$F89,Pricing!$A:$F,3,FALSE),"") -> Frame S37 | D89: =VLOOKUP(C89,конструктив!A:B,2,0) -> Каркасы | E89: =IF($F89<>"",VLOOKUP(F89,Pricing!$A:$F,4,FALSE),"") -> Yegorevsk | F89: =IF(Pricing!A82<>"",Pricing!A82,"") -> 67284 | G89: =IF(F89<>"",VLOOKUP(F89,Pricing!$A:$B,2,FALSE),"") -> Каркас-П37-50/610х1170/Е/К/Т | H89: =IFERROR(IF($A$1,VLOOKUP(F89,'Pricing pick up'!$A:$CM,MATCH(Проектные!$G$3,'Pricing pick up'!$2:$2,0),0),VLOOKUP(F89,Pricing!$A:$CL,MATCH(Проектные!$G$3,Pricing!$2:$2,0),0)),"не возим") -> 2266.515145 | I89: =IFERROR(IF($B$1,VLOOKUP(CONCATENATE($E89,$G$3),Tariffs_!A:H,8,0),VLOOKUP(CONCATENATE($E89,$G$3),Tariffs_!A:G,6,0)),"-") -> 0 | J89: =IFERROR(IF($B$1,VLOOKUP(CONCATENATE($E89,$G$3),Tariffs_!A:I,9,0)*VLOOKUP($F89,ZMM_Plst!$B:$K,8,0)/VLOOKUP($F89,ZMM_Plst!$B:$K,10,0)*1.2,VLOOKUP(CONCATENATE($E89,$G$3),Tariffs_!A:G,7,0)*VLOOKUP($F89,ZMM_Plst!$B:$K,8,0)/VLOOKUP($F89,ZMM_Plst!$B:$K,10,0)*1.2),"-") -> 0 | K89: 1888.762621 | L89: =VLOOKUP($F89,ZMM_Plst!$B:$AA,26,0) -> B | M89: 14.27416667 | N89: 0.7137083333 | O89: =VLOOKUP($F89,ZMM_Plst!$B:$AC,17,0) -> 20 | P89: =VLOOKUP($F89,ZMM_Plst!$B:$AC,9,0) -> 342.58 | Q89: =VLOOKUP($F89,ZMM_Plst!$B:$AC,10,0) -> 17.129 | R89: =VLOOKUP($F89,ZMM_Plst!$B:$AC,8,0) -> 4.18 | S89: =VLOOKUP($F89,ZMM_Plst!$B:$AC,16,0) -> 24 | T89: 377.0019139 | U89: =VLOOKUP($F89,ZMM_Plst!$B:$AC,6,0) -> 1.17 | V89: =VLOOKUP($F89,ZMM_Plst!$B:$AC,7,0) -> 0.61 | W89: =VLOOKUP($F89,ZMM_Plst!$B:$AC,5,0) -> 0.05
A90: =IF($F90<>"",VLOOKUP(F90,Pricing!$A:$F,6,FALSE),"") -> GW | B90: =IF($F90<>"",VLOOKUP(F90,Pricing!$A:$F,5,FALSE),"") -> LW | C90: =IF($F90<>"",VLOOKUP(Проектные!$F90,Pricing!$A:$F,3,FALSE),"") -> Frame S37 | D90: =VLOOKUP(C90,конструктив!A:B,2,0) -> Каркасы | E90: =IF($F90<>"",VLOOKUP(F90,Pricing!$A:$F,4,FALSE),"") -> Yegorevsk | F90: =IF(Pricing!A83<>"",Pricing!A83,"") -> 67289 | G90: =IF(F90<>"",VLOOKUP(F90,Pricing!$A:$B,2,FALSE),"") -> Каркас-П37-200/570х1170/Е/К | H90: =IFERROR(IF($A$1,VLOOKUP(F90,'Pricing pick up'!$A:$CM,MATCH(Проектные!$G$3,'Pricing pick up'!$2:$2,0),0),VLOOKUP(F90,Pricing!$A:$CL,MATCH(Проектные!$G$3,Pricing!$2:$2,0),0)),"не возим") -> 2896.701885 | I90: =IFERROR(IF($B$1,VLOOKUP(CONCATENATE($E90,$G$3),Tariffs_!A:H,8,0),VLOOKUP(CONCATENATE($E90,$G$3),Tariffs_!A:G,6,0)),"-") -> 0 | J90: =IFERROR(IF($B$1,VLOOKUP(CONCATENATE($E90,$G$3),Tariffs_!A:I,9,0)*VLOOKUP($F90,ZMM_Plst!$B:$K,8,0)/VLOOKUP($F90,ZMM_Plst!$B:$K,10,0)*1.2,VLOOKUP(CONCATENATE($E90,$G$3),Tariffs_!A:G,7,0)*VLOOKUP($F90,ZMM_Plst!$B:$K,8,0)/VLOOKUP($F90,ZMM_Plst!$B:$K,10,0)*1.2),"-") -> 0 | K90: 2413.918238 | L90: =VLOOKUP($F90,ZMM_Plst!$B:$AA,26,0) -> B | M90: 2.6675 | N90: 0.5335 | O90: =VLOOKUP($F90,ZMM_Plst!$B:$AC,17,0) -> 4 | P90: =VLOOKUP($F90,ZMM_Plst!$B:$AC,9,0) -> 53.35 | Q90: =VLOOKUP($F90,ZMM_Plst!$B:$AC,10,0) -> 10.67 | R90: =VLOOKUP($F90,ZMM_Plst!$B:$AC,8,0) -> 4 | S90: =VLOOKUP($F90,ZMM_Plst!$B:$AC,16,0) -> 20 | T90: 245.41 | U90: =VLOOKUP($F90,ZMM_Plst!$B:$AC,6,0) -> 1.17 | V90: =VLOOKUP($F90,ZMM_Plst!$B:$AC,7,0) -> 0.57 | W90: =VLOOKUP($F90,ZMM_Plst!$B:$AC,5,0) -> 0.2
A91: =IF($F91<>"",VLOOKUP(F91,Pricing!$A:$F,6,FALSE),"") -> GW | B91: =IF($F91<>"",VLOOKUP(F91,Pricing!$A:$F,5,FALSE),"") -> LW | C91: =IF($F91<>"",VLOOKUP(Проектные!$F91,Pricing!$A:$F,3,FALSE),"") -> KT Special | D91: =VLOOKUP(C91,конструктив!A:B,2,0) -> Каркасы | E91: =IF($F91<>"",VLOOKUP(F91,Pricing!$A:$F,4,FALSE),"") -> Yegorevsk | F91: =IF(Pricing!A84<>"",Pricing!A84,"") -> 67385 | G91: =IF(F91<>"",VLOOKUP(F91,Pricing!$A:$B,2,FALSE),"") -> 1220-КТ-Специал-ТВИН-50х8500/Е/К | H91: =IFERROR(IF($A$1,VLOOKUP(F91,'Pricing pick up'!$A:$CM,MATCH(Проектные!$G$3,'Pricing pick up'!$2:$2,0),0),VLOOKUP(F91,Pricing!$A:$CL,MATCH(Проектные!$G$3,Pricing!$2:$2,0),0)),"не возим") -> 1703.3709 | I91: =IFERROR(IF($B$1,VLOOKUP(CONCATENATE($E91,$G$3),Tariffs_!A:H,8,0),VLOOKUP(CONCATENATE($E91,$G$3),Tariffs_!A:G,6,0)),"-") -> 0 | J91: =IFERROR(IF($B$1,VLOOKUP(CONCATENATE($E91,$G$3),Tariffs_!A:I,9,0)*VLOOKUP($F91,ZMM_Plst!$B:$K,8,0)/VLOOKUP($F91,ZMM_Plst!$B:$K,10,0)*1.2,VLOOKUP(CONCATENATE($E91,$G$3),Tariffs_!A:G,7,0)*VLOOKUP($F91,ZMM_Plst!$B:$K,8,0)/VLOOKUP($F91,ZMM_Plst!$B:$K,10,0)*1.2),"-") -> 0 | K91: 1419.47575 | L91: =VLOOKUP($F91,ZMM_Plst!$B:$AA,26,0) -> A | M91: 20.74 | N91: 1.037 | O91: =VLOOKUP($F91,ZMM_Plst!$B:$AC,17,0) -> 2 | P91: =VLOOKUP($F91,ZMM_Plst!$B:$AC,9,0) -> 622.2 | Q91: =VLOOKUP($F91,ZMM_Plst!$B:$AC,10,0) -> 31.11 | R91: =VLOOKUP($F91,ZMM_Plst!$B:$AC,8,0) -> 4.18 | S91: =VLOOKUP($F91,ZMM_Plst!$B:$AC,16,0) -> 30 | T91: 684.7177033 | U91: =VLOOKUP($F91,ZMM_Plst!$B:$AC,6,0) -> 8.5 | V91: =VLOOKUP($F91,ZMM_Plst!$B:$AC,7,0) -> 1.22 | W91: =VLOOKUP($F91,ZMM_Plst!$B:$AC,5,0) -> 0.05
A92: =IF($F92<>"",VLOOKUP(F92,Pricing!$A:$F,6,FALSE),"") -> GW | B92: =IF($F92<>"",VLOOKUP(F92,Pricing!$A:$F,5,FALSE),"") -> LW | C92: =IF($F92<>"",VLOOKUP(Проектные!$F92,Pricing!$A:$F,3,FALSE),"") -> KT Special | D92: =VLOOKUP(C92,конструктив!A:B,2,0) -> Каркасы | E92: =IF($F92<>"",VLOOKUP(F92,Pricing!$A:$F,4,FALSE),"") -> Yegorevsk | F92: =IF(Pricing!A85<>"",Pricing!A85,"") -> 67386 | G92: =IF(F92<>"",VLOOKUP(F92,Pricing!$A:$B,2,FALSE),"") -> 1220-KT-Специал-ТВИН-50х8500/Е/К | H92: =IFERROR(IF($A$1,VLOOKUP(F92,'Pricing pick up'!$A:$CM,MATCH(Проектные!$G$3,'Pricing pick up'!$2:$2,0),0),VLOOKUP(F92,Pricing!$A:$CL,MATCH(Проектные!$G$3,Pricing!$2:$2,0),0)),"не возим") -> 1703.3709 | I92: =IFERROR(IF($B$1,VLOOKUP(CONCATENATE($E92,$G$3),Tariffs_!A:H,8,0),VLOOKUP(CONCATENATE($E92,$G$3),Tariffs_!A:G,6,0)),"-") -> 0 | J92: =IFERROR(IF($B$1,VLOOKUP(CONCATENATE($E92,$G$3),Tariffs_!A:I,9,0)*VLOOKUP($F92,ZMM_Plst!$B:$K,8,0)/VLOOKUP($F92,ZMM_Plst!$B:$K,10,0)*1.2,VLOOKUP(CONCATENATE($E92,$G$3),Tariffs_!A:G,7,0)*VLOOKUP($F92,ZMM_Plst!$B:$K,8,0)/VLOOKUP($F92,ZMM_Plst!$B:$K,10,0)*1.2),"-") -> 0 | K92: 1419.47575 | L92: =VLOOKUP($F92,ZMM_Plst!$B:$AA,26,0) -> A | M92: 20.74 | N92: 1.037 | O92: =VLOOKUP($F92,ZMM_Plst!$B:$AC,17,0) -> 2 | P92: =VLOOKUP($F92,ZMM_Plst!$B:$AC,9,0) -> 622.2 | Q92: =VLOOKUP($F92,ZMM_Plst!$B:$AC,10,0) -> 31.11 | R92: =VLOOKUP($F92,ZMM_Plst!$B:$AC,8,0) -> 4.6 | S92: =VLOOKUP($F92,ZMM_Plst!$B:$AC,16,0) -> 30 | T92: 622.2 | U92: =VLOOKUP($F92,ZMM_Plst!$B:$AC,6,0) -> 8.5 | V92: =VLOOKUP($F92,ZMM_Plst!$B:$AC,7,0) -> 1.22 | W92: =VLOOKUP($F92,ZMM_Plst!$B:$AC,5,0) -> 0.05
A93: =IF($F93<>"",VLOOKUP(F93,Pricing!$A:$F,6,FALSE),"") -> GW | B93: =IF($F93<>"",VLOOKUP(F93,Pricing!$A:$F,5,FALSE),"") -> LW | C93: =IF($F93<>"",VLOOKUP(Проектные!$F93,Pricing!$A:$F,3,FALSE),"") -> KT Special | D93: =VLOOKUP(C93,конструктив!A:B,2,0) -> Каркасы | E93: =IF($F93<>"",VLOOKUP(F93,Pricing!$A:$F,4,FALSE),"") -> Yegorevsk | F93: =IF(Pricing!A86<>"",Pricing!A86,"") -> 67395 | G93: =IF(F93<>"",VLOOKUP(F93,Pricing!$A:$B,2,FALSE),"") -> КТ-Специал-ТВИН 50х1220х8500/Е/К | H93: =IFERROR(IF($A$1,VLOOKUP(F93,'Pricing pick up'!$A:$CM,MATCH(Проектные!$G$3,'Pricing pick up'!$2:$2,0),0),VLOOKUP(F93,Pricing!$A:$CL,MATCH(Проектные!$G$3,Pricing!$2:$2,0),0)),"не возим") -> 1972.270874 | I93: =IFERROR(IF($B$1,VLOOKUP(CONCATENATE($E93,$G$3),Tariffs_!A:H,8,0),VLOOKUP(CONCATENATE($E93,$G$3),Tariffs_!A:G,6,0)),"-") -> 0 | J93: =IFERROR(IF($B$1,VLOOKUP(CONCATENATE($E93,$G$3),Tariffs_!A:I,9,0)*VLOOKUP($F93,ZMM_Plst!$B:$K,8,0)/VLOOKUP($F93,ZMM_Plst!$B:$K,10,0)*1.2,VLOOKUP(CONCATENATE($E93,$G$3),Tariffs_!A:G,7,0)*VLOOKUP($F93,ZMM_Plst!$B:$K,8,0)/VLOOKUP($F93,ZMM_Plst!$B:$K,10,0)*1.2),"-") -> 0 | K93: 1643.559062 | L93: =VLOOKUP($F93,ZMM_Plst!$B:$AA,26,0) -> A | M93: 20.74 | N93: 1.037 | O93: =VLOOKUP($F93,ZMM_Plst!$B:$AC,17,0) -> 2 | P93: =VLOOKUP($F93,ZMM_Plst!$B:$AC,9,0) -> 622.2 | Q93: =VLOOKUP($F93,ZMM_Plst!$B:$AC,10,0) -> 31.11 | R93: =VLOOKUP($F93,ZMM_Plst!$B:$AC,8,0) -> 4.6 | S93: =VLOOKUP($F93,ZMM_Plst!$B:$AC,16,0) -> 30 | T93: 622.2 | U93: =VLOOKUP($F93,ZMM_Plst!$B:$AC,6,0) -> 8.5 | V93: =VLOOKUP($F93,ZMM_Plst!$B:$AC,7,0) -> 1.22 | W93: =VLOOKUP($F93,ZMM_Plst!$B:$AC,5,0) -> 0.05
A94: =IF($F94<>"",VLOOKUP(F94,Pricing!$A:$F,6,FALSE),"") -> GW | B94: =IF($F94<>"",VLOOKUP(F94,Pricing!$A:$F,5,FALSE),"") -> LW | C94: =IF($F94<>"",VLOOKUP(Проектные!$F94,Pricing!$A:$F,3,FALSE),"") -> Special Slab | D94: =VLOOKUP(C94,конструктив!A:B,2,0) -> Каркасы | E94: =IF($F94<>"",VLOOKUP(F94,Pricing!$A:$F,4,FALSE),"") -> Yegorevsk | F94: =IF(Pricing!A87<>"",Pricing!A87,"") -> 67392 | G94: =IF(F94<>"",VLOOKUP(F94,Pricing!$A:$B,2,FALSE),"") -> Специал-Плита-50/610-1170/Е/К | H94: =IFERROR(IF($A$1,VLOOKUP(F94,'Pricing pick up'!$A:$CM,MATCH(Проектные!$G$3,'Pricing pick up'!$2:$2,0),0),VLOOKUP(F94,Pricing!$A:$CL,MATCH(Проектные!$G$3,Pricing!$2:$2,0),0)),"не возим") -> 2175.549691 | I94: =IFERROR(IF($B$1,VLOOKUP(CONCATENATE($E94,$G$3),Tariffs_!A:H,8,0),VLOOKUP(CONCATENATE($E94,$G$3),Tariffs_!A:G,6,0)),"-") -> 0 | J94: =IFERROR(IF($B$1,VLOOKUP(CONCATENATE($E94,$G$3),Tariffs_!A:I,9,0)*VLOOKUP($F94,ZMM_Plst!$B:$K,8,0)/VLOOKUP($F94,ZMM_Plst!$B:$K,10,0)*1.2,VLOOKUP(CONCATENATE($E94,$G$3),Tariffs_!A:G,7,0)*VLOOKUP($F94,ZMM_Plst!$B:$K,8,0)/VLOOKUP($F94,ZMM_Plst!$B:$K,10,0)*1.2),"-") -> 0 | K94: 1812.958076 | L94: =VLOOKUP($F94,ZMM_Plst!$B:$AA,26,0) -> A | M94: 14.27416667 | N94: 0.7137083333 | O94: =VLOOKUP($F94,ZMM_Plst!$B:$AC,17,0) -> 20 | P94: =VLOOKUP($F94,ZMM_Plst!$B:$AC,9,0) -> 342.58 | Q94: =VLOOKUP($F94,ZMM_Plst!$B:$AC,10,0) -> 17.129 | R94: =VLOOKUP($F94,ZMM_Plst!$B:$AC,8,0) -> 4.18 | S94: =VLOOKUP($F94,ZMM_Plst!$B:$AC,16,0) -> 24 | T94: 377.0019139 | U94: =VLOOKUP($F94,ZMM_Plst!$B:$AC,6,0) -> 1.17 | V94: =VLOOKUP($F94,ZMM_Plst!$B:$AC,7,0) -> 0.61 | W94: =VLOOKUP($F94,ZMM_Plst!$B:$AC,5,0) -> 0.05
A95: =IF($F95<>"",VLOOKUP(F95,Pricing!$A:$F,6,FALSE),"") -> GW | B95: =IF($F95<>"",VLOOKUP(F95,Pricing!$A:$F,5,FALSE),"") -> LW | C95: =IF($F95<>"",VLOOKUP(Проектные!$F95,Pricing!$A:$F,3,FALSE),"") -> Special Slab | D95: =VLOOKUP(C95,конструктив!A:B,2,0) -> Каркасы | E95: =IF($F95<>"",VLOOKUP(F95,Pricing!$A:$F,4,FALSE),"") -> Yegorevsk | F95: =IF(Pricing!A88<>"",Pricing!A88,"") -> 67393 | G95: =IF(F95<>"",VLOOKUP(F95,Pricing!$A:$B,2,FALSE),"") -> Специал-Плита 100х610x1170/Е/К | H95: =IFERROR(IF($A$1,VLOOKUP(F95,'Pricing pick up'!$A:$CM,MATCH(Проектные!$G$3,'Pricing pick up'!$2:$2,0),0),VLOOKUP(F95,Pricing!$A:$CL,MATCH(Проектные!$G$3,Pricing!$2:$2,0),0)),"не возим") -> 2175.549691 | I95: =IFERROR(IF($B$1,VLOOKUP(CONCATENATE($E95,$G$3),Tariffs_!A:H,8,0),VLOOKUP(CONCATENATE($E95,$G$3),Tariffs_!A:G,6,0)),"-") -> 0 | J95: =IFERROR(IF($B$1,VLOOKUP(CONCATENATE($E95,$G$3),Tariffs_!A:I,9,0)*VLOOKUP($F95,ZMM_Plst!$B:$K,8,0)/VLOOKUP($F95,ZMM_Plst!$B:$K,10,0)*1.2,VLOOKUP(CONCATENATE($E95,$G$3),Tariffs_!A:G,7,0)*VLOOKUP($F95,ZMM_Plst!$B:$K,8,0)/VLOOKUP($F95,ZMM_Plst!$B:$K,10,0)*1.2),"-") -> 0 | K95: 1812.958076 | L95: =VLOOKUP($F95,ZMM_Plst!$B:$AA,26,0) -> B | M95: 7.137083333 | N95: 0.7137083333 | O95: =VLOOKUP($F95,ZMM_Plst!$B:$AC,17,0) -> 10 | P95: =VLOOKUP($F95,ZMM_Plst!$B:$AC,9,0) -> 171.29 | Q95: =VLOOKUP($F95,ZMM_Plst!$B:$AC,10,0) -> 17.129 | R95: =VLOOKUP($F95,ZMM_Plst!$B:$AC,8,0) -> 4.18 | S95: =VLOOKUP($F95,ZMM_Plst!$B:$AC,16,0) -> 24 | T95: 377.0019139 | U95: =VLOOKUP($F95,ZMM_Plst!$B:$AC,6,0) -> 1.17 | V95: =VLOOKUP($F95,ZMM_Plst!$B:$AC,7,0) -> 0.61 | W95: =VLOOKUP($F95,ZMM_Plst!$B:$AC,5,0) -> 0.1
A96: =IF($F96<>"",VLOOKUP(F96,Pricing!$A:$F,6,FALSE),"") -> GW | B96: =IF($F96<>"",VLOOKUP(F96,Pricing!$A:$F,5,FALSE),"") -> LW | C96: =IF($F96<>"",VLOOKUP(Проектные!$F96,Pricing!$A:$F,3,FALSE),"") -> Special Slab | D96: =VLOOKUP(C96,конструктив!A:B,2,0) -> Каркасы | E96: =IF($F96<>"",VLOOKUP(F96,Pricing!$A:$F,4,FALSE),"") -> Yegorevsk | F96: =IF(Pricing!A89<>"",Pricing!A89,"") -> 67394 | G96: =IF(F96<>"",VLOOKUP(F96,Pricing!$A:$B,2,FALSE),"") -> Специал-Плита-50/610-1170/Е/К | H96: =IFERROR(IF($A$1,VLOOKUP(F96,'Pricing pick up'!$A:$CM,MATCH(Проектные!$G$3,'Pricing pick up'!$2:$2,0),0),VLOOKUP(F96,Pricing!$A:$CL,MATCH(Проектные!$G$3,Pricing!$2:$2,0),0)),"не возим") -> 2175.549691 | I96: =IFERROR(IF($B$1,VLOOKUP(CONCATENATE($E96,$G$3),Tariffs_!A:H,8,0),VLOOKUP(CONCATENATE($E96,$G$3),Tariffs_!A:G,6,0)),"-") -> 0 | J96: =IFERROR(IF($B$1,VLOOKUP(CONCATENATE($E96,$G$3),Tariffs_!A:I,9,0)*VLOOKUP($F96,ZMM_Plst!$B:$K,8,0)/VLOOKUP($F96,ZMM_Plst!$B:$K,10,0)*1.2,VLOOKUP(CONCATENATE($E96,$G$3),Tariffs_!A:G,7,0)*VLOOKUP($F96,ZMM_Plst!$B:$K,8,0)/VLOOKUP($F96,ZMM_Plst!$B:$K,10,0)*1.2),"-") -> 0 | K96: 1812.958076 | L96: =VLOOKUP($F96,ZMM_Plst!$B:$AA,26,0) -> B | M96: 14.27416667 | N96: 0.7137083333 | O96: =VLOOKUP($F96,ZMM_Plst!$B:$AC,17,0) -> 20 | P96: =VLOOKUP($F96,ZMM_Plst!$B:$AC,9,0) -> 342.58 | Q96: =VLOOKUP($F96,ZMM_Plst!$B:$AC,10,0) -> 17.129 | R96: =VLOOKUP($F96,ZMM_Plst!$B:$AC,8,0) -> 4.18 | S96: =VLOOKUP($F96,ZMM_Plst!$B:$AC,16,0) -> 24 | T96: 377.0019139 | U96: =VLOOKUP($F96,ZMM_Plst!$B:$AC,6,0) -> 1.17 | V96: =VLOOKUP($F96,ZMM_Plst!$B:$AC,7,0) -> 0.61 | W96: =VLOOKUP($F96,ZMM_Plst!$B:$AC,5,0) -> 0.05
A97: =IF($F97<>"",VLOOKUP(F97,Pricing!$A:$F,6,FALSE),"") -> GW | B97: =IF($F97<>"",VLOOKUP(F97,Pricing!$A:$F,5,FALSE),"") -> LW | C97: =IF($F97<>"",VLOOKUP(Проектные!$F97,Pricing!$A:$F,3,FALSE),"") -> VF Bottom | D97: =VLOOKUP(C97,конструктив!A:B,2,0) -> НВФ | E97: =IF($F97<>"",VLOOKUP(F97,Pricing!$A:$F,4,FALSE),"") -> Yegorevsk | F97: =IF(Pricing!A90<>"",Pricing!A90,"") -> 67400 | G97: =IF(F97<>"",VLOOKUP(F97,Pricing!$A:$B,2,FALSE),"") -> ВентФасад-Низ-50/610x1170/Е/К | H97: =IFERROR(IF($A$1,VLOOKUP(F97,'Pricing pick up'!$A:$CM,MATCH(Проектные!$G$3,'Pricing pick up'!$2:$2,0),0),VLOOKUP(F97,Pricing!$A:$CL,MATCH(Проектные!$G$3,Pricing!$2:$2,0),0)),"не возим") -> 2647.092467 | I97: =IFERROR(IF($B$1,VLOOKUP(CONCATENATE($E97,$G$3),Tariffs_!A:H,8,0),VLOOKUP(CONCATENATE($E97,$G$3),Tariffs_!A:G,6,0)),"-") -> 0 | J97: =IFERROR(IF($B$1,VLOOKUP(CONCATENATE($E97,$G$3),Tariffs_!A:I,9,0)*VLOOKUP($F97,ZMM_Plst!$B:$K,8,0)/VLOOKUP($F97,ZMM_Plst!$B:$K,10,0)*1.2,VLOOKUP(CONCATENATE($E97,$G$3),Tariffs_!A:G,7,0)*VLOOKUP($F97,ZMM_Plst!$B:$K,8,0)/VLOOKUP($F97,ZMM_Plst!$B:$K,10,0)*1.2),"-") -> 0 | K97: 2205.910389 | L97: =VLOOKUP($F97,ZMM_Plst!$B:$AA,26,0) -> A | M97: 14.25 | N97: 0.7135 | O97: =VLOOKUP($F97,ZMM_Plst!$B:$AC,17,0) -> 20 | P97: =VLOOKUP($F97,ZMM_Plst!$B:$AC,9,0) -> 285 | Q97: =VLOOKUP($F97,ZMM_Plst!$B:$AC,10,0) -> 14.27 | R97: =VLOOKUP($F97,ZMM_Plst!$B:$AC,8,0) -> 4.18 | S97: =VLOOKUP($F97,ZMM_Plst!$B:$AC,16,0) -> 20 | T97: 314.076555 | U97: =VLOOKUP($F97,ZMM_Plst!$B:$AC,6,0) -> 1.17 | V97: =VLOOKUP($F97,ZMM_Plst!$B:$AC,7,0) -> 0.61 | W97: =VLOOKUP($F97,ZMM_Plst!$B:$AC,5,0) -> 0.05
A98: =IF($F98<>"",VLOOKUP(F98,Pricing!$A:$F,6,FALSE),"") -> GW | B98: =IF($F98<>"",VLOOKUP(F98,Pricing!$A:$F,5,FALSE),"") -> LW | C98: =IF($F98<>"",VLOOKUP(Проектные!$F98,Pricing!$A:$F,3,FALSE),"") -> VF Bottom | D98: =VLOOKUP(C98,конструктив!A:B,2,0) -> НВФ | E98: =IF($F98<>"",VLOOKUP(F98,Pricing!$A:$F,4,FALSE),"") -> Yegorevsk | F98: =IF(Pricing!A91<>"",Pricing!A91,"") -> 67401 | G98: =IF(F98<>"",VLOOKUP(F98,Pricing!$A:$B,2,FALSE),"") -> ВентФасад-Низ-60/610x1170/Е/К | H98: =IFERROR(IF($A$1,VLOOKUP(F98,'Pricing pick up'!$A:$CM,MATCH(Проектные!$G$3,'Pricing pick up'!$2:$2,0),0),VLOOKUP(F98,Pricing!$A:$CL,MATCH(Проектные!$G$3,Pricing!$2:$2,0),0)),"не возим") -> 2647.092467 | I98: =IFERROR(IF($B$1,VLOOKUP(CONCATENATE($E98,$G$3),Tariffs_!A:H,8,0),VLOOKUP(CONCATENATE($E98,$G$3),Tariffs_!A:G,6,0)),"-") -> 0 | J98: =IFERROR(IF($B$1,VLOOKUP(CONCATENATE($E98,$G$3),Tariffs_!A:I,9,0)*VLOOKUP($F98,ZMM_Plst!$B:$K,8,0)/VLOOKUP($F98,ZMM_Plst!$B:$K,10,0)*1.2,VLOOKUP(CONCATENATE($E98,$G$3),Tariffs_!A:G,7,0)*VLOOKUP($F98,ZMM_Plst!$B:$K,8,0)/VLOOKUP($F98,ZMM_Plst!$B:$K,10,0)*1.2),"-") -> 0 | K98: 2205.910389 | L98: =VLOOKUP($F98,ZMM_Plst!$B:$AA,26,0) -> B | M98: 11.419 | N98: 0.68515 | O98: =VLOOKUP($F98,ZMM_Plst!$B:$AC,17,0) -> 16 | P98: =VLOOKUP($F98,ZMM_Plst!$B:$AC,9,0) -> 228.38 | Q98: =VLOOKUP($F98,ZMM_Plst!$B:$AC,10,0) -> 13.703 | R98: =VLOOKUP($F98,ZMM_Plst!$B:$AC,8,0) -> 4.18 | S98: =VLOOKUP($F98,ZMM_Plst!$B:$AC,16,0) -> 20 | T98: 301.5971292 | U98: =VLOOKUP($F98,ZMM_Plst!$B:$AC,6,0) -> 1.17 | V98: =VLOOKUP($F98,ZMM_Plst!$B:$AC,7,0) -> 0.61 | W98: =VLOOKUP($F98,ZMM_Plst!$B:$AC,5,0) -> 0.06
A99: =IF($F99<>"",VLOOKUP(F99,Pricing!$A:$F,6,FALSE),"") -> GW | B99: =IF($F99<>"",VLOOKUP(F99,Pricing!$A:$F,5,FALSE),"") -> LW | C99: =IF($F99<>"",VLOOKUP(Проектные!$F99,Pricing!$A:$F,3,FALSE),"") -> VF Bottom | D99: =VLOOKUP(C99,конструктив!A:B,2,0) -> НВФ | E99: =IF($F99<>"",VLOOKUP(F99,Pricing!$A:$F,4,FALSE),"") -> Yegorevsk | F99: =IF(Pricing!A92<>"",Pricing!A92,"") -> 67403 | G99: =IF(F99<>"",VLOOKUP(F99,Pricing!$A:$B,2,FALSE),"") -> ВентФасад-Низ-70/610x1170/E/К | H99: =IFERROR(IF($A$1,VLOOKUP(F99,'Pricing pick up'!$A:$CM,MATCH(Проектные!$G$3,'Pricing pick up'!$2:$2,0),0),VLOOKUP(F99,Pricing!$A:$CL,MATCH(Проектные!$G$3,Pricing!$2:$2,0),0)),"не возим") -> 2647.092467 | I99: =IFERROR(IF($B$1,VLOOKUP(CONCATENATE($E99,$G$3),Tariffs_!A:H,8,0),VLOOKUP(CONCATENATE($E99,$G$3),Tariffs_!A:G,6,0)),"-") -> 0 | J99: =IFERROR(IF($B$1,VLOOKUP(CONCATENATE($E99,$G$3),Tariffs_!A:I,9,0)*VLOOKUP($F99,ZMM_Plst!$B:$K,8,0)/VLOOKUP($F99,ZMM_Plst!$B:$K,10,0)*1.2,VLOOKUP(CONCATENATE($E99,$G$3),Tariffs_!A:G,7,0)*VLOOKUP($F99,ZMM_Plst!$B:$K,8,0)/VLOOKUP($F99,ZMM_Plst!$B:$K,10,0)*1.2),"-") -> 0 | K99: 2205.910389 | L99: =VLOOKUP($F99,ZMM_Plst!$B:$AA,26,0) -> A | M99: 9.9915 | N99: 0.69945 | O99: =VLOOKUP($F99,ZMM_Plst!$B:$AC,17,0) -> 14 | P99: =VLOOKUP($F99,ZMM_Plst!$B:$AC,9,0) -> 199.83 | Q99: =VLOOKUP($F99,ZMM_Plst!$B:$AC,10,0) -> 13.989 | R99: =VLOOKUP($F99,ZMM_Plst!$B:$AC,8,0) -> 4.18 | S99: =VLOOKUP($F99,ZMM_Plst!$B:$AC,16,0) -> 20 | T99: 307.891866 | U99: =VLOOKUP($F99,ZMM_Plst!$B:$AC,6,0) -> 1.17 | V99: =VLOOKUP($F99,ZMM_Plst!$B:$AC,7,0) -> 0.61 | W99: =VLOOKUP($F99,ZMM_Plst!$B:$AC,5,0) -> 0.07
A100: =IF($F100<>"",VLOOKUP(F100,Pricing!$A:$F,6,FALSE),"") -> GW | B100: =IF($F100<>"",VLOOKUP(F100,Pricing!$A:$F,5,FALSE),"") -> LW | C100: =IF($F100<>"",VLOOKUP(Проектные!$F100,Pricing!$A:$F,3,FALSE),"") -> VF Bottom | D100: =VLOOKUP(C100,конструктив!A:B,2,0) -> НВФ | E100: =IF($F100<>"",VLOOKUP(F100,Pricing!$A:$F,4,FALSE),"") -> Yegorevsk | F100: =IF(Pricing!A93<>"",Pricing!A93,"") -> 67407 | G100: =IF(F100<>"",VLOOKUP(F100,Pricing!$A:$B,2,FALSE),"") -> ВентФасад-Низ-100/610x1170/E/К | H100: =IFERROR(IF($A$1,VLOOKUP(F100,'Pricing pick up'!$A:$CM,MATCH(Проектные!$G$3,'Pricing pick up'!$2:$2,0),0),VLOOKUP(F100,Pricing!$A:$CL,MATCH(Проектные!$G$3,Pricing!$2:$2,0),0)),"не возим") -> 2647.092467 | I100: =IFERROR(IF($B$1,VLOOKUP(CONCATENATE($E100,$G$3),Tariffs_!A:H,8,0),VLOOKUP(CONCATENATE($E100,$G$3),Tariffs_!A:G,6,0)),"-") -> 0 | J100: =IFERROR(IF($B$1,VLOOKUP(CONCATENATE($E100,$G$3),Tariffs_!A:I,9,0)*VLOOKUP($F100,ZMM_Plst!$B:$K,8,0)/VLOOKUP($F100,ZMM_Plst!$B:$K,10,0)*1.2,VLOOKUP(CONCATENATE($E100,$G$3),Tariffs_!A:G,7,0)*VLOOKUP($F100,ZMM_Plst!$B:$K,8,0)/VLOOKUP($F100,ZMM_Plst!$B:$K,10,0)*1.2),"-") -> 0 | K100: 2205.910389 | L100: =VLOOKUP($F100,ZMM_Plst!$B:$AA,26,0) -> A | M100: 7.137 | N100: 0.7135 | O100: =VLOOKUP($F100,ZMM_Plst!$B:$AC,17,0) -> 10 | P100: =VLOOKUP($F100,ZMM_Plst!$B:$AC,9,0) -> 142.74 | Q100: =VLOOKUP($F100,ZMM_Plst!$B:$AC,10,0) -> 14.27 | R100: =VLOOKUP($F100,ZMM_Plst!$B:$AC,8,0) -> 4.18 | S100: =VLOOKUP($F100,ZMM_Plst!$B:$AC,16,0) -> 20 | T100: 314.076555 | U100: =VLOOKUP($F100,ZMM_Plst!$B:$AC,6,0) -> 1.17 | V100: =VLOOKUP($F100,ZMM_Plst!$B:$AC,7,0) -> 0.61 | W100: =VLOOKUP($F100,ZMM_Plst!$B:$AC,5,0) -> 0.1
A101: =IF($F101<>"",VLOOKUP(F101,Pricing!$A:$F,6,FALSE),"") -> GW | B101: =IF($F101<>"",VLOOKUP(F101,Pricing!$A:$F,5,FALSE),"") -> LW | C101: =IF($F101<>"",VLOOKUP(Проектные!$F101,Pricing!$A:$F,3,FALSE),"") -> VF Bottom | D101: =VLOOKUP(C101,конструктив!A:B,2,0) -> НВФ | E101: =IF($F101<>"",VLOOKUP(F101,Pricing!$A:$F,4,FALSE),"") -> Yegorevsk | F101: =IF(Pricing!A94<>"",Pricing!A94,"") -> 67409 | G101: =IF(F101<>"",VLOOKUP(F101,Pricing!$A:$B,2,FALSE),"") -> ВентФасад-Низ-110/610x1170/E/К | H101: =IFERROR(IF($A$1,VLOOKUP(F101,'Pricing pick up'!$A:$CM,MATCH(Проектные!$G$3,'Pricing pick up'!$2:$2,0),0),VLOOKUP(F101,Pricing!$A:$CL,MATCH(Проектные!$G$3,Pricing!$2:$2,0),0)),"не возим") -> 2647.092467 | I101: =IFERROR(IF($B$1,VLOOKUP(CONCATENATE($E101,$G$3),Tariffs_!A:H,8,0),VLOOKUP(CONCATENATE($E101,$G$3),Tariffs_!A:G,6,0)),"-") -> 0 | J101: =IFERROR(IF($B$1,VLOOKUP(CONCATENATE($E101,$G$3),Tariffs_!A:I,9,0)*VLOOKUP($F101,ZMM_Plst!$B:$K,8,0)/VLOOKUP($F101,ZMM_Plst!$B:$K,10,0)*1.2,VLOOKUP(CONCATENATE($E101,$G$3),Tariffs_!A:G,7,0)*VLOOKUP($F101,ZMM_Plst!$B:$K,8,0)/VLOOKUP($F101,ZMM_Plst!$B:$K,10,0)*1.2),"-") -> 0 | K101: 2205.910389 | L101: =VLOOKUP($F101,ZMM_Plst!$B:$AA,26,0) -> B | M101: 5.7095 | N101: 0.628 | O101: =VLOOKUP($F101,ZMM_Plst!$B:$AC,17,0) -> 8 | P101: =VLOOKUP($F101,ZMM_Plst!$B:$AC,9,0) -> 114.19 | Q101: =VLOOKUP($F101,ZMM_Plst!$B:$AC,10,0) -> 12.56 | R101: =VLOOKUP($F101,ZMM_Plst!$B:$AC,8,0) -> 4.18 | S101: =VLOOKUP($F101,ZMM_Plst!$B:$AC,16,0) -> 20 | T101: 276.4401914 | U101: =VLOOKUP($F101,ZMM_Plst!$B:$AC,6,0) -> 1.17 | V101: =VLOOKUP($F101,ZMM_Plst!$B:$AC,7,0) -> 0.61 | W101: =VLOOKUP($F101,ZMM_Plst!$B:$AC,5,0) -> 0.11
A102: =IF($F102<>"",VLOOKUP(F102,Pricing!$A:$F,6,FALSE),"") -> GW | B102: =IF($F102<>"",VLOOKUP(F102,Pricing!$A:$F,5,FALSE),"") -> LW | C102: =IF($F102<>"",VLOOKUP(Проектные!$F102,Pricing!$A:$F,3,FALSE),"") -> VF Bottom | D102: =VLOOKUP(C102,конструктив!A:B,2,0) -> НВФ | E102: =IF($F102<>"",VLOOKUP(F102,Pricing!$A:$F,4,FALSE),"") -> Yegorevsk | F102: =IF(Pricing!A95<>"",Pricing!A95,"") -> 67412 | G102: =IF(F102<>"",VLOOKUP(F102,Pricing!$A:$B,2,FALSE),"") -> ВентФасад-Низ-120/610x1170/E/К | H102: =IFERROR(IF($A$1,VLOOKUP(F102,'Pricing pick up'!$A:$CM,MATCH(Проектные!$G$3,'Pricing pick up'!$2:$2,0),0),VLOOKUP(F102,Pricing!$A:$CL,MATCH(Проектные!$G$3,Pricing!$2:$2,0),0)),"не возим") -> 2647.092467 | I102: =IFERROR(IF($B$1,VLOOKUP(CONCATENATE($E102,$G$3),Tariffs_!A:H,8,0),VLOOKUP(CONCATENATE($E102,$G$3),Tariffs_!A:G,6,0)),"-") -> 0 | J102: =IFERROR(IF($B$1,VLOOKUP(CONCATENATE($E102,$G$3),Tariffs_!A:I,9,0)*VLOOKUP($F102,ZMM_Plst!$B:$K,8,0)/VLOOKUP($F102,ZMM_Plst!$B:$K,10,0)*1.2,VLOOKUP(CONCATENATE($E102,$G$3),Tariffs_!A:G,7,0)*VLOOKUP($F102,ZMM_Plst!$B:$K,8,0)/VLOOKUP($F102,ZMM_Plst!$B:$K,10,0)*1.2),"-") -> 0 | K102: 2205.910389 | L102: =VLOOKUP($F102,ZMM_Plst!$B:$AA,26,0) -> A | M102: 5.7095 | N102: 0.685 | O102: =VLOOKUP($F102,ZMM_Plst!$B:$AC,17,0) -> 8 | P102: =VLOOKUP($F102,ZMM_Plst!$B:$AC,9,0) -> 114.19 | Q102: =VLOOKUP($F102,ZMM_Plst!$B:$AC,10,0) -> 13.7 | R102: =VLOOKUP($F102,ZMM_Plst!$B:$AC,8,0) -> 4.18 | S102: =VLOOKUP($F102,ZMM_Plst!$B:$AC,16,0) -> 20 | T102: 301.5311005 | U102: =VLOOKUP($F102,ZMM_Plst!$B:$AC,6,0) -> 1.17 | V102: =VLOOKUP($F102,ZMM_Plst!$B:$AC,7,0) -> 0.61 | W102: =VLOOKUP($F102,ZMM_Plst!$B:$AC,5,0) -> 0.12
A103: =IF($F103<>"",VLOOKUP(F103,Pricing!$A:$F,6,FALSE),"") -> GW | B103: =IF($F103<>"",VLOOKUP(F103,Pricing!$A:$F,5,FALSE),"") -> LW | C103: =IF($F103<>"",VLOOKUP(Проектные!$F103,Pricing!$A:$F,3,FALSE),"") -> VF Bottom | D103: =VLOOKUP(C103,конструктив!A:B,2,0) -> НВФ | E103: =IF($F103<>"",VLOOKUP(F103,Pricing!$A:$F,4,FALSE),"") -> Yegorevsk | F103: =IF(Pricing!A96<>"",Pricing!A96,"") -> 67413 | G103: =IF(F103<>"",VLOOKUP(F103,Pricing!$A:$B,2,FALSE),"") -> ВентФасад-Низ-130/610x1170/E/К | H103: =IFERROR(IF($A$1,VLOOKUP(F103,'Pricing pick up'!$A:$CM,MATCH(Проектные!$G$3,'Pricing pick up'!$2:$2,0),0),VLOOKUP(F103,Pricing!$A:$CL,MATCH(Проектные!$G$3,Pricing!$2:$2,0),0)),"не возим") -> 2647.092467 | I103: =IFERROR(IF($B$1,VLOOKUP(CONCATENATE($E103,$G$3),Tariffs_!A:H,8,0),VLOOKUP(CONCATENATE($E103,$G$3),Tariffs_!A:G,6,0)),"-") -> 0 | J103: =IFERROR(IF($B$1,VLOOKUP(CONCATENATE($E103,$G$3),Tariffs_!A:I,9,0)*VLOOKUP($F103,ZMM_Plst!$B:$K,8,0)/VLOOKUP($F103,ZMM_Plst!$B:$K,10,0)*1.2,VLOOKUP(CONCATENATE($E103,$G$3),Tariffs_!A:G,7,0)*VLOOKUP($F103,ZMM_Plst!$B:$K,8,0)/VLOOKUP($F103,ZMM_Plst!$B:$K,10,0)*1.2),"-") -> 0 | K103: 2205.910389 | L103: =VLOOKUP($F103,ZMM_Plst!$B:$AA,26,0) -> B | M103: 4.9959 | N103: 0.64945 | O103: =VLOOKUP($F103,ZMM_Plst!$B:$AC,17,0) -> 7 | P103: =VLOOKUP($F103,ZMM_Plst!$B:$AC,9,0) -> 99.918 | Q103: =VLOOKUP($F103,ZMM_Plst!$B:$AC,10,0) -> 12.989 | R103: =VLOOKUP($F103,ZMM_Plst!$B:$AC,8,0) -> 4.18 | S103: =VLOOKUP($F103,ZMM_Plst!$B:$AC,16,0) -> 20 | T103: 285.8822967 | U103: =VLOOKUP($F103,ZMM_Plst!$B:$AC,6,0) -> 1.17 | V103: =VLOOKUP($F103,ZMM_Plst!$B:$AC,7,0) -> 0.61 | W103: =VLOOKUP($F103,ZMM_Plst!$B:$AC,5,0) -> 0.13
A104: =IF($F104<>"",VLOOKUP(F104,Pricing!$A:$F,6,FALSE),"") -> GW | B104: =IF($F104<>"",VLOOKUP(F104,Pricing!$A:$F,5,FALSE),"") -> LW | C104: =IF($F104<>"",VLOOKUP(Проектные!$F104,Pricing!$A:$F,3,FALSE),"") -> VF Bottom | D104: =VLOOKUP(C104,конструктив!A:B,2,0) -> НВФ | E104: =IF($F104<>"",VLOOKUP(F104,Pricing!$A:$F,4,FALSE),"") -> Yegorevsk | F104: =IF(Pricing!A97<>"",Pricing!A97,"") -> 67414 | G104: =IF(F104<>"",VLOOKUP(F104,Pricing!$A:$B,2,FALSE),"") -> ВентФасад-Низ-140/610x1170/E/К | H104: =IFERROR(IF($A$1,VLOOKUP(F104,'Pricing pick up'!$A:$CM,MATCH(Проектные!$G$3,'Pricing pick up'!$2:$2,0),0),VLOOKUP(F104,Pricing!$A:$CL,MATCH(Проектные!$G$3,Pricing!$2:$2,0),0)),"не возим") -> 2647.092467 | I104: =IFERROR(IF($B$1,VLOOKUP(CONCATENATE($E104,$G$3),Tariffs_!A:H,8,0),VLOOKUP(CONCATENATE($E104,$G$3),Tariffs_!A:G,6,0)),"-") -> 0 | J104: =IFERROR(IF($B$1,VLOOKUP(CONCATENATE($E104,$G$3),Tariffs_!A:I,9,0)*VLOOKUP($F104,ZMM_Plst!$B:$K,8,0)/VLOOKUP($F104,ZMM_Plst!$B:$K,10,0)*1.2,VLOOKUP(CONCATENATE($E104,$G$3),Tariffs_!A:G,7,0)*VLOOKUP($F104,ZMM_Plst!$B:$K,8,0)/VLOOKUP($F104,ZMM_Plst!$B:$K,10,0)*1.2),"-") -> 0 | K104: 2205.910389 | L104: =VLOOKUP($F104,ZMM_Plst!$B:$AA,26,0) -> B | M104: 4.2822 | N104: 0.5995 | O104: =VLOOKUP($F104,ZMM_Plst!$B:$AC,17,0) -> 6 | P104: =VLOOKUP($F104,ZMM_Plst!$B:$AC,9,0) -> 85.644 | Q104: =VLOOKUP($F104,ZMM_Plst!$B:$AC,10,0) -> 11.99 | R104: =VLOOKUP($F104,ZMM_Plst!$B:$AC,8,0) -> 4.18 | S104: =VLOOKUP($F104,ZMM_Plst!$B:$AC,16,0) -> 20 | T104: 263.8947368 | U104: =VLOOKUP($F104,ZMM_Plst!$B:$AC,6,0) -> 1.17 | V104: =VLOOKUP($F104,ZMM_Plst!$B:$AC,7,0) -> 0.61 | W104: =VLOOKUP($F104,ZMM_Plst!$B:$AC,5,0) -> 0.14
A105: =IF($F105<>"",VLOOKUP(F105,Pricing!$A:$F,6,FALSE),"") -> GW | B105: =IF($F105<>"",VLOOKUP(F105,Pricing!$A:$F,5,FALSE),"") -> LW | C105: =IF($F105<>"",VLOOKUP(Проектные!$F105,Pricing!$A:$F,3,FALSE),"") -> VF Bottom | D105: =VLOOKUP(C105,конструктив!A:B,2,0) -> НВФ | E105: =IF($F105<>"",VLOOKUP(F105,Pricing!$A:$F,4,FALSE),"") -> Yegorevsk | F105: =IF(Pricing!A98<>"",Pricing!A98,"") -> 67415 | G105: =IF(F105<>"",VLOOKUP(F105,Pricing!$A:$B,2,FALSE),"") -> ВентФасад-Низ-150/610x1170/E/К | H105: =IFERROR(IF($A$1,VLOOKUP(F105,'Pricing pick up'!$A:$CM,MATCH(Проектные!$G$3,'Pricing pick up'!$2:$2,0),0),VLOOKUP(F105,Pricing!$A:$CL,MATCH(Проектные!$G$3,Pricing!$2:$2,0),0)),"не возим") -> 2647.092467 | I105: =IFERROR(IF($B$1,VLOOKUP(CONCATENATE($E105,$G$3),Tariffs_!A:H,8,0),VLOOKUP(CONCATENATE($E105,$G$3),Tariffs_!A:G,6,0)),"-") -> 0 | J105: =IFERROR(IF($B$1,VLOOKUP(CONCATENATE($E105,$G$3),Tariffs_!A:I,9,0)*VLOOKUP($F105,ZMM_Plst!$B:$K,8,0)/VLOOKUP($F105,ZMM_Plst!$B:$K,10,0)*1.2,VLOOKUP(CONCATENATE($E105,$G$3),Tariffs_!A:G,7,0)*VLOOKUP($F105,ZMM_Plst!$B:$K,8,0)/VLOOKUP($F105,ZMM_Plst!$B:$K,10,0)*1.2),"-") -> 0 | K105: 2205.910389 | L105: =VLOOKUP($F105,ZMM_Plst!$B:$AA,26,0) -> B | M105: 4.282 | N105: 0.64235 | O105: =VLOOKUP($F105,ZMM_Plst!$B:$AC,17,0) -> 6 | P105: =VLOOKUP($F105,ZMM_Plst!$B:$AC,9,0) -> 85.64 | Q105: =VLOOKUP($F105,ZMM_Plst!$B:$AC,10,0) -> 12.847 | R105: =VLOOKUP($F105,ZMM_Plst!$B:$AC,8,0) -> 4.18 | S105: =VLOOKUP($F105,ZMM_Plst!$B:$AC,16,0) -> 20 | T105: 282.7569378 | U105: =VLOOKUP($F105,ZMM_Plst!$B:$AC,6,0) -> 1.17 | V105: =VLOOKUP($F105,ZMM_Plst!$B:$AC,7,0) -> 0.61 | W105: =VLOOKUP($F105,ZMM_Plst!$B:$AC,5,0) -> 0.15
A106: =IF($F106<>"",VLOOKUP(F106,Pricing!$A:$F,6,FALSE),"") -> GW | B106: =IF($F106<>"",VLOOKUP(F106,Pricing!$A:$F,5,FALSE),"") -> LW | C106: =IF($F106<>"",VLOOKUP(Проектные!$F106,Pricing!$A:$F,3,FALSE),"") -> VF Bottom | D106: =VLOOKUP(C106,конструктив!A:B,2,0) -> НВФ | E106: =IF($F106<>"",VLOOKUP(F106,Pricing!$A:$F,4,FALSE),"") -> Yegorevsk | F106: =IF(Pricing!A99<>"",Pricing!A99,"") -> 67416 | G106: =IF(F106<>"",VLOOKUP(F106,Pricing!$A:$B,2,FALSE),"") -> ВентФасад-Низ-160/610x1170/E/К | H106: =IFERROR(IF($A$1,VLOOKUP(F106,'Pricing pick up'!$A:$CM,MATCH(Проектные!$G$3,'Pricing pick up'!$2:$2,0),0),VLOOKUP(F106,Pricing!$A:$CL,MATCH(Проектные!$G$3,Pricing!$2:$2,0),0)),"не возим") -> 2647.092467 | I106: =IFERROR(IF($B$1,VLOOKUP(CONCATENATE($E106,$G$3),Tariffs_!A:H,8,0),VLOOKUP(CONCATENATE($E106,$G$3),Tariffs_!A:G,6,0)),"-") -> 0 | J106: =IFERROR(IF($B$1,VLOOKUP(CONCATENATE($E106,$G$3),Tariffs_!A:I,9,0)*VLOOKUP($F106,ZMM_Plst!$B:$K,8,0)/VLOOKUP($F106,ZMM_Plst!$B:$K,10,0)*1.2,VLOOKUP(CONCATENATE($E106,$G$3),Tariffs_!A:G,7,0)*VLOOKUP($F106,ZMM_Plst!$B:$K,8,0)/VLOOKUP($F106,ZMM_Plst!$B:$K,10,0)*1.2),"-") -> 0 | K106: 2205.910389 | L106: =VLOOKUP($F106,ZMM_Plst!$B:$AA,26,0) -> B | M106: 4.2822 | N106: 0.68515 | O106: =VLOOKUP($F106,ZMM_Plst!$B:$AC,17,0) -> 6 | P106: =VLOOKUP($F106,ZMM_Plst!$B:$AC,9,0) -> 85.644 | Q106: =VLOOKUP($F106,ZMM_Plst!$B:$AC,10,0) -> 13.703 | R106: =VLOOKUP($F106,ZMM_Plst!$B:$AC,8,0) -> 4.6 | S106: =VLOOKUP($F106,ZMM_Plst!$B:$AC,16,0) -> 20 | T106: 274.06 | U106: =VLOOKUP($F106,ZMM_Plst!$B:$AC,6,0) -> 1.17 | V106: =VLOOKUP($F106,ZMM_Plst!$B:$AC,7,0) -> 0.61 | W106: =VLOOKUP($F106,ZMM_Plst!$B:$AC,5,0) -> 0.16
A107: =IF($F107<>"",VLOOKUP(F107,Pricing!$A:$F,6,FALSE),"") -> GW | B107: =IF($F107<>"",VLOOKUP(F107,Pricing!$A:$F,5,FALSE),"") -> LW | C107: =IF($F107<>"",VLOOKUP(Проектные!$F107,Pricing!$A:$F,3,FALSE),"") -> VF Bottom | D107: =VLOOKUP(C107,конструктив!A:B,2,0) -> НВФ | E107: =IF($F107<>"",VLOOKUP(F107,Pricing!$A:$F,4,FALSE),"") -> Yegorevsk | F107: =IF(Pricing!A100<>"",Pricing!A100,"") -> 67417 | G107: =IF(F107<>"",VLOOKUP(F107,Pricing!$A:$B,2,FALSE),"") -> ВентФасад-Низ-170/610x1170/E/К | H107: =IFERROR(IF($A$1,VLOOKUP(F107,'Pricing pick up'!$A:$CM,MATCH(Проектные!$G$3,'Pricing pick up'!$2:$2,0),0),VLOOKUP(F107,Pricing!$A:$CL,MATCH(Проектные!$G$3,Pricing!$2:$2,0),0)),"не возим") -> 2647.092467 | I107: =IFERROR(IF($B$1,VLOOKUP(CONCATENATE($E107,$G$3),Tariffs_!A:H,8,0),VLOOKUP(CONCATENATE($E107,$G$3),Tariffs_!A:G,6,0)),"-") -> 0 | J107: =IFERROR(IF($B$1,VLOOKUP(CONCATENATE($E107,$G$3),Tariffs_!A:I,9,0)*VLOOKUP($F107,ZMM_Plst!$B:$K,8,0)/VLOOKUP($F107,ZMM_Plst!$B:$K,10,0)*1.2,VLOOKUP(CONCATENATE($E107,$G$3),Tariffs_!A:G,7,0)*VLOOKUP($F107,ZMM_Plst!$B:$K,8,0)/VLOOKUP($F107,ZMM_Plst!$B:$K,10,0)*1.2),"-") -> 0 | K107: 2205.910389 | L107: =VLOOKUP($F107,ZMM_Plst!$B:$AA,26,0) -> B | M107: 3.5685 | N107: 0.60665 | O107: =VLOOKUP($F107,ZMM_Plst!$B:$AC,17,0) -> 5 | P107: =VLOOKUP($F107,ZMM_Plst!$B:$AC,9,0) -> 71.37 | Q107: =VLOOKUP($F107,ZMM_Plst!$B:$AC,10,0) -> 12.133 | R107: =VLOOKUP($F107,ZMM_Plst!$B:$AC,8,0) -> 4.6 | S107: =VLOOKUP($F107,ZMM_Plst!$B:$AC,16,0) -> 20 | T107: 242.66 | U107: =VLOOKUP($F107,ZMM_Plst!$B:$AC,6,0) -> 1.17 | V107: =VLOOKUP($F107,ZMM_Plst!$B:$AC,7,0) -> 0.61 | W107: =VLOOKUP($F107,ZMM_Plst!$B:$AC,5,0) -> 0.17
A108: =IF($F108<>"",VLOOKUP(F108,Pricing!$A:$F,6,FALSE),"") -> GW | B108: =IF($F108<>"",VLOOKUP(F108,Pricing!$A:$F,5,FALSE),"") -> LW | C108: =IF($F108<>"",VLOOKUP(Проектные!$F108,Pricing!$A:$F,3,FALSE),"") -> VF Bottom Light | D108: =VLOOKUP(C108,конструктив!A:B,2,0) -> НВФ | E108: =IF($F108<>"",VLOOKUP(F108,Pricing!$A:$F,4,FALSE),"") -> Yegorevsk | F108: =IF(Pricing!A101<>"",Pricing!A101,"") -> 67423 | G108: =IF(F108<>"",VLOOKUP(F108,Pricing!$A:$B,2,FALSE),"") -> ВентФасад-Низ Лайт-70/610x1170/Е/К | H108: =IFERROR(IF($A$1,VLOOKUP(F108,'Pricing pick up'!$A:$CM,MATCH(Проектные!$G$3,'Pricing pick up'!$2:$2,0),0),VLOOKUP(F108,Pricing!$A:$CL,MATCH(Проектные!$G$3,Pricing!$2:$2,0),0)),"не возим") -> 2403.646245 | I108: =IFERROR(IF($B$1,VLOOKUP(CONCATENATE($E108,$G$3),Tariffs_!A:H,8,0),VLOOKUP(CONCATENATE($E108,$G$3),Tariffs_!A:G,6,0)),"-") -> 0 | J108: =IFERROR(IF($B$1,VLOOKUP(CONCATENATE($E108,$G$3),Tariffs_!A:I,9,0)*VLOOKUP($F108,ZMM_Plst!$B:$K,8,0)/VLOOKUP($F108,ZMM_Plst!$B:$K,10,0)*1.2,VLOOKUP(CONCATENATE($E108,$G$3),Tariffs_!A:G,7,0)*VLOOKUP($F108,ZMM_Plst!$B:$K,8,0)/VLOOKUP($F108,ZMM_Plst!$B:$K,10,0)*1.2),"-") -> 0 | K108: 2003.038538 | L108: =VLOOKUP($F108,ZMM_Plst!$B:$AA,26,0) -> B | M108: 9.991666667 | N108: 0.6994166667 | O108: =VLOOKUP($F108,ZMM_Plst!$B:$AC,17,0) -> 14 | P108: =VLOOKUP($F108,ZMM_Plst!$B:$AC,9,0) -> 239.8 | Q108: =VLOOKUP($F108,ZMM_Plst!$B:$AC,10,0) -> 16.786 | R108: =VLOOKUP($F108,ZMM_Plst!$B:$AC,8,0) -> 4.18 | S108: =VLOOKUP($F108,ZMM_Plst!$B:$AC,16,0) -> 24 | T108: 369.4526316 | U108: =VLOOKUP($F108,ZMM_Plst!$B:$AC,6,0) -> 1.17 | V108: =VLOOKUP($F108,ZMM_Plst!$B:$AC,7,0) -> 0.61 | W108: =VLOOKUP($F108,ZMM_Plst!$B:$AC,5,0) -> 0.07
A109: =IF($F109<>"",VLOOKUP(F109,Pricing!$A:$F,6,FALSE),"") -> GW | B109: =IF($F109<>"",VLOOKUP(F109,Pricing!$A:$F,5,FALSE),"") -> LW | C109: =IF($F109<>"",VLOOKUP(Проектные!$F109,Pricing!$A:$F,3,FALSE),"") -> VF Bottom Light | D109: =VLOOKUP(C109,конструктив!A:B,2,0) -> НВФ | E109: =IF($F109<>"",VLOOKUP(F109,Pricing!$A:$F,4,FALSE),"") -> Yegorevsk | F109: =IF(Pricing!A102<>"",Pricing!A102,"") -> 67428 | G109: =IF(F109<>"",VLOOKUP(F109,Pricing!$A:$B,2,FALSE),"") -> ВентФасад-Низ Лайт-120/610x1170/Е/К | H109: =IFERROR(IF($A$1,VLOOKUP(F109,'Pricing pick up'!$A:$CM,MATCH(Проектные!$G$3,'Pricing pick up'!$2:$2,0),0),VLOOKUP(F109,Pricing!$A:$CL,MATCH(Проектные!$G$3,Pricing!$2:$2,0),0)),"не возим") -> 2403.646245 | I109: =IFERROR(IF($B$1,VLOOKUP(CONCATENATE($E109,$G$3),Tariffs_!A:H,8,0),VLOOKUP(CONCATENATE($E109,$G$3),Tariffs_!A:G,6,0)),"-") -> 0 | J109: =IFERROR(IF($B$1,VLOOKUP(CONCATENATE($E109,$G$3),Tariffs_!A:I,9,0)*VLOOKUP($F109,ZMM_Plst!$B:$K,8,0)/VLOOKUP($F109,ZMM_Plst!$B:$K,10,0)*1.2,VLOOKUP(CONCATENATE($E109,$G$3),Tariffs_!A:G,7,0)*VLOOKUP($F109,ZMM_Plst!$B:$K,8,0)/VLOOKUP($F109,ZMM_Plst!$B:$K,10,0)*1.2),"-") -> 0 | K109: 2003.038538 | L109: =VLOOKUP($F109,ZMM_Plst!$B:$AA,26,0) -> B | M109: 5.71 | N109: 0.6851666667 | O109: =VLOOKUP($F109,ZMM_Plst!$B:$AC,17,0) -> 8 | P109: =VLOOKUP($F109,ZMM_Plst!$B:$AC,9,0) -> 137.04 | Q109: =VLOOKUP($F109,ZMM_Plst!$B:$AC,10,0) -> 16.444 | R109: =VLOOKUP($F109,ZMM_Plst!$B:$AC,8,0) -> 4.18 | S109: =VLOOKUP($F109,ZMM_Plst!$B:$AC,16,0) -> 24 | T109: 361.9253589 | U109: =VLOOKUP($F109,ZMM_Plst!$B:$AC,6,0) -> 1.17 | V109: =VLOOKUP($F109,ZMM_Plst!$B:$AC,7,0) -> 0.61 | W109: =VLOOKUP($F109,ZMM_Plst!$B:$AC,5,0) -> 0.12
A110: =IF($F110<>"",VLOOKUP(F110,Pricing!$A:$F,6,FALSE),"") -> GW | B110: =IF($F110<>"",VLOOKUP(F110,Pricing!$A:$F,5,FALSE),"") -> HW | C110: =IF($F110<>"",VLOOKUP(Проектные!$F110,Pricing!$A:$F,3,FALSE),"") -> VF Mono | D110: =VLOOKUP(C110,конструктив!A:B,2,0) -> НВФ | E110: =IF($F110<>"",VLOOKUP(F110,Pricing!$A:$F,4,FALSE),"") -> Yegorevsk | F110: =IF(Pricing!A103<>"",Pricing!A103,"") -> 67521 | G110: =IF(F110<>"",VLOOKUP(F110,Pricing!$A:$B,2,FALSE),"") -> ВентФасад-Моно-50/1190x1380/Е/К | H110: =IFERROR(IF($A$1,VLOOKUP(F110,'Pricing pick up'!$A:$CM,MATCH(Проектные!$G$3,'Pricing pick up'!$2:$2,0),0),VLOOKUP(F110,Pricing!$A:$CL,MATCH(Проектные!$G$3,Pricing!$2:$2,0),0)),"не возим") -> 10720.48525 | I110: =IFERROR(IF($B$1,VLOOKUP(CONCATENATE($E110,$G$3),Tariffs_!A:H,8,0),VLOOKUP(CONCATENATE($E110,$G$3),Tariffs_!A:G,6,0)),"-") -> 0 | J110: =IFERROR(IF($B$1,VLOOKUP(CONCATENATE($E110,$G$3),Tariffs_!A:I,9,0)*VLOOKUP($F110,ZMM_Plst!$B:$K,8,0)/VLOOKUP($F110,ZMM_Plst!$B:$K,10,0)*1.2,VLOOKUP(CONCATENATE($E110,$G$3),Tariffs_!A:G,7,0)*VLOOKUP($F110,ZMM_Plst!$B:$K,8,0)/VLOOKUP($F110,ZMM_Plst!$B:$K,10,0)*1.2),"-") -> 0 | K110: 8933.73771 | L110: =VLOOKUP($F110,ZMM_Plst!$B:$AA,26,0) -> A | M110: 9.85 | N110: 0.493 | O110: =VLOOKUP($F110,ZMM_Plst!$B:$AC,17,0) -> 6 | P110: =VLOOKUP($F110,ZMM_Plst!$B:$AC,9,0) -> 9.85 | Q110: =VLOOKUP($F110,ZMM_Plst!$B:$AC,10,0) -> 0.493 | R110: =VLOOKUP($F110,ZMM_Plst!$B:$AC,8,0) -> 0.605 | S110: =VLOOKUP($F110,ZMM_Plst!$B:$AC,16,0) -> 1 | T110: 74.96859504 | U110: =VLOOKUP($F110,ZMM_Plst!$B:$AC,6,0) -> 1.38 | V110: =VLOOKUP($F110,ZMM_Plst!$B:$AC,7,0) -> 1.19 | W110: =VLOOKUP($F110,ZMM_Plst!$B:$AC,5,0) -> 0.05
A111: =IF($F111<>"",VLOOKUP(F111,Pricing!$A:$F,6,FALSE),"") -> GW | B111: =IF($F111<>"",VLOOKUP(F111,Pricing!$A:$F,5,FALSE),"") -> HW | C111: =IF($F111<>"",VLOOKUP(Проектные!$F111,Pricing!$A:$F,3,FALSE),"") -> VF Mono | D111: =VLOOKUP(C111,конструктив!A:B,2,0) -> НВФ | E111: =IF($F111<>"",VLOOKUP(F111,Pricing!$A:$F,4,FALSE),"") -> Yegorevsk | F111: =IF(Pricing!A104<>"",Pricing!A104,"") -> 67522 | G111: =IF(F111<>"",VLOOKUP(F111,Pricing!$A:$B,2,FALSE),"") -> ВентФасад Моно-50/1190x1380/Ч/Е/К | H111: =IFERROR(IF($A$1,VLOOKUP(F111,'Pricing pick up'!$A:$CM,MATCH(Проектные!$G$3,'Pricing pick up'!$2:$2,0),0),VLOOKUP(F111,Pricing!$A:$CL,MATCH(Проектные!$G$3,Pricing!$2:$2,0),0)),"не возим") -> 12105.50526 | I111: =IFERROR(IF($B$1,VLOOKUP(CONCATENATE($E111,$G$3),Tariffs_!A:H,8,0),VLOOKUP(CONCATENATE($E111,$G$3),Tariffs_!A:G,6,0)),"-") -> 0 | J111: =IFERROR(IF($B$1,VLOOKUP(CONCATENATE($E111,$G$3),Tariffs_!A:I,9,0)*VLOOKUP($F111,ZMM_Plst!$B:$K,8,0)/VLOOKUP($F111,ZMM_Plst!$B:$K,10,0)*1.2,VLOOKUP(CONCATENATE($E111,$G$3),Tariffs_!A:G,7,0)*VLOOKUP($F111,ZMM_Plst!$B:$K,8,0)/VLOOKUP($F111,ZMM_Plst!$B:$K,10,0)*1.2),"-") -> 0 | K111: 10087.92105 | L111: =VLOOKUP($F111,ZMM_Plst!$B:$AA,26,0) -> B | M111: 9.853 | N111: 0.493 | O111: =VLOOKUP($F111,ZMM_Plst!$B:$AC,17,0) -> 6 | P111: =VLOOKUP($F111,ZMM_Plst!$B:$AC,9,0) -> 9.853 | Q111: =VLOOKUP($F111,ZMM_Plst!$B:$AC,10,0) -> 0.493 | R111: =VLOOKUP($F111,ZMM_Plst!$B:$AC,8,0) -> 0.605 | S111: =VLOOKUP($F111,ZMM_Plst!$B:$AC,16,0) -> 1 | T111: 74.96859504 | U111: =VLOOKUP($F111,ZMM_Plst!$B:$AC,6,0) -> 1.38 | V111: =VLOOKUP($F111,ZMM_Plst!$B:$AC,7,0) -> 1.19 | W111: =VLOOKUP($F111,ZMM_Plst!$B:$AC,5,0) -> 0.05
A112: =IF($F112<>"",VLOOKUP(F112,Pricing!$A:$F,6,FALSE),"") -> GW | B112: =IF($F112<>"",VLOOKUP(F112,Pricing!$A:$F,5,FALSE),"") -> HW | C112: =IF($F112<>"",VLOOKUP(Проектные!$F112,Pricing!$A:$F,3,FALSE),"") -> VF Mono | D112: =VLOOKUP(C112,конструктив!A:B,2,0) -> НВФ | E112: =IF($F112<>"",VLOOKUP(F112,Pricing!$A:$F,4,FALSE),"") -> Yegorevsk | F112: =IF(Pricing!A105<>"",Pricing!A105,"") -> 67526 | G112: =IF(F112<>"",VLOOKUP(F112,Pricing!$A:$B,2,FALSE),"") -> ВентФасад-Моно-70/1190x1380/Е/К | H112: =IFERROR(IF($A$1,VLOOKUP(F112,'Pricing pick up'!$A:$CM,MATCH(Проектные!$G$3,'Pricing pick up'!$2:$2,0),0),VLOOKUP(F112,Pricing!$A:$CL,MATCH(Проектные!$G$3,Pricing!$2:$2,0),0)),"не возим") -> 9902.115343 | I112: =IFERROR(IF($B$1,VLOOKUP(CONCATENATE($E112,$G$3),Tariffs_!A:H,8,0),VLOOKUP(CONCATENATE($E112,$G$3),Tariffs_!A:G,6,0)),"-") -> 0 | J112: =IFERROR(IF($B$1,VLOOKUP(CONCATENATE($E112,$G$3),Tariffs_!A:I,9,0)*VLOOKUP($F112,ZMM_Plst!$B:$K,8,0)/VLOOKUP($F112,ZMM_Plst!$B:$K,10,0)*1.2,VLOOKUP(CONCATENATE($E112,$G$3),Tariffs_!A:G,7,0)*VLOOKUP($F112,ZMM_Plst!$B:$K,8,0)/VLOOKUP($F112,ZMM_Plst!$B:$K,10,0)*1.2),"-") -> 0 | K112: 8251.762786 | L112: =VLOOKUP($F112,ZMM_Plst!$B:$AA,26,0) -> B | M112: 6.56 | N112: 0.46 | O112: =VLOOKUP($F112,ZMM_Plst!$B:$AC,17,0) -> 4 | P112: =VLOOKUP($F112,ZMM_Plst!$B:$AC,9,0) -> 6.56 | Q112: =VLOOKUP($F112,ZMM_Plst!$B:$AC,10,0) -> 0.46 | R112: =VLOOKUP($F112,ZMM_Plst!$B:$AC,8,0) -> 0.568 | S112: =VLOOKUP($F112,ZMM_Plst!$B:$AC,16,0) -> 1 | T112: 74.50704225 | U112: =VLOOKUP($F112,ZMM_Plst!$B:$AC,6,0) -> 1.38 | V112: =VLOOKUP($F112,ZMM_Plst!$B:$AC,7,0) -> 1.19 | W112: =VLOOKUP($F112,ZMM_Plst!$B:$AC,5,0) -> 0.07
A113: =IF($F113<>"",VLOOKUP(F113,Pricing!$A:$F,6,FALSE),"") -> GW | B113: =IF($F113<>"",VLOOKUP(F113,Pricing!$A:$F,5,FALSE),"") -> HW | C113: =IF($F113<>"",VLOOKUP(Проектные!$F113,Pricing!$A:$F,3,FALSE),"") -> VF Mono | D113: =VLOOKUP(C113,конструктив!A:B,2,0) -> НВФ | E113: =IF($F113<>"",VLOOKUP(F113,Pricing!$A:$F,4,FALSE),"") -> Yegorevsk | F113: =IF(Pricing!A106<>"",Pricing!A106,"") -> 67528 | G113: =IF(F113<>"",VLOOKUP(F113,Pricing!$A:$B,2,FALSE),"") -> ВентФасад-Моно-60/1190x1380/Е/К | H113: =IFERROR(IF($A$1,VLOOKUP(F113,'Pricing pick up'!$A:$CM,MATCH(Проектные!$G$3,'Pricing pick up'!$2:$2,0),0),VLOOKUP(F113,Pricing!$A:$CL,MATCH(Проектные!$G$3,Pricing!$2:$2,0),0)),"не возим") -> 10038.22536 | I113: =IFERROR(IF($B$1,VLOOKUP(CONCATENATE($E113,$G$3),Tariffs_!A:H,8,0),VLOOKUP(CONCATENATE($E113,$G$3),Tariffs_!A:G,6,0)),"-") -> 0 | J113: =IFERROR(IF($B$1,VLOOKUP(CONCATENATE($E113,$G$3),Tariffs_!A:I,9,0)*VLOOKUP($F113,ZMM_Plst!$B:$K,8,0)/VLOOKUP($F113,ZMM_Plst!$B:$K,10,0)*1.2,VLOOKUP(CONCATENATE($E113,$G$3),Tariffs_!A:G,7,0)*VLOOKUP($F113,ZMM_Plst!$B:$K,8,0)/VLOOKUP($F113,ZMM_Plst!$B:$K,10,0)*1.2),"-") -> 0 | K113: 8365.187799 | L113: =VLOOKUP($F113,ZMM_Plst!$B:$AA,26,0) -> B | M113: 8.211 | N113: 0.493 | O113: =VLOOKUP($F113,ZMM_Plst!$B:$AC,17,0) -> 5 | P113: =VLOOKUP($F113,ZMM_Plst!$B:$AC,9,0) -> 8.211 | Q113: =VLOOKUP($F113,ZMM_Plst!$B:$AC,10,0) -> 0.493 | R113: =VLOOKUP($F113,ZMM_Plst!$B:$AC,8,0) -> 0.605 | S113: =VLOOKUP($F113,ZMM_Plst!$B:$AC,16,0) -> 1 | T113: 74.96859504 | U113: =VLOOKUP($F113,ZMM_Plst!$B:$AC,6,0) -> 1.38 | V113: =VLOOKUP($F113,ZMM_Plst!$B:$AC,7,0) -> 1.19 | W113: =VLOOKUP($F113,ZMM_Plst!$B:$AC,5,0) -> 0.06
A114: =IF($F114<>"",VLOOKUP(F114,Pricing!$A:$F,6,FALSE),"") -> GW | B114: =IF($F114<>"",VLOOKUP(F114,Pricing!$A:$F,5,FALSE),"") -> HW | C114: =IF($F114<>"",VLOOKUP(Проектные!$F114,Pricing!$A:$F,3,FALSE),"") -> VF Mono | D114: =VLOOKUP(C114,конструктив!A:B,2,0) -> НВФ | E114: =IF($F114<>"",VLOOKUP(F114,Pricing!$A:$F,4,FALSE),"") -> Yegorevsk | F114: =IF(Pricing!A107<>"",Pricing!A107,"") -> 67531 | G114: =IF(F114<>"",VLOOKUP(F114,Pricing!$A:$B,2,FALSE),"") -> ВентФасад-Моно-100/1190x1380/Е/К | H114: =IFERROR(IF($A$1,VLOOKUP(F114,'Pricing pick up'!$A:$CM,MATCH(Проектные!$G$3,'Pricing pick up'!$2:$2,0),0),VLOOKUP(F114,Pricing!$A:$CL,MATCH(Проектные!$G$3,Pricing!$2:$2,0),0)),"не возим") -> 9024.359951 | I114: =IFERROR(IF($B$1,VLOOKUP(CONCATENATE($E114,$G$3),Tariffs_!A:H,8,0),VLOOKUP(CONCATENATE($E114,$G$3),Tariffs_!A:G,6,0)),"-") -> 0 | J114: =IFERROR(IF($B$1,VLOOKUP(CONCATENATE($E114,$G$3),Tariffs_!A:I,9,0)*VLOOKUP($F114,ZMM_Plst!$B:$K,8,0)/VLOOKUP($F114,ZMM_Plst!$B:$K,10,0)*1.2,VLOOKUP(CONCATENATE($E114,$G$3),Tariffs_!A:G,7,0)*VLOOKUP($F114,ZMM_Plst!$B:$K,8,0)/VLOOKUP($F114,ZMM_Plst!$B:$K,10,0)*1.2),"-") -> 0 | K114: 7520.299959 | L114: =VLOOKUP($F114,ZMM_Plst!$B:$AA,26,0) -> A | M114: 4.927 | N114: 0.493 | O114: =VLOOKUP($F114,ZMM_Plst!$B:$AC,17,0) -> 3 | P114: =VLOOKUP($F114,ZMM_Plst!$B:$AC,9,0) -> 4.927 | Q114: =VLOOKUP($F114,ZMM_Plst!$B:$AC,10,0) -> 0.493 | R114: =VLOOKUP($F114,ZMM_Plst!$B:$AC,8,0) -> 0.605 | S114: =VLOOKUP($F114,ZMM_Plst!$B:$AC,16,0) -> 1 | T114: 74.96859504 | U114: =VLOOKUP($F114,ZMM_Plst!$B:$AC,6,0) -> 1.38 | V114: =VLOOKUP($F114,ZMM_Plst!$B:$AC,7,0) -> 1.19 | W114: =VLOOKUP($F114,ZMM_Plst!$B:$AC,5,0) -> 0.1
A115: =IF($F115<>"",VLOOKUP(F115,Pricing!$A:$F,6,FALSE),"") -> GW | B115: =IF($F115<>"",VLOOKUP(F115,Pricing!$A:$F,5,FALSE),"") -> HW | C115: =IF($F115<>"",VLOOKUP(Проектные!$F115,Pricing!$A:$F,3,FALSE),"") -> VF Mono | D115: =VLOOKUP(C115,конструктив!A:B,2,0) -> НВФ | E115: =IF($F115<>"",VLOOKUP(F115,Pricing!$A:$F,4,FALSE),"") -> Yegorevsk | F115: =IF(Pricing!A108<>"",Pricing!A108,"") -> 67533 | G115: =IF(F115<>"",VLOOKUP(F115,Pricing!$A:$B,2,FALSE),"") -> ВентФасад-Моно-100/1190x1380/Ч/Е/К | H115: =IFERROR(IF($A$1,VLOOKUP(F115,'Pricing pick up'!$A:$CM,MATCH(Проектные!$G$3,'Pricing pick up'!$2:$2,0),0),VLOOKUP(F115,Pricing!$A:$CL,MATCH(Проектные!$G$3,Pricing!$2:$2,0),0)),"не возим") -> 9543.915446 | I115: =IFERROR(IF($B$1,VLOOKUP(CONCATENATE($E115,$G$3),Tariffs_!A:H,8,0),VLOOKUP(CONCATENATE($E115,$G$3),Tariffs_!A:G,6,0)),"-") -> 0 | J115: =IFERROR(IF($B$1,VLOOKUP(CONCATENATE($E115,$G$3),Tariffs_!A:I,9,0)*VLOOKUP($F115,ZMM_Plst!$B:$K,8,0)/VLOOKUP($F115,ZMM_Plst!$B:$K,10,0)*1.2,VLOOKUP(CONCATENATE($E115,$G$3),Tariffs_!A:G,7,0)*VLOOKUP($F115,ZMM_Plst!$B:$K,8,0)/VLOOKUP($F115,ZMM_Plst!$B:$K,10,0)*1.2),"-") -> 0 | K115: 7953.262872 | L115: =VLOOKUP($F115,ZMM_Plst!$B:$AA,26,0) -> B | M115: 4.927 | N115: 0.493 | O115: =VLOOKUP($F115,ZMM_Plst!$B:$AC,17,0) -> 3 | P115: =VLOOKUP($F115,ZMM_Plst!$B:$AC,9,0) -> 4.927 | Q115: =VLOOKUP($F115,ZMM_Plst!$B:$AC,10,0) -> 0.493 | R115: =VLOOKUP($F115,ZMM_Plst!$B:$AC,8,0) -> 0.605 | S115: =VLOOKUP($F115,ZMM_Plst!$B:$AC,16,0) -> 1 | T115: 74.96859504 | U115: =VLOOKUP($F115,ZMM_Plst!$B:$AC,6,0) -> 1.38 | V115: =VLOOKUP($F115,ZMM_Plst!$B:$AC,7,0) -> 1.19 | W115: =VLOOKUP($F115,ZMM_Plst!$B:$AC,5,0) -> 0.1
A116: =IF($F116<>"",VLOOKUP(F116,Pricing!$A:$F,6,FALSE),"") -> GW | B116: =IF($F116<>"",VLOOKUP(F116,Pricing!$A:$F,5,FALSE),"") -> HW | C116: =IF($F116<>"",VLOOKUP(Проектные!$F116,Pricing!$A:$F,3,FALSE),"") -> VF Mono | D116: =VLOOKUP(C116,конструктив!A:B,2,0) -> НВФ | E116: =IF($F116<>"",VLOOKUP(F116,Pricing!$A:$F,4,FALSE),"") -> Yegorevsk | F116: =IF(Pricing!A109<>"",Pricing!A109,"") -> 67535 | G116: =IF(F116<>"",VLOOKUP(F116,Pricing!$A:$B,2,FALSE),"") -> ВентФасад-Моно-120/1190x1380/Е/К | H116: =IFERROR(IF($A$1,VLOOKUP(F116,'Pricing pick up'!$A:$CM,MATCH(Проектные!$G$3,'Pricing pick up'!$2:$2,0),0),VLOOKUP(F116,Pricing!$A:$CL,MATCH(Проектные!$G$3,Pricing!$2:$2,0),0)),"не возим") -> 8952.32725 | I116: =IFERROR(IF($B$1,VLOOKUP(CONCATENATE($E116,$G$3),Tariffs_!A:H,8,0),VLOOKUP(CONCATENATE($E116,$G$3),Tariffs_!A:G,6,0)),"-") -> 0 | J116: =IFERROR(IF($B$1,VLOOKUP(CONCATENATE($E116,$G$3),Tariffs_!A:I,9,0)*VLOOKUP($F116,ZMM_Plst!$B:$K,8,0)/VLOOKUP($F116,ZMM_Plst!$B:$K,10,0)*1.2,VLOOKUP(CONCATENATE($E116,$G$3),Tariffs_!A:G,7,0)*VLOOKUP($F116,ZMM_Plst!$B:$K,8,0)/VLOOKUP($F116,ZMM_Plst!$B:$K,10,0)*1.2),"-") -> 0 | K116: 7460.272709 | L116: =VLOOKUP($F116,ZMM_Plst!$B:$AA,26,0) -> B | M116: 4.927 | N116: 0.591 | O116: =VLOOKUP($F116,ZMM_Plst!$B:$AC,17,0) -> 3 | P116: =VLOOKUP($F116,ZMM_Plst!$B:$AC,9,0) -> 4.927 | Q116: =VLOOKUP($F116,ZMM_Plst!$B:$AC,10,0) -> 0.591 | R116: =VLOOKUP($F116,ZMM_Plst!$B:$AC,8,0) -> 0.85 | S116: =VLOOKUP($F116,ZMM_Plst!$B:$AC,16,0) -> 1 | T116: 63.96705882 | U116: =VLOOKUP($F116,ZMM_Plst!$B:$AC,6,0) -> 1.38 | V116: =VLOOKUP($F116,ZMM_Plst!$B:$AC,7,0) -> 1.19 | W116: =VLOOKUP($F116,ZMM_Plst!$B:$AC,5,0) -> 0.12
A117: =IF($F117<>"",VLOOKUP(F117,Pricing!$A:$F,6,FALSE),"") -> GW | B117: =IF($F117<>"",VLOOKUP(F117,Pricing!$A:$F,5,FALSE),"") -> HW | C117: =IF($F117<>"",VLOOKUP(Проектные!$F117,Pricing!$A:$F,3,FALSE),"") -> VF Mono | D117: =VLOOKUP(C117,конструктив!A:B,2,0) -> НВФ | E117: =IF($F117<>"",VLOOKUP(F117,Pricing!$A:$F,4,FALSE),"") -> Yegorevsk | F117: =IF(Pricing!A110<>"",Pricing!A110,"") -> 67536 | G117: =IF(F117<>"",VLOOKUP(F117,Pricing!$A:$B,2,FALSE),"") -> ВентФасад-Моно-150/1190x1380/Е/К | H117: =IFERROR(IF($A$1,VLOOKUP(F117,'Pricing pick up'!$A:$CM,MATCH(Проектные!$G$3,'Pricing pick up'!$2:$2,0),0),VLOOKUP(F117,Pricing!$A:$CL,MATCH(Проектные!$G$3,Pricing!$2:$2,0),0)),"не возим") -> 8920.389729 | I117: =IFERROR(IF($B$1,VLOOKUP(CONCATENATE($E117,$G$3),Tariffs_!A:H,8,0),VLOOKUP(CONCATENATE($E117,$G$3),Tariffs_!A:G,6,0)),"-") -> 0 | J117: =IFERROR(IF($B$1,VLOOKUP(CONCATENATE($E117,$G$3),Tariffs_!A:I,9,0)*VLOOKUP($F117,ZMM_Plst!$B:$K,8,0)/VLOOKUP($F117,ZMM_Plst!$B:$K,10,0)*1.2,VLOOKUP(CONCATENATE($E117,$G$3),Tariffs_!A:G,7,0)*VLOOKUP($F117,ZMM_Plst!$B:$K,8,0)/VLOOKUP($F117,ZMM_Plst!$B:$K,10,0)*1.2),"-") -> 0 | K117: 7433.658107 | L117: =VLOOKUP($F117,ZMM_Plst!$B:$AA,26,0) -> B | M117: 3.28 | N117: 0.493 | O117: =VLOOKUP($F117,ZMM_Plst!$B:$AC,17,0) -> 2 | P117: =VLOOKUP($F117,ZMM_Plst!$B:$AC,9,0) -> 3.28 | Q117: =VLOOKUP($F117,ZMM_Plst!$B:$AC,10,0) -> 0.493 | R117: =VLOOKUP($F117,ZMM_Plst!$B:$AC,8,0) -> 0.568 | S117: =VLOOKUP($F117,ZMM_Plst!$B:$AC,16,0) -> 1 | T117: 79.85211268 | U117: =VLOOKUP($F117,ZMM_Plst!$B:$AC,6,0) -> 1.38 | V117: =VLOOKUP($F117,ZMM_Plst!$B:$AC,7,0) -> 1.19 | W117: =VLOOKUP($F117,ZMM_Plst!$B:$AC,5,0) -> 0.15
A118: =IF($F118<>"",VLOOKUP(F118,Pricing!$A:$F,6,FALSE),"") -> GW | B118: =IF($F118<>"",VLOOKUP(F118,Pricing!$A:$F,5,FALSE),"") -> HW | C118: =IF($F118<>"",VLOOKUP(Проектные!$F118,Pricing!$A:$F,3,FALSE),"") -> VF Mono | D118: =VLOOKUP(C118,конструктив!A:B,2,0) -> НВФ | E118: =IF($F118<>"",VLOOKUP(F118,Pricing!$A:$F,4,FALSE),"") -> Yegorevsk | F118: =IF(Pricing!A111<>"",Pricing!A111,"") -> 67537 | G118: =IF(F118<>"",VLOOKUP(F118,Pricing!$A:$B,2,FALSE),"") -> ВентФасад-Моно-130/1190x1380/Е/К | H118: =IFERROR(IF($A$1,VLOOKUP(F118,'Pricing pick up'!$A:$CM,MATCH(Проектные!$G$3,'Pricing pick up'!$2:$2,0),0),VLOOKUP(F118,Pricing!$A:$CL,MATCH(Проектные!$G$3,Pricing!$2:$2,0),0)),"не возим") -> 8398.521761 | I118: =IFERROR(IF($B$1,VLOOKUP(CONCATENATE($E118,$G$3),Tariffs_!A:H,8,0),VLOOKUP(CONCATENATE($E118,$G$3),Tariffs_!A:G,6,0)),"-") -> 0 | J118: =IFERROR(IF($B$1,VLOOKUP(CONCATENATE($E118,$G$3),Tariffs_!A:I,9,0)*VLOOKUP($F118,ZMM_Plst!$B:$K,8,0)/VLOOKUP($F118,ZMM_Plst!$B:$K,10,0)*1.2,VLOOKUP(CONCATENATE($E118,$G$3),Tariffs_!A:G,7,0)*VLOOKUP($F118,ZMM_Plst!$B:$K,8,0)/VLOOKUP($F118,ZMM_Plst!$B:$K,10,0)*1.2),"-") -> 0 | K118: 6998.768134 | L118: =VLOOKUP($F118,ZMM_Plst!$B:$AA,26,0) -> B | M118: =P118/S118 -> 4.927 | N118: =Q118/S118 -> 0.64 | O118: =VLOOKUP($F118,ZMM_Plst!$B:$AC,17,0) -> 3 | P118: =VLOOKUP($F118,ZMM_Plst!$B:$AC,9,0) -> 4.927 | Q118: =VLOOKUP($F118,ZMM_Plst!$B:$AC,10,0) -> 0.64 | R118: =VLOOKUP($F118,ZMM_Plst!$B:$AC,8,0) -> 0.807 | S118: =VLOOKUP($F118,ZMM_Plst!$B:$AC,16,0) -> 1 | T118: =92/R118*Q118 -> 72.96158612 | U118: =VLOOKUP($F118,ZMM_Plst!$B:$AC,6,0) -> 1.38 | V118: =VLOOKUP($F118,ZMM_Plst!$B:$AC,7,0) -> 1.19 | W118: =VLOOKUP($F118,ZMM_Plst!$B:$AC,5,0) -> 0.13
A119: =IF($F119<>"",VLOOKUP(F119,Pricing!$A:$F,6,FALSE),"") -> GW | B119: =IF($F119<>"",VLOOKUP(F119,Pricing!$A:$F,5,FALSE),"") -> LW | C119: =IF($F119<>"",VLOOKUP(Проектные!$F119,Pricing!$A:$F,3,FALSE),"") -> VF Optima | D119: =VLOOKUP(C119,конструктив!A:B,2,0) -> НВФ | E119: =IF($F119<>"",VLOOKUP(F119,Pricing!$A:$F,4,FALSE),"") -> Yegorevsk | F119: =IF(Pricing!A112<>"",Pricing!A112,"") -> 67450 | G119: =IF(F119<>"",VLOOKUP(F119,Pricing!$A:$B,2,FALSE),"") -> ВентФасад-Оптима-50/610x1170/E/К | H119: =IFERROR(IF($A$1,VLOOKUP(F119,'Pricing pick up'!$A:$CM,MATCH(Проектные!$G$3,'Pricing pick up'!$2:$2,0),0),VLOOKUP(F119,Pricing!$A:$CL,MATCH(Проектные!$G$3,Pricing!$2:$2,0),0)),"не возим") -> 3136.29611 | I119: =IFERROR(IF($B$1,VLOOKUP(CONCATENATE($E119,$G$3),Tariffs_!A:H,8,0),VLOOKUP(CONCATENATE($E119,$G$3),Tariffs_!A:G,6,0)),"-") -> 0 | J119: =IFERROR(IF($B$1,VLOOKUP(CONCATENATE($E119,$G$3),Tariffs_!A:I,9,0)*VLOOKUP($F119,ZMM_Plst!$B:$K,8,0)/VLOOKUP($F119,ZMM_Plst!$B:$K,10,0)*1.2,VLOOKUP(CONCATENATE($E119,$G$3),Tariffs_!A:G,7,0)*VLOOKUP($F119,ZMM_Plst!$B:$K,8,0)/VLOOKUP($F119,ZMM_Plst!$B:$K,10,0)*1.2),"-") -> 0 | K119: 2613.580092 | L119: =VLOOKUP($F119,ZMM_Plst!$B:$AA,26,0) -> A | M119: 8.55 | N119: 0.4282 | O119: =VLOOKUP($F119,ZMM_Plst!$B:$AC,17,0) -> 12 | P119: =VLOOKUP($F119,ZMM_Plst!$B:$AC,9,0) -> 171 | Q119: =VLOOKUP($F119,ZMM_Plst!$B:$AC,10,0) -> 8.564 | R119: =VLOOKUP($F119,ZMM_Plst!$B:$AC,8,0) -> 4.18 | S119: =VLOOKUP($F119,ZMM_Plst!$B:$AC,16,0) -> 20 | T119: 188.4899522 | U119: =VLOOKUP($F119,ZMM_Plst!$B:$AC,6,0) -> 1.17 | V119: =VLOOKUP($F119,ZMM_Plst!$B:$AC,7,0) -> 0.61 | W119: =VLOOKUP($F119,ZMM_Plst!$B:$AC,5,0) -> 0.05
A120: =IF($F120<>"",VLOOKUP(F120,Pricing!$A:$F,6,FALSE),"") -> GW | B120: =IF($F120<>"",VLOOKUP(F120,Pricing!$A:$F,5,FALSE),"") -> LW | C120: =IF($F120<>"",VLOOKUP(Проектные!$F120,Pricing!$A:$F,3,FALSE),"") -> VF Optima | D120: =VLOOKUP(C120,конструктив!A:B,2,0) -> НВФ | E120: =IF($F120<>"",VLOOKUP(F120,Pricing!$A:$F,4,FALSE),"") -> Yegorevsk | F120: =IF(Pricing!A113<>"",Pricing!A113,"") -> 67451 | G120: =IF(F120<>"",VLOOKUP(F120,Pricing!$A:$B,2,FALSE),"") -> ВентФасад-Оптима-50/1200x1600/Ч/Е/К | H120: =IFERROR(IF($A$1,VLOOKUP(F120,'Pricing pick up'!$A:$CM,MATCH(Проектные!$G$3,'Pricing pick up'!$2:$2,0),0),VLOOKUP(F120,Pricing!$A:$CL,MATCH(Проектные!$G$3,Pricing!$2:$2,0),0)),"не возим") -> 3136.29611 | I120: =IFERROR(IF($B$1,VLOOKUP(CONCATENATE($E120,$G$3),Tariffs_!A:H,8,0),VLOOKUP(CONCATENATE($E120,$G$3),Tariffs_!A:G,6,0)),"-") -> 0 | J120: =IFERROR(IF($B$1,VLOOKUP(CONCATENATE($E120,$G$3),Tariffs_!A:I,9,0)*VLOOKUP($F120,ZMM_Plst!$B:$K,8,0)/VLOOKUP($F120,ZMM_Plst!$B:$K,10,0)*1.2,VLOOKUP(CONCATENATE($E120,$G$3),Tariffs_!A:G,7,0)*VLOOKUP($F120,ZMM_Plst!$B:$K,8,0)/VLOOKUP($F120,ZMM_Plst!$B:$K,10,0)*1.2),"-") -> 0 | K120: 2613.580092 | L120: =VLOOKUP($F120,ZMM_Plst!$B:$AA,26,0) -> B | M120: 11.52 | N120: 0.576 | O120: =VLOOKUP($F120,ZMM_Plst!$B:$AC,17,0) -> 6 | P120: =VLOOKUP($F120,ZMM_Plst!$B:$AC,9,0) -> 11.52 | Q120: =VLOOKUP($F120,ZMM_Plst!$B:$AC,10,0) -> 0.576 | R120: =VLOOKUP($F120,ZMM_Plst!$B:$AC,8,0) -> 0.719 | S120: =VLOOKUP($F120,ZMM_Plst!$B:$AC,16,0) -> 1 | T120: 73.70236439 | U120: =VLOOKUP($F120,ZMM_Plst!$B:$AC,6,0) -> 1.6 | V120: =VLOOKUP($F120,ZMM_Plst!$B:$AC,7,0) -> 1.2 | W120: =VLOOKUP($F120,ZMM_Plst!$B:$AC,5,0) -> 0.05
A121: =IF($F121<>"",VLOOKUP(F121,Pricing!$A:$F,6,FALSE),"") -> GW | B121: =IF($F121<>"",VLOOKUP(F121,Pricing!$A:$F,5,FALSE),"") -> LW | C121: =IF($F121<>"",VLOOKUP(Проектные!$F121,Pricing!$A:$F,3,FALSE),"") -> VF Optima | D121: =VLOOKUP(C121,конструктив!A:B,2,0) -> НВФ | E121: =IF($F121<>"",VLOOKUP(F121,Pricing!$A:$F,4,FALSE),"") -> Yegorevsk | F121: =IF(Pricing!A114<>"",Pricing!A114,"") -> 67452 | G121: =IF(F121<>"",VLOOKUP(F121,Pricing!$A:$B,2,FALSE),"") -> ВентФасад-Оптима-55/610x1170/E/К | H121: =IFERROR(IF($A$1,VLOOKUP(F121,'Pricing pick up'!$A:$CM,MATCH(Проектные!$G$3,'Pricing pick up'!$2:$2,0),0),VLOOKUP(F121,Pricing!$A:$CL,MATCH(Проектные!$G$3,Pricing!$2:$2,0),0)),"не возим") -> 3136.29611 | I121: =IFERROR(IF($B$1,VLOOKUP(CONCATENATE($E121,$G$3),Tariffs_!A:H,8,0),VLOOKUP(CONCATENATE($E121,$G$3),Tariffs_!A:G,6,0)),"-") -> 0 | J121: =IFERROR(IF($B$1,VLOOKUP(CONCATENATE($E121,$G$3),Tariffs_!A:I,9,0)*VLOOKUP($F121,ZMM_Plst!$B:$K,8,0)/VLOOKUP($F121,ZMM_Plst!$B:$K,10,0)*1.2,VLOOKUP(CONCATENATE($E121,$G$3),Tariffs_!A:G,7,0)*VLOOKUP($F121,ZMM_Plst!$B:$K,8,0)/VLOOKUP($F121,ZMM_Plst!$B:$K,10,0)*1.2),"-") -> 0 | K121: 2613.580092 | L121: =VLOOKUP($F121,ZMM_Plst!$B:$AA,26,0) -> B | M121: 8.5645 | N121: 0.47105 | O121: =VLOOKUP($F121,ZMM_Plst!$B:$AC,17,0) -> 12 | P121: =VLOOKUP($F121,ZMM_Plst!$B:$AC,9,0) -> 171.29 | Q121: =VLOOKUP($F121,ZMM_Plst!$B:$AC,10,0) -> 9.421 | R121: =VLOOKUP($F121,ZMM_Plst!$B:$AC,8,0) -> 4.6 | S121: =VLOOKUP($F121,ZMM_Plst!$B:$AC,16,0) -> 20 | T121: 188.42 | U121: =VLOOKUP($F121,ZMM_Plst!$B:$AC,6,0) -> 1.17 | V121: =VLOOKUP($F121,ZMM_Plst!$B:$AC,7,0) -> 0.61 | W121: =VLOOKUP($F121,ZMM_Plst!$B:$AC,5,0) -> 0.055
A122: =IF($F122<>"",VLOOKUP(F122,Pricing!$A:$F,6,FALSE),"") -> GW | B122: =IF($F122<>"",VLOOKUP(F122,Pricing!$A:$F,5,FALSE),"") -> LW | C122: =IF($F122<>"",VLOOKUP(Проектные!$F122,Pricing!$A:$F,3,FALSE),"") -> VF Optima | D122: =VLOOKUP(C122,конструктив!A:B,2,0) -> НВФ | E122: =IF($F122<>"",VLOOKUP(F122,Pricing!$A:$F,4,FALSE),"") -> Yegorevsk | F122: =IF(Pricing!A115<>"",Pricing!A115,"") -> 67455 | G122: =IF(F122<>"",VLOOKUP(F122,Pricing!$A:$B,2,FALSE),"") -> ВентФасад-Оптима-70/610x1170/E/К | H122: =IFERROR(IF($A$1,VLOOKUP(F122,'Pricing pick up'!$A:$CM,MATCH(Проектные!$G$3,'Pricing pick up'!$2:$2,0),0),VLOOKUP(F122,Pricing!$A:$CL,MATCH(Проектные!$G$3,Pricing!$2:$2,0),0)),"не возим") -> 3136.29611 | I122: =IFERROR(IF($B$1,VLOOKUP(CONCATENATE($E122,$G$3),Tariffs_!A:H,8,0),VLOOKUP(CONCATENATE($E122,$G$3),Tariffs_!A:G,6,0)),"-") -> 0 | J122: =IFERROR(IF($B$1,VLOOKUP(CONCATENATE($E122,$G$3),Tariffs_!A:I,9,0)*VLOOKUP($F122,ZMM_Plst!$B:$K,8,0)/VLOOKUP($F122,ZMM_Plst!$B:$K,10,0)*1.2,VLOOKUP(CONCATENATE($E122,$G$3),Tariffs_!A:G,7,0)*VLOOKUP($F122,ZMM_Plst!$B:$K,8,0)/VLOOKUP($F122,ZMM_Plst!$B:$K,10,0)*1.2),"-") -> 0 | K122: 2613.580092 | L122: =VLOOKUP($F122,ZMM_Plst!$B:$AA,26,0) -> B | M122: 5.705 | N122: 0.39965 | O122: =VLOOKUP($F122,ZMM_Plst!$B:$AC,17,0) -> 8 | P122: =VLOOKUP($F122,ZMM_Plst!$B:$AC,9,0) -> 114.1 | Q122: =VLOOKUP($F122,ZMM_Plst!$B:$AC,10,0) -> 7.993 | R122: =VLOOKUP($F122,ZMM_Plst!$B:$AC,8,0) -> 4.6 | S122: =VLOOKUP($F122,ZMM_Plst!$B:$AC,16,0) -> 20 | T122: 159.86 | U122: =VLOOKUP($F122,ZMM_Plst!$B:$AC,6,0) -> 1.17 | V122: =VLOOKUP($F122,ZMM_Plst!$B:$AC,7,0) -> 0.61 | W122: =VLOOKUP($F122,ZMM_Plst!$B:$AC,5,0) -> 0.07
A123: =IF($F123<>"",VLOOKUP(F123,Pricing!$A:$F,6,FALSE),"") -> GW | B123: =IF($F123<>"",VLOOKUP(F123,Pricing!$A:$F,5,FALSE),"") -> LW | C123: =IF($F123<>"",VLOOKUP(Проектные!$F123,Pricing!$A:$F,3,FALSE),"") -> VF Optima | D123: =VLOOKUP(C123,конструктив!A:B,2,0) -> НВФ | E123: =IF($F123<>"",VLOOKUP(F123,Pricing!$A:$F,4,FALSE),"") -> Yegorevsk | F123: =IF(Pricing!A116<>"",Pricing!A116,"") -> 67457 | G123: =IF(F123<>"",VLOOKUP(F123,Pricing!$A:$B,2,FALSE),"") -> ВентФасад-Оптима-80/610x1170/E/К | H123: =IFERROR(IF($A$1,VLOOKUP(F123,'Pricing pick up'!$A:$CM,MATCH(Проектные!$G$3,'Pricing pick up'!$2:$2,0),0),VLOOKUP(F123,Pricing!$A:$CL,MATCH(Проектные!$G$3,Pricing!$2:$2,0),0)),"не возим") -> 3136.29611 | I123: =IFERROR(IF($B$1,VLOOKUP(CONCATENATE($E123,$G$3),Tariffs_!A:H,8,0),VLOOKUP(CONCATENATE($E123,$G$3),Tariffs_!A:G,6,0)),"-") -> 0 | J123: =IFERROR(IF($B$1,VLOOKUP(CONCATENATE($E123,$G$3),Tariffs_!A:I,9,0)*VLOOKUP($F123,ZMM_Plst!$B:$K,8,0)/VLOOKUP($F123,ZMM_Plst!$B:$K,10,0)*1.2,VLOOKUP(CONCATENATE($E123,$G$3),Tariffs_!A:G,7,0)*VLOOKUP($F123,ZMM_Plst!$B:$K,8,0)/VLOOKUP($F123,ZMM_Plst!$B:$K,10,0)*1.2),"-") -> 0 | K123: 2613.580092 | L123: =VLOOKUP($F123,ZMM_Plst!$B:$AA,26,0) -> B | M123: 4.996 | N123: 0.3995 | O123: =VLOOKUP($F123,ZMM_Plst!$B:$AC,17,0) -> 7 | P123: =VLOOKUP($F123,ZMM_Plst!$B:$AC,9,0) -> 99.92 | Q123: =VLOOKUP($F123,ZMM_Plst!$B:$AC,10,0) -> 7.99 | R123: =VLOOKUP($F123,ZMM_Plst!$B:$AC,8,0) -> 4.6 | S123: =VLOOKUP($F123,ZMM_Plst!$B:$AC,16,0) -> 20 | T123: 159.8 | U123: =VLOOKUP($F123,ZMM_Plst!$B:$AC,6,0) -> 1.17 | V123: =VLOOKUP($F123,ZMM_Plst!$B:$AC,7,0) -> 0.61 | W123: =VLOOKUP($F123,ZMM_Plst!$B:$AC,5,0) -> 0.08
A124: =IF($F124<>"",VLOOKUP(F124,Pricing!$A:$F,6,FALSE),"") -> GW | B124: =IF($F124<>"",VLOOKUP(F124,Pricing!$A:$F,5,FALSE),"") -> LW | C124: =IF($F124<>"",VLOOKUP(Проектные!$F124,Pricing!$A:$F,3,FALSE),"") -> VF Optima | D124: =VLOOKUP(C124,конструктив!A:B,2,0) -> НВФ | E124: =IF($F124<>"",VLOOKUP(F124,Pricing!$A:$F,4,FALSE),"") -> Yegorevsk | F124: =IF(Pricing!A117<>"",Pricing!A117,"") -> 67460 | G124: =IF(F124<>"",VLOOKUP(F124,Pricing!$A:$B,2,FALSE),"") -> ВентФасад-Оптима-100/610x1170/E/К | H124: =IFERROR(IF($A$1,VLOOKUP(F124,'Pricing pick up'!$A:$CM,MATCH(Проектные!$G$3,'Pricing pick up'!$2:$2,0),0),VLOOKUP(F124,Pricing!$A:$CL,MATCH(Проектные!$G$3,Pricing!$2:$2,0),0)),"не возим") -> 3136.29611 | I124: =IFERROR(IF($B$1,VLOOKUP(CONCATENATE($E124,$G$3),Tariffs_!A:H,8,0),VLOOKUP(CONCATENATE($E124,$G$3),Tariffs_!A:G,6,0)),"-") -> 0 | J124: =IFERROR(IF($B$1,VLOOKUP(CONCATENATE($E124,$G$3),Tariffs_!A:I,9,0)*VLOOKUP($F124,ZMM_Plst!$B:$K,8,0)/VLOOKUP($F124,ZMM_Plst!$B:$K,10,0)*1.2,VLOOKUP(CONCATENATE($E124,$G$3),Tariffs_!A:G,7,0)*VLOOKUP($F124,ZMM_Plst!$B:$K,8,0)/VLOOKUP($F124,ZMM_Plst!$B:$K,10,0)*1.2),"-") -> 0 | K124: 2613.580092 | L124: =VLOOKUP($F124,ZMM_Plst!$B:$AA,26,0) -> B | M124: 4.282 | N124: 0.4282 | O124: =VLOOKUP($F124,ZMM_Plst!$B:$AC,17,0) -> 6 | P124: =VLOOKUP($F124,ZMM_Plst!$B:$AC,9,0) -> 85.64 | Q124: =VLOOKUP($F124,ZMM_Plst!$B:$AC,10,0) -> 8.564 | R124: =VLOOKUP($F124,ZMM_Plst!$B:$AC,8,0) -> 4.6 | S124: =VLOOKUP($F124,ZMM_Plst!$B:$AC,16,0) -> 20 | T124: 171.28 | U124: =VLOOKUP($F124,ZMM_Plst!$B:$AC,6,0) -> 1.17 | V124: =VLOOKUP($F124,ZMM_Plst!$B:$AC,7,0) -> 0.61 | W124: =VLOOKUP($F124,ZMM_Plst!$B:$AC,5,0) -> 0.1
A125: =IF($F125<>"",VLOOKUP(F125,Pricing!$A:$F,6,FALSE),"") -> GW | B125: =IF($F125<>"",VLOOKUP(F125,Pricing!$A:$F,5,FALSE),"") -> LW | C125: =IF($F125<>"",VLOOKUP(Проектные!$F125,Pricing!$A:$F,3,FALSE),"") -> VF Optima | D125: =VLOOKUP(C125,конструктив!A:B,2,0) -> НВФ | E125: =IF($F125<>"",VLOOKUP(F125,Pricing!$A:$F,4,FALSE),"") -> Yegorevsk | F125: =IF(Pricing!A118<>"",Pricing!A118,"") -> 67461 | G125: =IF(F125<>"",VLOOKUP(F125,Pricing!$A:$B,2,FALSE),"") -> ВентФасад-Оптима-100/1200x1600/Ч/E/К | H125: =IFERROR(IF($A$1,VLOOKUP(F125,'Pricing pick up'!$A:$CM,MATCH(Проектные!$G$3,'Pricing pick up'!$2:$2,0),0),VLOOKUP(F125,Pricing!$A:$CL,MATCH(Проектные!$G$3,Pricing!$2:$2,0),0)),"не возим") -> 3136.29611 | I125: =IFERROR(IF($B$1,VLOOKUP(CONCATENATE($E125,$G$3),Tariffs_!A:H,8,0),VLOOKUP(CONCATENATE($E125,$G$3),Tariffs_!A:G,6,0)),"-") -> 0 | J125: =IFERROR(IF($B$1,VLOOKUP(CONCATENATE($E125,$G$3),Tariffs_!A:I,9,0)*VLOOKUP($F125,ZMM_Plst!$B:$K,8,0)/VLOOKUP($F125,ZMM_Plst!$B:$K,10,0)*1.2,VLOOKUP(CONCATENATE($E125,$G$3),Tariffs_!A:G,7,0)*VLOOKUP($F125,ZMM_Plst!$B:$K,8,0)/VLOOKUP($F125,ZMM_Plst!$B:$K,10,0)*1.2),"-") -> 0 | K125: 2613.580092 | L125: =VLOOKUP($F125,ZMM_Plst!$B:$AA,26,0) -> B | M125: 5.76 | N125: 0.576 | O125: =VLOOKUP($F125,ZMM_Plst!$B:$AC,17,0) -> 3 | P125: =VLOOKUP($F125,ZMM_Plst!$B:$AC,9,0) -> 5.76 | Q125: =VLOOKUP($F125,ZMM_Plst!$B:$AC,10,0) -> 0.576 | R125: =VLOOKUP($F125,ZMM_Plst!$B:$AC,8,0) -> 0.719 | S125: =VLOOKUP($F125,ZMM_Plst!$B:$AC,16,0) -> 1 | T125: 73.70236439 | U125: =VLOOKUP($F125,ZMM_Plst!$B:$AC,6,0) -> 1.6 | V125: =VLOOKUP($F125,ZMM_Plst!$B:$AC,7,0) -> 1.2 | W125: =VLOOKUP($F125,ZMM_Plst!$B:$AC,5,0) -> 0.1
A126: =IF($F126<>"",VLOOKUP(F126,Pricing!$A:$F,6,FALSE),"") -> GW | B126: =IF($F126<>"",VLOOKUP(F126,Pricing!$A:$F,5,FALSE),"") -> LW | C126: =IF($F126<>"",VLOOKUP(Проектные!$F126,Pricing!$A:$F,3,FALSE),"") -> VF Optima | D126: =VLOOKUP(C126,конструктив!A:B,2,0) -> НВФ | E126: =IF($F126<>"",VLOOKUP(F126,Pricing!$A:$F,4,FALSE),"") -> Yegorevsk | F126: =IF(Pricing!A119<>"",Pricing!A119,"") -> 67463 | G126: =IF(F126<>"",VLOOKUP(F126,Pricing!$A:$B,2,FALSE),"") -> ВентФасад-Оптима-110/610x1170/E/К | H126: =IFERROR(IF($A$1,VLOOKUP(F126,'Pricing pick up'!$A:$CM,MATCH(Проектные!$G$3,'Pricing pick up'!$2:$2,0),0),VLOOKUP(F126,Pricing!$A:$CL,MATCH(Проектные!$G$3,Pricing!$2:$2,0),0)),"не возим") -> 3136.29611 | I126: =IFERROR(IF($B$1,VLOOKUP(CONCATENATE($E126,$G$3),Tariffs_!A:H,8,0),VLOOKUP(CONCATENATE($E126,$G$3),Tariffs_!A:G,6,0)),"-") -> 0 | J126: =IFERROR(IF($B$1,VLOOKUP(CONCATENATE($E126,$G$3),Tariffs_!A:I,9,0)*VLOOKUP($F126,ZMM_Plst!$B:$K,8,0)/VLOOKUP($F126,ZMM_Plst!$B:$K,10,0)*1.2,VLOOKUP(CONCATENATE($E126,$G$3),Tariffs_!A:G,7,0)*VLOOKUP($F126,ZMM_Plst!$B:$K,8,0)/VLOOKUP($F126,ZMM_Plst!$B:$K,10,0)*1.2),"-") -> 0 | K126: 2613.580092 | L126: =VLOOKUP($F126,ZMM_Plst!$B:$AA,26,0) -> B | M126: 3.5685 | N126: 0.39255 | O126: =VLOOKUP($F126,ZMM_Plst!$B:$AC,17,0) -> 5 | P126: =VLOOKUP($F126,ZMM_Plst!$B:$AC,9,0) -> 71.37 | Q126: =VLOOKUP($F126,ZMM_Plst!$B:$AC,10,0) -> 7.851 | R126: =VLOOKUP($F126,ZMM_Plst!$B:$AC,8,0) -> 4.6 | S126: =VLOOKUP($F126,ZMM_Plst!$B:$AC,16,0) -> 20 | T126: 157.02 | U126: =VLOOKUP($F126,ZMM_Plst!$B:$AC,6,0) -> 1.17 | V126: =VLOOKUP($F126,ZMM_Plst!$B:$AC,7,0) -> 0.61 | W126: =VLOOKUP($F126,ZMM_Plst!$B:$AC,5,0) -> 0.11
A127: =IF($F127<>"",VLOOKUP(F127,Pricing!$A:$F,6,FALSE),"") -> GW | B127: =IF($F127<>"",VLOOKUP(F127,Pricing!$A:$F,5,FALSE),"") -> HW | C127: =IF($F127<>"",VLOOKUP(Проектные!$F127,Pricing!$A:$F,3,FALSE),"") -> VF Top | D127: =VLOOKUP(C127,конструктив!A:B,2,0) -> НВФ | E127: =IF($F127<>"",VLOOKUP(F127,Pricing!$A:$F,4,FALSE),"") -> Yegorevsk | F127: =IF(Pricing!A120<>"",Pricing!A120,"") -> 67502 | G127: =IF(F127<>"",VLOOKUP(F127,Pricing!$A:$B,2,FALSE),"") -> ВентФасад-Верх-30/1190x1380/Е/К | H127: =IFERROR(IF($A$1,VLOOKUP(F127,'Pricing pick up'!$A:$CM,MATCH(Проектные!$G$3,'Pricing pick up'!$2:$2,0),0),VLOOKUP(F127,Pricing!$A:$CL,MATCH(Проектные!$G$3,Pricing!$2:$2,0),0)),"не возим") -> 12664.16829 | I127: =IFERROR(IF($B$1,VLOOKUP(CONCATENATE($E127,$G$3),Tariffs_!A:H,8,0),VLOOKUP(CONCATENATE($E127,$G$3),Tariffs_!A:G,6,0)),"-") -> 0 | J127: =IFERROR(IF($B$1,VLOOKUP(CONCATENATE($E127,$G$3),Tariffs_!A:I,9,0)*VLOOKUP($F127,ZMM_Plst!$B:$K,8,0)/VLOOKUP($F127,ZMM_Plst!$B:$K,10,0)*1.2,VLOOKUP(CONCATENATE($E127,$G$3),Tariffs_!A:G,7,0)*VLOOKUP($F127,ZMM_Plst!$B:$K,8,0)/VLOOKUP($F127,ZMM_Plst!$B:$K,10,0)*1.2),"-") -> 0 | K127: 10553.47358 | L127: =VLOOKUP($F127,ZMM_Plst!$B:$AA,26,0) -> A | M127: 13.14 | N127: 0.394 | O127: =VLOOKUP($F127,ZMM_Plst!$B:$AC,17,0) -> 8 | P127: =VLOOKUP($F127,ZMM_Plst!$B:$AC,9,0) -> 13.14 | Q127: =VLOOKUP($F127,ZMM_Plst!$B:$AC,10,0) -> 0.394 | R127: =VLOOKUP($F127,ZMM_Plst!$B:$AC,8,0) -> 0.487 | S127: =VLOOKUP($F127,ZMM_Plst!$B:$AC,16,0) -> 1 | T127: 74.4312115 | U127: =VLOOKUP($F127,ZMM_Plst!$B:$AC,6,0) -> 1.38 | V127: =VLOOKUP($F127,ZMM_Plst!$B:$AC,7,0) -> 1.19 | W127: =VLOOKUP($F127,ZMM_Plst!$B:$AC,5,0) -> 0.03
A128: =IF($F128<>"",VLOOKUP(F128,Pricing!$A:$F,6,FALSE),"") -> GW | B128: =IF($F128<>"",VLOOKUP(F128,Pricing!$A:$F,5,FALSE),"") -> HW | C128: =IF($F128<>"",VLOOKUP(Проектные!$F128,Pricing!$A:$F,3,FALSE),"") -> VF Top | D128: =VLOOKUP(C128,конструктив!A:B,2,0) -> НВФ | E128: =IF($F128<>"",VLOOKUP(F128,Pricing!$A:$F,4,FALSE),"") -> Yegorevsk | F128: =IF(Pricing!A121<>"",Pricing!A121,"") -> 67504 | G128: =IF(F128<>"",VLOOKUP(F128,Pricing!$A:$B,2,FALSE),"") -> ВентФасад-Верх-30/1190x1380/Ч/Е/К | H128: =IFERROR(IF($A$1,VLOOKUP(F128,'Pricing pick up'!$A:$CM,MATCH(Проектные!$G$3,'Pricing pick up'!$2:$2,0),0),VLOOKUP(F128,Pricing!$A:$CL,MATCH(Проектные!$G$3,Pricing!$2:$2,0),0)),"не возим") -> 14880.24038 | I128: =IFERROR(IF($B$1,VLOOKUP(CONCATENATE($E128,$G$3),Tariffs_!A:H,8,0),VLOOKUP(CONCATENATE($E128,$G$3),Tariffs_!A:G,6,0)),"-") -> 0 | J128: =IFERROR(IF($B$1,VLOOKUP(CONCATENATE($E128,$G$3),Tariffs_!A:I,9,0)*VLOOKUP($F128,ZMM_Plst!$B:$K,8,0)/VLOOKUP($F128,ZMM_Plst!$B:$K,10,0)*1.2,VLOOKUP(CONCATENATE($E128,$G$3),Tariffs_!A:G,7,0)*VLOOKUP($F128,ZMM_Plst!$B:$K,8,0)/VLOOKUP($F128,ZMM_Plst!$B:$K,10,0)*1.2),"-") -> 0 | K128: 12400.20032 | L128: =VLOOKUP($F128,ZMM_Plst!$B:$AA,26,0) -> A | M128: 13.14 | N128: 0.394 | O128: =VLOOKUP($F128,ZMM_Plst!$B:$AC,17,0) -> 8 | P128: =VLOOKUP($F128,ZMM_Plst!$B:$AC,9,0) -> 13.14 | Q128: =VLOOKUP($F128,ZMM_Plst!$B:$AC,10,0) -> 0.394 | R128: =VLOOKUP($F128,ZMM_Plst!$B:$AC,8,0) -> 0.487 | S128: =VLOOKUP($F128,ZMM_Plst!$B:$AC,16,0) -> 1 | T128: 74.4312115 | U128: =VLOOKUP($F128,ZMM_Plst!$B:$AC,6,0) -> 1.38 | V128: =VLOOKUP($F128,ZMM_Plst!$B:$AC,7,0) -> 1.19 | W128: =VLOOKUP($F128,ZMM_Plst!$B:$AC,5,0) -> 0.03
A129: =IF($F129<>"",VLOOKUP(F129,Pricing!$A:$F,6,FALSE),"") -> SW | B129: =IF($F129<>"",VLOOKUP(F129,Pricing!$A:$F,5,FALSE),"") -> LW | C129: =IF($F129<>"",VLOOKUP(Проектные!$F129,Pricing!$A:$F,3,FALSE),"") -> Light | D129: =VLOOKUP(C129,конструктив!A:B,2,0) -> НВФ | E129: =IF($F129<>"",VLOOKUP(F129,Pricing!$A:$F,4,FALSE),"") -> Chelyabinsk | F129: =IF(Pricing!A122<>"",Pricing!A122,"") -> 53127 | G129: =IF(F129<>"",VLOOKUP(F129,Pricing!$A:$B,2,FALSE),"") -> ИЗОВЕР ЛАЙТ-50/600x1000 | H129: =IFERROR(IF($A$1,VLOOKUP(F129,'Pricing pick up'!$A:$CM,MATCH(Проектные!$G$3,'Pricing pick up'!$2:$2,0),0),VLOOKUP(F129,Pricing!$A:$CL,MATCH(Проектные!$G$3,Pricing!$2:$2,0),0)),"не возим") -> 2593.14823 | I129: =IFERROR(IF($B$1,VLOOKUP(CONCATENATE($E129,$G$3),Tariffs_!A:H,8,0),VLOOKUP(CONCATENATE($E129,$G$3),Tariffs_!A:G,6,0)),"-") -> 0 | J129: =IFERROR(IF($B$1,VLOOKUP(CONCATENATE($E129,$G$3),Tariffs_!A:I,9,0)*VLOOKUP($F129,ZMM_Plst!$B:$K,8,0)/VLOOKUP($F129,ZMM_Plst!$B:$K,10,0)*1.2,VLOOKUP(CONCATENATE($E129,$G$3),Tariffs_!A:G,7,0)*VLOOKUP($F129,ZMM_Plst!$B:$K,8,0)/VLOOKUP($F129,ZMM_Plst!$B:$K,10,0)*1.2),"-") -> 0 | K129: 2160.956858 | L129: =VLOOKUP($F129,ZMM_Plst!$B:$AA,26,0) -> B | M129: 4.8 | N129: 0.24 | O129: =VLOOKUP($F129,ZMM_Plst!$B:$AC,17,0) -> 8 | P129: =VLOOKUP($F129,ZMM_Plst!$B:$AC,9,0) -> 4.8 | Q129: =VLOOKUP($F129,ZMM_Plst!$B:$AC,10,0) -> 0.24 | R129: =VLOOKUP($F129,ZMM_Plst!$B:$AC,8,0) -> 0.266 | S129: =VLOOKUP($F129,ZMM_Plst!$B:$AC,16,0) -> 1 | T129: 83.0075188 | U129: =VLOOKUP($F129,ZMM_Plst!$B:$AC,6,0) -> 1 | V129: =VLOOKUP($F129,ZMM_Plst!$B:$AC,7,0) -> 0.6 | W129: =VLOOKUP($F129,ZMM_Plst!$B:$AC,5,0) -> 0.05
A130: =IF($F130<>"",VLOOKUP(F130,Pricing!$A:$F,6,FALSE),"") -> SW | B130: =IF($F130<>"",VLOOKUP(F130,Pricing!$A:$F,5,FALSE),"") -> LW | C130: =IF($F130<>"",VLOOKUP(Проектные!$F130,Pricing!$A:$F,3,FALSE),"") -> Light | D130: =VLOOKUP(C130,конструктив!A:B,2,0) -> НВФ | E130: =IF($F130<>"",VLOOKUP(F130,Pricing!$A:$F,4,FALSE),"") -> Chelyabinsk | F130: =IF(Pricing!A123<>"",Pricing!A123,"") -> 53132 | G130: =IF(F130<>"",VLOOKUP(F130,Pricing!$A:$B,2,FALSE),"") -> ИЗОВЕР ЛАЙТ-100/600x1000 | H130: =IFERROR(IF($A$1,VLOOKUP(F130,'Pricing pick up'!$A:$CM,MATCH(Проектные!$G$3,'Pricing pick up'!$2:$2,0),0),VLOOKUP(F130,Pricing!$A:$CL,MATCH(Проектные!$G$3,Pricing!$2:$2,0),0)),"не возим") -> 2593.14823 | I130: =IFERROR(IF($B$1,VLOOKUP(CONCATENATE($E130,$G$3),Tariffs_!A:H,8,0),VLOOKUP(CONCATENATE($E130,$G$3),Tariffs_!A:G,6,0)),"-") -> 0 | J130: =IFERROR(IF($B$1,VLOOKUP(CONCATENATE($E130,$G$3),Tariffs_!A:I,9,0)*VLOOKUP($F130,ZMM_Plst!$B:$K,8,0)/VLOOKUP($F130,ZMM_Plst!$B:$K,10,0)*1.2,VLOOKUP(CONCATENATE($E130,$G$3),Tariffs_!A:G,7,0)*VLOOKUP($F130,ZMM_Plst!$B:$K,8,0)/VLOOKUP($F130,ZMM_Plst!$B:$K,10,0)*1.2),"-") -> 0 | K130: 2160.956858 | L130: =VLOOKUP($F130,ZMM_Plst!$B:$AA,26,0) -> B | M130: 2.4 | N130: 0.24 | O130: =VLOOKUP($F130,ZMM_Plst!$B:$AC,17,0) -> 4 | P130: =VLOOKUP($F130,ZMM_Plst!$B:$AC,9,0) -> 2.4 | Q130: =VLOOKUP($F130,ZMM_Plst!$B:$AC,10,0) -> 0.24 | R130: =VLOOKUP($F130,ZMM_Plst!$B:$AC,8,0) -> 0.266 | S130: =VLOOKUP($F130,ZMM_Plst!$B:$AC,16,0) -> 1 | T130: 83.0075188 | U130: =VLOOKUP($F130,ZMM_Plst!$B:$AC,6,0) -> 1 | V130: =VLOOKUP($F130,ZMM_Plst!$B:$AC,7,0) -> 0.6 | W130: =VLOOKUP($F130,ZMM_Plst!$B:$AC,5,0) -> 0.1
A131: =IF($F131<>"",VLOOKUP(F131,Pricing!$A:$F,6,FALSE),"") -> SW | B131: =IF($F131<>"",VLOOKUP(F131,Pricing!$A:$F,5,FALSE),"") -> LW | C131: =IF($F131<>"",VLOOKUP(Проектные!$F131,Pricing!$A:$F,3,FALSE),"") -> Light | D131: =VLOOKUP(C131,конструктив!A:B,2,0) -> НВФ | E131: =IF($F131<>"",VLOOKUP(F131,Pricing!$A:$F,4,FALSE),"") -> Chelyabinsk | F131: =IF(Pricing!A124<>"",Pricing!A124,"") -> 53137 | G131: =IF(F131<>"",VLOOKUP(F131,Pricing!$A:$B,2,FALSE),"") -> ИЗОВЕР ЛАЙТ-150/600x1000 | H131: =IFERROR(IF($A$1,VLOOKUP(F131,'Pricing pick up'!$A:$CM,MATCH(Проектные!$G$3,'Pricing pick up'!$2:$2,0),0),VLOOKUP(F131,Pricing!$A:$CL,MATCH(Проектные!$G$3,Pricing!$2:$2,0),0)),"не возим") -> 2612.523615 | I131: =IFERROR(IF($B$1,VLOOKUP(CONCATENATE($E131,$G$3),Tariffs_!A:H,8,0),VLOOKUP(CONCATENATE($E131,$G$3),Tariffs_!A:G,6,0)),"-") -> 0 | J131: =IFERROR(IF($B$1,VLOOKUP(CONCATENATE($E131,$G$3),Tariffs_!A:I,9,0)*VLOOKUP($F131,ZMM_Plst!$B:$K,8,0)/VLOOKUP($F131,ZMM_Plst!$B:$K,10,0)*1.2,VLOOKUP(CONCATENATE($E131,$G$3),Tariffs_!A:G,7,0)*VLOOKUP($F131,ZMM_Plst!$B:$K,8,0)/VLOOKUP($F131,ZMM_Plst!$B:$K,10,0)*1.2),"-") -> 0 | K131: 2177.103013 | L131: =VLOOKUP($F131,ZMM_Plst!$B:$AA,26,0) -> B | M131: 1.8 | N131: 0.27 | O131: =VLOOKUP($F131,ZMM_Plst!$B:$AC,17,0) -> 3 | P131: =VLOOKUP($F131,ZMM_Plst!$B:$AC,9,0) -> 1.8 | Q131: =VLOOKUP($F131,ZMM_Plst!$B:$AC,10,0) -> 0.27 | R131: =VLOOKUP($F131,ZMM_Plst!$B:$AC,8,0) -> 0.31 | S131: =VLOOKUP($F131,ZMM_Plst!$B:$AC,16,0) -> 1 | T131: 80.12903226 | U131: =VLOOKUP($F131,ZMM_Plst!$B:$AC,6,0) -> 1 | V131: =VLOOKUP($F131,ZMM_Plst!$B:$AC,7,0) -> 0.6 | W131: =VLOOKUP($F131,ZMM_Plst!$B:$AC,5,0) -> 0.15
A132: =IF($F132<>"",VLOOKUP(F132,Pricing!$A:$F,6,FALSE),"") -> SW | B132: =IF($F132<>"",VLOOKUP(F132,Pricing!$A:$F,5,FALSE),"") -> LW | C132: =IF($F132<>"",VLOOKUP(Проектные!$F132,Pricing!$A:$F,3,FALSE),"") -> Optimal | D132: =VLOOKUP(C132,конструктив!A:B,2,0) -> НВФ | E132: =IF($F132<>"",VLOOKUP(F132,Pricing!$A:$F,4,FALSE),"") -> Chelyabinsk | F132: =IF(Pricing!A125<>"",Pricing!A125,"") -> 53052 | G132: =IF(F132<>"",VLOOKUP(F132,Pricing!$A:$B,2,FALSE),"") -> ИЗОВЕР ОПТИМАЛ-100/600х1000/УПК+ПАЛЛ | H132: =IFERROR(IF($A$1,VLOOKUP(F132,'Pricing pick up'!$A:$CM,MATCH(Проектные!$G$3,'Pricing pick up'!$2:$2,0),0),VLOOKUP(F132,Pricing!$A:$CL,MATCH(Проектные!$G$3,Pricing!$2:$2,0),0)),"не возим") -> 2683.006272 | I132: =IFERROR(IF($B$1,VLOOKUP(CONCATENATE($E132,$G$3),Tariffs_!A:H,8,0),VLOOKUP(CONCATENATE($E132,$G$3),Tariffs_!A:G,6,0)),"-") -> 0 | J132: =IFERROR(IF($B$1,VLOOKUP(CONCATENATE($E132,$G$3),Tariffs_!A:I,9,0)*VLOOKUP($F132,ZMM_Plst!$B:$K,8,0)/VLOOKUP($F132,ZMM_Plst!$B:$K,10,0)*1.2,VLOOKUP(CONCATENATE($E132,$G$3),Tariffs_!A:G,7,0)*VLOOKUP($F132,ZMM_Plst!$B:$K,8,0)/VLOOKUP($F132,ZMM_Plst!$B:$K,10,0)*1.2),"-") -> 0 | K132: 2235.83856 | L132: =VLOOKUP($F132,ZMM_Plst!$B:$AA,26,0) -> B | M132: 2.4 | N132: 0.24 | O132: =VLOOKUP($F132,ZMM_Plst!$B:$AC,17,0) -> 4 | P132: =VLOOKUP($F132,ZMM_Plst!$B:$AC,9,0) -> 57.6 | Q132: =VLOOKUP($F132,ZMM_Plst!$B:$AC,10,0) -> 5.76 | R132: =VLOOKUP($F132,ZMM_Plst!$B:$AC,8,0) -> 7.077 | S132: =VLOOKUP($F132,ZMM_Plst!$B:$AC,16,0) -> 24 | T132: 74.8791861 | U132: =VLOOKUP($F132,ZMM_Plst!$B:$AC,6,0) -> 1 | V132: =VLOOKUP($F132,ZMM_Plst!$B:$AC,7,0) -> 0.6 | W132: =VLOOKUP($F132,ZMM_Plst!$B:$AC,5,0) -> 0.1
A133: =IF($F133<>"",VLOOKUP(F133,Pricing!$A:$F,6,FALSE),"") -> SW | B133: =IF($F133<>"",VLOOKUP(F133,Pricing!$A:$F,5,FALSE),"") -> LW | C133: =IF($F133<>"",VLOOKUP(Проектные!$F133,Pricing!$A:$F,3,FALSE),"") -> Optimal | D133: =VLOOKUP(C133,конструктив!A:B,2,0) -> НВФ | E133: =IF($F133<>"",VLOOKUP(F133,Pricing!$A:$F,4,FALSE),"") -> Chelyabinsk | F133: =IF(Pricing!A126<>"",Pricing!A126,"") -> 53074 | G133: =IF(F133<>"",VLOOKUP(F133,Pricing!$A:$B,2,FALSE),"") -> ИЗОВЕР ОПТИМАЛ-170/600x1000 | H133: =IFERROR(IF($A$1,VLOOKUP(F133,'Pricing pick up'!$A:$CM,MATCH(Проектные!$G$3,'Pricing pick up'!$2:$2,0),0),VLOOKUP(F133,Pricing!$A:$CL,MATCH(Проектные!$G$3,Pricing!$2:$2,0),0)),"не возим") -> 2503.839683 | I133: =IFERROR(IF($B$1,VLOOKUP(CONCATENATE($E133,$G$3),Tariffs_!A:H,8,0),VLOOKUP(CONCATENATE($E133,$G$3),Tariffs_!A:G,6,0)),"-") -> 0 | J133: =IFERROR(IF($B$1,VLOOKUP(CONCATENATE($E133,$G$3),Tariffs_!A:I,9,0)*VLOOKUP($F133,ZMM_Plst!$B:$K,8,0)/VLOOKUP($F133,ZMM_Plst!$B:$K,10,0)*1.2,VLOOKUP(CONCATENATE($E133,$G$3),Tariffs_!A:G,7,0)*VLOOKUP($F133,ZMM_Plst!$B:$K,8,0)/VLOOKUP($F133,ZMM_Plst!$B:$K,10,0)*1.2),"-") -> 0 | K133: 2086.533069 | L133: =VLOOKUP($F133,ZMM_Plst!$B:$AA,26,0) -> B | M133: 1.2 | N133: 0.204 | O133: =VLOOKUP($F133,ZMM_Plst!$B:$AC,17,0) -> 2 | P133: =VLOOKUP($F133,ZMM_Plst!$B:$AC,9,0) -> 1.2 | Q133: =VLOOKUP($F133,ZMM_Plst!$B:$AC,10,0) -> 0.204 | R133: =VLOOKUP($F133,ZMM_Plst!$B:$AC,8,0) -> 0.247 | S133: =VLOOKUP($F133,ZMM_Plst!$B:$AC,16,0) -> 1 | T133: 75.98380567 | U133: =VLOOKUP($F133,ZMM_Plst!$B:$AC,6,0) -> 1 | V133: =VLOOKUP($F133,ZMM_Plst!$B:$AC,7,0) -> 0.6 | W133: =VLOOKUP($F133,ZMM_Plst!$B:$AC,5,0) -> 0.17
A134: =IF($F134<>"",VLOOKUP(F134,Pricing!$A:$F,6,FALSE),"") -> SW | B134: =IF($F134<>"",VLOOKUP(F134,Pricing!$A:$F,5,FALSE),"") -> LW | C134: =IF($F134<>"",VLOOKUP(Проектные!$F134,Pricing!$A:$F,3,FALSE),"") -> Optimal | D134: =VLOOKUP(C134,конструктив!A:B,2,0) -> НВФ | E134: =IF($F134<>"",VLOOKUP(F134,Pricing!$A:$F,4,FALSE),"") -> Chelyabinsk | F134: =IF(Pricing!A127<>"",Pricing!A127,"") -> 53075 | G134: =IF(F134<>"",VLOOKUP(F134,Pricing!$A:$B,2,FALSE),"") -> ИЗОВЕР ОПТИМАЛ-180/600x1000 | H134: =IFERROR(IF($A$1,VLOOKUP(F134,'Pricing pick up'!$A:$CM,MATCH(Проектные!$G$3,'Pricing pick up'!$2:$2,0),0),VLOOKUP(F134,Pricing!$A:$CL,MATCH(Проектные!$G$3,Pricing!$2:$2,0),0)),"не возим") -> 2446.79394 | I134: =IFERROR(IF($B$1,VLOOKUP(CONCATENATE($E134,$G$3),Tariffs_!A:H,8,0),VLOOKUP(CONCATENATE($E134,$G$3),Tariffs_!A:G,6,0)),"-") -> 0 | J134: =IFERROR(IF($B$1,VLOOKUP(CONCATENATE($E134,$G$3),Tariffs_!A:I,9,0)*VLOOKUP($F134,ZMM_Plst!$B:$K,8,0)/VLOOKUP($F134,ZMM_Plst!$B:$K,10,0)*1.2,VLOOKUP(CONCATENATE($E134,$G$3),Tariffs_!A:G,7,0)*VLOOKUP($F134,ZMM_Plst!$B:$K,8,0)/VLOOKUP($F134,ZMM_Plst!$B:$K,10,0)*1.2),"-") -> 0 | K134: 2038.99495 | L134: =VLOOKUP($F134,ZMM_Plst!$B:$AA,26,0) -> B | M134: 1.2 | N134: 0.216 | O134: =VLOOKUP($F134,ZMM_Plst!$B:$AC,17,0) -> 2 | P134: =VLOOKUP($F134,ZMM_Plst!$B:$AC,9,0) -> 1.2 | Q134: =VLOOKUP($F134,ZMM_Plst!$B:$AC,10,0) -> 0.216 | R134: =VLOOKUP($F134,ZMM_Plst!$B:$AC,8,0) -> 0.247 | S134: =VLOOKUP($F134,ZMM_Plst!$B:$AC,16,0) -> 1 | T134: 80.4534413 | U134: =VLOOKUP($F134,ZMM_Plst!$B:$AC,6,0) -> 1 | V134: =VLOOKUP($F134,ZMM_Plst!$B:$AC,7,0) -> 0.6 | W134: =VLOOKUP($F134,ZMM_Plst!$B:$AC,5,0) -> 0.18
A135: =IF($F135<>"",VLOOKUP(F135,Pricing!$A:$F,6,FALSE),"") -> SW | B135: =IF($F135<>"",VLOOKUP(F135,Pricing!$A:$F,5,FALSE),"") -> LW | C135: =IF($F135<>"",VLOOKUP(Проектные!$F135,Pricing!$A:$F,3,FALSE),"") -> Optimal | D135: =VLOOKUP(C135,конструктив!A:B,2,0) -> НВФ | E135: =IF($F135<>"",VLOOKUP(F135,Pricing!$A:$F,4,FALSE),"") -> Chelyabinsk | F135: =IF(Pricing!A128<>"",Pricing!A128,"") -> 53076 | G135: =IF(F135<>"",VLOOKUP(F135,Pricing!$A:$B,2,FALSE),"") -> ИЗОВЕР ОПТИМАЛ-190/600x1000 | H135: =IFERROR(IF($A$1,VLOOKUP(F135,'Pricing pick up'!$A:$CM,MATCH(Проектные!$G$3,'Pricing pick up'!$2:$2,0),0),VLOOKUP(F135,Pricing!$A:$CL,MATCH(Проектные!$G$3,Pricing!$2:$2,0),0)),"не возим") -> 2494.878439 | I135: =IFERROR(IF($B$1,VLOOKUP(CONCATENATE($E135,$G$3),Tariffs_!A:H,8,0),VLOOKUP(CONCATENATE($E135,$G$3),Tariffs_!A:G,6,0)),"-") -> 0 | J135: =IFERROR(IF($B$1,VLOOKUP(CONCATENATE($E135,$G$3),Tariffs_!A:I,9,0)*VLOOKUP($F135,ZMM_Plst!$B:$K,8,0)/VLOOKUP($F135,ZMM_Plst!$B:$K,10,0)*1.2,VLOOKUP(CONCATENATE($E135,$G$3),Tariffs_!A:G,7,0)*VLOOKUP($F135,ZMM_Plst!$B:$K,8,0)/VLOOKUP($F135,ZMM_Plst!$B:$K,10,0)*1.2),"-") -> 0 | K135: 2079.065365 | L135: =VLOOKUP($F135,ZMM_Plst!$B:$AA,26,0) -> B | M135: 1.2 | N135: 0.228 | O135: =VLOOKUP($F135,ZMM_Plst!$B:$AC,17,0) -> 2 | P135: =VLOOKUP($F135,ZMM_Plst!$B:$AC,9,0) -> 1.2 | Q135: =VLOOKUP($F135,ZMM_Plst!$B:$AC,10,0) -> 0.228 | R135: =VLOOKUP($F135,ZMM_Plst!$B:$AC,8,0) -> 0.277 | S135: =VLOOKUP($F135,ZMM_Plst!$B:$AC,16,0) -> 1 | T135: 75.72563177 | U135: =VLOOKUP($F135,ZMM_Plst!$B:$AC,6,0) -> 1 | V135: =VLOOKUP($F135,ZMM_Plst!$B:$AC,7,0) -> 0.6 | W135: =VLOOKUP($F135,ZMM_Plst!$B:$AC,5,0) -> 0.19
A136: =IF($F136<>"",VLOOKUP(F136,Pricing!$A:$F,6,FALSE),"") -> SW | B136: =IF($F136<>"",VLOOKUP(F136,Pricing!$A:$F,5,FALSE),"") -> LW | C136: =IF($F136<>"",VLOOKUP(Проектные!$F136,Pricing!$A:$F,3,FALSE),"") -> Optimal | D136: =VLOOKUP(C136,конструктив!A:B,2,0) -> НВФ | E136: =IF($F136<>"",VLOOKUP(F136,Pricing!$A:$F,4,FALSE),"") -> Chelyabinsk | F136: =IF(Pricing!A129<>"",Pricing!A129,"") -> 53077 | G136: =IF(F136<>"",VLOOKUP(F136,Pricing!$A:$B,2,FALSE),"") -> ИЗОВЕР ОПТИМАЛ-200/600x1000 | H136: =IFERROR(IF($A$1,VLOOKUP(F136,'Pricing pick up'!$A:$CM,MATCH(Проектные!$G$3,'Pricing pick up'!$2:$2,0),0),VLOOKUP(F136,Pricing!$A:$CL,MATCH(Проектные!$G$3,Pricing!$2:$2,0),0)),"не возим") -> 2409.549012 | I136: =IFERROR(IF($B$1,VLOOKUP(CONCATENATE($E136,$G$3),Tariffs_!A:H,8,0),VLOOKUP(CONCATENATE($E136,$G$3),Tariffs_!A:G,6,0)),"-") -> 0 | J136: =IFERROR(IF($B$1,VLOOKUP(CONCATENATE($E136,$G$3),Tariffs_!A:I,9,0)*VLOOKUP($F136,ZMM_Plst!$B:$K,8,0)/VLOOKUP($F136,ZMM_Plst!$B:$K,10,0)*1.2,VLOOKUP(CONCATENATE($E136,$G$3),Tariffs_!A:G,7,0)*VLOOKUP($F136,ZMM_Plst!$B:$K,8,0)/VLOOKUP($F136,ZMM_Plst!$B:$K,10,0)*1.2),"-") -> 0 | K136: 2007.95751 | L136: =VLOOKUP($F136,ZMM_Plst!$B:$AA,26,0) -> B | M136: 1.2 | N136: 0.24 | O136: =VLOOKUP($F136,ZMM_Plst!$B:$AC,17,0) -> 2 | P136: =VLOOKUP($F136,ZMM_Plst!$B:$AC,9,0) -> 1.2 | Q136: =VLOOKUP($F136,ZMM_Plst!$B:$AC,10,0) -> 0.24 | R136: =VLOOKUP($F136,ZMM_Plst!$B:$AC,8,0) -> 0.266 | S136: =VLOOKUP($F136,ZMM_Plst!$B:$AC,16,0) -> 1 | T136: 83.0075188 | U136: =VLOOKUP($F136,ZMM_Plst!$B:$AC,6,0) -> 1 | V136: =VLOOKUP($F136,ZMM_Plst!$B:$AC,7,0) -> 0.6 | W136: =VLOOKUP($F136,ZMM_Plst!$B:$AC,5,0) -> 0.2
A137: =IF($F137<>"",VLOOKUP(F137,Pricing!$A:$F,6,FALSE),"") -> SW | B137: =IF($F137<>"",VLOOKUP(F137,Pricing!$A:$F,5,FALSE),"") -> LW | C137: =IF($F137<>"",VLOOKUP(Проектные!$F137,Pricing!$A:$F,3,FALSE),"") -> Optimal | D137: =VLOOKUP(C137,конструктив!A:B,2,0) -> НВФ | E137: =IF($F137<>"",VLOOKUP(F137,Pricing!$A:$F,4,FALSE),"") -> Chelyabinsk | F137: =IF(Pricing!A130<>"",Pricing!A130,"") -> 53078 | G137: =IF(F137<>"",VLOOKUP(F137,Pricing!$A:$B,2,FALSE),"") -> ИЗОВЕР ОПТИМАЛ-50/600x1000 | H137: =IFERROR(IF($A$1,VLOOKUP(F137,'Pricing pick up'!$A:$CM,MATCH(Проектные!$G$3,'Pricing pick up'!$2:$2,0),0),VLOOKUP(F137,Pricing!$A:$CL,MATCH(Проектные!$G$3,Pricing!$2:$2,0),0)),"не возим") -> 2430.768395 | I137: =IFERROR(IF($B$1,VLOOKUP(CONCATENATE($E137,$G$3),Tariffs_!A:H,8,0),VLOOKUP(CONCATENATE($E137,$G$3),Tariffs_!A:G,6,0)),"-") -> 0 | J137: =IFERROR(IF($B$1,VLOOKUP(CONCATENATE($E137,$G$3),Tariffs_!A:I,9,0)*VLOOKUP($F137,ZMM_Plst!$B:$K,8,0)/VLOOKUP($F137,ZMM_Plst!$B:$K,10,0)*1.2,VLOOKUP(CONCATENATE($E137,$G$3),Tariffs_!A:G,7,0)*VLOOKUP($F137,ZMM_Plst!$B:$K,8,0)/VLOOKUP($F137,ZMM_Plst!$B:$K,10,0)*1.2),"-") -> 0 | K137: 2025.640329 | L137: =VLOOKUP($F137,ZMM_Plst!$B:$AA,26,0) -> A | M137: 4.8 | N137: 0.24 | O137: =VLOOKUP($F137,ZMM_Plst!$B:$AC,17,0) -> 8 | P137: =VLOOKUP($F137,ZMM_Plst!$B:$AC,9,0) -> 4.8 | Q137: =VLOOKUP($F137,ZMM_Plst!$B:$AC,10,0) -> 0.24 | R137: =VLOOKUP($F137,ZMM_Plst!$B:$AC,8,0) -> 0.266 | S137: =VLOOKUP($F137,ZMM_Plst!$B:$AC,16,0) -> 1 | T137: 83.0075188 | U137: =VLOOKUP($F137,ZMM_Plst!$B:$AC,6,0) -> 1 | V137: =VLOOKUP($F137,ZMM_Plst!$B:$AC,7,0) -> 0.6 | W137: =VLOOKUP($F137,ZMM_Plst!$B:$AC,5,0) -> 0.05
A138: =IF($F138<>"",VLOOKUP(F138,Pricing!$A:$F,6,FALSE),"") -> SW | B138: =IF($F138<>"",VLOOKUP(F138,Pricing!$A:$F,5,FALSE),"") -> LW | C138: =IF($F138<>"",VLOOKUP(Проектные!$F138,Pricing!$A:$F,3,FALSE),"") -> Optimal | D138: =VLOOKUP(C138,конструктив!A:B,2,0) -> НВФ | E138: =IF($F138<>"",VLOOKUP(F138,Pricing!$A:$F,4,FALSE),"") -> Chelyabinsk | F138: =IF(Pricing!A131<>"",Pricing!A131,"") -> 53079 | G138: =IF(F138<>"",VLOOKUP(F138,Pricing!$A:$B,2,FALSE),"") -> ИЗОВЕР ОПТИМАЛ-60/600x1000 | H138: =IFERROR(IF($A$1,VLOOKUP(F138,'Pricing pick up'!$A:$CM,MATCH(Проектные!$G$3,'Pricing pick up'!$2:$2,0),0),VLOOKUP(F138,Pricing!$A:$CL,MATCH(Проектные!$G$3,Pricing!$2:$2,0),0)),"не возим") -> 2414.365793 | I138: =IFERROR(IF($B$1,VLOOKUP(CONCATENATE($E138,$G$3),Tariffs_!A:H,8,0),VLOOKUP(CONCATENATE($E138,$G$3),Tariffs_!A:G,6,0)),"-") -> 0 | J138: =IFERROR(IF($B$1,VLOOKUP(CONCATENATE($E138,$G$3),Tariffs_!A:I,9,0)*VLOOKUP($F138,ZMM_Plst!$B:$K,8,0)/VLOOKUP($F138,ZMM_Plst!$B:$K,10,0)*1.2,VLOOKUP(CONCATENATE($E138,$G$3),Tariffs_!A:G,7,0)*VLOOKUP($F138,ZMM_Plst!$B:$K,8,0)/VLOOKUP($F138,ZMM_Plst!$B:$K,10,0)*1.2),"-") -> 0 | K138: =IFERROR(H138/1.2,"-") -> 2011.971494 | L138: =VLOOKUP($F138,ZMM_Plst!$B:$AA,26,0) -> B | M138: 4.8 | N138: 0.288 | O138: =VLOOKUP($F138,ZMM_Plst!$B:$AC,17,0) -> 8 | P138: =VLOOKUP($F138,ZMM_Plst!$B:$AC,9,0) -> 4.8 | Q138: =VLOOKUP($F138,ZMM_Plst!$B:$AC,10,0) -> 0.288 | R138: =VLOOKUP($F138,ZMM_Plst!$B:$AC,8,0) -> 0.327 | S138: =VLOOKUP($F138,ZMM_Plst!$B:$AC,16,0) -> 1 | T138: 81.02752294 | U138: =VLOOKUP($F138,ZMM_Plst!$B:$AC,6,0) -> 1 | V138: =VLOOKUP($F138,ZMM_Plst!$B:$AC,7,0) -> 0.6 | W138: =VLOOKUP($F138,ZMM_Plst!$B:$AC,5,0) -> 0.06
A139: =IF($F139<>"",VLOOKUP(F139,Pricing!$A:$F,6,FALSE),"") -> SW | B139: =IF($F139<>"",VLOOKUP(F139,Pricing!$A:$F,5,FALSE),"") -> LW | C139: =IF($F139<>"",VLOOKUP(Проектные!$F139,Pricing!$A:$F,3,FALSE),"") -> Optimal | D139: =VLOOKUP(C139,конструктив!A:B,2,0) -> НВФ | E139: =IF($F139<>"",VLOOKUP(F139,Pricing!$A:$F,4,FALSE),"") -> Chelyabinsk | F139: =IF(Pricing!A132<>"",Pricing!A132,"") -> 53080 | G139: =IF(F139<>"",VLOOKUP(F139,Pricing!$A:$B,2,FALSE),"") -> ИЗОВЕР ОПТИМАЛ-70/600x1000 | H139: =IFERROR(IF($A$1,VLOOKUP(F139,'Pricing pick up'!$A:$CM,MATCH(Проектные!$G$3,'Pricing pick up'!$2:$2,0),0),VLOOKUP(F139,Pricing!$A:$CL,MATCH(Проектные!$G$3,Pricing!$2:$2,0),0)),"не возим") -> 2451.145995 | I139: =IFERROR(IF($B$1,VLOOKUP(CONCATENATE($E139,$G$3),Tariffs_!A:H,8,0),VLOOKUP(CONCATENATE($E139,$G$3),Tariffs_!A:G,6,0)),"-") -> 0 | J139: =IFERROR(IF($B$1,VLOOKUP(CONCATENATE($E139,$G$3),Tariffs_!A:I,9,0)*VLOOKUP($F139,ZMM_Plst!$B:$K,8,0)/VLOOKUP($F139,ZMM_Plst!$B:$K,10,0)*1.2,VLOOKUP(CONCATENATE($E139,$G$3),Tariffs_!A:G,7,0)*VLOOKUP($F139,ZMM_Plst!$B:$K,8,0)/VLOOKUP($F139,ZMM_Plst!$B:$K,10,0)*1.2),"-") -> 0 | K139: 2042.621662 | L139: =VLOOKUP($F139,ZMM_Plst!$B:$AA,26,0) -> B | M139: 3.6 | N139: 0.252 | O139: =VLOOKUP($F139,ZMM_Plst!$B:$AC,17,0) -> 6 | P139: =VLOOKUP($F139,ZMM_Plst!$B:$AC,9,0) -> 3.6 | Q139: =VLOOKUP($F139,ZMM_Plst!$B:$AC,10,0) -> 0.252 | R139: =VLOOKUP($F139,ZMM_Plst!$B:$AC,8,0) -> 0.295 | S139: =VLOOKUP($F139,ZMM_Plst!$B:$AC,16,0) -> 1 | T139: 78.58983051 | U139: =VLOOKUP($F139,ZMM_Plst!$B:$AC,6,0) -> 1 | V139: =VLOOKUP($F139,ZMM_Plst!$B:$AC,7,0) -> 0.6 | W139: =VLOOKUP($F139,ZMM_Plst!$B:$AC,5,0) -> 0.07
A140: =IF($F140<>"",VLOOKUP(F140,Pricing!$A:$F,6,FALSE),"") -> SW | B140: =IF($F140<>"",VLOOKUP(F140,Pricing!$A:$F,5,FALSE),"") -> LW | C140: =IF($F140<>"",VLOOKUP(Проектные!$F140,Pricing!$A:$F,3,FALSE),"") -> Optimal | D140: =VLOOKUP(C140,конструктив!A:B,2,0) -> НВФ | E140: =IF($F140<>"",VLOOKUP(F140,Pricing!$A:$F,4,FALSE),"") -> Chelyabinsk | F140: =IF(Pricing!A133<>"",Pricing!A133,"") -> 53081 | G140: =IF(F140<>"",VLOOKUP(F140,Pricing!$A:$B,2,FALSE),"") -> ИЗОВЕР ОПТИМАЛ-80/600x1000 | H140: =IFERROR(IF($A$1,VLOOKUP(F140,'Pricing pick up'!$A:$CM,MATCH(Проектные!$G$3,'Pricing pick up'!$2:$2,0),0),VLOOKUP(F140,Pricing!$A:$CL,MATCH(Проектные!$G$3,Pricing!$2:$2,0),0)),"не возим") -> 2414.365793 | I140: =IFERROR(IF($B$1,VLOOKUP(CONCATENATE($E140,$G$3),Tariffs_!A:H,8,0),VLOOKUP(CONCATENATE($E140,$G$3),Tariffs_!A:G,6,0)),"-") -> 0 | J140: =IFERROR(IF($B$1,VLOOKUP(CONCATENATE($E140,$G$3),Tariffs_!A:I,9,0)*VLOOKUP($F140,ZMM_Plst!$B:$K,8,0)/VLOOKUP($F140,ZMM_Plst!$B:$K,10,0)*1.2,VLOOKUP(CONCATENATE($E140,$G$3),Tariffs_!A:G,7,0)*VLOOKUP($F140,ZMM_Plst!$B:$K,8,0)/VLOOKUP($F140,ZMM_Plst!$B:$K,10,0)*1.2),"-") -> 0 | K140: 2011.971494 | L140: =VLOOKUP($F140,ZMM_Plst!$B:$AA,26,0) -> B | M140: 3.6 | N140: 0.288 | O140: =VLOOKUP($F140,ZMM_Plst!$B:$AC,17,0) -> 6 | P140: =VLOOKUP($F140,ZMM_Plst!$B:$AC,9,0) -> 3.6 | Q140: =VLOOKUP($F140,ZMM_Plst!$B:$AC,10,0) -> 0.288 | R140: =VLOOKUP($F140,ZMM_Plst!$B:$AC,8,0) -> 0.327 | S140: =VLOOKUP($F140,ZMM_Plst!$B:$AC,16,0) -> 1 | T140: 81.02752294 | U140: =VLOOKUP($F140,ZMM_Plst!$B:$AC,6,0) -> 1 | V140: =VLOOKUP($F140,ZMM_Plst!$B:$AC,7,0) -> 0.6 | W140: =VLOOKUP($F140,ZMM_Plst!$B:$AC,5,0) -> 0.08
A141: =IF($F141<>"",VLOOKUP(F141,Pricing!$A:$F,6,FALSE),"") -> SW | B141: =IF($F141<>"",VLOOKUP(F141,Pricing!$A:$F,5,FALSE),"") -> LW | C141: =IF($F141<>"",VLOOKUP(Проектные!$F141,Pricing!$A:$F,3,FALSE),"") -> Optimal | D141: =VLOOKUP(C141,конструктив!A:B,2,0) -> НВФ | E141: =IF($F141<>"",VLOOKUP(F141,Pricing!$A:$F,4,FALSE),"") -> Chelyabinsk | F141: =IF(Pricing!A134<>"",Pricing!A134,"") -> 53082 | G141: =IF(F141<>"",VLOOKUP(F141,Pricing!$A:$B,2,FALSE),"") -> ИЗОВЕР ОПТИМАЛ-90/600x1000 | H141: =IFERROR(IF($A$1,VLOOKUP(F141,'Pricing pick up'!$A:$CM,MATCH(Проектные!$G$3,'Pricing pick up'!$2:$2,0),0),VLOOKUP(F141,Pricing!$A:$CL,MATCH(Проектные!$G$3,Pricing!$2:$2,0),0)),"не возим") -> 2446.416584 | I141: =IFERROR(IF($B$1,VLOOKUP(CONCATENATE($E141,$G$3),Tariffs_!A:H,8,0),VLOOKUP(CONCATENATE($E141,$G$3),Tariffs_!A:G,6,0)),"-") -> 0 | J141: =IFERROR(IF($B$1,VLOOKUP(CONCATENATE($E141,$G$3),Tariffs_!A:I,9,0)*VLOOKUP($F141,ZMM_Plst!$B:$K,8,0)/VLOOKUP($F141,ZMM_Plst!$B:$K,10,0)*1.2,VLOOKUP(CONCATENATE($E141,$G$3),Tariffs_!A:G,7,0)*VLOOKUP($F141,ZMM_Plst!$B:$K,8,0)/VLOOKUP($F141,ZMM_Plst!$B:$K,10,0)*1.2),"-") -> 0 | K141: 2038.680487 | L141: =VLOOKUP($F141,ZMM_Plst!$B:$AA,26,0) -> B | M141: 2.4 | N141: 0.216 | O141: =VLOOKUP($F141,ZMM_Plst!$B:$AC,17,0) -> 4 | P141: =VLOOKUP($F141,ZMM_Plst!$B:$AC,9,0) -> 2.4 | Q141: =VLOOKUP($F141,ZMM_Plst!$B:$AC,10,0) -> 0.216 | R141: =VLOOKUP($F141,ZMM_Plst!$B:$AC,8,0) -> 0.247 | S141: =VLOOKUP($F141,ZMM_Plst!$B:$AC,16,0) -> 1 | T141: 80.4534413 | U141: =VLOOKUP($F141,ZMM_Plst!$B:$AC,6,0) -> 1 | V141: =VLOOKUP($F141,ZMM_Plst!$B:$AC,7,0) -> 0.6 | W141: =VLOOKUP($F141,ZMM_Plst!$B:$AC,5,0) -> 0.09
A142: =IF($F142<>"",VLOOKUP(F142,Pricing!$A:$F,6,FALSE),"") -> SW | B142: =IF($F142<>"",VLOOKUP(F142,Pricing!$A:$F,5,FALSE),"") -> LW | C142: =IF($F142<>"",VLOOKUP(Проектные!$F142,Pricing!$A:$F,3,FALSE),"") -> Optimal | D142: =VLOOKUP(C142,конструктив!A:B,2,0) -> НВФ | E142: =IF($F142<>"",VLOOKUP(F142,Pricing!$A:$F,4,FALSE),"") -> Chelyabinsk | F142: =IF(Pricing!A135<>"",Pricing!A135,"") -> 53083 | G142: =IF(F142<>"",VLOOKUP(F142,Pricing!$A:$B,2,FALSE),"") -> ИЗОВЕР ОПТИМАЛ-100/600x1000 | H142: =IFERROR(IF($A$1,VLOOKUP(F142,'Pricing pick up'!$A:$CM,MATCH(Проектные!$G$3,'Pricing pick up'!$2:$2,0),0),VLOOKUP(F142,Pricing!$A:$CL,MATCH(Проектные!$G$3,Pricing!$2:$2,0),0)),"не возим") -> 2430.768395 | I142: =IFERROR(IF($B$1,VLOOKUP(CONCATENATE($E142,$G$3),Tariffs_!A:H,8,0),VLOOKUP(CONCATENATE($E142,$G$3),Tariffs_!A:G,6,0)),"-") -> 0 | J142: =IFERROR(IF($B$1,VLOOKUP(CONCATENATE($E142,$G$3),Tariffs_!A:I,9,0)*VLOOKUP($F142,ZMM_Plst!$B:$K,8,0)/VLOOKUP($F142,ZMM_Plst!$B:$K,10,0)*1.2,VLOOKUP(CONCATENATE($E142,$G$3),Tariffs_!A:G,7,0)*VLOOKUP($F142,ZMM_Plst!$B:$K,8,0)/VLOOKUP($F142,ZMM_Plst!$B:$K,10,0)*1.2),"-") -> 0 | K142: 2025.640329 | L142: =VLOOKUP($F142,ZMM_Plst!$B:$AA,26,0) -> A | M142: 2.4 | N142: 0.24 | O142: =VLOOKUP($F142,ZMM_Plst!$B:$AC,17,0) -> 4 | P142: =VLOOKUP($F142,ZMM_Plst!$B:$AC,9,0) -> 2.4 | Q142: =VLOOKUP($F142,ZMM_Plst!$B:$AC,10,0) -> 0.24 | R142: =VLOOKUP($F142,ZMM_Plst!$B:$AC,8,0) -> 0.266 | S142: =VLOOKUP($F142,ZMM_Plst!$B:$AC,16,0) -> 1 | T142: 83.0075188 | U142: =VLOOKUP($F142,ZMM_Plst!$B:$AC,6,0) -> 1 | V142: =VLOOKUP($F142,ZMM_Plst!$B:$AC,7,0) -> 0.6 | W142: =VLOOKUP($F142,ZMM_Plst!$B:$AC,5,0) -> 0.1
A143: =IF($F143<>"",VLOOKUP(F143,Pricing!$A:$F,6,FALSE),"") -> SW | B143: =IF($F143<>"",VLOOKUP(F143,Pricing!$A:$F,5,FALSE),"") -> LW | C143: =IF($F143<>"",VLOOKUP(Проектные!$F143,Pricing!$A:$F,3,FALSE),"") -> Optimal | D143: =VLOOKUP(C143,конструктив!A:B,2,0) -> НВФ | E143: =IF($F143<>"",VLOOKUP(F143,Pricing!$A:$F,4,FALSE),"") -> Chelyabinsk | F143: =IF(Pricing!A136<>"",Pricing!A136,"") -> 53084 | G143: =IF(F143<>"",VLOOKUP(F143,Pricing!$A:$B,2,FALSE),"") -> ИЗОВЕР ОПТИМАЛ-110/600x1000 | H143: =IFERROR(IF($A$1,VLOOKUP(F143,'Pricing pick up'!$A:$CM,MATCH(Проектные!$G$3,'Pricing pick up'!$2:$2,0),0),VLOOKUP(F143,Pricing!$A:$CL,MATCH(Проектные!$G$3,Pricing!$2:$2,0),0)),"не возим") -> 2427.869907 | I143: =IFERROR(IF($B$1,VLOOKUP(CONCATENATE($E143,$G$3),Tariffs_!A:H,8,0),VLOOKUP(CONCATENATE($E143,$G$3),Tariffs_!A:G,6,0)),"-") -> 0 | J143: =IFERROR(IF($B$1,VLOOKUP(CONCATENATE($E143,$G$3),Tariffs_!A:I,9,0)*VLOOKUP($F143,ZMM_Plst!$B:$K,8,0)/VLOOKUP($F143,ZMM_Plst!$B:$K,10,0)*1.2,VLOOKUP(CONCATENATE($E143,$G$3),Tariffs_!A:G,7,0)*VLOOKUP($F143,ZMM_Plst!$B:$K,8,0)/VLOOKUP($F143,ZMM_Plst!$B:$K,10,0)*1.2),"-") -> 0 | K143: 2023.224922 | L143: =VLOOKUP($F143,ZMM_Plst!$B:$AA,26,0) -> B | M143: 2.4 | N143: 0.264 | O143: =VLOOKUP($F143,ZMM_Plst!$B:$AC,17,0) -> 4 | P143: =VLOOKUP($F143,ZMM_Plst!$B:$AC,9,0) -> 2.4 | Q143: =VLOOKUP($F143,ZMM_Plst!$B:$AC,10,0) -> 0.264 | R143: =VLOOKUP($F143,ZMM_Plst!$B:$AC,8,0) -> 0.302 | S143: =VLOOKUP($F143,ZMM_Plst!$B:$AC,16,0) -> 1 | T143: 80.42384106 | U143: =VLOOKUP($F143,ZMM_Plst!$B:$AC,6,0) -> 1 | V143: =VLOOKUP($F143,ZMM_Plst!$B:$AC,7,0) -> 0.6 | W143: =VLOOKUP($F143,ZMM_Plst!$B:$AC,5,0) -> 0.11
A144: =IF($F144<>"",VLOOKUP(F144,Pricing!$A:$F,6,FALSE),"") -> SW | B144: =IF($F144<>"",VLOOKUP(F144,Pricing!$A:$F,5,FALSE),"") -> LW | C144: =IF($F144<>"",VLOOKUP(Проектные!$F144,Pricing!$A:$F,3,FALSE),"") -> Optimal | D144: =VLOOKUP(C144,конструктив!A:B,2,0) -> НВФ | E144: =IF($F144<>"",VLOOKUP(F144,Pricing!$A:$F,4,FALSE),"") -> Chelyabinsk | F144: =IF(Pricing!A137<>"",Pricing!A137,"") -> 53085 | G144: =IF(F144<>"",VLOOKUP(F144,Pricing!$A:$B,2,FALSE),"") -> ИЗОВЕР ОПТИМАЛ-120/600x1000 | H144: =IFERROR(IF($A$1,VLOOKUP(F144,'Pricing pick up'!$A:$CM,MATCH(Проектные!$G$3,'Pricing pick up'!$2:$2,0),0),VLOOKUP(F144,Pricing!$A:$CL,MATCH(Проектные!$G$3,Pricing!$2:$2,0),0)),"не возим") -> 2440.737954 | I144: =IFERROR(IF($B$1,VLOOKUP(CONCATENATE($E144,$G$3),Tariffs_!A:H,8,0),VLOOKUP(CONCATENATE($E144,$G$3),Tariffs_!A:G,6,0)),"-") -> 0 | J144: =IFERROR(IF($B$1,VLOOKUP(CONCATENATE($E144,$G$3),Tariffs_!A:I,9,0)*VLOOKUP($F144,ZMM_Plst!$B:$K,8,0)/VLOOKUP($F144,ZMM_Plst!$B:$K,10,0)*1.2,VLOOKUP(CONCATENATE($E144,$G$3),Tariffs_!A:G,7,0)*VLOOKUP($F144,ZMM_Plst!$B:$K,8,0)/VLOOKUP($F144,ZMM_Plst!$B:$K,10,0)*1.2),"-") -> 0 | K144: 2033.948295 | L144: =VLOOKUP($F144,ZMM_Plst!$B:$AA,26,0) -> B | M144: 2.4 | N144: 0.288 | O144: =VLOOKUP($F144,ZMM_Plst!$B:$AC,17,0) -> 4 | P144: =VLOOKUP($F144,ZMM_Plst!$B:$AC,9,0) -> 2.4 | Q144: =VLOOKUP($F144,ZMM_Plst!$B:$AC,10,0) -> 0.288 | R144: =VLOOKUP($F144,ZMM_Plst!$B:$AC,8,0) -> 0.327 | S144: =VLOOKUP($F144,ZMM_Plst!$B:$AC,16,0) -> 1 | T144: 81.02752294 | U144: =VLOOKUP($F144,ZMM_Plst!$B:$AC,6,0) -> 1 | V144: =VLOOKUP($F144,ZMM_Plst!$B:$AC,7,0) -> 0.6 | W144: =VLOOKUP($F144,ZMM_Plst!$B:$AC,5,0) -> 0.12
A145: =IF($F145<>"",VLOOKUP(F145,Pricing!$A:$F,6,FALSE),"") -> SW | B145: =IF($F145<>"",VLOOKUP(F145,Pricing!$A:$F,5,FALSE),"") -> LW | C145: =IF($F145<>"",VLOOKUP(Проектные!$F145,Pricing!$A:$F,3,FALSE),"") -> Optimal | D145: =VLOOKUP(C145,конструктив!A:B,2,0) -> НВФ | E145: =IF($F145<>"",VLOOKUP(F145,Pricing!$A:$F,4,FALSE),"") -> Chelyabinsk | F145: =IF(Pricing!A138<>"",Pricing!A138,"") -> 53086 | G145: =IF(F145<>"",VLOOKUP(F145,Pricing!$A:$B,2,FALSE),"") -> ИЗОВЕР ОПТИМАЛ-130/600x1000 | H145: =IFERROR(IF($A$1,VLOOKUP(F145,'Pricing pick up'!$A:$CM,MATCH(Проектные!$G$3,'Pricing pick up'!$2:$2,0),0),VLOOKUP(F145,Pricing!$A:$CL,MATCH(Проектные!$G$3,Pricing!$2:$2,0),0)),"не возим") -> 2443.384336 | I145: =IFERROR(IF($B$1,VLOOKUP(CONCATENATE($E145,$G$3),Tariffs_!A:H,8,0),VLOOKUP(CONCATENATE($E145,$G$3),Tariffs_!A:G,6,0)),"-") -> 0 | J145: =IFERROR(IF($B$1,VLOOKUP(CONCATENATE($E145,$G$3),Tariffs_!A:I,9,0)*VLOOKUP($F145,ZMM_Plst!$B:$K,8,0)/VLOOKUP($F145,ZMM_Plst!$B:$K,10,0)*1.2,VLOOKUP(CONCATENATE($E145,$G$3),Tariffs_!A:G,7,0)*VLOOKUP($F145,ZMM_Plst!$B:$K,8,0)/VLOOKUP($F145,ZMM_Plst!$B:$K,10,0)*1.2),"-") -> 0 | K145: 2036.153614 | L145: =VLOOKUP($F145,ZMM_Plst!$B:$AA,26,0) -> B | M145: 1.8 | N145: 0.234 | O145: =VLOOKUP($F145,ZMM_Plst!$B:$AC,17,0) -> 3 | P145: =VLOOKUP($F145,ZMM_Plst!$B:$AC,9,0) -> 1.8 | Q145: =VLOOKUP($F145,ZMM_Plst!$B:$AC,10,0) -> 0.234 | R145: =VLOOKUP($F145,ZMM_Plst!$B:$AC,8,0) -> 0.269 | S145: =VLOOKUP($F145,ZMM_Plst!$B:$AC,16,0) -> 1 | T145: 80.02973978 | U145: =VLOOKUP($F145,ZMM_Plst!$B:$AC,6,0) -> 1 | V145: =VLOOKUP($F145,ZMM_Plst!$B:$AC,7,0) -> 0.6 | W145: =VLOOKUP($F145,ZMM_Plst!$B:$AC,5,0) -> 0.13
A146: =IF($F146<>"",VLOOKUP(F146,Pricing!$A:$F,6,FALSE),"") -> SW | B146: =IF($F146<>"",VLOOKUP(F146,Pricing!$A:$F,5,FALSE),"") -> LW | C146: =IF($F146<>"",VLOOKUP(Проектные!$F146,Pricing!$A:$F,3,FALSE),"") -> Optimal | D146: =VLOOKUP(C146,конструктив!A:B,2,0) -> НВФ | E146: =IF($F146<>"",VLOOKUP(F146,Pricing!$A:$F,4,FALSE),"") -> Chelyabinsk | F146: =IF(Pricing!A139<>"",Pricing!A139,"") -> 53087 | G146: =IF(F146<>"",VLOOKUP(F146,Pricing!$A:$B,2,FALSE),"") -> ИЗОВЕР ОПТИМАЛ-140/600x1000 | H146: =IFERROR(IF($A$1,VLOOKUP(F146,'Pricing pick up'!$A:$CM,MATCH(Проектные!$G$3,'Pricing pick up'!$2:$2,0),0),VLOOKUP(F146,Pricing!$A:$CL,MATCH(Проектные!$G$3,Pricing!$2:$2,0),0)),"не возим") -> 2431.932571 | I146: =IFERROR(IF($B$1,VLOOKUP(CONCATENATE($E146,$G$3),Tariffs_!A:H,8,0),VLOOKUP(CONCATENATE($E146,$G$3),Tariffs_!A:G,6,0)),"-") -> 0 | J146: =IFERROR(IF($B$1,VLOOKUP(CONCATENATE($E146,$G$3),Tariffs_!A:I,9,0)*VLOOKUP($F146,ZMM_Plst!$B:$K,8,0)/VLOOKUP($F146,ZMM_Plst!$B:$K,10,0)*1.2,VLOOKUP(CONCATENATE($E146,$G$3),Tariffs_!A:G,7,0)*VLOOKUP($F146,ZMM_Plst!$B:$K,8,0)/VLOOKUP($F146,ZMM_Plst!$B:$K,10,0)*1.2),"-") -> 0 | K146: 2026.610475 | L146: =VLOOKUP($F146,ZMM_Plst!$B:$AA,26,0) -> B | M146: 1.8 | N146: 0.252 | O146: =VLOOKUP($F146,ZMM_Plst!$B:$AC,17,0) -> 3 | P146: =VLOOKUP($F146,ZMM_Plst!$B:$AC,9,0) -> 1.8 | Q146: =VLOOKUP($F146,ZMM_Plst!$B:$AC,10,0) -> 0.252 | R146: =VLOOKUP($F146,ZMM_Plst!$B:$AC,8,0) -> 0.295 | S146: =VLOOKUP($F146,ZMM_Plst!$B:$AC,16,0) -> 1 | T146: 78.58983051 | U146: =VLOOKUP($F146,ZMM_Plst!$B:$AC,6,0) -> 1 | V146: =VLOOKUP($F146,ZMM_Plst!$B:$AC,7,0) -> 0.6 | W146: =VLOOKUP($F146,ZMM_Plst!$B:$AC,5,0) -> 0.14
A147: =IF($F147<>"",VLOOKUP(F147,Pricing!$A:$F,6,FALSE),"") -> SW | B147: =IF($F147<>"",VLOOKUP(F147,Pricing!$A:$F,5,FALSE),"") -> LW | C147: =IF($F147<>"",VLOOKUP(Проектные!$F147,Pricing!$A:$F,3,FALSE),"") -> Optimal | D147: =VLOOKUP(C147,конструктив!A:B,2,0) -> НВФ | E147: =IF($F147<>"",VLOOKUP(F147,Pricing!$A:$F,4,FALSE),"") -> Chelyabinsk | F147: =IF(Pricing!A140<>"",Pricing!A140,"") -> 53088 | G147: =IF(F147<>"",VLOOKUP(F147,Pricing!$A:$B,2,FALSE),"") -> ИЗОВЕР ОПТИМАЛ-150/600x1000 | H147: =IFERROR(IF($A$1,VLOOKUP(F147,'Pricing pick up'!$A:$CM,MATCH(Проектные!$G$3,'Pricing pick up'!$2:$2,0),0),VLOOKUP(F147,Pricing!$A:$CL,MATCH(Проектные!$G$3,Pricing!$2:$2,0),0)),"не возим") -> 2453.484919 | I147: =IFERROR(IF($B$1,VLOOKUP(CONCATENATE($E147,$G$3),Tariffs_!A:H,8,0),VLOOKUP(CONCATENATE($E147,$G$3),Tariffs_!A:G,6,0)),"-") -> 0 | J147: =IFERROR(IF($B$1,VLOOKUP(CONCATENATE($E147,$G$3),Tariffs_!A:I,9,0)*VLOOKUP($F147,ZMM_Plst!$B:$K,8,0)/VLOOKUP($F147,ZMM_Plst!$B:$K,10,0)*1.2,VLOOKUP(CONCATENATE($E147,$G$3),Tariffs_!A:G,7,0)*VLOOKUP($F147,ZMM_Plst!$B:$K,8,0)/VLOOKUP($F147,ZMM_Plst!$B:$K,10,0)*1.2),"-") -> 0 | K147: 2044.570766 | L147: =VLOOKUP($F147,ZMM_Plst!$B:$AA,26,0) -> B | M147: 1.8 | N147: 0.27 | O147: =VLOOKUP($F147,ZMM_Plst!$B:$AC,17,0) -> 3 | P147: =VLOOKUP($F147,ZMM_Plst!$B:$AC,9,0) -> 1.8 | Q147: =VLOOKUP($F147,ZMM_Plst!$B:$AC,10,0) -> 0.27 | R147: =VLOOKUP($F147,ZMM_Plst!$B:$AC,8,0) -> 0.31 | S147: =VLOOKUP($F147,ZMM_Plst!$B:$AC,16,0) -> 1 | T147: 80.12903226 | U147: =VLOOKUP($F147,ZMM_Plst!$B:$AC,6,0) -> 1 | V147: =VLOOKUP($F147,ZMM_Plst!$B:$AC,7,0) -> 0.6 | W147: =VLOOKUP($F147,ZMM_Plst!$B:$AC,5,0) -> 0.15
A148: =IF($F148<>"",VLOOKUP(F148,Pricing!$A:$F,6,FALSE),"") -> SW | B148: =IF($F148<>"",VLOOKUP(F148,Pricing!$A:$F,5,FALSE),"") -> LW | C148: =IF($F148<>"",VLOOKUP(Проектные!$F148,Pricing!$A:$F,3,FALSE),"") -> Optimal | D148: =VLOOKUP(C148,конструктив!A:B,2,0) -> НВФ | E148: =IF($F148<>"",VLOOKUP(F148,Pricing!$A:$F,4,FALSE),"") -> Chelyabinsk | F148: =IF(Pricing!A141<>"",Pricing!A141,"") -> 53089 | G148: =IF(F148<>"",VLOOKUP(F148,Pricing!$A:$B,2,FALSE),"") -> ИЗОВЕР ОПТИМАЛ-160/600x1000 | H148: =IFERROR(IF($A$1,VLOOKUP(F148,'Pricing pick up'!$A:$CM,MATCH(Проектные!$G$3,'Pricing pick up'!$2:$2,0),0),VLOOKUP(F148,Pricing!$A:$CL,MATCH(Проектные!$G$3,Pricing!$2:$2,0),0)),"не возим") -> 2413.752065 | I148: =IFERROR(IF($B$1,VLOOKUP(CONCATENATE($E148,$G$3),Tariffs_!A:H,8,0),VLOOKUP(CONCATENATE($E148,$G$3),Tariffs_!A:G,6,0)),"-") -> 0 | J148: =IFERROR(IF($B$1,VLOOKUP(CONCATENATE($E148,$G$3),Tariffs_!A:I,9,0)*VLOOKUP($F148,ZMM_Plst!$B:$K,8,0)/VLOOKUP($F148,ZMM_Plst!$B:$K,10,0)*1.2,VLOOKUP(CONCATENATE($E148,$G$3),Tariffs_!A:G,7,0)*VLOOKUP($F148,ZMM_Plst!$B:$K,8,0)/VLOOKUP($F148,ZMM_Plst!$B:$K,10,0)*1.2),"-") -> 0 | K148: 2011.460055 | L148: =VLOOKUP($F148,ZMM_Plst!$B:$AA,26,0) -> B | M148: 1.8 | N148: 0.288 | O148: =VLOOKUP($F148,ZMM_Plst!$B:$AC,17,0) -> 3 | P148: =VLOOKUP($F148,ZMM_Plst!$B:$AC,9,0) -> 1.8 | Q148: =VLOOKUP($F148,ZMM_Plst!$B:$AC,10,0) -> 0.288 | R148: =VLOOKUP($F148,ZMM_Plst!$B:$AC,8,0) -> 0.327 | S148: =VLOOKUP($F148,ZMM_Plst!$B:$AC,16,0) -> 1 | T148: 81.02752294 | U148: =VLOOKUP($F148,ZMM_Plst!$B:$AC,6,0) -> 1 | V148: =VLOOKUP($F148,ZMM_Plst!$B:$AC,7,0) -> 0.6 | W148: =VLOOKUP($F148,ZMM_Plst!$B:$AC,5,0) -> 0.16
A149: =IF($F149<>"",VLOOKUP(F149,Pricing!$A:$F,6,FALSE),"") -> SW | B149: =IF($F149<>"",VLOOKUP(F149,Pricing!$A:$F,5,FALSE),"") -> LW | C149: =IF($F149<>"",VLOOKUP(Проектные!$F149,Pricing!$A:$F,3,FALSE),"") -> Optimal | D149: =VLOOKUP(C149,конструктив!A:B,2,0) -> НВФ | E149: =IF($F149<>"",VLOOKUP(F149,Pricing!$A:$F,4,FALSE),"") -> Chelyabinsk | F149: =IF(Pricing!A142<>"",Pricing!A142,"") -> 53102 | G149: =IF(F149<>"",VLOOKUP(F149,Pricing!$A:$B,2,FALSE),"") -> ИЗОВЕР ОПТИМАЛ-50/600х1000/УПК+ПАЛЛ | H149: =IFERROR(IF($A$1,VLOOKUP(F149,'Pricing pick up'!$A:$CM,MATCH(Проектные!$G$3,'Pricing pick up'!$2:$2,0),0),VLOOKUP(F149,Pricing!$A:$CL,MATCH(Проектные!$G$3,Pricing!$2:$2,0),0)),"не возим") -> 2683.006272 | I149: =IFERROR(IF($B$1,VLOOKUP(CONCATENATE($E149,$G$3),Tariffs_!A:H,8,0),VLOOKUP(CONCATENATE($E149,$G$3),Tariffs_!A:G,6,0)),"-") -> 0 | J149: =IFERROR(IF($B$1,VLOOKUP(CONCATENATE($E149,$G$3),Tariffs_!A:I,9,0)*VLOOKUP($F149,ZMM_Plst!$B:$K,8,0)/VLOOKUP($F149,ZMM_Plst!$B:$K,10,0)*1.2,VLOOKUP(CONCATENATE($E149,$G$3),Tariffs_!A:G,7,0)*VLOOKUP($F149,ZMM_Plst!$B:$K,8,0)/VLOOKUP($F149,ZMM_Plst!$B:$K,10,0)*1.2),"-") -> 0 | K149: 2235.83856 | L149: =VLOOKUP($F149,ZMM_Plst!$B:$AA,26,0) -> B | M149: 4.8 | N149: 0.24 | O149: =VLOOKUP($F149,ZMM_Plst!$B:$AC,17,0) -> 8 | P149: =VLOOKUP($F149,ZMM_Plst!$B:$AC,9,0) -> 115.2 | Q149: =VLOOKUP($F149,ZMM_Plst!$B:$AC,10,0) -> 5.76 | R149: =VLOOKUP($F149,ZMM_Plst!$B:$AC,8,0) -> 7.077 | S149: =VLOOKUP($F149,ZMM_Plst!$B:$AC,16,0) -> 24 | T149: 74.8791861 | U149: =VLOOKUP($F149,ZMM_Plst!$B:$AC,6,0) -> 1 | V149: =VLOOKUP($F149,ZMM_Plst!$B:$AC,7,0) -> 0.6 | W149: =VLOOKUP($F149,ZMM_Plst!$B:$AC,5,0) -> 0.05
A150: =IF($F150<>"",VLOOKUP(F150,Pricing!$A:$F,6,FALSE),"") -> SW | B150: =IF($F150<>"",VLOOKUP(F150,Pricing!$A:$F,5,FALSE),"") -> LW | C150: =IF($F150<>"",VLOOKUP(Проектные!$F150,Pricing!$A:$F,3,FALSE),"") -> Standard | D150: =VLOOKUP(C150,конструктив!A:B,2,0) -> НВФ | E150: =IF($F150<>"",VLOOKUP(F150,Pricing!$A:$F,4,FALSE),"") -> Chelyabinsk | F150: =IF(Pricing!A143<>"",Pricing!A143,"") -> 53180 | G150: =IF(F150<>"",VLOOKUP(F150,Pricing!$A:$B,2,FALSE),"") -> ИЗОВЕР СТАНДАРТ-160/600x1000 | H150: =IFERROR(IF($A$1,VLOOKUP(F150,'Pricing pick up'!$A:$CM,MATCH(Проектные!$G$3,'Pricing pick up'!$2:$2,0),0),VLOOKUP(F150,Pricing!$A:$CL,MATCH(Проектные!$G$3,Pricing!$2:$2,0),0)),"не возим") -> 2860 | I150: =IFERROR(IF($B$1,VLOOKUP(CONCATENATE($E150,$G$3),Tariffs_!A:H,8,0),VLOOKUP(CONCATENATE($E150,$G$3),Tariffs_!A:G,6,0)),"-") -> 0 | J150: =IFERROR(IF($B$1,VLOOKUP(CONCATENATE($E150,$G$3),Tariffs_!A:I,9,0)*VLOOKUP($F150,ZMM_Plst!$B:$K,8,0)/VLOOKUP($F150,ZMM_Plst!$B:$K,10,0)*1.2,VLOOKUP(CONCATENATE($E150,$G$3),Tariffs_!A:G,7,0)*VLOOKUP($F150,ZMM_Plst!$B:$K,8,0)/VLOOKUP($F150,ZMM_Plst!$B:$K,10,0)*1.2),"-") -> 0 | K150: 2383.333333 | L150: =VLOOKUP($F150,ZMM_Plst!$B:$AA,26,0) -> B | M150: 1.46 | N150: 0.234 | O150: =VLOOKUP($F150,ZMM_Plst!$B:$AC,17,0) -> 3 | P150: =VLOOKUP($F150,ZMM_Plst!$B:$AC,9,0) -> 1.46 | Q150: =VLOOKUP($F150,ZMM_Plst!$B:$AC,10,0) -> 0.234 | R150: =VLOOKUP($F150,ZMM_Plst!$B:$AC,8,0) -> 0.327 | S150: =VLOOKUP($F150,ZMM_Plst!$B:$AC,16,0) -> 1 | T150: 65.83486239 | U150: =VLOOKUP($F150,ZMM_Plst!$B:$AC,6,0) -> 1 | V150: =VLOOKUP($F150,ZMM_Plst!$B:$AC,7,0) -> 0.6 | W150: =VLOOKUP($F150,ZMM_Plst!$B:$AC,5,0) -> 0.16
